Workbook

Sheet Guide
B2: Cells Colour Code | Q2: Asset Base range
Q3: 2006
B4: Data input cells have a green background with blue text for positive numbers and red for negative numbers | E4: 10.5 | F4: -20.6 | Q4: 2007
Q5: 2008 | S5: Yes/No toggle
B6: Cells containing formula or referring to other cells have a white background and black text when positive and red text when negative | E6: =E4 -> 10.5 | F6: =F4+E4 -> -10.1 | Q6: 2009 | S6: 0
Q7: 2010 | S7: 1
B8: Cells that are used to determine scenarios have an orange background and black text | E8: 2016 | Q8: 2011
Q9: 2012
B10: Cells that are used to profile revenue have a yellow background and blue text | E10: 2.9 | Q10: 2013
B12: Macros
B13: This model uses macros to perform goal seeks when setting the % change in tariffs from one year to the next. See worksheet 'outputs 1' for details.
B15: Overview of worksheets
B16: Audit trail | C16: Provides details on changes to this model.
B17: PC3_inputs | C17: Provides all inputs for the PC3 period.
B18: PC2_inputs | C18: Provides all inputs for the PC2 period.
B19: PC1_inputs | C19: Provides all inputs for the PC2 period.
B20: Indexation | C20: Provides indexation values used within the model.
B21: PC3 distribution RAB | C21: Provides the RAB, in terms of historic cost, indexed gross asset value (in 2010/2011 prices) and indexed net book value.
B22: Calc of PC1 & PC2 adj. | C22: Provides the adjustments related to PC1 & PC2 which must be made to PC3 revenue.
B23: Calc of total rev | C23: Calculates the total revenue which is to be recovered during PC3.
B24: Outputs1 | C24: Profiles revenue recovery over the 5 years of PC3, by allowing the % change in annual tariffs to be set
B25: Outputs2 | C25: Provides the annual revenue (and the underlying components for each year.
B27: Points of note
B28: All revenue is in 2010/2011 terms unless otherwise stated.
B29: All revenue is in €m unless otherwise stated.

Sheet Audit trail
B2: Version # | C2: Date | D2: Comment
B3: v0.1 | C3: 2012-03-02 | D3: Draft circulated to BGN
B4: v0.9 | C4: 2012-05-21 | D4: Draft published
B5: v1.10 | C5: 2012-09-12 | D5: Demand for each year updated, WACC Adjusted, Additional opex added, C&I asset items reassigned in RAB - as per email fromBrendan O'Riordan, Yr to Yr adjustments updated taking account of 2012/13 tariffs

Sheet PC3_inputs
B1: Year of control | C1: 0 | D1: 1 | E1: 2 | F1: 3 | G1: 4 | H1: 5 | J1: PC3 WACC
B2: Gas year | C2: 2011/12 | D2: 2012/13 | E2: 2013/14 | F2: 2014/15 | G2: 2015/16 | H2: 2016/17 | J2: Year 1 | K2: Year 2 | L2: Year 3 | M2: Year 4 | N2: Year 5
J3: 0.0639 | K3: 0.052 | L3: 0.052 | M3: 0.052 | N3: 0.052
A4: GENERAL INPUTS
A6: Timing assumptions
A7: Assumed to happen at year end | D7: 0 | E7: 0 | F7: 0 | G7: 0 | H7: 0
A8: Assumed to be constant through year | D8: 0.5 | E8: 0.5 | F8: 0.5 | G8: 0.5 | H8: 0.5
A10: Discounting indices
A11: RAB discounting index | H11: =(1+$J$3)*(1+$K$3)*(1+$L$3)*(1+$M$3)*(1+$N$3) -> 1.303058064
A12: Capex & Opex expenditure and revenues discounting index | D12: =(1+$J$3)^(0.5) -> 1.031455283 | E12: =(1+$J$3)*((1+$K$3)^(0.5)) -> 1.091210858 | F12: =(1+$J$3)*(1+$K$3)*((1+$L$3)^(0.5)) -> 1.147953823 | G12: =(1+$J$3)*(1+$K$3)*(1+$L$3)*((1+$M$3)^(0.5)) -> 1.207647422 | H12: =(1+$J$3)*(1+$K$3)*(1+$L$3)*(1+$M$3)*((1+$N$3)^(0.5)) -> 1.270445087
A14: Transmission revenue split
A15: Commodity | B15: 0.1
A16: Capacity | B16: 0.9
A18: Conversion factors
A19: Convert from €m to € | B19: 1000000
A21: DEMAND
A23: Onshore
A24: Annual demand - Commodity | B24: MWh | C24: 54673781 | D24: 49572114.42 | E24: 49435982.83 | F24: 50681337.85 | G24: 51743116.98 | H24: 53581150.41
A25: Peak demand - Capacity | B25: MWh/day | C25: 241520 | D25: 196758.4579 | E25: 222176.9497 | F25: 225002.3674 | G25: 223772.6697 | H25: 224395.968
A27: Inch
A28: Annual demand - Commodity | B28: MWh | C28: 3749836 | D28: 6778728.374 | E28: 6760952.178 | F28: 6704361.413 | G28: 6653544.283 | H28: 4244446.999
A29: Peak demand - Capacity | B29: MWh/day | C29: 33590 | D29: 33678.44444 | E29: 33053.44444 | F29: 32324.27778 | G29: 31699.27778 | H29: 31178.44444
A31: Interconnectors
A32: Annual demand - Commodity | B32: MWh | C32: 54160567 | D32: 49116140.32 | E32: 49260095.79 | F32: 50769510.99 | G32: =F32 -> 50769510.99 | H32: =G32 -> 50769510.99
A33: Peak demand - Capacity | B33: MWh/day | C33: 206650 | D33: 162695.8715 | E33: 162455.9607 | F33: 164778.8986 | G33: =F33 -> 164778.8986 | H33: =G33 -> 164778.8986
A35: OPERATING EXPENDITURE
A37: Onshore
A38: Onshore | B38: €m | D38: 16.11063607 | E38: 15.16691742 | F38: 15.44506162 | G38: 15.98900646 | H38: 14.88464689
A39: Miscellaneous adjustments | B39: €m | D39: 0.2709 | E39: 0.2709 | F39: 0.2709 | G39: 0.2709 | H39: 0.2709
A40: Business support services | B40: €m | D40: 16.72506 | E40: 16.6744413 | F40: 16.85603423 | G40: 16.76432157 | H40: 16.67275755
A41: Onshore pass through | B41: €m | D41: 8.53499975 | E41: 8.69880025 | F41: 8.89628175 | G41: 9.89219975 | H41: 10.59810025
A42: Innovation | B42: €m | D42: 1.44 | E42: 1.44 | F42: 1.44 | G42: 1.44 | H42: 1.44
A43: NEGATIVE ADJUSTMENT | B43: €m | D43: -0.2 | E43: -0.2 | F43: -0.2 | G43: -0.2 | H43: -0.2
A44: ISO | B44: €m | D44: 2.4088 | E44: 2.311708731 | F44: 2.292991644 | G44: 2.274461727 | H44: 2.25611711
D45: 0 | E45: 0 | F45: 0 | G45: 0 | H45: 0
A46: Midleton Compressor Refurbishment | D46: 0 | E46: 0 | F46: 0 | G46: 0.1357921656 | H46: 0
A47: EU Third directive costs | B47: €m | D47: 0 | E47: 0.4276108717 | F47: 0.6940488357 | G47: 0.3036115776 | H47: 0.05775615871
A48: Technical training & Assessment costs | B48: €m | D48: 0 | E48: 0 | F48: 0.2885245606 | G48: 0 | H48: 0
A49: Apprenticeship Scheme | B49: €m | D49: 0 | E49: 0 | F49: 0 | G49: 0.1019676951 | H49: 0 | I49: =G49+G60+G72 -> 0.1460772298
B50: €m | D50: 0 | E50: 0 | F50: 0 | G50: 0 | H50: 0 | I50: =G58+G70+G50 -> 0.05080806231
A51: Total | D51: =SUM(D38:D50) -> 45.29039582 | E51: =SUM(E38:E50) -> 44.79037857 | F51: =SUM(F38:F50) -> 45.98384264 | G51: =SUM(G38:G50) -> 46.97226094 | H51: =SUM(H38:H50) -> 45.98027796
A53: Inch
A54: Inch | B54: €m | D54: 0.9121159027 | E54: 0.8878311454 | F54: 0.8766615478 | G54: 0.9693556954 | H54: 0.9847850036
A55: Inch pass through | B55: €m | D55: 0.14946375 | E55: 0.1714195264 | F55: 0.1980048399 | G55: 0.1664174868 | H55: 0.1131265297
A56: Spare Inch opex line | B56: €m | D56: 0 | E56: 0 | F56: 0 | G56: 0 | H56: 0
A57: Midleton Compressor Refurbishment | B57: €m | D57: 0 | E57: 0 | F57: 0 | G57: 0.002024103936 | H57: 0
A58: EU Third directive costs | B58: €m | D58: 0 | E58: 0.006510116574 | F58: 0.01056647323 | G58: 0.001611304874 | H58: 0.0008793025408
A59: Technical training & Assessment costs | B59: €m | D59: 0 | E59: 0 | F59: 0.004492884678 | G59: 0 | H59: 0
A60: Apprenticeship Scheme | B60: €m | D60: 0 | E60: 0 | F60: 0 | G60: 0.001519919886 | H60: 0
B61: €m | D61: 0 | E61: 0 | F61: 0 | G61: 0 | H61: 0 | I61: =G61 -> 0
A62: Total | D62: =SUM(D54:D61) -> 1.061579653 | E62: =SUM(E54:E61) -> 1.065760788 | F62: =SUM(F54:F61) -> 1.089725746 | G62: =SUM(G54:G61) -> 1.140928511 | H62: =SUM(H54:H61) -> 1.098790836
A64: Interconnectors
A65: Interconnector opex less PTL contributions | B65: €m | D65: 6.466529663 | E65: 9.259631255 | F65: 9.584821936 | G65: 9.82376824 | H65: 10.89319202
A66: Interconnector pass-through less PTL contributions | B66: €m | D66: 4.058322152 | E66: 4.17050745 | F66: 4.041527989 | G66: 4.119286312 | H66: 4.609318613
A67: Online Inspections | B67: €m | D67: 0.4 | E67: 0.4 | F67: 0.4 | G67: 0.4 | H67: 0.4
A68: Spare Interconnectors opex line | B68: €m | D68: 0 | E68: 0 | F68: 0 | G68: 0 | H68: 0
A69: Midleton Compressor Refurbishment | D69: 0 | E69: 0 | F69: 0 | G69: 0.05671733617 | H69: 0
A70: EU Third directive costs | B70: €m | D70: 0 | E70: 0.1987684833 | F70: 0.3226181642 | G70: 0.04919675744 | H70: 0.02684708184
A71: Technical training & Assessment costs | B71: €m | D71: 0 | E71: 0 | F71: 0.1344207255 | G71: 0 | H71: 0
A72: Apprenticeship Scheme | B72: €m | D72: 0 | E72: 0 | F72: 0 | G72: 0.0425896149 | H72: 0
D73: 0 | E73: 0 | F73: 0 | G73: 0 | H73: 0
A74: Spare Interconnectors opex line | B74: €m | D74: 0 | E74: 0 | F74: 0 | G74: 0 | H74: 0
A75: Total | D75: =SUM(D65:D74) -> 10.92485181 | E75: =SUM(E65:E74) -> 14.02890719 | F75: =SUM(F65:F74) -> 14.48338881 | G75: =SUM(G65:G74) -> 14.49155826 | H75: =SUM(H65:H74) -> 15.92935772
A77: Total operating expenditure | B77: €m | D77: =D51+D62+D75 -> 57.27682729 | E77: =E51+E62+E75 -> 59.88504655 | F77: =F51+F62+F75 -> 61.5569572 | G77: =G51+G62+G75 -> 62.60474771 | H77: =H51+H62+H75 -> 63.00842651
A79: CAPITAL EXPENDITURE
A81: TBU onshore
I82: Classification | K82: Classifications
A83: Large I&C connections | B83: €m | D83: 0.3 | E83: 0.4 | F83: 0.6 | G83: 1 | H83: 2 | I83: TBU Onshore - Pipelines/AGIs | K83: TBU Onshore - Buildings
A84: New Towns | B84: €m | D84: 0.815 | E84: =0.91391636+3.28991544 -> 4.2038318 | F84: 0.66125 | I84: TBU Onshore - Pipelines/AGIs | K84: TBU Onshore - Compressor stations
A85: Innovation | B85: €m | D85: 0 | I85: TBU Onshore - Pipelines/AGIs | K85: TBU Onshore - Equipment
A86: Refurbishment | B86: €m | D86: 21.48718956 | E86: 14.02458391 | F86: 12.21825307 | G86: 13.67408607 | H86: 11.5349194 | I86: TBU Onshore - Pipelines/AGIs | K86: TBU Onshore - GTTW
A87: Reinforcement | B87: €m | D87: 6.574 | E87: 6.804 | F87: 3.264 | G87: 5.728 | H87: 2.718 | I87: TBU Onshore - Pipelines/AGIs | K87: TBU Onshore - Land
A88: Refurbishment | B88: €m | D88: 2.371514 | E88: 3.00287575 | F88: 4.11062875 | G88: 4.11062875 | H88: 4.11062875 | I88: TBU Onshore - Equipment | K88: TBU Onshore - Pipelines/AGIs
A89: Total | B89: €m | D89: =SUM(D83:D88) -> 31.54770356 | E89: =SUM(E83:E88) -> 28.43529146 | F89: =SUM(F83:F88) -> 20.85413182 | G89: =SUM(G83:G88) -> 24.51271482 | H89: =SUM(H83:H88) -> 20.36354815 | K89: SS Onshore - Buildings
K90: SS Onshore - Equipment
A91: SS onshore | K91: SS Onshore - Land
K92: SS Onshore - Compressor stations
A93: IT (incl EU third Directive costs) | B93: €m | D93: 4.1 | E93: =3.35+0 -> 3.35 | F93: =3.1+ 2.94559550102622 -> 6.045595501 | G93: =2.25+0.327288389002913 -> 2.577288389 | H93: =2.2+0 -> 2.2 | I93: SS Onshore - Equipment | K93: SS Onshore - GTTW
A94: Facilities | B94: €m | D94: 0.85875 | E94: 0.57375 | F94: 0.69225 | G94: 0.6585 | H94: 0.4935 | I94: SS Onshore - Equipment | K94: SS Onshore - Pipelines/AGIs
A95: Pipelines - Work in Progress | B95: €m | D95: 3.95 | I95: SS Onshore - Pipelines/AGIs | K95: Inch - Buildings
A96: Equipment - Work in Progress | B96: €m | D96: 2.55 | I96: SS Onshore - Equipment | K96: Inch - Equipment
B97: €m | I97: SS Onshore - Pipelines/AGIs | K97: Inch - GTTW
B98: €m | I98: SS Onshore - Pipelines/AGIs | K98: Inch - Land
A99: Total | B99: €m | D99: =SUM(D93:D98) -> 11.45875 | E99: =SUM(E93:E98) -> 3.92375 | F99: =SUM(F93:F98) -> 6.737845501 | G99: =SUM(G93:G98) -> 3.235788389 | H99: =SUM(H93:H98) -> 2.6935 | K99: Inch - Compressor stations
K100: Inch - Pipelines/AGIs
A101: Inch | K101: IC1 - Buildings
K102: IC1 - Compressor stations
A103: Refurbishment | B103: €m | D103: 0.675 | E103: 0.88 | F103: 0.565 | G103: 0.56 | H103: 0.21 | I103: Inch - Compressor stations | K103: IC1 - Equipment
A104: Compressors - Work in Progress | B104: €m | D104: 0.18 | I104: Inch - Compressor stations | K104: IC1 - Land
A105: Equipment - Work in Progress plus EU Third Directive costs | B105: €m | D105: 0.03 | E105: 0 | F105: 0.04488662 | G105: 0.0049874 | H105: 0 | I105: Inch - Equipment | K105: IC1 - Pipelines/AGIs
A106: Spare Inch capex line | B106: €m | K106: IC1 - GTTW
A107: Spare Inch capex line | B107: €m | K107: IC2
A108: Spare Inch capex line | B108: €m
A109: Total | B109: €m | D109: =SUM(D103:D108) -> 0.885 | E109: =SUM(E103:E108) -> 0.88 | F109: =SUM(F103:F108) -> 0.60988662 | G109: =SUM(G103:G108) -> 0.5649874 | H109: =SUM(H103:H108) -> 0.21
A111: IC1
A113: Reinforcement | B113: €m | D113: 3.1 | E113: 3.822 | F113: 3.706 | G113: 3.511 | H113: 3.271 | I113: IC1 - Compressor stations
A114: Refurbishment | B114: €m
A115: SWOS Future Study & EU Third Directive costs | B115: €m | D115: 1 | E115: 0 | F115: 1.372318244 | G115: 0.1524798049 | H115: 0 | I115: IC1 - Equipment
A116: Pipelines - Work in Progress | B116: €m | D116: 0.19 | I116: IC1 - Pipelines/AGIs
A117: Compressores - Work in Progress | B117: €m | D117: 1.63 | I117: IC1 - Compressor stations
A118: Total | B118: €m | D118: =SUM(D113:D117) -> 5.92 | E118: =SUM(E113:E117) -> 3.822 | F118: =SUM(F113:F117) -> 5.078318244 | G118: =SUM(G113:G117) -> 3.663479805 | H118: =SUM(H113:H117) -> 3.271
A120: IC2
A122: Spare IC2 capex line | B122: €m | D122: 0 | E122: 0 | F122: 0 | G122: 0 | H122: 0
A123: Spare IC2 capex line | B123: €m | D123: 0 | E123: 0 | F123: 0 | G123: 0 | H123: 0
A124: Spare IC2 capex line | B124: €m | D124: 0 | E124: 0 | F124: 0 | G124: 0 | H124: 0
A125: Spare IC2 capex line | B125: €m | D125: 0 | E125: 0 | F125: 0 | G125: 0 | H125: 0
A126: Total | B126: €m | D126: =SUM(D122:D125) -> 0 | E126: =SUM(E122:E125) -> 0 | F126: =SUM(F122:F125) -> 0 | G126: =SUM(G122:G125) -> 0 | H126: =SUM(H122:H125) -> 0
A128: Total capital expenditure | B128: €m | D128: =D89+D99+D109+D118+D126 -> 49.81145356 | E128: =E89+E99+E109+E118+E126 -> 37.06104146 | F128: =F89+F99+F109+F118+F126 -> 33.28018218 | G128: =G89+G99+G109+G118+G126 -> 31.97697041 | H128: =H89+H99+H109+H118+H126 -> 26.53804815
A130: REGULATED ASSET BASE
A132: Onshore
A133: Opening RAB | B133: €m | D133: =PC2_inputs!H86 -> 853.7601143 | E133: =D134 -> 860.2850573 | F133: =E134 -> 858.3000418 | G133: =F134 -> 851.6752873 | H133: =G134 -> 845.2150139
A134: Closing RAB | B134: €m | D134: ='PC3 transmission RABs'!K3 -> 860.2850573 | E134: ='PC3 transmission RABs'!L3 -> 858.3000418 | F134: ='PC3 transmission RABs'!M3 -> 851.6752873 | G134: ='PC3 transmission RABs'!N3 -> 845.2150139 | H134: ='PC3 transmission RABs'!O3 -> 832.8665428
A135: Depreciation | B135: €m | D135: =D133+D89+D99-D134 -> 36.48151058 | E135: =E133+E89+E99-E134 -> 34.34405696 | F135: =F133+F89+F99-F134 -> 34.21673177 | G135: =G133+G89+G99-G134 -> 34.20877664 | H135: =H133+H89+H99-H134 -> 35.40551924
A137: Inch
A138: Opening RAB | B138: €m | D138: =PC2_inputs!X86 -> 8.980090399 | E138: =D139 -> 9.240100767 | F138: =E139 -> 9.457769461 | G138: =F139 -> 9.371936112 | H138: =G139 -> 9.213716142
A139: Closing RAB | B139: €m | D139: ='PC3 transmission RABs'!K4 -> 9.240100767 | E139: ='PC3 transmission RABs'!L4 -> 9.457769461 | F139: ='PC3 transmission RABs'!M4 -> 9.371936112 | G139: ='PC3 transmission RABs'!N4 -> 9.213716142 | H139: ='PC3 transmission RABs'!O4 -> 8.694410031
A140: Depreciation | B140: €m | D140: =D138+D109-D139 -> 0.6249896316 | E140: =E138+E109-E139 -> 0.6623313064 | F140: =F138+F109-F139 -> 0.6957199684 | G140: =G138+G109-G139 -> 0.7232073704 | H140: =H138+H109-H139 -> 0.7293061104
A142: Interconnectors
A143: Opening RAB | B143: €m | D143: =PC2_inputs!AN86 -> 560.6997932 | E143: =D144 -> 548.3713441 | F143: =E144 -> 533.6751454 | G143: =F144 -> 519.9873632 | H143: =G144 -> 504.6592788
A144: Closing RAB | B144: €m | D144: ='PC3 transmission RABs'!K5 -> 548.3713441 | E144: ='PC3 transmission RABs'!L5 -> 533.6751454 | F144: ='PC3 transmission RABs'!M5 -> 519.9873632 | G144: ='PC3 transmission RABs'!N5 -> 504.6592788 | H144: ='PC3 transmission RABs'!O5 -> 488.8246731
A145: Depreciation | B145: €m | D145: =D143+D118+D126-D144 -> 18.24844908 | E145: =E143+E118+E126-E144 -> 18.51819871 | F145: =F143+F118+F126-F144 -> 18.76610052 | G145: =G143+G118+G126-G144 -> 18.99156417 | H145: =H143+H118+H126-H144 -> 19.10560565

Sheet PC2_inputs
B1: Year of PC2 control | D1: 1 | E1: 2 | F1: 3 | G1: 4 | H1: 5 | J1: Important point: The prices on this page are in 10/11 terms unless otherwise stated.
B2: Gas year | C2: Oct to Dec 07 | D2: 2008 | E2: 2009 | F2: 2010 | G2: Jan to Sept 2011 | H2: 2011/12 | J2: PR2 WACC | K2: 0.052
B4: GENERAL INPUTS
B6: Timing assumptions
B7: Assumed to be constant through year | D7: 0.5 | E7: 0.5 | F7: 0.5 | G7: 0.5 | H7: 0.5
B8: Assumed to happen at year end | D8: 0 | E8: 0 | F8: 0 | G8: 0 | H8: 0
B10: Discounting indices
B11: RAB discounting index | H11: =(1+K2)^(H1-H8) -> 1.288483018
B12: Capex and Opex expenditure discounting index | D12: =(1+$K$2)^(D1-D7) -> 1.025670512 | E12: =(1+$K$2)^(E1-E7) -> 1.079005379 | F12: =(1+$K$2)^(F1-F7) -> 1.135113659 | G12: =(1+$K$2)^(G1-G7) -> 1.194139569 | H12: =(1+$K$2)^(H1-H7) -> 1.256234827
B14: Transmission revenue split
B15: Commodity | D15: 0.1
B16: Capacity | D16: 0.9
B18: Conversion factors
B19: Convert from €m to € | D19: 1000000
I20: Figures as per CER11170, page 11
B21: REVENUE & DEMAND FIGURES RELATED TO LAST YEAR OF PR02 | E21: 2011/2012 | I21: 2011/2012
E22: Onshore | F22: Inch | G22: Interconnectors | I22: Onshore | J22: Inch | K22: Interconnectors
B23: Average Commodity price, in 10/11 terms | D23: € / MWh | E23: =I23/1.011 -> 0.2126607319 | F23: 0.05242334322 | G23: 0.08110781405 | I23: 0.215 | J23: 0.053 | K23: 0.082
B24: Average Capacity price, in 10/11 terms | D24: € / MWh/d | E24: 435.8625124 | F24: 46.18892186 | G24: 187.818002 | I24: 440.657 | J24: 46.697 | K24: 189.884
B26: CAPITAL EXPENDITURE
C27: 2007 | D27: 2008 | F27: 2009 | H27: 2010 | J27: 2011 | K27: 2011/12
B28: TBU onshore | C28: Oct to Dec | D28: Jan to Sept | E28: Oct to Dec | F28: Jan to Sept | G28: Oct to Dec | H28: Jan to Sept | I28: Oct to Dec | J28: Jan to Sept | K28: Oct to Sept
C29: Nominal terms | I29: 10/11 terms | L29: Classification | N29: Classifications
B30: Spare TBU onshore capex line | C30: 0.015254009 | D30: 0.880909 | E30: 0 | F30: 0 | G30: 0 | H30: 0 | I30: 0 | J30: 0.005735 | K30: 0 | L30: TBU Onshore - Buildings | N30: TBU Onshore - Buildings
B31: Spare TBU onshore capex line | C31: 3.447242064 | D31: 1.535366078 | E31: 0.657519534 | F31: 1.239540855 | G31: 0.722188236 | H31: 1.099184277 | I31: 19.92216602 | J31: 0.7086204385 | K31: 5.14 | L31: TBU Onshore - Equipment | N31: TBU Onshore - Compressor stations
B32: Spare TBU onshore capex line | C32: 0 | D32: 0 | E32: 0 | F32: 0 | G32: 0 | H32: 0 | I32: 0 | J32: 0.3565 | K32: 0 | L32: TBU Onshore - Land | N32: TBU Onshore - Equipment
B33: Spare TBU onshore capex line | C33: -0.537712 | D33: -0.409724 | E33: 0.011252 | F33: 0.00721017 | G33: 0 | H33: 0 | I33: 0 | J33: 0 | K33: 0 | L33: TBU Onshore - GTTW | N33: TBU Onshore - GTTW
B34: Spare TBU onshore capex line | C34: 0.410584 | D34: 6.4573193 | E34: 10.35999202 | F34: 8.197357 | G34: 42.90412413 | H34: 2.28366687 | I34: 0 | J34: 8.07332788 | K34: 22.669 | L34: TBU Onshore - Pipelines/AGIs | N34: TBU Onshore - Land | P34: NEGATIVE EFFICIENCY REFURB | R34: -0.9 | S34: -0.7 | T34: -0.8 | U34: -1.2 | V34: -2.6
B35: NEGATIVE EFFICIENCY VARIANCE | K35: -0.2 | L35: TBU Onshore - Pipelines/AGIs | N35: TBU Onshore - Pipelines/AGIs | P35: NEGATIVE EFFICIENCY PIPELINES | R35: 0 | S35: -0.5 | T35: -0.4 | U35: -0.1 | V35: 0
N36: SS Onshore - Buildings
B37: SS onshore | N37: SS Onshore - Equipment
N38: SS Onshore - Land
B39: ITO setup | J39: =((24-1.5)*6/7)*80% -> 15.42857143 | L39: ITO setup | N39: SS Onshore - Compressor stations
B40: Spare SS onshore capex line | N40: SS Onshore - GTTW
B41: Spare SS onshore capex line | N41: SS Onshore - Pipelines/AGIs | P41: NEGATIVE EFFICIENCY REFURB | R41: 0 | S41: 0 | T41: 0 | U41: 0 | V41: -0.2
B42: Spare SS onshore capex line | N42: ITO setup
B43: Spare SS onshore capex line | N43: Inch - Buildings
B44: Spare SS onshore capex line | N44: Inch - Equipment
N45: Inch - GTTW
B46: Inch | N46: Inch - Land
N47: Inch - Compressor stations
B48: Spare Inch capex line | C48: 0 | D48: 0 | E48: 0 | F48: 0 | G48: 0 | H48: 0 | I48: 0 | J48: 0 | K48: 0 | L48: Inch - Buildings | N48: Inch - Pipelines/AGIs
B49: Spare Inch capex line | C49: 0.0263319 | D49: 0.0036594 | E49: 0 | F49: 0 | G49: 0 | H49: 0 | I49: 0 | J49: 0 | K49: 0.098 | L49: Inch - Equipment | N49: IC1 - Buildings
B50: Spare Inch capex line | C50: 0 | D50: 0 | E50: 0 | F50: 0 | G50: 0 | H50: 0 | I50: 0 | J50: 0 | K50: 0 | L50: Inch - Land | N50: IC1 - Compressor stations
B51: Spare Inch capex line | C51: 0 | D51: 0 | E51: 0 | F51: 0 | G51: 0 | H51: 0 | I51: 0 | J51: 0 | K51: 0 | L51: Inch - GTTW | N51: IC1 - Equipment
B52: Spare Inch capex line | C52: 0 | D52: 0 | E52: -0.31829 | F52: 0.0014 | G52: 0.001381 | H52: 0 | I52: 0 | J52: 0 | K52: 0 | L52: Inch - Compressor stations | N52: IC1 - Land
B53: Spare Inch capex line | N53: IC1 - Pipelines/AGIs
N54: IC1 - GTTW
B55: IC1 | N55: IC2
B57: Spare IC1 capex line | C57: 0 | D57: 0 | E57: 0 | F57: 0 | G57: 0 | H57: 0 | I57: 0 | J57: 0 | K57: 0 | L57: IC1 - Buildings
B58: Spare IC1 capex line | C58: 0 | D58: 0 | E58: 0 | F58: 0 | G58: 0.03202775 | H58: 0.02223624 | I58: 0.34029314 | J58: 0.34656496 | K58: 0.0219 | L58: IC1 - Equipment
B59: Spare IC1 capex line | C59: 0 | D59: 0 | E59: 0 | F59: 0 | G59: 0 | H59: 0 | I59: 0 | J59: 0 | K59: 0 | L59: IC1 - Land | P59: NEGATIVE EFFICIENCY REFURB | R59: 0 | S59: 0 | T59: 0 | U59: -0.2 | V59: -0.4
B60: Spare IC1 capex line | C60: 0.0006 | D60: 9.1e-05 | E60: 0 | F60: 0 | G60: 0 | H60: 0 | I60: 0 | J60: 0 | K60: 1.924213 | L60: IC1 - Pipelines/AGIs
B61: Spare IC1 capex line | C61: 0.00511249 | D61: 0 | E61: 0 | F61: 0 | G61: 0.07248256 | H61: 0.1159909 | I61: 0 | J61: 0.7942778 | K61: 5.259262702 | L61: IC1 - Compressor stations
B63: IC2
B65: Spare IC2 capex line
B66: Spare IC2 capex line
B67: Spare IC2 capex line
B68: Spare IC2 capex line
B70: Total capital expenditure | C70: =SUM(C30:C68) -> 3.367412463 | D70: 8.467620778 | E70: 10.71047355 | F70: 9.445508026 | G70: 43.73220368 | H70: 3.521078287 | I70: 20.26245916 | J70: 25.71359751 | K70: 34.9123757
B72: Onshore | R72: Inch | AH72: Interconnectors
B74: REGULATED ASSET BASE & CAPITAL EXPENDITURE | R74: REGULATED ASSET BASE & CAPITAL EXPENDITURE | AH74: REGULATED ASSET BASE & CAPITAL EXPENDITURE
D77: 0708 | E77: 08 09 | F77: 09 10 | G77: 10 11 | H77: 11 12 | T77: 0708 | U77: 08 09 | V77: 09 10 | W77: 10 11 | X77: 11 12 | AJ77: 0708 | AK77: 08 09 | AL77: 09 10 | AM77: 10 11 | AN77: 11 12
B78: Figures as per PC2 decision (inflated to 10/11 monies to be consistent with this page) | J78: Figures as per PC2 decision (in 05/06 monies) | R78: Figures as per PC2 decision (inflated to 10/11 monies) | Z78: Figures as per PC2 decision (in 05/06 monies) | AH78: Figures as per PC2 decision (inflated to 10/11 monies to be consistent with this page) | AP78: Figures as per PC2 decision (in 05/06 monies)
B79: Opening RAB | D79: =K79*Indexation!$B$8 -> 874.1899162 | E79: =L79*Indexation!$B$8 -> 912.3635147 | F79: =M79*Indexation!$B$8 -> 941.5545035 | G79: =N79*Indexation!$B$8 -> 936.2044459 | H79: =O79*Indexation!$B$8 -> 930.2426135 | J79: Opening RAB | K79: 835.28 | L79: 871.7545038 | M79: 899.6462109 | N79: 894.5342827 | O79: 888.8378096 | R79: Opening RAB | T79: =AA79*Indexation!$B$8 -> 12.42911626 | U79: =AB79*Indexation!$B$8 -> 12.01061652 | V79: =AC79*Indexation!$B$8 -> 11.53978763 | W79: =AD79*Indexation!$B$8 -> 11.01662959 | X79: =AE79*Indexation!$B$8 -> 10.44114239 | Z79: Opening RAB | AA79: 11.87590023 | AB79: 11.47602779 | AC79: 11.02615534 | AD79: 10.5262829 | AE79: 9.976410454 | AH79: Opening RAB | AJ79: =AQ79*Indexation!$B$8 -> 627.5312156 | AK79: =AR79*Indexation!$B$8 -> 618.6244497 | AL79: =AS79*Indexation!$B$8 -> 607.6846375 | AM79: =AT79*Indexation!$B$8 -> 594.3759888 | AN79: =AU79*Indexation!$B$8 -> 581.0488281 | AP79: Opening RAB | AQ79: 599.6 | AR79: 591.0896715 | AS79: 580.6367868 | AT79: 567.9205019 | AU79: 555.1865289
B80: Closing RAB | D80: =K80*Indexation!$B$8 -> 912.3635147 | E80: =L80*Indexation!$B$8 -> 941.5545035 | F80: =M80*Indexation!$B$8 -> 936.2044459 | G80: =N80*Indexation!$B$8 -> 930.2426135 | H80: =O80*Indexation!$B$8 -> 922.4873916 | J80: Closing RAB | K80: 871.7545038 | L80: 899.6462109 | M80: 894.5342827 | N80: 888.8378096 | O80: 881.4277701 | R80: Closing RAB | T80: =AA80*Indexation!$B$8 -> 12.01061652 | U80: =AB80*Indexation!$B$8 -> 11.53978763 | V80: =AC80*Indexation!$B$8 -> 11.01662959 | W80: =AD80*Indexation!$B$8 -> 10.44114239 | X80: =AE80*Indexation!$B$8 -> 9.813326043 | Z80: Closing RAB | AA80: 11.47602779 | AB80: 11.02615534 | AC80: 10.5262829 | AD80: 9.976410454 | AE80: 9.37653801 | AH80: Closing RAB | AJ80: =AQ80*Indexation!$B$8 -> 618.6244497 | AK80: =AR80*Indexation!$B$8 -> 607.6846375 | AL80: =AS80*Indexation!$B$8 -> 594.3759888 | AM80: =AT80*Indexation!$B$8 -> 581.0488281 | AN80: =AU80*Indexation!$B$8 -> 567.7014725 | AP80: Closing RAB | AQ80: 591.0896715 | AR80: 580.6367868 | AS80: 567.9205019 | AT80: 555.1865289 | AU80: 542.4332599
B82: Capex | D82: =K82*Indexation!$B$8 -> 64.71867366 | E82: =L82*Indexation!$B$8 -> 57.08352041 | F82: =M82*Indexation!$B$8 -> 22.40701724 | G82: =N82*Indexation!$B$8 -> 22.06478457 | H82: =O82*Indexation!$B$8 -> 21.03945968 | J82: Capex | K82: 61.838066 | L82: 54.542751 | M82: 21.409688 | N82: 21.082688 | O82: 20.103 | R82: Capex | T82: =AA82*Indexation!$B$8 -> 0.2616457703 | U82: =AB82*Indexation!$B$8 -> 0.2616457703 | V82: =AC82*Indexation!$B$8 -> 0.2616457703 | W82: =AD82*Indexation!$B$8 -> 0.2616457703 | X82: =AE82*Indexation!$B$8 -> 0.2616457703 | Z82: Capex | AA82: 0.25 | AB82: 0.25 | AC82: 0.25 | AD82: 0.25 | AE82: 0.25 | AH82: Capex | AJ82: =AQ82*Indexation!$B$8 -> 4.709623866 | AK82: =AR82*Indexation!$B$8 -> 2.82577432 | AL82: =AS82*Indexation!$B$8 -> 0.5232915407 | AM82: =AT82*Indexation!$B$8 -> 0.5232915407 | AN82: =AU82*Indexation!$B$8 -> 0.5232915407 | AP82: Capex | AQ82: 4.5 | AR82: 2.7 | AS82: 0.5 | AT82: 0.5 | AU82: 0.5
B84: Approved outturn figures, 10/11 terms | R84: Approved outturn figures, 10/11 terms | AH84: Approved outturn figures, 10/11 terms
B85: Opening RAB | D85: =PC1_inputs!C71 -> 843.9242066 | E85: =D86 -> 829.2885332 | F85: =E86 -> 824.1362995 | G85: =F86 -> 842.9073342 | H85: =G86 -> 857.289611 | R85: Opening RAB | T85: =PC1_inputs!D71 -> 12.55008816 | U85: =T86 -> 11.83929395 | V85: =U86 -> 10.80903322 | W85: =V86 -> 10.11091041 | X85: =W86 -> 9.483911356 | AH85: Opening RAB | AJ85: =PC1_inputs!E71 -> 618.8207482 | AK85: =AJ86 -> 605.5124832 | AL85: =AK86 -> 592.1999707 | AM85: =AL86 -> 579.1136144 | AN85: =AM86 -> 567.1170981
B86: Closing RAB | D86: ='PC3 transmission RABs'!F3 -> 829.2885332 | E86: ='PC3 transmission RABs'!G3 -> 824.1362995 | F86: ='PC3 transmission RABs'!H3 -> 842.9073342 | G86: ='PC3 transmission RABs'!I3 -> 857.289611 | H86: ='PC3 transmission RABs'!J3 -> 853.7601143 | R86: Closing RAB | T86: ='PC3 transmission RABs'!F4 -> 11.83929395 | U86: ='PC3 transmission RABs'!G4 -> 10.80903322 | V86: ='PC3 transmission RABs'!H4 -> 10.11091041 | W86: ='PC3 transmission RABs'!I4 -> 9.483911356 | X86: ='PC3 transmission RABs'!J4 -> 8.980090399 | AH86: Closing RAB | AJ86: ='PC3 transmission RABs'!F5 -> 605.5124832 | AK86: ='PC3 transmission RABs'!G5 -> 592.1999707 | AL86: ='PC3 transmission RABs'!H5 -> 579.1136144 | AM86: ='PC3 transmission RABs'!I5 -> 567.1170981 | AN86: ='PC3 transmission RABs'!J5 -> 560.6997932
B88: Capex | D88: =SUM(C30:D44)*Indexation!D8 -> 11.57266966 | E88: =SUM(E30:F44)*Indexation!E8 -> 20.22130093 | F88: =SUM(G30:H44)*Indexation!F8 -> 47.57327348 | G88: =SUM(I30:J44)*Indexation!G8 -> 44.49492077 | H88: =SUM(K30:K44) -> 27.609 | R88: Capex | T88: =SUM(C48:D53)*Indexation!D8 -> 0.02941540754 | U88: =SUM(E48:F53)*Indexation!E8 -> -0.3129960557 | V88: =SUM(G48:H53)*Indexation!F8 -> 0.001397572 | W88: =SUM(I48:J53)*Indexation!G8 -> 0 | X88: =SUM(K48:K53) -> 0.098 | AH88: Capex | AJ88: =SUM(C57:D68)*Indexation!D8 -> 0.005692051478 | AK88: =SUM(E57:F67)*Indexation!E8 -> 0 | AL88: =SUM(G57:H68)*Indexation!F8 -> 0.2456502994 | AM88: =SUM(I57:J68)*Indexation!G8 -> 1.4811359 | AN88: =SUM(K57:K68) -> 7.205375702
G89: 16.42 for ITO
B90: REVENUE REQUIRED TO COVER CAPITAL EXPENDITURE, DEPRECIATION AND RETURN, 10/11 terms | R90: REVENUE REQUIRED TO COVER CAPITAL EXPENDITURE, DEPRECIATION AND RETURN, 10/11 terms | AH90: REVENUE REQUIRED TO COVER CAPITAL EXPENDITURE, DEPRECIATION AND RETURN, 10/11 terms
B92: Revenue required to cover capex, depreciation & return | R92: Revenue required to cover capex, depreciation & return | AH92: Revenue required to cover capex, depreciation & return
B93: As per PC2 decision | R93: As per PC2 decision | AH93: As per PC2 decision
B94: NPV of revenue required to reinburse changes in RAB | I94: =D79-(H80/H11) -> 158.241488 | R94: NPV of revenue required to reinburse changes in RAB | Y94: =T79-(X80/H11) -> 4.812930475 | AH94: NPV of revenue required to reinburse changes in RAB | AO94: =AJ79-(AN80/H11) -> 186.9344328
B95: NPV of revenue required to reinburse capex | D95: =D82/D12 -> 63.09889275 | E95: =E82/E12 -> 52.90383302 | F95: =F82/F12 -> 19.73988866 | G95: =G82/G12 -> 18.47755919 | H95: =H82/H12 -> 16.74803089 | I95: =SUM(D95:H95) -> 170.9682045 | R95: NPV of revenue required to reinburse capex | T95: =T82/D12 -> 0.2550972921 | U95: =U82/E12 -> 0.2424879203 | V95: =V82/F12 -> 0.2305018254 | W95: =W82/G12 -> 0.219108199 | X95: =X82/H12 -> 0.2082777557 | Y95: =SUM(T95:X95) -> 1.155472992 | AH95: NPV of revenue required to reinburse capex | AJ95: =AJ82/D12 -> 4.591751258 | AK95: =AK82/E12 -> 2.618869539 | AL95: =AL82/F12 -> 0.4610036507 | AM95: =AM82/G12 -> 0.438216398 | AN95: =AN82/H12 -> 0.4165555114 | AO95: =SUM(AJ95:AN95) -> 8.526396358
B96: Total | I96: =SUM(I94:I95) -> 329.2096926 | R96: Total | Y96: =SUM(Y94:Y95) -> 5.968403467 | AH96: Total | AO96: =SUM(AO94:AO95) -> 195.4608291
B98: As per approved outturn figures | R98: As per approved outturn figures | AH98: As per approved outturn figures
B99: NPV of revenue required to reinburse changes in RAB | I99: =D85-(H86/H11) -> 181.3154627 | R99: NPV of revenue required to reinburse changes in RAB | Y99: =T85-(X86/H11) -> 5.580581947 | AH99: NPV of revenue required to reinburse changes in RAB | AO99: =AJ85-(AN86/H11) -> 183.658014
B100: NPV of revenue required to reinburse capex | D100: =D88/D12 -> 11.28302854 | E100: =E88/E12 -> 18.74068594 | F100: =F88/F12 -> 41.91058147 | G100: =G88/G12 -> 37.26107226 | H100: =H88/H12 -> 21.97757889 | I100: =SUM(D100:H100) -> 131.1729471 | R100: NPV of revenue required to reinburse capex | T100: =T88/D12 -> 0.02867919783 | U100: =U88/E12 -> -0.2900783089 | V100: =V88/F12 -> 0.001231217675 | W100: =W88/G12 -> 0 | X100: =X88/H12 -> 0.07801089249 | Y100: =SUM(T100:X100) -> -0.1821570009 | AH100: NPV of revenue required to reinburse capex | AJ100: =AJ88/D12 -> 0.005549590642 | AK100: =AK88/E12 -> 0 | AL100: =AL88/F12 -> 0.2164103106 | AM100: =AM88/G12 -> 1.240337343 | AN100: =AN88/H12 -> 5.735691727 | AO100: =SUM(AJ100:AN100) -> 7.197988971
B101: Total | I101: =SUM(I99:I100) -> 312.4884098 | R101: Total | Y101: =SUM(Y99:Y100) -> 5.398424946 | AH101: Total | AO101: =SUM(AO99:AO100) -> 190.856003
B103: PC3 adjustment due to difference between above | I103: =I101-I96 -> -16.72128274 | R103: PC3 adjustment due to difference between above | Y103: =Y101-Y96 -> -0.5699785213 | AH103: PC3 adjustment due to difference between above | AO103: =AO101-AO96 -> -4.604826142
B105: PC2 k factors, 10/11 terms | R105: PC2 k factors, 10/11 terms | AH105: PC2 k factors, 10/11 terms
B106: K factors relating to PC2 | I106: =3.5+5.6-8.8 -> 0.3 | R106: K factors relating to PC2 | AH106: K factors relating to PC2
B108: REVENUE RELATED TO EFFICIENCY/SCOPE SAVINGS | R108: REVENUE RELATED TO EFFICIENCY SAVINGS | AH108: REVENUE RELATED TO EFFICIENCY SAVINGS
B111: Historic cost of efficiency/scope savings, nominal to 2010, 11/12 prices thereafter | R111: Historic cost of efficiency/scope savings, nominal to 2010, 10/11 prices thereafter | AH111: Historic cost of efficiency/scope savings, nominal to 2010, 10/11 prices thereafter
B112: Onshore | C112: Asset life | I112: Total | R112: Inch | T112: 2007/08 | U112: 2008/09 | V112: 2009/10 | W112: 2010/11 | X112: 2011/12 | AH112: Interconnectors | AI112: Asset life | AJ112: 2007/08 | AK112: 2008/09 | AL112: 2009/10 | AM112: 2010/11 | AN112: 2011/12
B113: TBU Onshore - Buildings | C113: 40 | D113: 0 | E113: 0 | F113: 0 | G113: 0 | H113: 0 | I113: =SUM(D113:H113) -> 0 | R113: Inch - Buildings | S113: 40 | T113: 0 | U113: 0 | V113: 0 | W113: 0 | X113: 0 | Y113: =SUM(T113:X113) -> 0 | AH113: IC1 - Buildings | AI113: 40 | AJ113: 0 | AK113: 0 | AL113: 0 | AM113: 0 | AN113: 0 | AO113: =SUM(AJ113:AN113) -> 0
B114: TBU Onshore - Compressor stations | C114: 25 | D114: 0 | E114: 0 | F114: 0 | G114: 0 | H114: 0 | I114: =SUM(D114:H114) -> 0 | R114: Inch - Compressor stations | S114: 25 | T114: 0 | U114: 0 | V114: 0 | W114: 0 | X114: 0 | Y114: 0 | AH114: IC1 - Compressor stations | AI114: 25 | AJ114: 0 | AK114: -0.09180473 | AL114: 0 | AM114: 0.2982739107 | AN114: -0.01893449943 | AO114: 0.1875346813 | AP114: Put savings in from Historic Capex spreadsheet final
B115: TBU Onshore - Equipment | C115: 5 | D115: 0 | E115: 0 | F115: 0 | G115: 0 | H115: 0 | I115: 0 | R115: Inch - Equipment | S115: 5 | T115: 0 | U115: 0 | V115: 0 | W115: 0 | X115: 0 | Y115: 0 | AH115: IC1 - Equipment | AI115: 5 | AJ115: 0 | AK115: 0 | AL115: 0 | AM115: 0 | AN115: 0 | AO115: 0
B116: TBU Onshore - GTTW | C116: 50 | D116: 0 | E116: 0 | F116: 0 | G116: 0 | H116: 0 | I116: 0 | R116: Inch - GTTW | S116: 50 | T116: 0 | U116: 0 | V116: 0 | W116: 0 | X116: 0 | Y116: 0 | AH116: IC1 - GTTW | AI116: 50 | AJ116: 0 | AK116: 0 | AL116: 0 | AM116: 0 | AN116: 0 | AO116: 0
B117: TBU Onshore - Land | C117: 40 | D117: 0 | E117: 0 | F117: 0 | G117: 0 | H117: 0 | I117: 0 | R117: Inch - Land | S117: 40 | T117: 0 | U117: 0 | V117: 0 | W117: 0 | X117: 0 | Y117: 0 | AH117: IC1 - Land | AI117: 40 | AJ117: 0 | AK117: 0 | AL117: 0 | AM117: 0 | AN117: 0 | AO117: 0
B118: TBU Onshore - Pipelines/AGIs | C118: 50 | D118: 4.775014006 | E118: 8.712889702 | F118: 6.65810939 | G118: 0.4032246276 | H118: -0.01098301029 | I118: 20.53825472 | J118: Put savings in from Historic Capex spreadsheet final | R118: Inch - Pipelines/AGIs | S118: 50 | T118: 0 | U118: 0 | V118: 0 | W118: 0 | X118: 0 | Y118: 0 | AH118: IC1 - Pipelines/AGIs | AI118: 50 | AJ118: 0 | AK118: 0 | AL118: 0 | AM118: 0 | AN118: 0 | AO118: 0
I119: 0 | T119: 0 | U119: 0 | V119: 0 | W119: 0 | X119: 0 | Y119: 0 | AH119: IC2 | AI119: 100 | AJ119: 0 | AK119: 0 | AL119: 0 | AM119: 0 | AN119: 0 | AO119: 0
B121: Total historic cost | D121: =SUM(D113:D119) -> 4.775014006 | E121: =SUM(E113:E119) -> 8.712889702 | F121: =SUM(F113:F119) -> 6.65810939 | G121: =SUM(G113:G119) -> 0.4032246276 | H121: =SUM(H113:H119) -> -0.01098301029 | I121: =SUM(D121:H121) -> 20.53825472 | R121: Total historic cost | T121: =SUM(T113:T119) -> 0 | U121: =SUM(U113:U119) -> 0 | V121: =SUM(V113:V119) -> 0 | W121: =SUM(W113:W119) -> 0 | X121: =SUM(X113:X119) -> 0 | Y121: =SUM(T121:X121) -> 0 | AH121: Total historic cost | AJ121: =SUM(AJ113:AJ119) -> 0 | AK121: =SUM(AK113:AK119) -> -0.09180473 | AL121: =SUM(AL113:AL119) -> 0 | AM121: =SUM(AM113:AM119) -> 0.2982739107 | AN121: =SUM(AN113:AN119) -> -0.01893449943 | AO121: =SUM(AJ121:AN121) -> 0.1875346813
B123: Indexed cost of efficiency/scope savings, 10/11 prices | K123: Revenue for 5 years, 10/11 prices | R123: Indexed cost of efficiency/scope savings, 10/11 prices | AA123: Revenue for 5 years, 10/11 prices | AH123: Historic cost of efficiency/scope savings, nominal to 2010, 10/11 prices thereafter | AQ123: Revenue for 5 years, 10/11 prices
B124: =B112 -> Onshore | C124: Asset life | I124: Total | K124: Depreciation | L124: Return | M124: Total | R124: =R112 -> Inch | S124: Asset life | Y124: Total | AA124: Depreciation | AB124: Return | AC124: Total | AH124: =AH112 -> Interconnectors | AI124: Asset life | AO124: Total | AQ124: Depreciation | AR124: Return | AS124: Total
B125: =B113 -> TBU Onshore - Buildings | C125: =C113 -> 40 | D125: =D113*Indexation!AE$4 -> 0 | E125: =E113*Indexation!AF$4 -> 0 | F125: =F113*Indexation!AG$4 -> 0 | G125: =G113 -> 0 | H125: 0 | I125: =SUM(D125:H125) -> 0 | K125: =I125/C125*5 -> 0 | L125: =($I125*PC2_inputs!$K$2)+(($I125-($I125/$C125*1))*$K$2)+(($I125-($I125/$C125*2))*$K$2)+(($I125-($I125/$C125*3))*$K$2)+(($I125-($I125/$C125*4))*$K$2) -> 0 | M125: =K125+L125 -> 0 | R125: =R113 -> Inch - Buildings | S125: =S113 -> 40 | T125: =T113*Indexation!AE$4 -> 0 | U125: =U113*Indexation!AF$4 -> 0 | V125: =V113*Indexation!AG$4 -> 0 | W125: =W113 -> 0 | X125: 0 | Y125: =SUM(T125:X125) -> 0 | AA125: =Y125/S125*5 -> 0 | AB125: =($Y125*PC2_inputs!$K$2)+(($Y125-($Y125/$S125*1))*$K$2)+(($Y125-($Y125/$S125*2))*$K$2)+(($Y125-($Y125/$S125*3))*$K$2)+(($Y125-($Y125/$S125*4))*$K$2) -> 0 | AC125: =AA125+AB125 -> 0 | AH125: =AH113 -> IC1 - Buildings | AI125: =AI113 -> 40 | AJ125: =AJ113*Indexation!AE$4 -> 0 | AK125: =AK113*Indexation!AF$4 -> 0 | AL125: =AL113*Indexation!AG$4 -> 0 | AM125: =AM113 -> 0 | AN125: 0 | AO125: =SUM(AJ125:AN125) -> 0 | AQ125: =AO125/AI125*5 -> 0 | AR125: =($AO125*PC2_inputs!$K$2)+(($AO125-($AO125/$AI125*1))*$K$2)+(($AO125-($AO125/$AI125*2))*$K$2)+(($AO125-($AO125/$AI125*3))*$K$2)+(($AO125-($AO125/$AI125*4))*$K$2) -> 0 | AS125: =AQ125+AR125 -> 0
B126: =B114 -> TBU Onshore - Compressor stations | C126: 25 | D126: =D114*Indexation!AE$4 -> 0 | E126: =E114*Indexation!AF$4 -> 0 | F126: =F114*Indexation!AG$4 -> 0 | G126: 0 | H126: 0 | I126: 0 | K126: 0 | L126: =($I126*PC2_inputs!$K$2)+(($I126-($I126/$C126*1))*$K$2)+(($I126-($I126/$C126*2))*$K$2)+(($I126-($I126/$C126*3))*$K$2)+(($I126-($I126/$C126*4))*$K$2) -> 0 | M126: =K126+L126 -> 0 | R126: =R114 -> Inch - Compressor stations | S126: 25 | T126: =T114*Indexation!AE$4 -> 0 | U126: =U114*Indexation!AF$4 -> 0 | V126: =V114*Indexation!AG$4 -> 0 | W126: 0 | X126: 0 | Y126: 0 | AA126: 0 | AB126: =($Y126*PC2_inputs!$K$2)+(($Y126-($Y126/$S126*1))*$K$2)+(($Y126-($Y126/$S126*2))*$K$2)+(($Y126-($Y126/$S126*3))*$K$2)+(($Y126-($Y126/$S126*4))*$K$2) -> 0 | AC126: =AA126+AB126 -> 0 | AH126: =AH114 -> IC1 - Compressor stations | AI126: 25 | AJ126: =AJ114*Indexation!AE$4 -> 0 | AK126: =AK114*Indexation!AF$4 -> -0.08989436459 | AL126: =AL114*Indexation!AG$4 -> 0 | AM126: 0.2982739107 | AN126: -0.01893449943 | AO126: 0.1894450467 | AQ126: =AO126/AI126*5 -> 0.03788900934 | AR126: =($AO126*PC2_inputs!$K$2)+(($AO126-($AO126/$AI126*1))*$K$2)+(($AO126-($AO126/$AI126*2))*$K$2)+(($AO126-($AO126/$AI126*3))*$K$2)+(($AO126-($AO126/$AI126*4))*$K$2) -> 0.04531525517 | AS126: =AQ126+AR126 -> 0.08320426451
B127: TBU Onshore - Equipment | C127: 5 | D127: =D115*Indexation!AE$4 -> 0 | E127: =E115*Indexation!AF$4 -> 0 | F127: =F115*Indexation!AG$4 -> 0 | G127: 0 | H127: 0 | I127: 0 | K127: 0 | L127: =($I127*PC2_inputs!$K$2)+(($I127-($I127/$C127*1))*$K$2)+(($I127-($I127/$C127*2))*$K$2)+(($I127-($I127/$C127*3))*$K$2)+(($I127-($I127/$C127*4))*$K$2) -> 0 | M127: 0 | R127: Inch - Equipment | S127: 5 | T127: =T115*Indexation!AE$4 -> 0 | U127: =U115*Indexation!AF$4 -> 0 | V127: =V115*Indexation!AG$4 -> 0 | W127: 0 | X127: 0 | Y127: 0 | AA127: 0 | AB127: =($Y127*PC2_inputs!$K$2)+(($Y127-($Y127/$S127*1))*$K$2)+(($Y127-($Y127/$S127*2))*$K$2)+(($Y127-($Y127/$S127*3))*$K$2)+(($Y127-($Y127/$S127*4))*$K$2) -> 0 | AC127: 0 | AH127: IC1 - Equipment | AI127: 5 | AJ127: =AJ115*Indexation!AE$4 -> 0 | AK127: =AK115*Indexation!AF$4 -> 0 | AL127: =AL115*Indexation!AG$4 -> 0 | AM127: 0 | AN127: 0 | AO127: 0 | AQ127: 0 | AR127: =($AO127*PC2_inputs!$K$2)+(($AO127-($AO127/$AI127*1))*$K$2)+(($AO127-($AO127/$AI127*2))*$K$2)+(($AO127-($AO127/$AI127*3))*$K$2)+(($AO127-($AO127/$AI127*4))*$K$2) -> 0 | AS127: 0
B128: TBU Onshore - GTTW | C128: 50 | D128: =D116*Indexation!AE$4 -> 0 | E128: =E116*Indexation!AF$4 -> 0 | F128: =F116*Indexation!AG$4 -> 0 | G128: 0 | H128: 0 | I128: 0 | K128: 0 | L128: =($I128*PC2_inputs!$K$2)+(($I128-($I128/$C128*1))*$K$2)+(($I128-($I128/$C128*2))*$K$2)+(($I128-($I128/$C128*3))*$K$2)+(($I128-($I128/$C128*4))*$K$2) -> 0 | M128: 0 | R128: Inch - GTTW | S128: 50 | T128: =T116*Indexation!AE$4 -> 0 | U128: =U116*Indexation!AF$4 -> 0 | V128: =V116*Indexation!AG$4 -> 0 | W128: 0 | X128: 0 | Y128: 0 | AA128: 0 | AB128: =($Y128*PC2_inputs!$K$2)+(($Y128-($Y128/$S128*1))*$K$2)+(($Y128-($Y128/$S128*2))*$K$2)+(($Y128-($Y128/$S128*3))*$K$2)+(($Y128-($Y128/$S128*4))*$K$2) -> 0 | AC128: 0 | AH128: IC1 - GTTW | AI128: 50 | AJ128: =AJ116*Indexation!AE$4 -> 0 | AK128: =AK116*Indexation!AF$4 -> 0 | AL128: =AL116*Indexation!AG$4 -> 0 | AM128: 0 | AN128: 0 | AO128: 0 | AQ128: 0 | AR128: =($AO128*PC2_inputs!$K$2)+(($AO128-($AO128/$AI128*1))*$K$2)+(($AO128-($AO128/$AI128*2))*$K$2)+(($AO128-($AO128/$AI128*3))*$K$2)+(($AO128-($AO128/$AI128*4))*$K$2) -> 0 | AS128: 0
B129: TBU Onshore - Land | C129: 40 | D129: =D117*Indexation!AE$4 -> 0 | E129: =E117*Indexation!AF$4 -> 0 | F129: =F117*Indexation!AG$4 -> 0 | G129: 0 | H129: 0 | I129: 0 | K129: 0 | L129: =($I129*PC2_inputs!$K$2)+(($I129-($I129/$C129*1))*$K$2)+(($I129-($I129/$C129*2))*$K$2)+(($I129-($I129/$C129*3))*$K$2)+(($I129-($I129/$C129*4))*$K$2) -> 0 | M129: 0 | R129: Inch - Land | S129: 40 | T129: =T117*Indexation!AE$4 -> 0 | U129: =U117*Indexation!AF$4 -> 0 | V129: =V117*Indexation!AG$4 -> 0 | W129: 0 | X129: 0 | Y129: 0 | AA129: 0 | AB129: =($Y129*PC2_inputs!$K$2)+(($Y129-($Y129/$S129*1))*$K$2)+(($Y129-($Y129/$S129*2))*$K$2)+(($Y129-($Y129/$S129*3))*$K$2)+(($Y129-($Y129/$S129*4))*$K$2) -> 0 | AC129: 0 | AH129: IC1 - Land | AI129: 40 | AJ129: =AJ117*Indexation!AE$4 -> 0 | AK129: =AK117*Indexation!AF$4 -> 0 | AL129: =AL117*Indexation!AG$4 -> 0 | AM129: 0 | AN129: 0 | AO129: 0 | AQ129: 0 | AR129: =($AO129*PC2_inputs!$K$2)+(($AO129-($AO129/$AI129*1))*$K$2)+(($AO129-($AO129/$AI129*2))*$K$2)+(($AO129-($AO129/$AI129*3))*$K$2)+(($AO129-($AO129/$AI129*4))*$K$2) -> 0 | AS129: 0
B130: TBU Onshore - Pipelines/AGIs | C130: 50 | D130: =D118*Indexation!AE$4 -> 4.82059587 | E130: =E118*Indexation!AF$4 -> 8.531583106 | F130: =F118*Indexation!AG$4 -> 6.632310006 | G130: 0.4032246276 | H130: -0.01098301029 | I130: 20.3767306 | K130: 2.03767306 | L130: =($I130*PC2_inputs!$K$2)+(($I130-($I130/$C130*1))*$K$2)+(($I130-($I130/$C130*2))*$K$2)+(($I130-($I130/$C130*3))*$K$2)+(($I130-($I130/$C130*4))*$K$2) -> 5.086031958 | M130: 7.123705017 | R130: Inch - Pipelines/AGIs | S130: 50 | T130: =T118*Indexation!AE$4 -> 0 | U130: =U118*Indexation!AF$4 -> 0 | V130: =V118*Indexation!AG$4 -> 0 | W130: 0 | X130: 0 | Y130: 0 | AA130: 0 | AB130: =($Y130*PC2_inputs!$K$2)+(($Y130-($Y130/$S130*1))*$K$2)+(($Y130-($Y130/$S130*2))*$K$2)+(($Y130-($Y130/$S130*3))*$K$2)+(($Y130-($Y130/$S130*4))*$K$2) -> 0 | AC130: 0 | AH130: IC1 - Pipelines/AGIs | AI130: 50 | AJ130: =AJ118*Indexation!AE$4 -> 0 | AK130: =AK118*Indexation!AF$4 -> 0 | AL130: =AL118*Indexation!AG$4 -> 0 | AM130: 0 | AN130: 0 | AO130: 0 | AQ130: 0 | AR130: =($AO130*PC2_inputs!$K$2)+(($AO130-($AO130/$AI130*1))*$K$2)+(($AO130-($AO130/$AI130*2))*$K$2)+(($AO130-($AO130/$AI130*3))*$K$2)+(($AO130-($AO130/$AI130*4))*$K$2) -> 0 | AS130: 0
D131: =D119*Indexation!AE$4 -> 0 | E131: =E119*Indexation!AF$4 -> 0 | F131: =F119*Indexation!AG$4 -> 0 | G131: 0 | H131: 0 | I131: 0 | M131: 0 | T131: =T119*Indexation!AE$4 -> 0 | U131: =U119*Indexation!AF$4 -> 0 | V131: =V119*Indexation!AG$4 -> 0 | W131: 0 | X131: 0 | Y131: 0 | AC131: 0 | AH131: IC2 | AI131: 100 | AJ131: =AJ119*Indexation!AE$4 -> 0 | AK131: =AK119*Indexation!AF$4 -> 0 | AL131: =AL119*Indexation!AG$4 -> 0 | AM131: 0 | AN131: 0 | AO131: 0 | AQ131: 0 | AR131: =($AO131*PC2_inputs!$K$2)+(($AO131-($AO131/$AI131*1))*$K$2)+(($AO131-($AO131/$AI131*2))*$K$2)+(($AO131-($AO131/$AI131*3))*$K$2)+(($AO131-($AO131/$AI131*4))*$K$2) -> 0 | AS131: 0
B133: Total indexed gross value of efficiency/scope savings | D133: =SUM(D125:D131) -> 4.82059587 | E133: =SUM(E125:E131) -> 8.531583106 | F133: =SUM(F125:F131) -> 6.632310006 | G133: =SUM(G125:G131) -> 0.4032246276 | H133: =SUM(H125:H131) -> -0.01098301029 | I133: =SUM(D133:H133) -> 20.3767306 | K133: =SUM(K125:K131) -> 2.03767306 | L133: =SUM(L125:L131) -> 5.086031958 | M133: 7.123705017 | R133: Total indexed gross value of efficient deferrals | T133: =SUM(T125:T131) -> 0 | U133: =SUM(U125:U131) -> 0 | V133: =SUM(V125:V131) -> 0 | W133: =SUM(W125:W131) -> 0 | X133: =SUM(X125:X131) -> 0 | Y133: =SUM(T133:X133) -> 0 | AA133: =SUM(AA125:AA131) -> 0 | AB133: =SUM(AB125:AB131) -> 0 | AC133: =AA133+AB133 -> 0 | AH133: Total indexed gross value of efficient deferrals | AJ133: =SUM(AJ125:AJ131) -> 0 | AK133: =SUM(AK125:AK131) -> -0.08989436459 | AL133: =SUM(AL125:AL131) -> 0 | AM133: =SUM(AM125:AM131) -> 0.2982739107 | AN133: =SUM(AN125:AN131) -> -0.01893449943 | AO133: =SUM(AJ133:AN133) -> 0.1894450467 | AQ133: =SUM(AQ125:AQ131) -> 0.03788900934 | AR133: =SUM(AR125:AR131) -> 0.04531525517 | AS133: =AQ133+AR133 -> 0.08320426451
B135: REVENUE RELATED TO EFFICIENT DEFFERALS | R135: REVENUE RELATED TO EFFICIENCY SAVINGS | AH135: REVENUE RELATED TO EFFICIENCY SAVINGS
B137: Historic cost of efficient deferrals, nominal to 2010, 11/12 prices thereafter | R137: Historic cost of efficient deferrals, nominal to 2010, 10/11 prices thereafter | AH137: Historic cost of efficient deferrals, nominal to 2010, 10/11 prices thereafter
B138: Onshore | C138: Asset life | I138: Total | R138: Inch | T138: 2007/08 | U138: 2008/09 | V138: 2009/10 | W138: 2010/11 | X138: 2011/12 | AH138: Interconnectors | AI138: Asset life | AJ138: 2007/08 | AK138: 2008/09 | AL138: 2009/10 | AM138: 2010/11 | AN138: 2011/12
B139: TBU Onshore - Buildings | C139: 40 | D139: 0 | E139: 0 | F139: 0 | G139: 0 | H139: 0 | I139: =SUM(D139:H139) -> 0 | R139: Inch - Buildings | S139: 40 | T139: 0 | U139: 0 | V139: 0 | W139: 0 | X139: 0 | Y139: =SUM(T139:X139) -> 0 | AH139: IC1 - Buildings | AI139: 40 | AJ139: 0 | AK139: 0 | AL139: 0 | AM139: 0 | AN139: 0 | AO139: =SUM(AJ139:AN139) -> 0
B140: TBU Onshore - Compressor stations | C140: 25 | D140: 0 | E140: 0 | F140: 0 | G140: 0 | H140: 0 | I140: =SUM(D140:H140) -> 0 | R140: Inch - Compressor stations | S140: 25 | T140: 0 | U140: 0 | V140: 0 | W140: 0 | X140: 0 | Y140: 0 | AH140: IC1 - Compressor stations | AI140: 25 | AJ140: 0 | AK140: 0 | AL140: 0 | AM140: 0 | AN140: 0 | AO140: 0
B141: TBU Onshore - Equipment | C141: 5 | D141: 0 | E141: 0 | F141: 0 | G141: 0 | H141: 0 | I141: 0 | R141: Inch - Equipment | S141: 5 | T141: 0 | U141: 0 | V141: 1.473275 | W141: 0 | X141: 0 | Y141: 1.473275 | Z141: Put savings in mid point from Historic Capex spreadsheet final | AH141: IC1 - Equipment | AI141: 5 | AJ141: 0 | AK141: 0 | AL141: 0 | AM141: 0 | AN141: 0 | AO141: 0
B142: TBU Onshore - GTTW | C142: 50 | D142: 0 | E142: 0 | F142: 0 | G142: 0 | H142: 0 | I142: 0 | R142: Inch - GTTW | S142: 50 | T142: 0 | U142: 0 | V142: 0 | W142: 0 | X142: 0 | Y142: 0 | AH142: IC1 - GTTW | AI142: 50 | AJ142: 0 | AK142: 0 | AL142: 0 | AM142: 0 | AN142: 0 | AO142: 0
B143: TBU Onshore - Land | C143: 40 | D143: 0 | E143: 0 | F143: 0 | G143: 0 | H143: 0 | I143: 0 | R143: Inch - Land | S143: 40 | T143: 0 | U143: 0 | V143: 0 | W143: 0 | X143: 0 | Y143: 0 | AH143: IC1 - Land | AI143: 40 | AJ143: 0 | AK143: 0 | AL143: 0 | AM143: 0 | AN143: 0 | AO143: 0
B144: TBU Onshore - Pipelines/AGIs | C144: 50 | D144: 0 | E144: 0 | F144: =5.952419+2.462443 -> 8.414862 | G144: 0 | H144: 0 | I144: 8.414862 | J144: Put savings in mid point from Historic Capex spreadsheet final | R144: Inch - Pipelines/AGIs | S144: 50 | T144: 0 | U144: 0 | V144: 0 | W144: 0 | X144: 0 | Y144: 0 | AH144: IC1 - Pipelines/AGIs | AI144: 50 | AJ144: 0 | AK144: 0 | AL144: =0.458442+1.242849+0.929+0.663796 -> 3.294087 | AM144: 0 | AN144: 0 | AO144: 3.294087 | AP144: Put savings in mid point from Historic Capex spreadsheet final
D145: 0 | E145: 0 | F145: 0 | G145: 0 | H145: 0 | I145: 0 | T145: 0 | U145: 0 | V145: 0 | W145: 0 | X145: 0 | Y145: 0 | AH145: IC2 | AI145: 100 | AJ145: 0 | AK145: 0 | AL145: 0 | AM145: 0 | AN145: 0 | AO145: 0
B147: Total historic cost | D147: =SUM(D139:D145) -> 0 | E147: =SUM(E139:E145) -> 0 | F147: =SUM(F139:F145) -> 8.414862 | G147: =SUM(G139:G145) -> 0 | H147: =SUM(H139:H145) -> 0 | I147: =SUM(D147:H147) -> 8.414862 | R147: Total historic cost | T147: =SUM(T139:T145) -> 0 | U147: =SUM(U139:U145) -> 0 | V147: =SUM(V139:V145) -> 1.473275 | W147: =SUM(W139:W145) -> 0 | X147: =SUM(X139:X145) -> 0 | Y147: =SUM(T147:X147) -> 1.473275 | AH147: Total historic cost | AJ147: =SUM(AJ139:AJ145) -> 0 | AK147: =SUM(AK139:AK145) -> 0 | AL147: =SUM(AL139:AL145) -> 3.294087 | AM147: =SUM(AM139:AM145) -> 0 | AN147: =SUM(AN139:AN145) -> 0 | AO147: =SUM(AJ147:AN147) -> 3.294087
B149: Indexed gross value of efficient deferrals in 2010/2011 prices | K149: Revenue for 5 years, 10/11 prices | R149: Indexed gross value of efficient deferrals in 2010/2011 prices | AA149: Revenue for 5 years, 10/11 prices | AH149: Indexed gross value of efficient deferrals in 2010/2011 prices | AQ149: Revenue for 5 years, 10/11 prices
B150: =B138 -> Onshore | C150: Asset life | I150: Total | K150: Depreciation | L150: Return | M150: Total | R150: =R138 -> Inch | S150: Asset life | Y150: Total | AA150: Depreciation | AB150: Return | AC150: Total | AH150: =AH138 -> Interconnectors | AI150: Asset life | AO150: Total | AQ150: Depreciation | AR150: Return | AS150: Total
B151: TBU Onshore - Buildings | C151: =C139 -> 40 | D151: =D139*Indexation!AE$4 -> 0 | E151: =E139*Indexation!AF$4 -> 0 | F151: =F139*Indexation!AG$4 -> 0 | G151: =G139 -> 0 | H151: 0 | I151: =SUM(D151:H151) -> 0 | K151: =I151/C151*2.5 -> 0 | L151: =($I151*PC2_inputs!$K$2)+(($I151-($I151/$C151*1))*$K$2)+(($I151-($I151/$C151*2))*POWER($K$2,0.5)) -> 0 | M151: =K151+L151 -> 0 | R151: Inch - Buildings | S151: =S139 -> 40 | T151: =T139*Indexation!AE$4 -> 0 | U151: =U139*Indexation!AF$4 -> 0 | V151: =V139*Indexation!AG$4 -> 0 | W151: =W139 -> 0 | X151: 0 | Y151: =SUM(T151:X151) -> 0 | AA151: =Y151/S151*2.5 -> 0 | AB151: =($Y151*PC2_inputs!$K$2)+(($Y151-($Y151/$S151*1))*$K$2)+(($Y151-($Y151/$S151*2))*POWER($K$2,0.5)) -> 0 | AC151: =AA151+AB151 -> 0 | AH151: IC1 - Buildings | AI151: =AI139 -> 40 | AJ151: =AJ139*Indexation!AE$4 -> 0 | AK151: =AK139*Indexation!AF$4 -> 0 | AL151: =AL139*Indexation!AG$4 -> 0 | AM151: =AM139 -> 0 | AN151: 0 | AO151: =SUM(AJ151:AN151) -> 0 | AQ151: =AO151/AI151*2.5 -> 0 | AR151: =($AO151*PC2_inputs!$K$2)+(($AO151-($AO151/$AI151*1))*$K$2)+(($AO151-($AO151/$AI151*2))*POWER($K$2,0.5)) -> 0 | AS151: =AQ151+AR151 -> 0
B152: TBU Onshore - Compressor stations | C152: 25 | D152: =D140*Indexation!AE$4 -> 0 | E152: =E140*Indexation!AF$4 -> 0 | F152: =F140*Indexation!AG$4 -> 0 | G152: 0 | H152: 0 | I152: 0 | K152: 0 | L152: =($I152*PC2_inputs!$K$2)+(($I152-($I152/$C152*1))*$K$2)+(($I152-($I152/$C152*2))*POWER($K$2,0.5)) -> 0 | M152: =K152+L152 -> 0 | R152: Inch - Compressor stations | S152: 25 | T152: =T140*Indexation!AE$4 -> 0 | U152: =U140*Indexation!AF$4 -> 0 | V152: =V140*Indexation!AG$4 -> 0 | W152: 0 | X152: 0 | Y152: 0 | AA152: 0 | AB152: =($Y152*PC2_inputs!$K$2)+(($Y152-($Y152/$S152*1))*$K$2)+(($Y152-($Y152/$S152*2))*POWER($K$2,0.5)) -> 0 | AC152: =AA152+AB152 -> 0 | AH152: IC1 - Compressor stations | AI152: 25 | AJ152: =AJ140*Indexation!AE$4 -> 0 | AK152: =AK140*Indexation!AF$4 -> 0 | AL152: =AL140*Indexation!AG$4 -> 0 | AM152: 0 | AN152: 0 | AO152: 0 | AQ152: =AO152/AI152*2.5 -> 0 | AR152: =($AO152*PC2_inputs!$K$2)+(($AO152-($AO152/$AI152*1))*$K$2)+(($AO152-($AO152/$AI152*2))*POWER($K$2,0.5)) -> 0 | AS152: =AQ152+AR152 -> 0
B153: TBU Onshore - Equipment | C153: 5 | D153: =D141*Indexation!AE$4 -> 0 | E153: =E141*Indexation!AF$4 -> 0 | F153: =F141*Indexation!AG$4 -> 0 | G153: 0 | H153: 0 | I153: 0 | K153: 0 | L153: =($I153*PC2_inputs!$K$2)+(($I153-($I153/$C153*1))*$K$2)+(($I153-($I153/$C153*2))*POWER($K$2,0.5)) -> 0 | M153: 0 | R153: Inch - Equipment | S153: 5 | T153: =T141*Indexation!AE$4 -> 0 | U153: =U141*Indexation!AF$4 -> 0 | V153: =V141*Indexation!AG$4 -> 1.467566234 | W153: 0 | X153: 0 | Y153: 1.467566234 | AA153: 0.733783117 | AB153: =($Y153*PC2_inputs!$K$2)+(($Y153-($Y153/$S153*1))*$K$2)+(($Y153-($Y153/$S153*2))*POWER($K$2,0.5)) -> 0.3381581541 | AC153: 1.071941271 | AH153: IC1 - Equipment | AI153: 5 | AJ153: =AJ141*Indexation!AE$4 -> 0 | AK153: =AK141*Indexation!AF$4 -> 0 | AL153: =AL141*Indexation!AG$4 -> 0 | AM153: 0 | AN153: 0 | AO153: 0 | AQ153: 0 | AR153: =($AO153*PC2_inputs!$K$2)+(($AO153-($AO153/$AI153*1))*$K$2)+(($AO153-($AO153/$AI153*2))*POWER($K$2,0.5)) -> 0 | AS153: 0
B154: TBU Onshore - GTTW | C154: 50 | D154: =D142*Indexation!AE$4 -> 0 | E154: =E142*Indexation!AF$4 -> 0 | F154: =F142*Indexation!AG$4 -> 0 | G154: 0 | H154: 0 | I154: 0 | K154: 0 | L154: =($I154*PC2_inputs!$K$2)+(($I154-($I154/$C154*1))*$K$2)+(($I154-($I154/$C154*2))*POWER($K$2,0.5)) -> 0 | M154: 0 | R154: Inch - GTTW | S154: 50 | T154: =T142*Indexation!AE$4 -> 0 | U154: =U142*Indexation!AF$4 -> 0 | V154: =V142*Indexation!AG$4 -> 0 | W154: 0 | X154: 0 | Y154: 0 | AA154: 0 | AB154: =($Y154*PC2_inputs!$K$2)+(($Y154-($Y154/$S154*1))*$K$2)+(($Y154-($Y154/$S154*2))*POWER($K$2,0.5)) -> 0 | AC154: 0 | AH154: IC1 - GTTW | AI154: 50 | AJ154: =AJ142*Indexation!AE$4 -> 0 | AK154: =AK142*Indexation!AF$4 -> 0 | AL154: =AL142*Indexation!AG$4 -> 0 | AM154: 0 | AN154: 0 | AO154: 0 | AQ154: 0 | AR154: =($AO154*PC2_inputs!$K$2)+(($AO154-($AO154/$AI154*1))*$K$2)+(($AO154-($AO154/$AI154*2))*POWER($K$2,0.5)) -> 0 | AS154: 0
B155: TBU Onshore - Land | C155: 40 | D155: =D143*Indexation!AE$4 -> 0 | E155: =E143*Indexation!AF$4 -> 0 | F155: =F143*Indexation!AG$4 -> 0 | G155: 0 | H155: 0 | I155: 0 | K155: 0 | L155: =($I155*PC2_inputs!$K$2)+(($I155-($I155/$C155*1))*$K$2)+(($I155-($I155/$C155*2))*POWER($K$2,0.5)) -> 0 | M155: 0 | R155: Inch - Land | S155: 40 | T155: =T143*Indexation!AE$4 -> 0 | U155: =U143*Indexation!AF$4 -> 0 | V155: =V143*Indexation!AG$4 -> 0 | W155: 0 | X155: 0 | Y155: 0 | AA155: 0 | AB155: =($Y155*PC2_inputs!$K$2)+(($Y155-($Y155/$S155*1))*$K$2)+(($Y155-($Y155/$S155*2))*POWER($K$2,0.5)) -> 0 | AC155: 0 | AH155: IC1 - Land | AI155: 40 | AJ155: =AJ143*Indexation!AE$4 -> 0 | AK155: =AK143*Indexation!AF$4 -> 0 | AL155: =AL143*Indexation!AG$4 -> 0 | AM155: 0 | AN155: 0 | AO155: 0 | AQ155: 0 | AR155: =($AO155*PC2_inputs!$K$2)+(($AO155-($AO155/$AI155*1))*$K$2)+(($AO155-($AO155/$AI155*2))*POWER($K$2,0.5)) -> 0 | AS155: 0
B156: TBU Onshore - Pipelines/AGIs | C156: 50 | D156: =D144*Indexation!AE$4 -> 0 | E156: =E144*Indexation!AF$4 -> 0 | F156: =F144*Indexation!AG$4 -> 8.382255407 | G156: 0 | H156: 0 | I156: 8.382255407 | K156: 0.4191127703 | L156: =($I156*PC2_inputs!$K$2)+(($I156-($I156/$C156*1))*$K$2)+(($I156-($I156/$C156*2))*POWER($K$2,0.5)) -> 2.698027408 | M156: 3.117140178 | R156: Inch - Pipelines/AGIs | S156: 50 | T156: =T144*Indexation!AE$4 -> 0 | U156: =U144*Indexation!AF$4 -> 0 | V156: =V144*Indexation!AG$4 -> 0 | W156: 0 | X156: 0 | Y156: 0 | AA156: 0 | AB156: =($Y156*PC2_inputs!$K$2)+(($Y156-($Y156/$S156*1))*$K$2)+(($Y156-($Y156/$S156*2))*POWER($K$2,0.5)) -> 0 | AC156: 0 | AH156: IC1 - Pipelines/AGIs | AI156: 50 | AJ156: =AJ144*Indexation!AE$4 -> 0 | AK156: =AK144*Indexation!AF$4 -> 0 | AL156: =AL144*Indexation!AG$4 -> 3.281322803 | AM156: 0 | AN156: 0 | AO156: 3.281322803 | AQ156: 0.1640661402 | AR156: =($AO156*PC2_inputs!$K$2)+(($AO156-($AO156/$AI156*1))*$K$2)+(($AO156-($AO156/$AI156*2))*POWER($K$2,0.5)) -> 1.056171451 | AS156: 1.220237591
D157: =D145*Indexation!AE$4 -> 0 | E157: =E145*Indexation!AF$4 -> 0 | F157: =F145*Indexation!AG$4 -> 0 | G157: 0 | H157: 0 | I157: 0 | M157: 0 | T157: =T145*Indexation!AE$4 -> 0 | U157: =U145*Indexation!AF$4 -> 0 | V157: =V145*Indexation!AG$4 -> 0 | W157: 0 | X157: 0 | Y157: 0 | AC157: 0 | AH157: IC2 | AI157: 100 | AJ157: =AJ145*Indexation!AE$4 -> 0 | AK157: =AK145*Indexation!AF$4 -> 0 | AL157: =AL145*Indexation!AG$4 -> 0 | AM157: 0 | AN157: 0 | AO157: 0 | AQ157: 0 | AR157: =($AO157*PC2_inputs!$K$2)+(($AO157-($AO157/$AI157*1))*$K$2)+(($AO157-($AO157/$AI157*2))*POWER($K$2,0.5)) -> 0 | AS157: 0
B159: Total indexed gross value of efficient deferrals | D159: =SUM(D151:D157) -> 0 | E159: =SUM(E151:E157) -> 0 | F159: =SUM(F151:F157) -> 8.382255407 | G159: =SUM(G151:G157) -> 0 | H159: =SUM(H151:H157) -> 0 | I159: =SUM(D159:H159) -> 8.382255407 | K159: =SUM(K151:K157) -> 0.4191127703 | L159: =SUM(L151:L157) -> 2.698027408 | M159: =K159+L159 -> 3.117140178 | R159: Total indexed gross value of efficient deferrals | T159: =SUM(T151:T157) -> 0 | U159: =SUM(U151:U157) -> 0 | V159: =SUM(V151:V157) -> 1.467566234 | W159: =SUM(W151:W157) -> 0 | X159: =SUM(X151:X157) -> 0 | Y159: =SUM(T159:X159) -> 1.467566234 | AA159: =SUM(AA151:AA157) -> 0.733783117 | AB159: =SUM(AB151:AB157) -> 0.3381581541 | AC159: =AA159+AB159 -> 1.071941271 | AH159: Total indexed gross value of efficient deferrals | AJ159: =SUM(AJ151:AJ157) -> 0 | AK159: =SUM(AK151:AK157) -> 0 | AL159: =SUM(AL151:AL157) -> 3.281322803 | AM159: =SUM(AM151:AM157) -> 0 | AN159: =SUM(AN151:AN157) -> 0 | AO159: =SUM(AJ159:AN159) -> 3.281322803 | AQ159: =SUM(AQ151:AQ157) -> 0.1640661402 | AR159: =SUM(AR151:AR157) -> 1.056171451 | AS159: =AQ159+AR159 -> 1.220237591
B163: REVENUE RELATED TO NEGATIVE SCOPE AND NEGATIVE EFFICIENCY | R163: REVENUE RELATED TO NEGATIVE SCOPE AND NEGATIVE EFFICIENCY | AH163: REVENUE RELATED TO NEGATIVE SCOPE AND NEGATIVE EFFICIENCY
B165: Historic cost of negative scope/efficiency, nominal to 2010, 10/11 prices thereafter | R165: Historic cost of negative scope/efficiency, nominal to 2010, 10/11 prices thereafter | AH165: Historic cost of negative scope/efficiency, nominal to 2010, 10/11 prices thereafter
C166: Asset life | I166: Total | S166: Asset life | Y166: Total | AI166: Asset life | AO166: Total
B167: =B151 -> TBU Onshore - Buildings | C167: 40 | D167: 0 | E167: 0 | F167: 0 | G167: 0 | H167: 0 | I167: =SUM(D167:H167) -> 0 | R167: =R151 -> Inch - Buildings | S167: 40 | T167: 0 | U167: 0 | V167: 0 | W167: 0 | X167: 0 | Y167: =SUM(T167:X167) -> 0 | AH167: =AH151 -> IC1 - Buildings | AI167: 40 | AJ167: 0 | AK167: 0 | AL167: 0 | AM167: 0 | AN167: 0 | AO167: =SUM(AJ167:AN167) -> 0
B168: TBU Onshore - Compressor stations | C168: 25 | D168: 0 | E168: 0 | F168: 0 | G168: 0 | H168: 0 | I168: 0 | R168: Inch - Compressor stations | S168: 25 | T168: 0 | U168: 0 | V168: 0 | W168: 0 | X168: 0 | Y168: 0 | AH168: IC1 - Compressor stations | AI168: 25 | AJ168: 0 | AK168: 0 | AL168: 0 | AM168: 0 | AN168: 0 | AO168: 0
B169: TBU Onshore - Equipment | C169: 5 | D169: 0 | E169: 0 | F169: -0.343 | G169: 0 | H169: 0 | I169: -0.343 | R169: Inch - Equipment | S169: 5 | T169: 0 | U169: 0 | V169: 0 | W169: 0 | X169: 0 | Y169: 0 | AH169: IC1 - Equipment | AI169: 5 | AJ169: 0 | AK169: 0 | AL169: 0 | AM169: 0 | AN169: 0 | AO169: 0
B170: TBU Onshore - GTTW | C170: 50 | D170: 0 | E170: 0 | F170: 0 | G170: 0 | H170: 0 | I170: 0 | R170: Inch - GTTW | S170: 50 | T170: 0 | U170: 0 | V170: 0 | W170: 0 | X170: 0 | Y170: 0 | AH170: IC1 - GTTW | AI170: 50 | AJ170: 0 | AK170: 0 | AL170: 0 | AM170: 0 | AN170: 0 | AO170: 0
B171: TBU Onshore - Land | C171: 40 | D171: 0 | E171: 0 | F171: 0 | G171: 0 | H171: 0 | I171: 0 | R171: Inch - Land | S171: 40 | T171: 0 | U171: 0 | V171: 0 | W171: 0 | X171: 0 | Y171: 0 | AH171: IC1 - Land | AI171: 40 | AJ171: 0 | AK171: 0 | AL171: 0 | AM171: 0 | AN171: 0 | AO171: 0
B172: TBU Onshore - Pipelines/AGIs | C172: 50 | D172: 0 | E172: 0 | F172: -8.673 | G172: 0 | H172: 0 | I172: -8.673 | R172: Inch - Pipelines/AGIs | S172: 50 | T172: 0 | U172: 0 | V172: 0 | W172: 0 | X172: 0 | Y172: 0 | AH172: IC1 - Pipelines/AGIs | AI172: 50 | AJ172: 0 | AK172: 0 | AL172: 0 | AM172: 0 | AN172: 0 | AO172: 0
AH173: IC2 | AI173: 100 | AJ173: 0 | AK173: 0 | AL173: 0 | AM173: 0 | AN173: 0 | AO173: 0
B174: Total historic cost | D174: =SUM(D167:D172) -> 0 | E174: =SUM(E167:E172) -> 0 | F174: =SUM(F167:F172) -> -9.016 | G174: =SUM(G167:G172) -> 0 | H174: =SUM(H167:H172) -> 0 | I174: =SUM(D174:H174) -> -9.016 | R174: Total historic cost | T174: =SUM(T167:T172) -> 0 | U174: =SUM(U167:U172) -> 0 | V174: =SUM(V167:V172) -> 0 | W174: =SUM(W167:W172) -> 0 | X174: =SUM(X167:X172) -> 0 | Y174: =SUM(T174:X174) -> 0 | AH174: Total historic cost | AJ174: =SUM(AJ167:AJ172) -> 0 | AK174: =SUM(AK167:AK172) -> 0 | AL174: =SUM(AL167:AL172) -> 0 | AM174: =SUM(AM167:AM172) -> 0 | AN174: =SUM(AN167:AN172) -> 0 | AO174: 0
B176: Indexed gross value of negative scope/efficiency in 2010/2011 prices | R176: Indexed gross value of negative scope/efficiency in 2010/2011 prices | AH176: Indexed gross value of negative scope/efficiency in 2010/2011 prices
C177: Asset life | I177: Total | S177: Asset life | Y177: Total | AI177: Asset life | AO177: Total
B178: =B167 -> TBU Onshore - Buildings | C178: 40 | D178: =D167*Indexation!AE$4 -> 0 | E178: =E167*Indexation!AF$4 -> 0 | F178: =F167*Indexation!AG$4 -> 0 | G178: =G167 -> 0 | H178: 0 | I178: =SUM(D178:H178) -> 0 | R178: =R167 -> Inch - Buildings | S178: 40 | T178: =T167*Indexation!AE$4 -> 0 | U178: =U167*Indexation!AF$4 -> 0 | V178: =V167*Indexation!AG$4 -> 0 | W178: =W167 -> 0 | X178: 0 | Y178: =SUM(T178:X178) -> 0 | AH178: =AH167 -> IC1 - Buildings | AI178: 40 | AJ178: =AJ167*Indexation!AE$4 -> 0 | AK178: =AK167*Indexation!AF$4 -> 0 | AL178: =AL167*Indexation!AG$4 -> 0 | AM178: =AM167 -> 0 | AN178: 0 | AO178: =SUM(AJ178:AN178) -> 0
B179: TBU Onshore - Compressor stations | C179: 25 | D179: =D168*Indexation!AE$4 -> 0 | E179: =E168*Indexation!AF$4 -> 0 | F179: =F168*Indexation!AG$4 -> 0 | G179: 0 | H179: 0 | I179: 0 | R179: Inch - Compressor stations | S179: 25 | T179: =T168*Indexation!AE$4 -> 0 | U179: =U168*Indexation!AF$4 -> 0 | V179: =V168*Indexation!AG$4 -> 0 | W179: 0 | X179: 0 | Y179: 0 | AH179: IC1 - Compressor stations | AI179: 25 | AJ179: =AJ168*Indexation!AE$4 -> 0 | AK179: =AK168*Indexation!AF$4 -> 0 | AL179: =AL168*Indexation!AG$4 -> 0 | AM179: 0 | AN179: 0 | AO179: 0
B180: TBU Onshore - Equipment | C180: 5 | D180: =D169*Indexation!AE$4 -> 0 | E180: =E169*Indexation!AF$4 -> 0 | F180: =F169*Indexation!AG$4 -> -0.3416709156 | G180: 0 | H180: 0 | I180: -0.3416709156 | R180: Inch - Equipment | S180: 5 | T180: =T169*Indexation!AE$4 -> 0 | U180: =U169*Indexation!AF$4 -> 0 | V180: =V169*Indexation!AG$4 -> 0 | W180: 0 | X180: 0 | Y180: 0 | AH180: IC1 - Equipment | AI180: 5 | AJ180: =AJ169*Indexation!AE$4 -> 0 | AK180: =AK169*Indexation!AF$4 -> 0 | AL180: =AL169*Indexation!AG$4 -> 0 | AM180: 0 | AN180: 0 | AO180: 0
B181: TBU Onshore - GTTW | C181: 50 | D181: =D170*Indexation!AE$4 -> 0 | E181: =E170*Indexation!AF$4 -> 0 | F181: =F170*Indexation!AG$4 -> 0 | G181: 0 | H181: 0 | I181: 0 | R181: Inch - GTTW | S181: 50 | T181: =T170*Indexation!AE$4 -> 0 | U181: =U170*Indexation!AF$4 -> 0 | V181: =V170*Indexation!AG$4 -> 0 | W181: 0 | X181: 0 | Y181: 0 | AH181: IC1 - GTTW | AI181: 50 | AJ181: =AJ170*Indexation!AE$4 -> 0 | AK181: =AK170*Indexation!AF$4 -> 0 | AL181: =AL170*Indexation!AG$4 -> 0 | AM181: 0 | AN181: 0 | AO181: 0
B182: TBU Onshore - Land | C182: 40 | D182: =D171*Indexation!AE$4 -> 0 | E182: =E171*Indexation!AF$4 -> 0 | F182: =F171*Indexation!AG$4 -> 0 | G182: 0 | H182: 0 | I182: 0 | R182: Inch - Land | S182: 40 | T182: =T171*Indexation!AE$4 -> 0 | U182: =U171*Indexation!AF$4 -> 0 | V182: =V171*Indexation!AG$4 -> 0 | W182: 0 | X182: 0 | Y182: 0 | AH182: IC1 - Land | AI182: 40 | AJ182: =AJ171*Indexation!AE$4 -> 0 | AK182: =AK171*Indexation!AF$4 -> 0 | AL182: =AL171*Indexation!AG$4 -> 0 | AM182: 0 | AN182: 0 | AO182: 0
B183: TBU Onshore - Pipelines/AGIs | C183: 50 | D183: =D172*Indexation!AE$4 -> 0 | E183: =E172*Indexation!AF$4 -> 0 | F183: =F172*Indexation!AG$4 -> -8.639393153 | G183: 0 | H183: 0 | I183: -8.639393153 | R183: Inch - Pipelines/AGIs | S183: 50 | T183: =T172*Indexation!AE$4 -> 0 | U183: =U172*Indexation!AF$4 -> 0 | V183: =V172*Indexation!AG$4 -> 0 | W183: 0 | X183: 0 | Y183: 0 | AH183: IC1 - Pipelines/AGIs | AI183: 50 | AJ183: =AJ172*Indexation!AE$4 -> 0 | AK183: =AK172*Indexation!AF$4 -> 0 | AL183: =AL172*Indexation!AG$4 -> 0 | AM183: 0 | AN183: 0 | AO183: 0
AH184: IC2 | AI184: 100 | AJ184: =AJ173*Indexation!AE$4 -> 0 | AK184: =AK173*Indexation!AF$4 -> 0 | AL184: =AL173*Indexation!AG$4 -> 0 | AM184: 0 | AN184: 0 | AO184: =SUM(AJ184:AN184) -> 0
B186: Total indexed gross value of efficient deferrals | D186: =SUM(D178:D184) -> 0 | E186: =SUM(E178:E184) -> 0 | F186: =SUM(F178:F184) -> -8.981064068 | G186: =SUM(G178:G184) -> 0 | H186: =SUM(H178:H184) -> 0 | I186: =SUM(D186:H186) -> -8.981064068 | R186: Total indexed gross value of efficient deferrals | T186: =SUM(T178:T184) -> 0 | U186: =SUM(U178:U184) -> 0 | V186: =SUM(V178:V184) -> 0 | W186: =SUM(W178:W184) -> 0 | X186: =SUM(X178:X184) -> 0 | Y186: =SUM(T186:X186) -> 0 | AH186: Total indexed gross value of efficient deferrals | AJ186: =SUM(AJ178:AJ184) -> 0 | AK186: =SUM(AK178:AK184) -> 0 | AL186: =SUM(AL178:AL184) -> 0 | AM186: =SUM(AM178:AM184) -> 0 | AN186: =SUM(AN178:AN184) -> 0 | AO186: =SUM(AJ186:AN186) -> 0
B188: Return on negative scope/efficiency in 2010/2011 prices | R188: Return on negative scope/efficiency in 2010/2011 prices | AH188: Return on negative scope/efficiency in 2010/2011 prices
C189: Asset life | I189: Total | S189: Asset life | Y189: Total | AI189: Asset life | AO189: Total
B190: =B178 -> TBU Onshore - Buildings | C190: =C178 -> 40 | D190: =(D178*$K$2/2)+((D178-(D178/$C190*1))*$K$2)+((D178-(D178/$C190*2))*$K$2)+((D178-(D178/$C190*3))*$K$2)+((D178-(D178/$C190*4))*$K$2) -> 0 | E190: =(E178*$K$2/2)+((E178-(E178/$C190*1))*$K$2)+((E178-(E178/$C190*2))*$K$2)+((E178-(E178/$C190*3))*$K$2) -> 0 | F190: =(F178*$K$2/2)+((F178-(F178/$C190*1))*$K$2)+((F178-(F178/$C190*2))*$K$2) -> 0 | G190: =(G178*$K$2/2)+((G178-(G178/$C190*1))*$K$2) -> 0 | H190: =(H178*$K$2/2) -> 0 | I190: =SUM(D190:H190) -> 0 | R190: =R178 -> Inch - Buildings | S190: 40 | T190: =(T178*$K$2/2)+((T178-(T178/$S190*1))*$K$2)+((T178-(T178/$S190*2))*$K$2)+((T178-(T178/$S190*3))*$K$2)+((T178-(T178/$S190*4))*$K$2) -> 0 | U190: =(U178*$K$2/2)+((U178-(U178/$S190*1))*$K$2)+((U178-(U178/$S190*2))*$K$2)+((U178-(U178/$S190*3))*$K$2) -> 0 | V190: =(V178*$K$2/2)+((V178-(V178/$S190*1))*$K$2)+((V178-(V178/$S190*2))*$K$2) -> 0 | W190: =(W178*$K$2/2)+((W178-(W178/$S190*1))*$K$2) -> 0 | X190: =(X178*$K$2/2) -> 0 | Y190: =SUM(T190:X190) -> 0 | AH190: =AH178 -> IC1 - Buildings | AI190: 40 | AJ190: =(AJ178*$K$2/2)+((AJ178-(AJ178/$AI190*1))*$K$2)+((AJ178-(AJ178/$AI190*2))*$K$2)+((AJ178-(AJ178/$AI190*3))*$K$2)+((AJ178-(AJ178/$AI190*4))*$K$2) -> 0 | AK190: =(AK178*$K$2/2)+((AK178-(AK178/$AI190*1))*$K$2)+((AK178-(AK178/$AI190*2))*$K$2)+((AK178-(AK178/$AI190*3))*$K$2) -> 0 | AL190: =(AL178*$K$2/2)+((AL178-(AL178/$AI190*1))*$K$2)+((AL178-(AL178/$AI190*2))*$K$2) -> 0 | AM190: =(AM178*$K$2/2)+((AM178-(AM178/$AI190*1))*$K$2) -> 0 | AN190: =(AN178*$K$2/2) -> 0 | AO190: =SUM(AJ190:AN190) -> 0
B191: =B179 -> TBU Onshore - Compressor stations | C191: 25 | D191: 0 | E191: 0 | F191: 0 | G191: 0 | H191: 0 | I191: 0 | R191: Inch - Compressor stations | S191: 25 | T191: 0 | U191: 0 | V191: 0 | W191: 0 | X191: 0 | Y191: 0 | AH191: IC1 - Compressor stations | AI191: 25 | AJ191: 0 | AK191: 0 | AL191: 0 | AM191: 0 | AN191: =(AN179*$K$2/2) -> 0 | AO191: 0
B192: TBU Onshore - Equipment | C192: 5 | D192: 0 | E192: 0 | F192: -0.03375708647 | G192: 0 | H192: 0 | I192: -0.03375708647 | R192: Inch - Equipment | S192: 5 | T192: 0 | U192: 0 | V192: 0 | W192: 0 | X192: 0 | Y192: 0 | AH192: IC1 - Equipment | AI192: 5 | AJ192: 0 | AK192: 0 | AL192: 0 | AM192: 0 | AN192: 0 | AO192: 0
B193: TBU Onshore - GTTW | C193: 50 | D193: 0 | E193: 0 | F193: 0 | G193: 0 | H193: 0 | I193: 0 | R193: Inch - GTTW | S193: 50 | T193: 0 | U193: 0 | V193: 0 | W193: 0 | X193: 0 | Y193: 0 | AH193: IC1 - GTTW | AI193: 50 | AJ193: 0 | AK193: 0 | AL193: 0 | AM193: 0 | AN193: 0 | AO193: 0
B194: TBU Onshore - Land | C194: 40 | D194: 0 | E194: 0 | F194: 0 | G194: 0 | H194: 0 | I194: 0 | R194: Inch - Land | S194: 40 | T194: 0 | U194: 0 | V194: 0 | W194: 0 | X194: 0 | Y194: 0 | AH194: IC1 - Land | AI194: 40 | AJ194: 0 | AK194: 0 | AL194: 0 | AM194: 0 | AN194: 0 | AO194: 0
B195: TBU Onshore - Pipelines/AGIs | C195: 50 | D195: 0 | E195: 0 | F195: -1.096166203 | G195: 0 | H195: 0 | I195: -1.096166203 | R195: Inch - Pipelines/AGIs | S195: 50 | T195: 0 | U195: 0 | V195: 0 | W195: 0 | X195: 0 | Y195: 0 | AH195: IC1 - Pipelines/AGIs | AI195: 50 | AJ195: 0 | AK195: 0 | AL195: 0 | AM195: 0 | AN195: 0 | AO195: 0
AH196: IC2 | AI196: 100 | AJ196: 0 | AK196: 0 | AL196: 0 | AM196: 0 | AN196: 0 | AO196: =SUM(AJ196:AN196) -> 0
B198: Total return on negative scope/efficiency | D198: =SUM(D190:D196) -> 0 | E198: =SUM(E190:E196) -> 0 | F198: =SUM(F190:F196) -> -1.12992329 | G198: =SUM(G190:G196) -> 0 | H198: =SUM(H190:H196) -> 0 | I198: =SUM(D198:H198) -> -1.12992329 | R198: Total return on negative scope/efficiency | T198: =SUM(T190:T196) -> 0 | U198: =SUM(U190:U196) -> 0 | V198: =SUM(V190:V196) -> 0 | W198: =SUM(W190:W196) -> 0 | X198: =SUM(X190:X196) -> 0 | Y198: =SUM(T198:X198) -> 0 | AH198: Total return on negative scope/efficiency | AJ198: =SUM(AJ190:AJ196) -> 0 | AK198: =SUM(AK190:AK196) -> 0 | AL198: =SUM(AL190:AL196) -> 0 | AM198: =SUM(AM190:AM196) -> 0 | AN198: =SUM(AN190:AN196) -> 0 | AO198: =SUM(AJ198:AN198) -> 0

Sheet PC1_inputs
B1: Year of PC1 control | C1: 2 | D1: 1
B2: Gas year | C2: 05/06 | D2: Sept to Dec 06 | E2: Jan to Sept 07 | F2: Total | H2: PR1 WACC | I2: 0.0574
B4: GENERAL INPUTS
B6: Timing assumptions
B7: Assumed to be constant through year | C7: 0.5 | D7: 0.5
B8: Assumed to happen at year end | C8: 0 | D8: 0
B10: Discounting indices
B11: RAB discounting index | C11: =(1+I2)^(C1-C8) -> 1.11809476 | D11: =(1+I2)^(D1-D8) -> 1.0574
B12: Capex and Opex expenditure discounting index | C12: =(1+$I$2)^(C1-C7) -> 1.087323962 | D12: =(1+$I$2)^(D1-D7) -> 1.028299567
B14: CAPITAL EXPENDITURE
B16: TBU onshore
C17: Nominal terms | D17: Nominal terms | F17: Classification | H17: Classifications
B18: Spare TBU onshore capex line | D18: 0.02564663 | E18: 0.18243192 | F18: TBU Onshore - Buildings | H18: TBU Onshore - Buildings
B19: Spare TBU onshore capex line | D19: 0.41217755 | E19: 1.22385956 | F19: TBU Onshore - Equipment | H19: TBU Onshore - Compressor stations
B20: Spare TBU onshore capex line | D20: 0 | E20: 0 | F20: TBU Onshore - Land | H20: TBU Onshore - Equipment
B21: Spare TBU onshore capex line | D21: 0.01293652 | E21: 0.06176168 | F21: TBU Onshore - GTTW | H21: TBU Onshore - GTTW
B22: Spare TBU onshore capex line | C22: =-0.085012*1 -> -0.085012 | D22: =0.659141 -> 0.659141 | E22: 7.107696 | F22: TBU Onshore - Pipelines/AGIs | H22: TBU Onshore - Land | J22: NEGATIVE EFFICIENCY | K22: -1
B23: Adjustment | D23: =-0.143*1 -> -0.143 | F23: TBU Onshore - Pipelines/AGIs | H23: TBU Onshore - Pipelines/AGIs
H24: SS Onshore - Buildings
B25: SS onshore | H25: SS Onshore - Equipment
H26: SS Onshore - Land
B27: Spare SS onshore capex line | H27: SS Onshore - Compressor stations
B28: Spare SS onshore capex line | F28: SS Onshore - Buildings | H28: SS Onshore - GTTW
B29: Spare SS onshore capex line | H29: SS Onshore - Pipelines/AGIs
B30: Spare SS onshore capex line | H30: Inch - Buildings
B31: Spare SS onshore capex line | H31: Inch - Equipment
B32: Spare SS onshore capex line | H32: Inch - GTTW
H33: Inch - Land
B34: Inch | H34: Inch - Compressor stations
H35: Inch - Pipelines/AGIs
B36: Spare Inch capex line | D36: 0 | E36: 0 | F36: Inch - Equipment | H36: IC1 - Buildings
B37: Spare Inch capex line | D37: 0.063685 | E37: 0.073591 | F37: Inch - Equipment | H37: IC1 - Compressor stations
B38: Spare Inch capex line | D38: 0 | E38: 0 | H38: IC1 - Equipment
B39: Spare Inch capex line | D39: 0 | E39: 0 | H39: IC1 - Land
B40: Spare Inch capex line | D40: 0 | E40: 0 | H40: IC1 - Pipelines/AGIs
B41: Spare Inch capex line | H41: IC1 - GTTW
H42: IC2
B43: IC1
B45: Spare IC1 capex line | D45: 0 | E45: 0 | F45: IC1 - Buildings
B46: Spare IC1 capex line | D46: 0 | E46: 0.007561 | F46: IC1 - Equipment
B47: Spare IC1 capex line | D47: 0 | E47: 0 | F47: IC1 - Land
B48: Spare IC1 capex line | D48: 0 | F48: IC1 - Pipelines/AGIs
B49: Spare IC1 capex line | D49: 0.418353 | E49: 0.092735 | F49: IC1 - Compressor stations
B51: IC2
B53: Spare IC2 capex line | E53: -0.048781 | F53: IC2
B54: Spare IC2 capex line
B55: Spare IC2 capex line
B56: Spare IC2 capex line
B58: Total capital expenditure | C58: =SUM(C18:C56) -> -0.085012 | D58: =SUM(D18:D56) -> 1.4489397 | E58: =SUM(E18:E56) -> 8.70085516
B60: REGULATED ASSET BASE & CAPITAL EXPENDITURE | G60: Figures as per PC2 decision (05/06 terms)
B62: Figures as per PC2 decision (inflated to 10/11 terms) | H62: Onshore | I62: Inch | J62: Interconnectors
C63: Onshore | D63: Inch | E63: Interconnectors | G63: Opening RAB for Oct 06 | H63: 824.2 | I63: 12.3 | J63: 607.9 | K63: Sources: As filed RAB
B64: Opening RAB | C64: =H63*Indexation!$B$8 -> 862.5937756 | D64: =I63*Indexation!$B$8 -> 12.8729719 | E64: =J63*Indexation!$B$8 -> 636.2178551 | G64: Closing RAB for Sept 07 | H64: 835.28 | I64: 11.88 | J64: 599.6
B65: Closing RAB | C65: =H64*Indexation!$B$8 -> 874.1899162 | D65: =I64*Indexation!$B$8 -> 12.43340701 | E65: =J64*Indexation!$B$8 -> 627.5312156
G66: Capex for 06/07 gas year | H66: 26.026 | I66: 0.157 | J66: 1.633
B67: Capex | C67: =H66*Indexation!$B$8 -> 27.23837127 | D67: =I66*Indexation!$B$8 -> 0.1643135438 | E67: =J66*Indexation!$B$8 -> 1.709070172
B69: Approved outturn figures, 10/11 terms
B70: Opening RAB | C70: ='PC3 transmission RABs'!D3 -> 856.2846183 | D70: ='PC3 transmission RABs'!D4 -> 12.72843937 | E70: ='PC3 transmission RABs'!D5 -> 631.6600156
B71: Closing RAB | C71: ='PC3 transmission RABs'!E3 -> 843.9242066 | D71: ='PC3 transmission RABs'!E4 -> 12.55008816 | E71: ='PC3 transmission RABs'!E5 -> 618.8207482
B73: Capex | C73: =(9.688581+ D23)*Indexation!C8 -> 9.708691522 | D73: =0.649518*Indexation!C8 -> 0.6606166665 | E73: =0.469868*Indexation!C8 -> 0.4778968895
B75: REGULATED ASSET BASE & CAPITAL EXPENDITURE
B77: Figures as per approved outturn (10/11 monies) | C77: 05/06
C78: Onshore
B79: Opening RAB | C79: =SUM('PC3 transmission RABs'!$D$139:$AC$139)+'PC3 transmission RABs'!$AD$139*0.75 -> 842.7066643
B80: Closing RAB | C80: 856.3715215
B82: Capex
B84: Figures as per revised outturn (10/11 monies)
B85: Opening RAB | C85: =SUM('PC3 transmission RABs'!$D$139:$AC$139)+'PC3 transmission RABs'!$AD$139*0.75 -> 842.7066643
B86: Closing RAB | C86: =SUM('PC3 transmission RABs'!D139:AE139) -> 856.2846183
B88: Adjustment to Capex | C88: =C58*Indexation!B8 -> -0.08897212091
B90: REVENUE REQUIRED TO COVER CAPITAL EXPENDITURE, DEPRECIATION AND RETURN
B92: Revenue required to cover capex, depreciation & return, 10/11 terms
B93: Figures as per approved outturn (10/11 monies)
B94: Revenue required to reinburse changes in RAB | C94: =C79-(C80/$D$11) -> 32.82249416
B95: Revenue required to reinburse capex
B96: Total | C96: =SUM(C94:C95) -> 32.82249416
B98: Figures as per revised outturn (10/11 monies)
B99: Revenue required to reinburse changes in RAB | C99: =C85-(C86/$D$11) -> 32.90467988
B100: Revenue required to reinburse capex | C100: =C88/$C$12 -> -0.0818266901
B101: Total | C101: =SUM(C99:C100) -> 32.82285319
B103: PC3 adjustment due to difference between above | C103: =C101-C96 -> 0.0003590266915
B105: REVENUE REQUIRED TO COVER CAPITAL EXPENDITURE, DEPRECIATION AND RETURN
B107: Revenue required to cover capex, depreciation & return, 10/11 terms
B108: As per PC2 decision
B109: Revenue required to reinburse changes in RAB | C109: =C64-(C65/$D$11) -> 35.85846622 | D109: =D64-(D65/$D$11) -> 1.114501117 | E109: =E64-(E65/$D$11) -> 42.75160248
B110: Revenue required to reinburse capex | C110: =C67/$D$12 -> 26.48875108 | D110: =D67/$D$12 -> 0.1597915131 | E110: =E67/$D$12 -> 1.662035292
B111: Total | C111: =SUM(C109:C110) -> 62.3472173 | D111: =SUM(D109:D110) -> 1.27429263 | E111: =SUM(E109:E110) -> 44.41363777
B113: As per approved outturn figures
B114: Revenue required to reinburse changes in RAB | C114: =C70-(C71/$D$11) -> 58.17207186 | D114: =D70-(D71/$D$11) -> 0.8596213642 | E114: =E70-(E71/$D$11) -> 46.43139041
B115: Revenue required to reinburse capex | C115: =C73/$D$12 -> 9.441501126 | D115: =D73/$D$12 -> 0.6424360055 | E115: =E73/$D$12 -> 0.4647448124
B116: Total | C116: =SUM(C114:C115) -> 67.61357299 | D116: =SUM(D114:D115) -> 1.50205737 | E116: =SUM(E114:E115) -> 46.89613522
B118: PC3 adjustment due to difference between above | C118: =C116-C111 -> 5.266355684 | D118: =D116-D111 -> 0.2277647395 | E118: =E116-E111 -> 2.482497452
B120: Onshore | N120: Inch | Z120: Interconnectors
B121: REVENUE RELATED TO EFFICIENCY/SCOPE SAVINGS | N121: REVENUE RELATED TO EFFICIENCY SAVINGS | Z121: REVENUE RELATED TO EFFICIENCY SAVINGS
B124: Historic cost of efficiency/scope savings, nominal prices | N124: Historic cost of efficiency/scope savings, nominal prices | Z124: Historic cost of efficiency/scope savings, nominal
B125: Onshore | C125: Asset life | E125: Total | N125: Inch | P125: 2006/07 | Z125: Interconnectors | AA125: Asset life | AB125: 2006/07
B126: TBU Onshore - Buildings | C126: 40 | E126: =SUM(D126:D126) -> 0 | N126: Inch - Buildings | O126: 40 | P126: 0 | Q126: =SUM(P126:P126) -> 0 | Z126: IC1 - Buildings | AA126: 40 | AB126: 0 | AC126: =SUM(AB126:AB126) -> 0
B127: TBU Onshore - Compressor stations | C127: 25 | E127: 0 | N127: Inch - Compressor stations | O127: 25 | P127: 0 | Q127: 0 | Z127: IC1 - Compressor stations | AA127: 25 | AB127: 0 | AC127: 0 | AD127: Put savings in from Historic Capex spreadsheet final
B128: TBU Onshore - Equipment | C128: 5 | E128: 0 | N128: Inch - Equipment | O128: 5 | P128: 0 | Q128: 0 | Z128: IC1 - Equipment | AA128: 5 | AB128: 0 | AC128: 0
B129: TBU Onshore - GTTW | C129: 50 | E129: 0 | N129: Inch - GTTW | O129: 50 | P129: 0 | Q129: 0 | Z129: IC1 - GTTW | AA129: 50 | AB129: 0 | AC129: 0
B130: TBU Onshore - Land | C130: 40 | E130: 0 | N130: Inch - Land | O130: 40 | P130: 0 | Q130: 0 | Z130: IC1 - Land | AA130: 40 | AB130: 0 | AC130: 0
B131: TBU Onshore - Pipelines/AGIs | C131: 50 | D131: =4.9914347546+ 4.72124078948728 -> 9.712675544 | E131: 9.712675544 | F131: Put savings in from Historic Capex spreadsheet final | N131: Inch - Pipelines/AGIs | O131: 50 | P131: 0 | Q131: 0 | Z131: IC1 - Pipelines/AGIs | AA131: 50 | AB131: 0 | AC131: 0
E132: 0 | P132: 0 | Q132: 0 | Z132: IC2 | AA132: 100 | AB132: 0 | AC132: 0
B134: Total historic cost | D134: =SUM(D126:D132) -> 9.712675544 | E134: =SUM(D134:D134) -> 9.712675544 | N134: Total historic cost | P134: =SUM(P126:P132) -> 0 | Q134: =SUM(P134:P134) -> 0 | Z134: Total historic cost | AB134: =SUM(AB126:AB132) -> 0 | AC134: =SUM(AB134:AB134) -> 0
B136: Indexed cost of efficiency/scope savings, 10/11 prices | G136: Revenue for 5 years, 10/11 prices | N136: indexed cost of efficiency/scope savings, 10/11 prices | S136: Revenue for 5 years, 10/11 prices | Z136: Indexed cost of efficiency/scope savings, 10/11 prices | AE136: Revenue for 5 years, 10/11 prices
B137: =B125 -> Onshore | C137: Asset life | E137: Total | G137: Depreciation | H137: Return | I137: Total | N137: =N125 -> Inch | O137: Asset life | Q137: Total | S137: Depreciation | T137: Return | U137: Total | Z137: =Z125 -> Interconnectors | AA137: Asset life | AC137: Total | AE137: Depreciation | AF137: Return | AG137: Total
B138: =B126 -> TBU Onshore - Buildings | C138: =C126 -> 40 | D138: =D126*Indexation!$AD$4 -> 0 | E138: =SUM(D138:D138) -> 0 | G138: =E138/C138*5 -> 0 | H138: =($E138*$I$2)+(($E138-($E138/$C138*1))*PC2_inputs!$K$2)+(($E138-($E138/$C138*2))*PC2_inputs!$K$2)+(($E138-($E138/$C138*3))*PC2_inputs!$K$2)+(($E138-($E138/$C138*4))*PC2_inputs!$K$2) -> 0 | I138: =G138+H138 -> 0 | N138: =N126 -> Inch - Buildings | O138: =O126 -> 40 | P138: =P126*Indexation!$AE$4 -> 0 | Q138: =SUM(P138:P138) -> 0 | S138: =Q138/O138*5 -> 0 | T138: =($Q138*$I$2)+(($Q138-($Q138/$O138*1))*PC2_inputs!$K$2)+(($Q138-($Q138/$O138*2))*PC2_inputs!$K$2)+(($Q138-($Q138/$O138*3))*PC2_inputs!$K$2)+(($Q138-($Q138/$O138*4))*PC2_inputs!$K$2) -> 0 | U138: =S138+T138 -> 0 | Z138: =Z126 -> IC1 - Buildings | AA138: =AA126 -> 40 | AB138: =AB126*Indexation!$AE$4 -> 0 | AC138: =SUM(AB138:AB138) -> 0 | AE138: =AC138/AA138*5 -> 0 | AF138: =($AC138*$I$2)+(($AC138-($AC138/$AA138*1))*PC2_inputs!$K$2)+(($AC138-($AC138/$AA138*2))*PC2_inputs!$K$2)+(($AC138-($AC138/$AA138*3))*PC2_inputs!$K$2)+(($AC138-($AC138/$AA138*4))*PC2_inputs!$K$2) -> 0 | AG138: =AE138+AF138 -> 0
B139: =B127 -> TBU Onshore - Compressor stations | C139: 25 | D139: =D127*Indexation!$AD$4 -> 0 | E139: 0 | G139: 0 | H139: =($E139*$I$2)+(($E139-($E139/$C139*1))*PC2_inputs!$K$2)+(($E139-($E139/$C139*2))*PC2_inputs!$K$2)+(($E139-($E139/$C139*3))*PC2_inputs!$K$2)+(($E139-($E139/$C139*4))*PC2_inputs!$K$2) -> 0 | I139: =G139+H139 -> 0 | N139: =N127 -> Inch - Compressor stations | O139: 25 | P139: =P127*Indexation!$AE$4 -> 0 | Q139: 0 | S139: 0 | T139: =($Q139*$I$2)+(($Q139-($Q139/$O139*1))*PC2_inputs!$K$2)+(($Q139-($Q139/$O139*2))*PC2_inputs!$K$2)+(($Q139-($Q139/$O139*3))*PC2_inputs!$K$2)+(($Q139-($Q139/$O139*4))*PC2_inputs!$K$2) -> 0 | U139: =S139+T139 -> 0 | Z139: =Z127 -> IC1 - Compressor stations | AA139: 25 | AB139: =AB127*Indexation!$AE$4 -> 0 | AC139: 0 | AE139: 0 | AF139: =($AC139*$I$2)+(($AC139-($AC139/$AA139*1))*PC2_inputs!$K$2)+(($AC139-($AC139/$AA139*2))*PC2_inputs!$K$2)+(($AC139-($AC139/$AA139*3))*PC2_inputs!$K$2)+(($AC139-($AC139/$AA139*4))*PC2_inputs!$K$2) -> 0 | AG139: =AE139+AF139 -> 0
B140: TBU Onshore - Equipment | C140: 5 | D140: =D128*Indexation!$AD$4 -> 0 | E140: 0 | G140: 0 | H140: =($E140*$I$2)+(($E140-($E140/$C140*1))*PC2_inputs!$K$2)+(($E140-($E140/$C140*2))*PC2_inputs!$K$2)+(($E140-($E140/$C140*3))*PC2_inputs!$K$2)+(($E140-($E140/$C140*4))*PC2_inputs!$K$2) -> 0 | I140: 0 | N140: Inch - Equipment | O140: 5 | P140: =P128*Indexation!$AE$4 -> 0 | Q140: 0 | S140: 0 | T140: =($Q140*$I$2)+(($Q140-($Q140/$O140*1))*PC2_inputs!$K$2)+(($Q140-($Q140/$O140*2))*PC2_inputs!$K$2)+(($Q140-($Q140/$O140*3))*PC2_inputs!$K$2)+(($Q140-($Q140/$O140*4))*PC2_inputs!$K$2) -> 0 | U140: 0 | Z140: IC1 - Equipment | AA140: 5 | AB140: =AB128*Indexation!$AE$4 -> 0 | AC140: 0 | AE140: 0 | AF140: =($AC140*$I$2)+(($AC140-($AC140/$AA140*1))*PC2_inputs!$K$2)+(($AC140-($AC140/$AA140*2))*PC2_inputs!$K$2)+(($AC140-($AC140/$AA140*3))*PC2_inputs!$K$2)+(($AC140-($AC140/$AA140*4))*PC2_inputs!$K$2) -> 0 | AG140: 0
B141: TBU Onshore - GTTW | C141: 50 | D141: =D129*Indexation!$AD$4 -> 0 | E141: 0 | G141: 0 | H141: =($E141*$I$2)+(($E141-($E141/$C141*1))*PC2_inputs!$K$2)+(($E141-($E141/$C141*2))*PC2_inputs!$K$2)+(($E141-($E141/$C141*3))*PC2_inputs!$K$2)+(($E141-($E141/$C141*4))*PC2_inputs!$K$2) -> 0 | I141: 0 | N141: Inch - GTTW | O141: 50 | P141: =P129*Indexation!$AE$4 -> 0 | Q141: 0 | S141: 0 | T141: =($Q141*$I$2)+(($Q141-($Q141/$O141*1))*PC2_inputs!$K$2)+(($Q141-($Q141/$O141*2))*PC2_inputs!$K$2)+(($Q141-($Q141/$O141*3))*PC2_inputs!$K$2)+(($Q141-($Q141/$O141*4))*PC2_inputs!$K$2) -> 0 | U141: 0 | Z141: IC1 - GTTW | AA141: 50 | AB141: =AB129*Indexation!$AE$4 -> 0 | AC141: 0 | AE141: 0 | AF141: =($AC141*$I$2)+(($AC141-($AC141/$AA141*1))*PC2_inputs!$K$2)+(($AC141-($AC141/$AA141*2))*PC2_inputs!$K$2)+(($AC141-($AC141/$AA141*3))*PC2_inputs!$K$2)+(($AC141-($AC141/$AA141*4))*PC2_inputs!$K$2) -> 0 | AG141: 0
B142: TBU Onshore - Land | C142: 40 | D142: =D130*Indexation!$AD$4 -> 0 | E142: 0 | G142: 0 | H142: =($E142*$I$2)+(($E142-($E142/$C142*1))*PC2_inputs!$K$2)+(($E142-($E142/$C142*2))*PC2_inputs!$K$2)+(($E142-($E142/$C142*3))*PC2_inputs!$K$2)+(($E142-($E142/$C142*4))*PC2_inputs!$K$2) -> 0 | I142: 0 | N142: Inch - Land | O142: 40 | P142: =P130*Indexation!$AE$4 -> 0 | Q142: 0 | S142: 0 | T142: =($Q142*$I$2)+(($Q142-($Q142/$O142*1))*PC2_inputs!$K$2)+(($Q142-($Q142/$O142*2))*PC2_inputs!$K$2)+(($Q142-($Q142/$O142*3))*PC2_inputs!$K$2)+(($Q142-($Q142/$O142*4))*PC2_inputs!$K$2) -> 0 | U142: 0 | Z142: IC1 - Land | AA142: 40 | AB142: =AB130*Indexation!$AE$4 -> 0 | AC142: 0 | AE142: 0 | AF142: =($AC142*$I$2)+(($AC142-($AC142/$AA142*1))*PC2_inputs!$K$2)+(($AC142-($AC142/$AA142*2))*PC2_inputs!$K$2)+(($AC142-($AC142/$AA142*3))*PC2_inputs!$K$2)+(($AC142-($AC142/$AA142*4))*PC2_inputs!$K$2) -> 0 | AG142: 0
B143: TBU Onshore - Pipelines/AGIs | C143: 50 | D143: =D131*Indexation!$AD$4 -> 10.07994287 | E143: 10.07994287 | G143: 1.007994287 | H143: =($E143*$I$2)+(($E143-($E143/$C143*1))*PC2_inputs!$K$2)+(($E143-($E143/$C143*2))*PC2_inputs!$K$2)+(($E143-($E143/$C143*3))*PC2_inputs!$K$2)+(($E143-($E143/$C143*4))*PC2_inputs!$K$2) -> 2.570385431 | I143: 3.578379717 | N143: Inch - Pipelines/AGIs | O143: 50 | P143: =P131*Indexation!$AE$4 -> 0 | Q143: 0 | S143: 0 | T143: =($Q143*$I$2)+(($Q143-($Q143/$O143*1))*PC2_inputs!$K$2)+(($Q143-($Q143/$O143*2))*PC2_inputs!$K$2)+(($Q143-($Q143/$O143*3))*PC2_inputs!$K$2)+(($Q143-($Q143/$O143*4))*PC2_inputs!$K$2) -> 0 | U143: 0 | Z143: IC1 - Pipelines/AGIs | AA143: 50 | AB143: =AB131*Indexation!$AE$4 -> 0 | AC143: 0 | AE143: 0 | AF143: =($AC143*$I$2)+(($AC143-($AC143/$AA143*1))*PC2_inputs!$K$2)+(($AC143-($AC143/$AA143*2))*PC2_inputs!$K$2)+(($AC143-($AC143/$AA143*3))*PC2_inputs!$K$2)+(($AC143-($AC143/$AA143*4))*PC2_inputs!$K$2) -> 0 | AG143: 0
I144: 0 | P144: =P132*Indexation!$AE$4 -> 0 | Q144: 0 | U144: 0 | Z144: IC2 | AA144: 100 | AB144: =AB132*Indexation!$AE$4 -> 0 | AC144: 0 | AE144: 0 | AF144: =($AC144*$I$2)+(($AC144-($AC144/$AA144*1))*PC2_inputs!$K$2)+(($AC144-($AC144/$AA144*2))*PC2_inputs!$K$2)+(($AC144-($AC144/$AA144*3))*PC2_inputs!$K$2)+(($AC144-($AC144/$AA144*4))*PC2_inputs!$K$2) -> 0 | AG144: 0
B146: Total indexed gross value of efficiency/scope savings | D146: =SUM(D138:D144) -> 10.07994287 | E146: =SUM(D146:D146) -> 10.07994287 | G146: =SUM(G138:G144) -> 1.007994287 | H146: =SUM(H138:H144) -> 2.570385431 | I146: =G146+H146 -> 3.578379717 | N146: Total indexed gross value of efficient deferrals | P146: =SUM(P138:P144) -> 0 | Q146: =SUM(P146:P146) -> 0 | S146: =SUM(S138:S144) -> 0 | T146: =SUM(T138:T144) -> 0 | U146: =S146+T146 -> 0 | Z146: Total indexed gross value of efficient deferrals | AB146: =SUM(AB138:AB144) -> 0 | AC146: =SUM(AB146:AB146) -> 0 | AE146: =SUM(AE138:AE144) -> 0 | AF146: =SUM(AF138:AF144) -> 0 | AG146: =AE146+AF146 -> 0
B148: REVENUE RELATED TO EFFICIENT DEFFERALS | N148: REVENUE RELATED TO EFFICIENCY SAVINGS | Z148: REVENUE RELATED TO EFFICIENCY SAVINGS
B150: Historic cost of efficient deferrals, nominal prices | N150: Historic cost of efficient deferrals, nominal prices | Z150: Historic cost of efficient deferrals, nominal prices
B151: Onshore | C151: Asset life | E151: Total | N151: Inch | P151: 2007/08 | Z151: Interconnectors | AA151: Asset life | AB151: 2007/08
B152: TBU Onshore - Buildings | C152: 40 | D152: 0 | E152: =SUM(D152:D152) -> 0 | N152: Inch - Buildings | O152: 40 | P152: 0 | Q152: =SUM(P152:P152) -> 0 | Z152: IC1 - Buildings | AA152: 40 | AB152: 0 | AC152: =SUM(AB152:AB152) -> 0
B153: TBU Onshore - Compressor stations | C153: 25 | D153: 0 | E153: 0 | N153: Inch - Compressor stations | O153: 25 | P153: 0 | Q153: 0 | Z153: IC1 - Compressor stations | AA153: 25 | AB153: 0 | AC153: 0
B154: TBU Onshore - Equipment | C154: 5 | D154: 0 | E154: 0 | N154: Inch - Equipment | O154: 5 | P154: 0 | Q154: 0 | Z154: IC1 - Equipment | AA154: 5 | AB154: 0 | AC154: 0
B155: TBU Onshore - GTTW | C155: 50 | D155: 0 | E155: 0 | N155: Inch - GTTW | O155: 50 | P155: 0 | Q155: 0 | Z155: IC1 - GTTW | AA155: 50 | AB155: 0 | AC155: 0
B156: TBU Onshore - Land | C156: 40 | D156: 0 | E156: 0 | N156: Inch - Land | O156: 40 | P156: 0 | Q156: 0 | Z156: IC1 - Land | AA156: 40 | AB156: 0 | AC156: 0
B157: TBU Onshore - Pipelines/AGIs | C157: 50 | D157: 0 | E157: 0 | F157: Put savings in mid point from Historic Capex spreadsheet final | N157: Inch - Pipelines/AGIs | O157: 50 | P157: 0 | Q157: 0 | Z157: IC1 - Pipelines/AGIs | AA157: 50 | AB157: 0 | AC157: 0
D158: 0 | E158: 0 | P158: 0 | Q158: 0 | Z158: IC2 | AA158: 100 | AB158: 0 | AC158: 0
B160: Total historic cost | D160: =SUM(D152:D158) -> 0 | E160: =SUM(D160:D160) -> 0 | N160: Total historic cost | P160: =SUM(P152:P158) -> 0 | Q160: =SUM(P160:P160) -> 0 | Z160: Total historic cost | AB160: =SUM(AB152:AB158) -> 0 | AC160: =SUM(AB160:AB160) -> 0
B162: Indexed gross value of efficient deferrals in 2010/2011 prices | G162: Revenue for 5 years, 10/11 prices | N162: Indexed gross value of efficient deferrals in 2010/2011 prices | S162: Revenue for 5 years, 10/11 prices | Z162: Indexed gross value of efficient deferrals in 2010/2011 prices | AE162: Revenue for 5 years, 10/11 prices
B163: =B151 -> Onshore | C163: Asset life | E163: Total | G163: Depreciation | H163: Return | I163: Total | N163: =N151 -> Inch | O163: Asset life | Q163: Total | S163: Depreciation | T163: Return | U163: Total | Z163: =Z151 -> Interconnectors | AA163: Asset life | AC163: Total | AE163: Depreciation | AF163: Return | AG163: Total
B164: TBU Onshore - Buildings | C164: 40 | D164: =D152*Indexation!$AE$4 -> 0 | E164: =SUM(D164:D164) -> 0 | G164: =E164/C164*0.5 -> 0 | H164: =($E164*POWER($I$2,0.5)) -> 0 | I164: =G164+H164 -> 0 | N164: Inch - Buildings | O164: 40 | P164: =P152*Indexation!$AE$4 -> 0 | Q164: =SUM(P164:P164) -> 0 | S164: =Q164/O164*0.5 -> 0 | T164: =($Q164*POWER($I$2,0.5)) -> 0 | U164: =S164+T164 -> 0 | Z164: IC1 - Buildings | AA164: 40 | AB164: =AB152*Indexation!$AE$4 -> 0 | AC164: =SUM(AB164:AB164) -> 0 | AE164: =AC164/AA164*0.5 -> 0 | AF164: =($AC164*POWER($I$2,0.5)) -> 0 | AG164: =AE164+AF164 -> 0
B165: TBU Onshore - Compressor stations | C165: 25 | D165: =D153*Indexation!$AE$4 -> 0 | E165: 0 | G165: 0 | H165: 0 | I165: =G165+H165 -> 0 | N165: Inch - Compressor stations | O165: 25 | P165: =P153*Indexation!$AE$4 -> 0 | Q165: 0 | S165: 0 | T165: 0 | U165: =S165+T165 -> 0 | Z165: IC1 - Compressor stations | AA165: 25 | AB165: =AB153*Indexation!$AE$4 -> 0 | AC165: 0 | AE165: =AC165/AA165*0.5 -> 0 | AF165: 0 | AG165: =AE165+AF165 -> 0
B166: TBU Onshore - Equipment | C166: 5 | D166: =D154*Indexation!$AE$4 -> 0 | E166: 0 | G166: 0 | H166: 0 | I166: 0 | N166: Inch - Equipment | O166: 5 | P166: =P154*Indexation!$AE$4 -> 0 | Q166: 0 | S166: 0 | T166: 0 | U166: 0 | Z166: IC1 - Equipment | AA166: 5 | AB166: =AB154*Indexation!$AE$4 -> 0 | AC166: 0 | AE166: 0 | AF166: 0 | AG166: 0
B167: TBU Onshore - GTTW | C167: 50 | D167: =D155*Indexation!$AE$4 -> 0 | E167: 0 | G167: 0 | H167: 0 | I167: 0 | N167: Inch - GTTW | O167: 50 | P167: =P155*Indexation!$AE$4 -> 0 | Q167: 0 | S167: 0 | T167: 0 | U167: 0 | Z167: IC1 - GTTW | AA167: 50 | AB167: =AB155*Indexation!$AE$4 -> 0 | AC167: 0 | AE167: 0 | AF167: 0 | AG167: 0
B168: TBU Onshore - Land | C168: 40 | D168: =D156*Indexation!$AE$4 -> 0 | E168: 0 | G168: 0 | H168: 0 | I168: 0 | N168: Inch - Land | O168: 40 | P168: =P156*Indexation!$AE$4 -> 0 | Q168: 0 | S168: 0 | T168: 0 | U168: 0 | Z168: IC1 - Land | AA168: 40 | AB168: =AB156*Indexation!$AE$4 -> 0 | AC168: 0 | AE168: 0 | AF168: 0 | AG168: 0
B169: TBU Onshore - Pipelines/AGIs | C169: 50 | D169: =D157*Indexation!$AE$4 -> 0 | E169: 0 | G169: 0 | H169: 0 | I169: 0 | N169: Inch - Pipelines/AGIs | O169: 50 | P169: =P157*Indexation!$AE$4 -> 0 | Q169: 0 | S169: 0 | T169: 0 | U169: 0 | Z169: IC1 - Pipelines/AGIs | AA169: 50 | AB169: =AB157*Indexation!$AE$4 -> 0 | AC169: 0 | AE169: 0 | AF169: 0 | AG169: 0
I170: 0 | P170: =P158*Indexation!$AE$4 -> 0 | Q170: 0 | U170: 0 | Z170: IC2 | AA170: 100 | AB170: =AB158*Indexation!$AE$4 -> 0 | AC170: 0 | AE170: 0 | AF170: 0 | AG170: 0
B172: Total indexed gross value of efficient deferrals | D172: =SUM(D164:D170) -> 0 | E172: =SUM(D172:D172) -> 0 | G172: =SUM(G164:G170) -> 0 | H172: =SUM(H164:H170) -> 0 | I172: =G172+H172 -> 0 | N172: Total indexed gross value of efficient deferrals | P172: =SUM(P164:P170) -> 0 | Q172: =SUM(P172:P172) -> 0 | S172: =SUM(S164:S170) -> 0 | T172: =SUM(T164:T170) -> 0 | U172: =S172+T172 -> 0 | Z172: Total indexed gross value of efficient deferrals | AB172: =SUM(AB164:AB170) -> 0 | AC172: =SUM(AB172:AB172) -> 0 | AE172: =SUM(AE164:AE170) -> 0 | AF172: =SUM(AF164:AF170) -> 0 | AG172: =AE172+AF172 -> 0

Sheet PC3 transmission RABs
B1: Vaue used in calculations | C1: 2018 | D1: 2007 | E1: 2008 | F1: 2009 | G1: 2010 | H1: 2011 | I1: 2012 | J1: 2013 | K1: 2014 | L1: 2015 | M1: 2016 | N1: 2017 | O1: 2018 | U1: 06/07 | V1: Value used for depreciation cal | AB1: Important points: | AD1: The worksheet is calendar year up to 2006 and then moves to gas year. All prices in €m
B2: Date | D2: 2006-10-01 | E2: 2007-10-01 | F2: 2008-10-01 | G2: 2009-10-01 | H2: 2010-10-01 | I2: 2011-10-01 | J2: 2012-10-01 | K2: 2013-10-01 | L2: 2014-10-01 | M2: 2015-10-01 | N2: 2016-10-01 | O2: 2017-10-01 | U2: -0.75 | V2: -0.5 | Y2: Y1 | Z2: Y2
B3: NBV of opening asset base for onshore | D3: =AW139 -> 856.2846183 | E3: =AW249 -> 843.9242066 | F3: =AW359 -> 829.2885332 | G3: =AW469 -> 824.1362995 | H3: =AW579 -> 842.9073342 | I3: =AW689 -> 857.289611 | J3: =AW755 -> 853.7601143 | K3: =AW821 -> 860.2850573 | L3: =AW887 -> 858.3000418 | M3: =AW953 -> 851.6752873 | N3: =AW1019 -> 845.2150139 | O3: =AW1085 -> 832.8665428 | V3: 0 | Y3: 0.5 | Z3: 0.5 | AY3: SS Onshore - Compressor stations
B4: NBV of opening asset base for Inch | D4: =AW1148 -> 12.72843937 | E4: =AW1198 -> 12.55008816 | F4: =AW1248 -> 11.83929395 | G4: =AW1298 -> 10.80903322 | H4: =AW1348 -> 10.11091041 | I4: =AW1398 -> 9.483911356 | J4: =AW1428 -> 8.980090399 | K4: =AW1458 -> 9.240100767 | L4: =AW1488 -> 9.457769461 | M4: =AW1518 -> 9.371936112 | N4: =AW1548 -> 9.213716142 | O4: =AW1578 -> 8.694410031 | X4: PC2 | Y4: 0.25 | Z4: 0.25
B5: NBV of opening asset base for Interconnectors | D5: =AW1676 -> 631.6600156 | E5: =AW1756 -> 618.8207482 | F5: =AW1836 -> 605.5124832 | G5: =AW1916 -> 592.1999707 | H5: =AW1996 -> 579.1136144 | I5: =AW2076 -> 567.1170981 | J5: =AW2124 -> 560.6997932 | K5: =AW2172 -> 548.3713441 | L5: =AW2220 -> 533.6751454 | M5: =AW2268 -> 519.9873632 | N5: =AW2316 -> 504.6592788 | O5: =AW2364 -> 488.8246731 | AF5: Oct to Dec | AG5: Jan to Sept | AH5: Oct to Dec | AI5: Jan to Sept | AJ5: Oct to Dec | AK5: Jan to Sept | AL5: Oct to Dec | AM5: Jan to Sept | AN5: Oct to Dec | AO5: Jan to Sept
AE6: Jan to Sept | AF6: 2006/ | AG6: 2006 | AH6: 2007 | AI6: 2007 | AJ6: 2008 | AK6: 2008 | AL6: 2009 | AM6: 2009 | AN6: 2010 | AO6: 2010 | AP6: 2011/ | AQ6: 2012/ | AR6: 2013/ | AS6: 2014/ | AT6: 2015/ | AU6: 2016/ | AY6: SS Onshore - GTTW
A7: Date | C7: Asset life | D7: 1978 | E7: 1979 | F7: 1980 | G7: 1981 | H7: 1982 | I7: 1983 | J7: 1984 | K7: 1985 | L7: 1986 | M7: 1987 | N7: 1988 | O7: 1989 | P7: 1990 | Q7: 1992 | R7: 1993 | S7: 1994 | T7: 1995 | U7: 1996 | V7: 1997 | W7: 1998 | X7: 1999 | Y7: 2000 | Z7: 2001 | AA7: 2002 | AB7: 2003 | AC7: 2004 | AD7: 2005 | AE7: 2006 | AF7: 2007 | AG7: 2007 | AH7: 2008 | AI7: 2008 | AJ7: 2009 | AK7: 2009 | AL7: 2010 | AM7: 2010 | AN7: 2011 | AO7: 2011 | AP7: 2012 | AQ7: 2013 | AR7: 2014 | AS7: 2015 | AT7: 2016 | AU7: 2017 | AV7: 2018 | AW7: Total | AY7: Inch - Buildings
B8: Onshore
A9: @ Sept 06 | B9: Historic cost, nominal to 2010, 10/11 prices thereafter | AY9: Inch - Equipment
A10: Prior to reclassifications | B10: Transmission business unit - direct | AY10: Inch - GTTW
B11: TBU Onshore - Buildings | C11: 40 | N11: 0.0622159 | V11: 0.60948063 | AE11: =0.68627706 -> 0.68627706 | AW11: =SUM(D11:AU11) -> 1.35797359 | AY11: Inch - Land
B12: TBU Onshore - Compressor stations | C12: See Col AU | AB12: 0.88324 | AW12: 0.88324 | AY12: IC1 - GTTW
B13: TBU Onshore - Equipment | C13: 5 | N13: 0.92025604 | P13: 0.13520298 | Q13: 1.42382021 | T13: 2.75110913 | U13: 0.57627344 | V13: 0.95652668 | W13: 0.6422494 | X13: 0.32893183 | Y13: 7.58956152 | Z13: 2.06998329 | AA13: 0.49524114 | AB13: 3.47830617 | AC13: 1.19018624 | AD13: 7.79907559 | AE13: =1.41945849 -> 1.41945849 | AW13: 31.77618215
B14: TBU Onshore - GTTW | C14: See Col AU | AA14: 5.16397711 | AB14: 375.8982153 | AC14: 5.71587361 | AD14: 1.46904611 | AE14: =3.34370512 -> 3.34370512 | AW14: 391.5908172
B15: TBU Onshore - Land | C15: 40 | T15: 1.12128921 | AW15: 1.12128921
B16: TBU Onshore - Pipelines/AGIs | C16: See Col AU | D16: 20.83272967 | E16: 2.56020209 | F16: 6.42535795 | G16: 0.4631882 | H16: 56.20011136 | I16: 16.64240309 | J16: 11.15107242 | K16: 3.21999869 | L16: 32.42221097 | M16: 11.72365212 | N16: 8.2579489 | O16: 1.55686764 | P16: 0.02691591 | Q16: 4.156961 | R16: 1.01579 | S16: 1.59326469 | T16: 7.5157872 | U16: 0.01176531 | V16: 3.82358495 | W16: 11.70250183 | X16: 17.98874403 | Y16: 84.70694089 | Z16: 50.20429185 | AA16: 3.06934333 | AB16: 6.2578228 | AC16: 18.14476814 | AD16: 8.62585307 | AE16: =3.88200391+PC1_inputs!C22 -> 3.79699191 | AW16: 394.09707
B17: ITO setup | C17: 15 | AW17: 0
B18: Sum: | D18: =SUM(D11:D17) -> 20.83272967 | E18: =SUM(E11:E17) -> 2.56020209 | F18: 6.42535795 | G18: 0.4631882 | H18: 56.20011136 | I18: 16.64240309 | J18: 11.15107242 | K18: 3.21999869 | L18: 32.42221097 | M18: 11.72365212 | N18: 9.24042084 | O18: 1.55686764 | P18: 0.16211889 | Q18: 5.58078121 | R18: 1.01579 | S18: 1.59326469 | T18: 11.38818554 | U18: 0.58803875 | V18: 5.38959226 | W18: 12.34475123 | X18: 18.31767586 | Y18: 92.29650241 | Z18: 52.27427514 | AA18: 8.72856158 | AB18: 386.5175843 | AC18: 25.05082799 | AD18: 17.89397477 | AE18: 9.24643258 | AW18: 820.8265722
B20: Transmission business unit - shared
B21: SS Onshore - Buildings | C21: 40 | M21: 0.1047487458 | T21: 0.0344424384 | Y21: 5.496153581 | Z21: 2.761861043 | AA21: 4.730079569 | AB21: 0.3629364711 | AC21: 0.1427909848 | AD21: 0.1589409215 | AE21: =0.1269112844 -> 0.1269112844 | AW21: =SUM(D21:AU21) -> 13.91886504
B22: SS Onshore - Compressor stations | C22: 25 | AD22: =(SUMIF(PC1_inputs!$F$18:$F$56,$B22,PC1_inputs!D$18:D$56)) -> 0 | AW22: 0
B23: SS Onshore - Equipment | C23: 5 | T23: 0.4248502515 | U23: 0.1293659355 | V23: 0.2756449485 | W23: 0.130458237 | X23: 0.218638554 | Y23: 0.716095221 | Z23: 0.4900541175 | AA23: 0.4917927045 | AB23: 0.3821899485 | AC23: 0.0950411115 | AD23: 0.6246621915 | AE23: =0.0794117355 -> 0.0794117355 | AW23: 4.058204957
B24: SS Onshore - GTTW | C24: 100 | AW24: 0
B25: SS Onshore - Land | C25: 40 | S25: 0.0627625256 | T25: 0.1700106774 | W25: 0.0109032394 | AW25: 0.2436764424
B26: Pipelines/Above Ground Installations - S | C26: 50 | AW26: 0
B27: Sum: | D27: =SUM(D21:D26) -> 0 | E27: 0 | F27: 0 | G27: 0 | H27: 0 | I27: 0 | J27: 0 | K27: 0 | L27: 0 | M27: 0.1047487458 | N27: 0 | O27: 0 | P27: 0 | Q27: 0 | R27: 0 | S27: 0.0627625256 | T27: 0.6293033673 | U27: 0.1293659355 | V27: 0.2756449485 | W27: 0.1413614764 | X27: 0.218638554 | Y27: 6.212248802 | Z27: 3.25191516 | AA27: 5.221872273 | AB27: 0.7451264196 | AC27: 0.2378320963 | AD27: 0.783603113 | AE27: 0.2063230199 | AW27: 18.22074644
B29: Total historic cost | D29: =D18+D27 -> 20.83272967 | E29: 2.56020209 | F29: 6.42535795 | G29: 0.4631882 | H29: 56.20011136 | I29: 16.64240309 | J29: 11.15107242 | K29: 3.21999869 | L29: 32.42221097 | M29: 11.82840087 | N29: 9.24042084 | O29: 1.55686764 | P29: 0.16211889 | Q29: 5.58078121 | R29: 1.01579 | S29: 1.656027216 | T29: 12.01748891 | U29: 0.7174046855 | V29: 5.665237209 | W29: 12.48611271 | X29: 18.53631441 | Y29: 98.50875121 | Z29: 55.5261903 | AA29: 13.95043385 | AB29: 387.2627107 | AC29: 25.28866009 | AD29: 18.67757788 | AE29: 9.4527556 | AW29: =SUM(D29:AU29) -> 839.0473186
A31: @ Sept 06 | B31: Reclassifications, nominal to 2010, 10/11 prices thereafter | AY31: Inch - Equipment
A32: . | B32: Transmission business unit - direct | AY32: Inch - GTTW
B33: TBU Onshore - Buildings | C33: 40 | AW33: =SUM(D33:AU33) -> 0 | AY33: Inch - Land
B34: TBU Onshore - Compressor stations | C34: See Col AU | AW34: 0 | AY34: IC1 - GTTW
B35: TBU Onshore - Equipment | C35: 5 | AW35: 0
B36: TBU Onshore - GTTW | C36: See Col AU | AW36: 0
B37: TBU Onshore - Land | C37: 40 | AW37: 0
B38: TBU Onshore - Pipelines/AGIs | C38: See Col AU | AW38: 0
B39: ITO setup | C39: 15 | AW39: 0
B40: Sum: | D40: =SUM(D33:D39) -> 0 | E40: 0 | F40: 0 | G40: 0 | H40: 0 | I40: 0 | J40: 0 | K40: 0 | L40: 0 | M40: 0 | N40: 0 | O40: 0 | P40: 0 | Q40: 0 | R40: 0 | S40: 0 | T40: 0 | U40: 0 | V40: 0 | W40: 0 | X40: 0 | Y40: 0 | Z40: 0 | AA40: 0 | AB40: 0 | AC40: 0 | AD40: 0 | AE40: =SUM(AE33:AE39) -> 0 | AW40: 0
B42: Transmission business unit - shared
B43: SS Onshore - Buildings | C43: 40 | AW43: =SUM(D43:AU43) -> 0
B44: SS Onshore - Compressor stations | C44: 25 | AW44: 0
B45: SS Onshore - Equipment | C45: 5 | AW45: 0
B46: SS Onshore - GTTW | C46: 100 | AW46: 0
B47: SS Onshore - Land | C47: 40 | AW47: 0
B48: Pipelines/Above Ground Installations - S | C48: 50 | AW48: 0
B49: Sum: | D49: =SUM(D43:D48) -> 0 | E49: 0 | F49: 0 | G49: 0 | H49: 0 | I49: 0 | J49: 0 | K49: 0 | L49: 0 | M49: 0 | N49: 0 | O49: 0 | P49: 0 | Q49: 0 | R49: 0 | S49: 0 | T49: 0 | U49: 0 | V49: 0 | W49: 0 | X49: 0 | Y49: 0 | Z49: 0 | AA49: 0 | AB49: 0 | AC49: 0 | AD49: 0 | AE49: 0 | AW49: 0
B51: Total historic cost | D51: =D40+D49 -> 0 | E51: 0 | F51: 0 | G51: 0 | H51: 0 | I51: 0 | J51: 0 | K51: 0 | L51: 0 | M51: 0 | N51: 0 | O51: 0 | P51: 0 | Q51: 0 | R51: 0 | S51: 0 | T51: 0 | U51: 0 | V51: 0 | W51: 0 | X51: 0 | Y51: 0 | Z51: 0 | AA51: 0 | AB51: 0 | AC51: 0 | AD51: 0 | AE51: 0 | AW51: =SUM(D51:AU51) -> 0
A53: @ Sept 06 | B53: Adjustments related to unused accruals & work, during PC2 or later, on assets that were capitalised pre PC2 (nominal to 2010, 10/11 prices thereafter) | AY53: Inch - Equipment
B54: Transmission business unit - direct | AY54: Inch - GTTW
B55: TBU Onshore - Buildings | C55: 40 | AW55: =SUM(D55:AU55) -> 0 | AY55: Inch - Land
B56: TBU Onshore - Compressor stations | C56: See Col AU | AW56: 0 | AY56: IC1 - GTTW
B57: TBU Onshore - Equipment | C57: 5 | AW57: 0
B58: TBU Onshore - GTTW | C58: See Col AU | AW58: 0
B59: TBU Onshore - Land | C59: 40 | AW59: 0
B60: TBU Onshore - Pipelines/AGIs | C60: See Col AU | AW60: 0
B61: ITO setup | C61: 15 | AW61: 0
B62: Sum: | D62: =SUM(D55:D61) -> 0 | E62: 0 | F62: 0 | G62: 0 | H62: 0 | I62: 0 | J62: 0 | K62: 0 | L62: 0 | M62: 0 | N62: 0 | O62: 0 | P62: 0 | Q62: 0 | R62: 0 | S62: 0 | T62: 0 | U62: 0 | V62: 0 | W62: 0 | X62: 0 | Y62: 0 | Z62: 0 | AA62: 0 | AB62: 0 | AC62: 0 | AD62: 0 | AE62: =SUM(AE55:AE61) -> 0 | AW62: 0
B64: Transmission business unit - shared
B65: SS Onshore - Buildings | C65: 40 | AW65: =SUM(D65:AU65) -> 0
B66: SS Onshore - Compressor stations | C66: 25 | AW66: 0
B67: SS Onshore - Equipment | C67: 5 | AW67: 0
B68: SS Onshore - GTTW | C68: 100 | AW68: 0
B69: SS Onshore - Land | C69: 40 | AW69: 0
B70: Pipelines/Above Ground Installations - S | C70: 50 | AW70: 0
B71: Sum: | D71: =SUM(D65:D70) -> 0 | E71: 0 | F71: 0 | G71: 0 | H71: 0 | I71: 0 | J71: 0 | K71: 0 | L71: 0 | M71: 0 | N71: 0 | O71: 0 | P71: 0 | Q71: 0 | R71: 0 | S71: 0 | T71: 0 | U71: 0 | V71: 0 | W71: 0 | X71: 0 | Y71: 0 | Z71: 0 | AA71: 0 | AB71: 0 | AC71: 0 | AD71: 0 | AE71: 0 | AW71: 0
B73: Total historic cost | D73: =D62+D71 -> 0 | E73: 0 | F73: 0 | G73: 0 | H73: 0 | I73: 0 | J73: 0 | K73: 0 | L73: 0 | M73: 0 | N73: 0 | O73: 0 | P73: 0 | Q73: 0 | R73: 0 | S73: 0 | T73: 0 | U73: 0 | V73: 0 | W73: 0 | X73: 0 | Y73: 0 | Z73: 0 | AA73: 0 | AB73: 0 | AC73: 0 | AD73: 0 | AE73: 0 | AW73: =SUM(D73:AU73) -> 0
A75: @ Sept 06 | B75: Historic cost, nominal to 2010, 10/11 prices thereafter | AY75: Inch - Equipment
A76: Following reclassifications | B76: Transmission business unit - direct | AY76: Inch - GTTW
B77: TBU Onshore - Buildings | C77: 40 | D77: =D11+D33+D55 -> 0 | E77: =E11+E33+E55 -> 0 | F77: 0 | G77: 0 | H77: 0 | I77: 0 | J77: 0 | K77: 0 | L77: 0 | M77: 0 | N77: 0.0622159 | O77: 0 | P77: 0 | Q77: 0 | R77: 0 | S77: 0 | T77: 0 | U77: 0 | V77: 0.60948063 | W77: 0 | X77: 0 | Y77: 0 | Z77: 0 | AA77: 0 | AB77: 0 | AC77: 0 | AD77: 0 | AE77: 0.68627706 | AW77: =SUM(D77:AU77) -> 1.35797359 | AY77: Inch - Land
B78: TBU Onshore - Compressor stations | C78: See Col AU | D78: 0 | E78: =E12+E34+E56 -> 0 | F78: 0 | G78: 0 | H78: 0 | I78: 0 | J78: 0 | K78: 0 | L78: 0 | M78: 0 | N78: 0 | O78: 0 | P78: 0 | Q78: 0 | R78: 0 | S78: 0 | T78: 0 | U78: 0 | V78: 0 | W78: 0 | X78: 0 | Y78: 0 | Z78: 0 | AA78: 0 | AB78: 0.88324 | AC78: 0 | AD78: 0 | AE78: 0 | AW78: 0.88324 | AY78: IC1 - GTTW
B79: TBU Onshore - Equipment | C79: 5 | D79: 0 | E79: 0 | F79: 0 | G79: 0 | H79: 0 | I79: 0 | J79: 0 | K79: 0 | L79: 0 | M79: 0 | N79: 0.92025604 | O79: 0 | P79: 0.13520298 | Q79: 1.42382021 | R79: 0 | S79: 0 | T79: 2.75110913 | U79: 0.57627344 | V79: 0.95652668 | W79: 0.6422494 | X79: 0.32893183 | Y79: 7.58956152 | Z79: 2.06998329 | AA79: 0.49524114 | AB79: 3.47830617 | AC79: 1.19018624 | AD79: 7.79907559 | AE79: 1.41945849 | AW79: 31.77618215
B80: TBU Onshore - GTTW | C80: See Col AU | D80: 0 | E80: 0 | F80: 0 | G80: 0 | H80: 0 | I80: 0 | J80: 0 | K80: 0 | L80: 0 | M80: 0 | N80: 0 | O80: 0 | P80: 0 | Q80: 0 | R80: 0 | S80: 0 | T80: 0 | U80: 0 | V80: 0 | W80: 0 | X80: 0 | Y80: 0 | Z80: 0 | AA80: 5.16397711 | AB80: 375.8982153 | AC80: 5.71587361 | AD80: 1.46904611 | AE80: 3.34370512 | AW80: 391.5908172
B81: TBU Onshore - Land | C81: 40 | D81: 0 | E81: 0 | F81: 0 | G81: 0 | H81: 0 | I81: 0 | J81: 0 | K81: 0 | L81: 0 | M81: 0 | N81: 0 | O81: 0 | P81: 0 | Q81: 0 | R81: 0 | S81: 0 | T81: 1.12128921 | U81: 0 | V81: 0 | W81: 0 | X81: 0 | Y81: 0 | Z81: 0 | AA81: 0 | AB81: 0 | AC81: 0 | AD81: 0 | AE81: 0 | AW81: 1.12128921
B82: TBU Onshore - Pipelines/AGIs | C82: See Col AU | D82: 20.83272967 | E82: 2.56020209 | F82: 6.42535795 | G82: 0.4631882 | H82: 56.20011136 | I82: 16.64240309 | J82: 11.15107242 | K82: 3.21999869 | L82: 32.42221097 | M82: 11.72365212 | N82: 8.2579489 | O82: 1.55686764 | P82: 0.02691591 | Q82: 4.156961 | R82: 1.01579 | S82: 1.59326469 | T82: 7.5157872 | U82: 0.01176531 | V82: 3.82358495 | W82: 11.70250183 | X82: 17.98874403 | Y82: 84.70694089 | Z82: 50.20429185 | AA82: 3.06934333 | AB82: 6.2578228 | AC82: 18.14476814 | AD82: 8.62585307 | AE82: 3.79699191 | AW82: 394.09707
B83: ITO setup | C83: 15 | D83: 0 | E83: 0 | F83: 0 | G83: 0 | H83: 0 | I83: 0 | J83: 0 | K83: 0 | L83: 0 | M83: 0 | N83: 0 | O83: 0 | P83: 0 | Q83: =Q17+Q39+Q61 -> 0 | R83: 0 | S83: 0 | T83: 0 | U83: 0 | V83: 0 | W83: 0 | X83: 0 | Y83: 0 | Z83: 0 | AA83: 0 | AB83: 0 | AC83: 0 | AD83: 0 | AE83: 0 | AW83: 0
B84: Sum: | D84: =SUM(D77:D83) -> 20.83272967 | E84: 2.56020209 | F84: 6.42535795 | G84: 0.4631882 | H84: 56.20011136 | I84: 16.64240309 | J84: 11.15107242 | K84: 3.21999869 | L84: 32.42221097 | M84: 11.72365212 | N84: 9.24042084 | O84: 1.55686764 | P84: 0.16211889 | Q84: 5.58078121 | R84: 1.01579 | S84: 1.59326469 | T84: 11.38818554 | U84: 0.58803875 | V84: 5.38959226 | W84: 12.34475123 | X84: 18.31767586 | Y84: 92.29650241 | Z84: 52.27427514 | AA84: 8.72856158 | AB84: 386.5175843 | AC84: 25.05082799 | AD84: 17.89397477 | AE84: =SUM(AE77:AE83) -> 9.24643258 | AW84: 820.8265722
B86: Transmission business unit - shared
B87: SS Onshore - Buildings | C87: 40 | D87: =D21+D43+D65 -> 0 | E87: =E21+E43+E65 -> 0 | F87: 0 | G87: 0 | H87: 0 | I87: 0 | J87: 0 | K87: 0 | L87: 0 | M87: 0.1047487458 | N87: 0 | O87: 0 | P87: 0 | Q87: 0 | R87: 0 | S87: 0 | T87: 0.0344424384 | U87: 0 | V87: 0 | W87: 0 | X87: 0 | Y87: 5.496153581 | Z87: 2.761861043 | AA87: 4.730079569 | AB87: 0.3629364711 | AC87: 0.1427909848 | AD87: 0.1589409215 | AE87: 0.1269112844 | AW87: =SUM(D87:AU87) -> 13.91886504
B88: SS Onshore - Compressor stations | C88: 25 | D88: 0 | E88: =E22+E44+E66 -> 0 | F88: 0 | G88: 0 | H88: 0 | I88: 0 | J88: 0 | K88: 0 | L88: 0 | M88: 0 | N88: 0 | O88: 0 | P88: 0 | Q88: 0 | R88: 0 | S88: 0 | T88: 0 | U88: 0 | V88: 0 | W88: 0 | X88: 0 | Y88: 0 | Z88: 0 | AA88: 0 | AB88: 0 | AC88: 0 | AD88: 0 | AE88: 0 | AW88: 0
B89: SS Onshore - Equipment | C89: 5 | D89: 0 | E89: =E23+E45+E67 -> 0 | F89: 0 | G89: 0 | H89: 0 | I89: 0 | J89: 0 | K89: 0 | L89: 0 | M89: 0 | N89: 0 | O89: 0 | P89: 0 | Q89: 0 | R89: 0 | S89: 0 | T89: 0.4248502515 | U89: 0.1293659355 | V89: 0.2756449485 | W89: 0.130458237 | X89: 0.218638554 | Y89: 0.716095221 | Z89: 0.4900541175 | AA89: 0.4917927045 | AB89: 0.3821899485 | AC89: 0.0950411115 | AD89: 0.6246621915 | AE89: 0.0794117355 | AW89: 4.058204957
B90: SS Onshore - GTTW | C90: 100 | D90: 0 | E90: =E24+E46+E68 -> 0 | F90: 0 | G90: 0 | H90: 0 | I90: 0 | J90: 0 | K90: 0 | L90: 0 | M90: 0 | N90: 0 | O90: 0 | P90: 0 | Q90: 0 | R90: 0 | S90: 0 | T90: 0 | U90: 0 | V90: 0 | W90: 0 | X90: 0 | Y90: 0 | Z90: 0 | AA90: 0 | AB90: 0 | AC90: 0 | AD90: 0 | AE90: 0 | AW90: 0
B91: SS Onshore - Land | C91: 40 | D91: 0 | E91: =E25+E47+E69 -> 0 | F91: 0 | G91: 0 | H91: 0 | I91: 0 | J91: 0 | K91: 0 | L91: 0 | M91: 0 | N91: 0 | O91: 0 | P91: 0 | Q91: 0 | R91: 0 | S91: 0.0627625256 | T91: 0.1700106774 | U91: 0 | V91: 0 | W91: 0.0109032394 | X91: 0 | Y91: 0 | Z91: 0 | AA91: 0 | AB91: 0 | AC91: 0 | AD91: 0 | AE91: 0 | AW91: 0.2436764424
B92: Pipelines/Above Ground Installations - S | C92: 50 | D92: 0 | E92: =E26+E48+E70 -> 0 | F92: 0 | G92: 0 | H92: 0 | I92: 0 | J92: 0 | K92: 0 | L92: 0 | M92: 0 | N92: 0 | O92: 0 | P92: 0 | Q92: 0 | R92: 0 | S92: 0 | T92: 0 | U92: 0 | V92: 0 | W92: 0 | X92: 0 | Y92: 0 | Z92: 0 | AA92: 0 | AB92: 0 | AC92: 0 | AD92: 0 | AE92: 0 | AW92: 0
B93: Sum: | D93: =SUM(D87:D92) -> 0 | E93: 0 | F93: 0 | G93: 0 | H93: 0 | I93: 0 | J93: 0 | K93: 0 | L93: 0 | M93: 0.1047487458 | N93: 0 | O93: 0 | P93: 0 | Q93: 0 | R93: 0 | S93: 0.0627625256 | T93: 0.6293033673 | U93: 0.1293659355 | V93: 0.2756449485 | W93: 0.1413614764 | X93: 0.218638554 | Y93: 6.212248802 | Z93: 3.25191516 | AA93: 5.221872273 | AB93: 0.7451264196 | AC93: 0.2378320963 | AD93: 0.783603113 | AE93: 0.2063230199 | AW93: 18.22074644
B95: Total historic cost | D95: =D84+D93 -> 20.83272967 | E95: 2.56020209 | F95: 6.42535795 | G95: 0.4631882 | H95: 56.20011136 | I95: 16.64240309 | J95: 11.15107242 | K95: 3.21999869 | L95: 32.42221097 | M95: 11.82840087 | N95: 9.24042084 | O95: 1.55686764 | P95: 0.16211889 | Q95: 5.58078121 | R95: 1.01579 | S95: 1.656027216 | T95: 12.01748891 | U95: 0.7174046855 | V95: 5.665237209 | W95: 12.48611271 | X95: 18.53631441 | Y95: 98.50875121 | Z95: 55.5261903 | AA95: 13.95043385 | AB95: 387.2627107 | AC95: 25.28866009 | AD95: 18.67757788 | AE95: 9.4527556 | AW95: =SUM(D95:AU95) -> 839.0473186
B97: Indexed gross asset value in 2010/2011 prices
B98: =B76 -> Transmission business unit - direct
B99: TBU Onshore - Buildings | C99: =C77 -> 40 | D99: =D77*Indexation!B$4 -> 0 | E99: =E77*Indexation!C$4 -> 0 | F99: =F77*Indexation!D$4 -> 0 | G99: =G77*Indexation!E$4 -> 0 | H99: =H77*Indexation!F$4 -> 0 | I99: =I77*Indexation!G$4 -> 0 | J99: =J77*Indexation!H$4 -> 0 | K99: =K77*Indexation!I$4 -> 0 | L99: =L77*Indexation!J$4 -> 0 | M99: =M77*Indexation!K$4 -> 0 | N99: =N77*Indexation!L$4 -> 0.1091530963 | O99: =O77*Indexation!M$4 -> 0 | P99: =P77*Indexation!N$4 -> 0 | Q99: =Q77*Indexation!P$4 -> 0 | R99: =R77*Indexation!Q$4 -> 0 | S99: =S77*Indexation!R$4 -> 0 | T99: =T77*Indexation!S$4 -> 0 | U99: =U77*Indexation!T$4 -> 0 | V99: =V77*Indexation!U$4 -> 0.8514794383 | W99: =W77*Indexation!V$4 -> 0 | X99: =X77*Indexation!W$4 -> 0 | Y99: =Y77*Indexation!X$4 -> 0 | Z99: =Z77*Indexation!Y$4 -> 0 | AA99: =AA77*Indexation!Z$4 -> 0 | AB99: =AB77*Indexation!AA$4 -> 0 | AC99: =AC77*Indexation!AB$4 -> 0 | AD99: =AD77*Indexation!AC$4 -> 0 | AE99: =AE77*Indexation!AD$4 -> 0.7122273902 | AW99: =SUM(D99:AU99) -> 1.672859925
B100: TBU Onshore - Compressor stations | C100: See Col AU | D100: =D78*Indexation!B$4 -> 0 | E100: =E78*Indexation!C$4 -> 0 | F100: =F78*Indexation!D$4 -> 0 | G100: =G78*Indexation!E$4 -> 0 | H100: =H78*Indexation!F$4 -> 0 | I100: =I78*Indexation!G$4 -> 0 | J100: =J78*Indexation!H$4 -> 0 | K100: =K78*Indexation!I$4 -> 0 | L100: =L78*Indexation!J$4 -> 0 | M100: =M78*Indexation!K$4 -> 0 | N100: =N78*Indexation!L$4 -> 0 | O100: =O78*Indexation!M$4 -> 0 | P100: =P78*Indexation!N$4 -> 0 | Q100: =Q78*Indexation!P$4 -> 0 | R100: =R78*Indexation!Q$4 -> 0 | S100: =S78*Indexation!R$4 -> 0 | T100: =T78*Indexation!S$4 -> 0 | U100: =U78*Indexation!T$4 -> 0 | V100: =V78*Indexation!U$4 -> 0 | W100: =W78*Indexation!V$4 -> 0 | X100: =X78*Indexation!W$4 -> 0 | Y100: =Y78*Indexation!X$4 -> 0 | Z100: =Z78*Indexation!Y$4 -> 0 | AA100: =AA78*Indexation!Z$4 -> 0 | AB100: =AB78*Indexation!AA$4 -> 0.9842261314 | AC100: =AC78*Indexation!AB$4 -> 0 | AD100: =AD78*Indexation!AC$4 -> 0 | AE100: =AE78*Indexation!AD$4 -> 0 | AW100: 0.9842261314
B101: TBU Onshore - Equipment | C101: 5 | D101: =D79*Indexation!B$4 -> 0 | E101: =E79*Indexation!C$4 -> 0 | F101: =F79*Indexation!D$4 -> 0 | G101: =G79*Indexation!E$4 -> 0 | H101: =H79*Indexation!F$4 -> 0 | I101: =I79*Indexation!G$4 -> 0 | J101: =J79*Indexation!H$4 -> 0 | K101: =K79*Indexation!I$4 -> 0 | L101: =L79*Indexation!J$4 -> 0 | M101: =M79*Indexation!K$4 -> 0 | N101: =N79*Indexation!L$4 -> 1.614519699 | O101: =O79*Indexation!M$4 -> 0 | P101: =P79*Indexation!N$4 -> 0.2205804699 | Q101: =Q79*Indexation!P$4 -> 2.185340049 | R101: =R79*Indexation!Q$4 -> 0 | S101: =S79*Indexation!R$4 -> 0 | T101: =T79*Indexation!S$4 -> 3.963527042 | U101: =U79*Indexation!T$4 -> 0.8171633933 | V101: =V79*Indexation!U$4 -> 1.336322699 | W101: =W79*Indexation!V$4 -> 0.876229777 | X101: =X79*Indexation!W$4 -> 0.4416990791 | Y101: =Y79*Indexation!X$4 -> 9.65102321 | Z101: =Z79*Indexation!Y$4 -> 2.509273649 | AA101: =AA79*Indexation!Z$4 -> 0.5739396338 | AB101: =AB79*Indexation!AA$4 -> 3.876001795 | AC101: =AC79*Indexation!AB$4 -> 1.29644905 | AD101: =AD79*Indexation!AC$4 -> 8.312521134 | AE101: =AE79*Indexation!AD$4 -> 1.473132755 | AW101: 39.14772343
B102: TBU Onshore - GTTW | C102: See Col AU | D102: =D80*Indexation!B$4 -> 0 | E102: =E80*Indexation!C$4 -> 0 | F102: =F80*Indexation!D$4 -> 0 | G102: =G80*Indexation!E$4 -> 0 | H102: =H80*Indexation!F$4 -> 0 | I102: =I80*Indexation!G$4 -> 0 | J102: =J80*Indexation!H$4 -> 0 | K102: =K80*Indexation!I$4 -> 0 | L102: =L80*Indexation!J$4 -> 0 | M102: =M80*Indexation!K$4 -> 0 | N102: =N80*Indexation!L$4 -> 0 | O102: =O80*Indexation!M$4 -> 0 | P102: =P80*Indexation!N$4 -> 0 | Q102: =Q80*Indexation!P$4 -> 0 | R102: =R80*Indexation!Q$4 -> 0 | S102: =S80*Indexation!R$4 -> 0 | T102: =T80*Indexation!S$4 -> 0 | U102: =U80*Indexation!T$4 -> 0 | V102: =V80*Indexation!U$4 -> 0 | W102: =W80*Indexation!V$4 -> 0 | X102: =X80*Indexation!W$4 -> 0 | Y102: =Y80*Indexation!X$4 -> 0 | Z102: =Z80*Indexation!Y$4 -> 0 | AA102: =AA80*Indexation!Z$4 -> 5.984581837 | AB102: =AB80*Indexation!AA$4 -> 418.8769148 | AC102: =AC80*Indexation!AB$4 -> 6.226201127 | AD102: =AD80*Indexation!AC$4 -> 1.565759518 | AE102: =AE80*Indexation!AD$4 -> 3.470141303 | AW102: 436.1235986
B103: TBU Onshore - Land | C103: 40 | D103: =D81*Indexation!B$4 -> 0 | E103: =E81*Indexation!C$4 -> 0 | F103: =F81*Indexation!D$4 -> 0 | G103: =G81*Indexation!E$4 -> 0 | H103: =H81*Indexation!F$4 -> 0 | I103: =I81*Indexation!G$4 -> 0 | J103: =J81*Indexation!H$4 -> 0 | K103: =K81*Indexation!I$4 -> 0 | L103: =L81*Indexation!J$4 -> 0 | M103: =M81*Indexation!K$4 -> 0 | N103: =N81*Indexation!L$4 -> 0 | O103: =O81*Indexation!M$4 -> 0 | P103: =P81*Indexation!N$4 -> 0 | Q103: =Q81*Indexation!P$4 -> 0 | R103: =R81*Indexation!Q$4 -> 0 | S103: =S81*Indexation!R$4 -> 0 | T103: =T81*Indexation!S$4 -> 1.615443043 | U103: =U81*Indexation!T$4 -> 0 | V103: =V81*Indexation!U$4 -> 0 | W103: =W81*Indexation!V$4 -> 0 | X103: =X81*Indexation!W$4 -> 0 | Y103: =Y81*Indexation!X$4 -> 0 | Z103: =Z81*Indexation!Y$4 -> 0 | AA103: =AA81*Indexation!Z$4 -> 0 | AB103: =AB81*Indexation!AA$4 -> 0 | AC103: =AC81*Indexation!AB$4 -> 0 | AD103: =AD81*Indexation!AC$4 -> 0 | AE103: =AE81*Indexation!AD$4 -> 0 | AW103: 1.615443043
B104: TBU Onshore - Pipelines/AGIs | C104: See Col AU | D104: =D82*Indexation!B$4 -> 95.38687742 | E104: =E82*Indexation!C$4 -> 10.35548096 | F104: =F82*Indexation!D$4 -> 21.98750124 | G104: =G82*Indexation!E$4 -> 1.316465706 | H104: =H82*Indexation!F$4 -> 136.4056453 | I104: =I82*Indexation!G$4 -> 36.58829159 | J104: =J82*Indexation!H$4 -> 22.57422793 | K104: =K82*Indexation!I$4 -> 6.184596263 | L104: =L82*Indexation!J$4 -> 59.93530759 | M104: =M82*Indexation!K$4 -> 21.00019545 | N104: =N82*Indexation!L$4 -> 14.48794748 | O104: =O82*Indexation!M$4 -> 2.626352555 | P104: =P82*Indexation!N$4 -> 0.04391267172 | Q104: =Q82*Indexation!P$4 -> 6.380281226 | R104: =R82*Indexation!Q$4 -> 1.536037302 | S104: =S82*Indexation!R$4 -> 2.352804294 | T104: =T82*Indexation!S$4 -> 10.82800587 | U104: =U82*Indexation!T$4 -> 0.01668336587 | V104: =V82*Indexation!U$4 -> 5.341767737 | W104: =W82*Indexation!V$4 -> 15.96588579 | X104: =X82*Indexation!W$4 -> 24.15580053 | Y104: =Y82*Indexation!X$4 -> 107.7148726 | Z104: =Z82*Indexation!Y$4 -> 60.8586104 | AA104: =AA82*Indexation!Z$4 -> 3.55709097 | AB104: =AB82*Indexation!AA$4 -> 6.973317247 | AC104: =AC82*Indexation!AB$4 -> 19.7647785 | AD104: =AD82*Indexation!AC$4 -> 9.19372881 | AE104: =AE82*Indexation!AD$4 -> 3.940568316 | AW104: 707.4730351
B105: ITO setup | C105: 15
B106: Sum: | D106: =SUM(D99:D105) -> 95.38687742 | E106: 10.35548096 | F106: 21.98750124 | G106: 1.316465706 | H106: 136.4056453 | I106: 36.58829159 | J106: 22.57422793 | K106: 6.184596263 | L106: 59.93530759 | M106: 21.00019545 | N106: 16.21162027 | O106: 2.626352555 | P106: 0.2644931417 | Q106: 8.565621275 | R106: 1.536037302 | S106: 2.352804294 | T106: 16.40697595 | U106: 0.8338467592 | V106: 7.529569873 | W106: 16.84211557 | X106: 24.59749961 | Y106: 117.3658959 | Z106: 63.36788405 | AA106: 10.11561244 | AB106: 430.71046 | AC106: 27.28742868 | AD106: 19.07200946 | AE106: =SUM(AE99:AE105) -> 9.596069764 | AW106: 1187.016886
B108: =B86 -> Transmission business unit - shared
B109: SS Onshore - Buildings | C109: =C87 -> 40 | D109: =D87*Indexation!B$4 -> 0 | E109: =E87*Indexation!C$4 -> 0 | F109: =F87*Indexation!D$4 -> 0 | G109: =G87*Indexation!E$4 -> 0 | H109: =H87*Indexation!F$4 -> 0 | I109: =I87*Indexation!G$4 -> 0 | J109: =J87*Indexation!H$4 -> 0 | K109: =K87*Indexation!I$4 -> 0 | L109: =L87*Indexation!J$4 -> 0 | M109: =M87*Indexation!K$4 -> 0.18763301 | N109: =N87*Indexation!L$4 -> 0 | O109: =O87*Indexation!M$4 -> 0 | P109: =P87*Indexation!N$4 -> 0 | Q109: =Q87*Indexation!P$4 -> 0 | R109: =R87*Indexation!Q$4 -> 0 | S109: =S87*Indexation!R$4 -> 0 | T109: =T87*Indexation!S$4 -> 0.04962127256 | U109: =U87*Indexation!T$4 -> 0 | V109: =V87*Indexation!U$4 -> 0 | W109: =W87*Indexation!V$4 -> 0 | X109: =X87*Indexation!W$4 -> 0 | Y109: =Y87*Indexation!X$4 -> 6.989007946 | Z109: =Z87*Indexation!Y$4 -> 3.347981198 | AA109: =AA87*Indexation!Z$4 -> 5.48173388 | AB109: =AB87*Indexation!AA$4 -> 0.4044331766 | AC109: =AC87*Indexation!AB$4 -> 0.1555397217 | AD109: =AD87*Indexation!AC$4 -> 0.1694046626 | AE109: =AE87*Indexation!AD$4 -> 0.1317102059 | AW109: =SUM(D109:AU109) -> 16.91706507
B110: SS Onshore - Compressor stations | C110: 25 | D110: =D88*Indexation!B$4 -> 0 | E110: =E88*Indexation!C$4 -> 0 | F110: =F88*Indexation!D$4 -> 0 | G110: =G88*Indexation!E$4 -> 0 | H110: =H88*Indexation!F$4 -> 0 | I110: =I88*Indexation!G$4 -> 0 | J110: =J88*Indexation!H$4 -> 0 | K110: =K88*Indexation!I$4 -> 0 | L110: =L88*Indexation!J$4 -> 0 | M110: =M88*Indexation!K$4 -> 0 | N110: =N88*Indexation!L$4 -> 0 | O110: =O88*Indexation!M$4 -> 0 | P110: =P88*Indexation!N$4 -> 0 | Q110: =Q88*Indexation!P$4 -> 0 | R110: =R88*Indexation!Q$4 -> 0 | S110: =S88*Indexation!R$4 -> 0 | T110: =T88*Indexation!S$4 -> 0 | U110: =U88*Indexation!T$4 -> 0 | V110: =V88*Indexation!U$4 -> 0 | W110: =W88*Indexation!V$4 -> 0 | X110: =X88*Indexation!W$4 -> 0 | Y110: =Y88*Indexation!X$4 -> 0 | Z110: =Z88*Indexation!Y$4 -> 0 | AA110: =AA88*Indexation!Z$4 -> 0 | AB110: =AB88*Indexation!AA$4 -> 0 | AC110: =AC88*Indexation!AB$4 -> 0 | AD110: =AD88*Indexation!AC$4 -> 0 | AE110: =AE88*Indexation!AD$4 -> 0 | AW110: 0
B111: SS Onshore - Equipment | C111: 5 | D111: =D89*Indexation!B$4 -> 0 | E111: =E89*Indexation!C$4 -> 0 | F111: =F89*Indexation!D$4 -> 0 | G111: =G89*Indexation!E$4 -> 0 | H111: =H89*Indexation!F$4 -> 0 | I111: =I89*Indexation!G$4 -> 0 | J111: =J89*Indexation!H$4 -> 0 | K111: =K89*Indexation!I$4 -> 0 | L111: =L89*Indexation!J$4 -> 0 | M111: =M89*Indexation!K$4 -> 0 | N111: =N89*Indexation!L$4 -> 0 | O111: =O89*Indexation!M$4 -> 0 | P111: =P89*Indexation!N$4 -> 0 | Q111: =Q89*Indexation!P$4 -> 0 | R111: =R89*Indexation!Q$4 -> 0 | S111: =S89*Indexation!R$4 -> 0 | T111: =T89*Indexation!S$4 -> 0.6120823933 | U111: =U89*Indexation!T$4 -> 0.1834426151 | V111: =V89*Indexation!U$4 -> 0.3850918214 | W111: =W89*Indexation!V$4 -> 0.1779859848 | X111: =X89*Indexation!W$4 -> 0.2935941103 | Y111: =Y89*Indexation!X$4 -> 0.9105995887 | Z111: =Z89*Indexation!Y$4 -> 0.5940530483 | AA111: =AA89*Indexation!Z$4 -> 0.5699432094 | AB111: =AB89*Indexation!AA$4 -> 0.4258880196 | AC111: =AC89*Indexation!AB$4 -> 0.1035266201 | AD111: =AD89*Indexation!AC$4 -> 0.6657862985 | AE111: =AE89*Indexation!AD$4 -> 0.08241454716 | AW111: 5.004408256
B112: SS Onshore - GTTW | C112: 100 | D112: =D90*Indexation!B$4 -> 0 | E112: =E90*Indexation!C$4 -> 0 | F112: =F90*Indexation!D$4 -> 0 | G112: =G90*Indexation!E$4 -> 0 | H112: =H90*Indexation!F$4 -> 0 | I112: =I90*Indexation!G$4 -> 0 | J112: =J90*Indexation!H$4 -> 0 | K112: =K90*Indexation!I$4 -> 0 | L112: =L90*Indexation!J$4 -> 0 | M112: =M90*Indexation!K$4 -> 0 | N112: =N90*Indexation!L$4 -> 0 | O112: =O90*Indexation!M$4 -> 0 | P112: =P90*Indexation!N$4 -> 0 | Q112: =Q90*Indexation!P$4 -> 0 | R112: =R90*Indexation!Q$4 -> 0 | S112: =S90*Indexation!R$4 -> 0 | T112: =T90*Indexation!S$4 -> 0 | U112: =U90*Indexation!T$4 -> 0 | V112: =V90*Indexation!U$4 -> 0 | W112: =W90*Indexation!V$4 -> 0 | X112: =X90*Indexation!W$4 -> 0 | Y112: =Y90*Indexation!X$4 -> 0 | Z112: =Z90*Indexation!Y$4 -> 0 | AA112: =AA90*Indexation!Z$4 -> 0 | AB112: =AB90*Indexation!AA$4 -> 0 | AC112: =AC90*Indexation!AB$4 -> 0 | AD112: =AD90*Indexation!AC$4 -> 0 | AE112: =AE90*Indexation!AD$4 -> 0 | AW112: 0
B113: SS Onshore - Land | C113: 40 | D113: =D91*Indexation!B$4 -> 0 | E113: =E91*Indexation!C$4 -> 0 | F113: =F91*Indexation!D$4 -> 0 | G113: =G91*Indexation!E$4 -> 0 | H113: =H91*Indexation!F$4 -> 0 | I113: =I91*Indexation!G$4 -> 0 | J113: =J91*Indexation!H$4 -> 0 | K113: =K91*Indexation!I$4 -> 0 | L113: =L91*Indexation!J$4 -> 0 | M113: =M91*Indexation!K$4 -> 0 | N113: =N91*Indexation!L$4 -> 0 | O113: =O91*Indexation!M$4 -> 0 | P113: =P91*Indexation!N$4 -> 0 | Q113: =Q91*Indexation!P$4 -> 0 | R113: =R91*Indexation!Q$4 -> 0 | S113: =S91*Indexation!R$4 -> 0.09268261619 | T113: =T91*Indexation!S$4 -> 0.2449346374 | U113: =U91*Indexation!T$4 -> 0 | V113: =V91*Indexation!U$4 -> 0 | W113: =W91*Indexation!V$4 -> 0.01487544095 | X113: =X91*Indexation!W$4 -> 0 | Y113: =Y91*Indexation!X$4 -> 0 | Z113: =Z91*Indexation!Y$4 -> 0 | AA113: =AA91*Indexation!Z$4 -> 0 | AB113: =AB91*Indexation!AA$4 -> 0 | AC113: =AC91*Indexation!AB$4 -> 0 | AD113: =AD91*Indexation!AC$4 -> 0 | AE113: =AE91*Indexation!AD$4 -> 0 | AW113: 0.3524926946
B114: Pipelines/Above Ground Installations - S | C114: 50 | D114: =D92*Indexation!B$4 -> 0 | E114: =E92*Indexation!C$4 -> 0 | F114: =F92*Indexation!D$4 -> 0 | G114: =G92*Indexation!E$4 -> 0 | H114: =H92*Indexation!F$4 -> 0 | I114: =I92*Indexation!G$4 -> 0 | J114: =J92*Indexation!H$4 -> 0 | K114: =K92*Indexation!I$4 -> 0 | L114: =L92*Indexation!J$4 -> 0 | M114: =M92*Indexation!K$4 -> 0 | N114: =N92*Indexation!L$4 -> 0 | O114: =O92*Indexation!M$4 -> 0 | P114: =P92*Indexation!N$4 -> 0 | Q114: =Q92*Indexation!P$4 -> 0 | R114: =R92*Indexation!Q$4 -> 0 | S114: =S92*Indexation!R$4 -> 0 | T114: =T92*Indexation!S$4 -> 0 | U114: =U92*Indexation!T$4 -> 0 | V114: =V92*Indexation!U$4 -> 0 | W114: =W92*Indexation!V$4 -> 0 | X114: =X92*Indexation!W$4 -> 0 | Y114: =Y92*Indexation!X$4 -> 0 | Z114: =Z92*Indexation!Y$4 -> 0 | AA114: =AA92*Indexation!Z$4 -> 0 | AB114: =AB92*Indexation!AA$4 -> 0 | AC114: =AC92*Indexation!AB$4 -> 0 | AD114: =AD92*Indexation!AC$4 -> 0 | AE114: =AE92*Indexation!AD$4 -> 0 | AW114: 0
B115: Sum: | D115: =SUM(D109:D114) -> 0 | E115: 0 | F115: 0 | G115: 0 | H115: 0 | I115: 0 | J115: 0 | K115: 0 | L115: 0 | M115: 0.18763301 | N115: 0 | O115: 0 | P115: 0 | Q115: 0 | R115: 0 | S115: 0.09268261619 | T115: 0.9066383032 | U115: 0.1834426151 | V115: 0.3850918214 | W115: 0.1928614257 | X115: 0.2935941103 | Y115: 7.899607535 | Z115: 3.942034246 | AA115: 6.051677089 | AB115: 0.8303211962 | AC115: 0.2590663417 | AD115: 0.8351909611 | AE115: 0.2141247531 | AW115: 22.27396602
B117: Total indexed gross asset value | D117: =D106+D115 -> 95.38687742 | E117: 10.35548096 | F117: 21.98750124 | G117: 1.316465706 | H117: 136.4056453 | I117: 36.58829159 | J117: 22.57422793 | K117: 6.184596263 | L117: 59.93530759 | M117: 21.18782846 | N117: 16.21162027 | O117: 2.626352555 | P117: 0.2644931417 | Q117: 8.565621275 | R117: 1.536037302 | S117: 2.445486911 | T117: 17.31361426 | U117: 1.017289374 | V117: 7.914661695 | W117: 17.03497699 | X117: 24.89109372 | Y117: 125.2655034 | Z117: 67.3099183 | AA117: 16.16728953 | AB117: 431.5407812 | AC117: 27.54649502 | AD117: 19.90720042 | AE117: 9.810194517 | AW117: =SUM(D117:AU117) -> 1209.290852
A119: @ Sept 06 | B119: Indexed net book value @ date = cell C1 | BF119: Oct to Dec | BG119: Jan to Sept | BH119: Oct to Dec | BI119: Jan to Sept | BJ119: Oct to Dec | BK119: Jan to Sept | BL119: Oct to Dec | BM119: Jan to Sept | BN119: Oct to Dec | BO119: Jan to Sept
B120: =B76 -> Transmission business unit - direct | AY120: Depreciation for Compressor stations | BE120: Jan to Sept | BF120: 2006/ | BG120: 2006 | BH120: 2007 | BI120: 2007 | BJ120: 2008 | BK120: 2008 | BL120: 2009 | BM120: 2009 | BN120: 2010 | BO120: 2010 | BP120: 2011/ | BQ120: 2012/ | BR120: 2013/ | BS120: 2014/ | BT120: 2015/ | BU120: 2016/
B121: TBU Onshore - Buildings | C121: =C77 -> 40 | D121: =IF(AND(($D$1-0.25-D$7)<$C121,(D$7<$C$1)),($C121-($D$1-0.25-D$7))/$C121*D99,0) -> 0 | E121: 0 | F121: 0 | G121: 0 | H121: 0 | I121: 0 | J121: 0 | K121: 0 | L121: 0 | M121: 0 | N121: 0.0579875824 | O121: 0 | P121: 0 | Q121: 0 | R121: 0 | S121: 0 | T121: 0 | U121: 0 | V121: 0.6439313252 | W121: 0 | X121: 0 | Y121: 0 | Z121: 0 | AA121: 0 | AB121: 0 | AC121: 0 | AD121: 0 | AE121: 0.6988731266 | AW121: =SUM(D121:AU121) -> 1.400792034 | AZ121: Asset Life | BB121: 2003 | BC121: 2004 | BD121: 2005 | BE121: 2006 | BF121: 2007 | BG121: 2007 | BH121: 2008 | BI121: 2008 | BJ121: 2009 | BK121: 2009 | BL121: 2010 | BM121: 2010 | BN121: 2011 | BO121: 2011 | BP121: 2012 | BQ121: 2013 | BR121: 2014 | BS121: 2015 | BT121: 2016 | BU121: 2017 | BV121: Total
B122: TBU Onshore - Compressor stations | C122: See Col AU | AB122: =AB100-BB124 -> 0.8301237152 | AC122: =AC100-BC124 -> 0 | AD122: =AD100-BD124 -> 0 | AE122: =AE100-BE124 -> 0 | AW122: 0.8301237152 | AY122: Compressor stations - T | AZ122: 20 | BA122: i.e. Up to 30 Sept 2003 | BB122: =AB100/$AZ122*(2004-0.25-BB121) -> 0.03690847993 | BV122: =SUM(BB122:BU122) -> 0.03690847993
B123: TBU Onshore - Equipment | C123: 5 | D123: =IF(AND(($D$1-0.25-D$7)<$C123,(D$7<$C$1)),($C123-($D$1-0.25-D$7))/$C123*D101,0) -> 0 | E123: 0 | F123: 0 | G123: 0 | H123: 0 | I123: 0 | J123: 0 | K123: 0 | L123: 0 | M123: 0 | N123: 0 | O123: 0 | P123: 0 | Q123: 0 | R123: 0 | S123: 0 | T123: 0 | U123: 0 | V123: 0 | W123: 0 | X123: 0 | Y123: 0 | Z123: 0 | AA123: 0.02869698169 | AB123: 0.9690004488 | AC123: 0.5834020723 | AD123: 5.403138737 | AE123: 1.252162841 | AW123: 8.236401081 | AY123: Compressor stations - T | AZ123: 25 | BA123: i.e. From Oct 03 to date (= cell c1) | BB123: =IF(AND(($D$1-0.25-BB$121)<$AZ123,(BB$121<$D$1)), (AB100-BB122)/($AZ123-(2004-0.25-BB121))*((($D$1-0.25)-(2004-0.25))), 0) -> 0.1171939363 | BC123: =IF(AND(($D$1-0.25-CA$136)<$AZ123,(BC$121<$D$1)), AC90/$AZ123*($D$1-0.25-BC121), 0) -> 0 | BD123: =IF(AND(($D$1-0.25-CB$136)<$AZ123,(BD$121<$D$1)), AD90/$AZ123*($D$1-0.25-BD121), 0) -> 0 | BE123: =IF(AND(($D$1-0.25-CC$136)<$AZ123,(BE$121<$D$1)), AE90/$AZ123*($D$1-0.75-(BE121-0.25)), 0) -> 0 | BF123: =IF(AND(($C$1-0.25-BF$121)<$AZ123, BF$121<$C$1), AF90/$AZ123*($C$1-BF121-$V$2), 0) -> 0 | BG123: =IF(AND(($C$1-0.25-BG$121)<$AZ123, BG$121<$C$1), AG90/$AZ123*($C$1-BG121-IF($C$1-1=BG121, $Y$3, $Z$3)), 0) -> 0 | BH123: =IF(AND(($C$1-0.25-BH$121)<$AZ123, BH$121<$C$1), AH90/$AZ123*($C$1-BH121-$V$2), 0) -> 0 | BI123: =IF(AND(($C$1-0.25-BI$121)<$AZ123, BI$121<$C$1), AI90/$AZ123*($C$1-BI121-IF($C$1-1=BI121, $Y$3, $Z$3)), 0) -> 0 | BJ123: =IF(AND(($C$1-0.25-BJ$121)<$AZ123, BJ$121<$C$1), AJ90/$AZ123*($C$1-BJ121-$V$2), 0) -> 0 | BK123: =IF(AND(($C$1-0.25-BK$121)<$AZ123, BK$121<$C$1), AK90/$AZ123*($C$1-BK121-IF($C$1-1=BK121, $Y$3, $Z$3)), 0) -> 0 | BL123: =IF(AND(($C$1-0.25-BL$121)<$AZ123, BL$121<$C$1), AL90/$AZ123*($C$1-BL121-$V$2), 0) -> 0 | BM123: =IF(AND(($C$1-0.25-BM$121)<$AZ123, BM$121<$C$1), AM90/$AZ123*($C$1-BM121-IF($C$1-1=BM121, $Y$3, $Z$3)), 0) -> 0 | BN123: =IF(AND(($C$1-0.25-BN$121)<$AZ123, BN$121<$C$1), AN90/$AZ123*($C$1-BN121-$V$2), 0) -> 0 | BO123: =IF(AND(($C$1-0.25-BO$121)<$AZ123, BO$121<$C$1), AO90/$AZ123*($C$1-BO121-IF($C$1-1=BO121, $Y$3, $Z$3)), 0) -> 0 | BP123: =IF(AND(($C$1-0.25-BP$121)<$AZ123, BP$121<$C$1), AP90/$AZ123*($C$1-0.75-(BP121-0.25)), 0) -> 0 | BQ123: 0 | BR123: 0 | BS123: 0 | BT123: 0 | BU123: 0 | BV123: =SUM(BB123:BU123) -> 0.1171939363
B124: TBU Onshore - GTTW | C124: See Col AU | AA124: =AA102-BB133 -> 5.548015729 | AB124: =AB102-BC133 -> 398.5991045 | AC124: =AC102-BD133 -> 6.054980596 | AD124: =AD102-BE133 -> 1.538358726 | AE124: =AE102-BF133 -> 3.444115243 | AW124: 415.1845748 | AY124: Total depreciation | BB124: =SUM(BB122:BB123) -> 0.1541024162 | BC124: 0 | BD124: 0 | BE124: 0 | BF124: 0 | BG124: 0 | BH124: 0 | BI124: 0 | BJ124: 0 | BK124: 0 | BL124: 0 | BM124: 0 | BN124: 0 | BO124: 0 | BP124: 0 | BQ124: 0 | BR124: 0 | BS124: 0 | BT124: 0 | BU124: 0 | BV124: =SUM(BB124:BU124) -> 0.1541024162
B125: TBU Onshore - Land | C125: 40 | D125: =IF(AND(($D$1-0.25-D$7)<$C125,(D$7<$C$1)),($C125-($D$1-0.25-D$7))/$C125*D103,0) -> 0 | E125: 0 | F125: 0 | G125: 0 | H125: 0 | I125: 0 | J125: 0 | K125: 0 | L125: 0 | M125: 0 | N125: 0 | O125: 0 | P125: 0 | Q125: 0 | R125: 0 | S125: 0 | T125: 1.140906649 | U125: 0 | V125: 0 | W125: 0 | X125: 0 | Y125: 0 | Z125: 0 | AA125: 0 | AB125: 0 | AC125: 0 | AD125: 0 | AE125: 0 | AW125: 1.140906649
B126: TBU Onshore - Pipelines/AGIs | C126: See Col AU | D126: =D104-BB139 -> 29.77766888 | E126: 3.478954587 | F126: 7.911574107 | G126: 0.5052239088 | H126: 55.62604106 | I126: 15.80215478 | J126: 10.2948274 | K126: 2.970152355 | L126: 30.23771114 | M126: 11.10503757 | N126: 8.013976421 | O126: 1.51678845 | P126: 0.02643277847 | Q126: 4.152656077 | R126: 1.037375511 | S126: 1.646688999 | T126: 7.844151979 | U126: 0.01249586572 | V126: 4.132343661 | W126: 12.74395651 | X126: 19.87598656 | Y126: 91.28471555 | Z126: 53.07619484 | AA126: 3.189977987 | AB126: 6.425761404 | AC126: 18.67771568 | AD126: 8.871948302 | AE126: 3.881459791 | AW126: 414.1199722
B127: ITO setup | C127: 15 | BG127: Oct to Dec | BH127: Jan to Sept | BI127: Oct to Dec | BJ127: Jan to Sept | BK127: Oct to Dec | BL127: Jan to Sept | BM127: Oct to Dec | BN127: Jan to Sept | BO127: Oct to Dec | BP127: Jan to Sept
B128: Sum: | D128: =SUM(D121:D127) -> 29.77766888 | E128: 3.478954587 | F128: 7.911574107 | G128: 0.5052239088 | H128: 55.62604106 | I128: 15.80215478 | J128: 10.2948274 | K128: 2.970152355 | L128: 30.23771114 | M128: 11.10503757 | N128: 8.071964004 | O128: 1.51678845 | P128: 0.02643277847 | Q128: 4.152656077 | R128: 1.037375511 | S128: 1.646688999 | T128: 8.985058628 | U128: 0.01249586572 | V128: 4.776274986 | W128: 12.74395651 | X128: 19.87598656 | Y128: 91.28471555 | Z128: 53.07619484 | AA128: 8.766690697 | AB128: 406.82399 | AC128: 25.31609835 | AD128: =SUM(AD121:AD127) -> 15.81344577 | AE128: =SUM(AE121:AE127) -> 9.276611003 | AW128: 840.9127704 | AY128: Depreciation for Gas to the West asset | BF128: Jan to Sept | BG128: 2006/ | BH128: 2006 | BI128: 2007 | BJ128: 2007 | BK128: 2008 | BL128: 2008 | BM128: 2009 | BN128: 2009 | BO128: 2010 | BP128: 2010 | BQ128: 2011/ | BR128: 2012/ | BS128: 2013/ | BT128: 2014/ | BU128: 2015/ | BV128: 2016/
AZ129: Asset Life | BB129: 2002 | BC129: 2003 | BD129: 2004 | BE129: 2005 | BF129: 2006 | BG129: 2007 | BH129: 2007 | BI129: 2008 | BJ129: 2008 | BK129: 2009 | BL129: 2009 | BM129: 2010 | BN129: 2010 | BO129: 2011 | BP129: 2011 | BQ129: 2012 | BR129: 2013 | BS129: 2014 | BT129: 2015 | BU129: 2016 | BV129: 2017 | BW129: Total
B130: =B86 -> Transmission business unit - shared | AY130: Gas to the West - T | AZ130: 40 | BA130: i.e. Up to 30 Sept 2003 | BB130: =AA102/$AZ130*(2004-0.25-BB129) -> 0.2618254554 | BC130: =AB102/$AZ130*(2004-0.25-BC129) -> 7.853942153 | BW130: =SUM(BB130:BV130) -> 8.115767608
B131: SS Onshore - Buildings | C131: =C87 -> 40 | D131: =IF(AND(($D$1-0.25-D$7)<$C131,(D$7<$C$1)),($C131-($D$1-0.25-D$7))/$C131*D109,0) -> 0 | E131: 0 | F131: 0 | G131: 0 | H131: 0 | I131: 0 | J131: 0 | K131: 0 | L131: 0 | M131: 0.0949892113 | N131: 0 | O131: 0 | P131: 0 | Q131: 0 | R131: 0 | S131: 0 | T131: 0.03504502374 | U131: 0 | V131: 0 | W131: 0 | X131: 0 | Y131: 5.809612855 | Z131: 2.866708901 | AA131: 4.830777981 | AB131: 0.3665175663 | AC131: 0.1448463658 | AD131: 0.1619932086 | AE131: 0.1292406395 | AW131: =SUM(D131:AU131) -> 14.43973175 | AY131: Gas to the West - T | AZ131: 100 | BA131: i.e. From Oct 03 to Sept 07 (or date = cell C1, whichever is earlier) | BB131: =(AA102-BB130)/($AZ131-(2004-0.25-BB129))*IF($D$1<2008, (($D$1-0.25)-(2004-0.25)), 4) -> 0.1747406529 | BC131: =(AB102-BC130)/($AZ131-(2004-0.25-BC129))*IF($D$1<2008, (($D$1-0.25)-(2004-0.25)), 4) -> 12.42386819 | BD131: =IF(AND(($D$1-0.25-BD$129)<$AZ131,(BD$129<$D$1)),($D$1-0.25-BD$129)/$AZ131*AC102,0)-IF($D$1>2008, (AC102/$AZ131*($D$1-2008)), 0) -> 0.171220531 | BE131: =IF(AND(($D$1-0.25-BE$129)<$AZ131,(BE$129<$D$1)),($D$1-0.25-BE$129)/$AZ131*AD102,0)-IF($D$1>2008, (AD102/$AZ131*($D$1-2008)), 0) -> 0.02740079156 | BF131: =IF(AND(($D$1-0.25-BF$129)<$AZ131,(BF$129<$D$1)),($D$1-0.25-BF$129)/$AZ131*AE102,0)-IF($D$1>2008, (AE102/$AZ131*($C$1-2008)), 0) -> 0.02602605977 | BG131: =IF(AND(($C$1-0.25-BG$129)<$AZ131, BG$129<$C$1),($C$1-BG$129-$V$2)/$AZ131*AF102,0)-IF($C$1>2008, (AF102/$AZ131*($C$1-2008)), 0) -> 0 | BH131: =IF(AND(($C$1-0.25-BH$129)<$AZ131, BH$129<$C$1),($C$1-BH$129-IF($C$1-1=BH129, $Y$3, $Z$3))/$AZ131*AG102,0)-IF($C$1>2008, (AG102/$AZ131*($C$1-2008)), 0) -> 0 | BW131: =SUM(BB131:BV131) -> 12.82325623
B132: SS Onshore - Compressor stations | C132: 25 | D132: =IF(AND(($D$1-0.25-D$7)<$C132,(D$7<$C$1)),($C132-($D$1-0.25-D$7))/$C132*D110,0) -> 0 | E132: 0 | F132: 0 | G132: 0 | H132: 0 | I132: 0 | J132: 0 | K132: 0 | L132: 0 | M132: 0 | N132: 0 | O132: 0 | P132: 0 | Q132: 0 | R132: 0 | S132: 0 | T132: 0 | U132: 0 | V132: 0 | W132: 0 | X132: 0 | Y132: 0 | Z132: 0 | AA132: 0 | AB132: 0 | AC132: 0 | AD132: 0 | AE132: 0 | AW132: 0 | AY132: Gas to the West - T | AZ132: 50 | BA132: i.e. From Oct 07 to date (= cell c1) | BB132: =IF($D$1>2008, ((AA102-BB130-BB131)/($AZ132-(2008-0.25-BB129)))*($D$1-2008), 0) -> 0 | BC132: =IF($D$1>2008, ((AB102-BC130-BC131)/($AZ132-(2008-0.25-BC129)))*($D$1-2008), 0) -> 0 | BD132: =IF($D$1>2008, ((AC102-BD130-BD131)/($AZ132-(2008-0.25-BD129)))*($D$1-2008), 0) -> 0 | BE132: =IF($D$1>2008, ((AD102-BE130-BE131)/($AZ132-(2008-0.25-BE129)))*($D$1-2008), 0) -> 0 | BF132: =IF($D$1>2008, ((AE102-BF130-BF131)/($AZ132-(2008-0.25-BF129)))*($D$1-2008), 0) -> 0 | BG132: =IF(AND($C$1>2008, BG129<$C$1), ((AF102-BG130-BG131)/($AZ132-(2008-BG129-$V$2)))*($C$1-2008), 0) -> 0 | BH132: =IF(AND($C$1>2008, BH129<$C$1), ((AG102-BH130-BH131)/($AZ132-(2008-BH129-IF($C$1-1=BH129, $Y$3, $Z$3))))*($C$1-2008), 0) -> 0 | BI132: =IF(AND($C$1>2008, BI129<$C$1), (AH102/$AZ132*($C$1-BI$129-$V$2)), 0) -> 0 | BJ132: =IF(AND($C$1>2008, BJ129<$C$1), (AI102/$AZ132*($C$1-BJ$129-IF($C$1-1=BJ129, $Y$3, $Z$3))), 0) -> 0 | BK132: =IF(AND($C$1>2008, BK129<$C$1), (AJ102/$AZ132*($C$1-BK$129-$V$2)), 0) -> 0 | BL132: =IF(AND($C$1>2008, BL129<$C$1), (AK102/$AZ132*($C$1-BL$129-IF($C$1-1=BL129, $Y$3, $Z$3))), 0) -> 0 | BM132: =IF(AND($C$1>2008, BM129<$C$1), (AL102/$AZ132*($C$1-BM$129-$V$2)), 0) -> 0 | BN132: =IF(AND($C$1>2008, BN129<$C$1), (AM102/$AZ132*($C$1-BN$129-IF($C$1-1=BN129, $Y$3, $Z$3))), 0) -> 0 | BO132: =IF(AND($C$1>2008, BO129<$C$1), (AN102/$AZ132*($C$1-BO$129-$V$2)), 0) -> 0 | BP132: =IF(AND($C$1>2008, BP129<$C$1), (AO102/$AZ132*($C$1-BP$129-IF($C$1-1=BP129, $Y$3, $Z$3))), 0) -> 0 | BQ132: =IF(AND($C$1>2008, BQ129<$C$1), (AP102/$AZ132*($C$1-0.75-(BQ$129-0.25))), 0) -> 0 | BR132: 0 | BS132: 0 | BT132: 0 | BU132: 0 | BV132: 0 | BW132: =SUM(BB132:BV132) -> 0
B133: SS Onshore - Equipment | C133: 5 | D133: =IF(AND(($D$1-0.25-D$7)<$C133,(D$7<$C$1)),($C133-($D$1-0.25-D$7))/$C133*D111,0) -> 0 | E133: 0 | F133: 0 | G133: 0 | H133: 0 | I133: 0 | J133: 0 | K133: 0 | L133: 0 | M133: 0 | N133: 0 | O133: 0 | P133: 0 | Q133: 0 | R133: 0 | S133: 0 | T133: 0 | U133: 0 | V133: 0 | W133: 0 | X133: 0 | Y133: 0 | Z133: 0 | AA133: 0.02849716047 | AB133: 0.1064720049 | AC133: 0.04658697903 | AD133: 0.432761094 | AE133: 0.07005236509 | AW133: 0.6843696035 | AY133: Total depreciation | BB133: =SUM(BB130:BB132) -> 0.4365661083 | BC133: =SUM(BC130:BC132) -> 20.27781034 | BD133: =SUM(BD130:BD132) -> 0.171220531 | BE133: 0.02740079156 | BF133: 0.02602605977 | BG133: 0 | BH133: 0 | BI133: 0 | BJ133: 0 | BK133: 0 | BL133: 0 | BM133: 0 | BN133: 0 | BO133: 0 | BP133: 0 | BQ133: 0 | BR133: 0 | BS133: 0 | BT133: 0 | BU133: 0 | BV133: 0 | BW133: =SUM(BB133:BV133) -> 20.93902383
B134: SS Onshore - GTTW | C134: 100 | D134: =IF(AND(($D$1-0.25-D$7)<$C134,(D$7<$C$1)),($C134-($D$1-0.25-D$7))/$C134*D112,0) -> 0 | E134: 0 | F134: 0 | G134: 0 | H134: 0 | I134: 0 | J134: 0 | K134: 0 | L134: 0 | M134: 0 | N134: 0 | O134: 0 | P134: 0 | Q134: 0 | R134: 0 | S134: 0 | T134: 0 | U134: 0 | V134: 0 | W134: 0 | X134: 0 | Y134: 0 | Z134: 0 | AA134: 0 | AB134: 0 | AC134: 0 | AD134: 0 | AE134: 0 | AW134: 0 | CD134: Oct to Dec | CE134: Jan to Sept | CF134: Oct to Dec | CG134: Jan to Sept | CH134: Oct to Dec | CI134: Jan to Sept | CJ134: Oct to Dec | CK134: Jan to Sept | CL134: Oct to Dec | CM134: Jan to Sept
B135: SS Onshore - Land | C135: 40 | D135: =IF(AND(($D$1-0.25-D$7)<$C135,(D$7<$C$1)),($C135-($D$1-0.25-D$7))/$C135*D113,0) -> 0 | E135: 0 | F135: 0 | G135: 0 | H135: 0 | I135: 0 | J135: 0 | K135: 0 | L135: 0 | M135: 0 | N135: 0 | O135: 0 | P135: 0 | Q135: 0 | R135: 0 | S135: 0.06314003228 | T135: 0.1729850877 | U135: 0 | V135: 0 | W135: 0.01162143825 | X135: 0 | Y135: 0 | Z135: 0 | AA135: 0 | AB135: 0 | AC135: 0 | AD135: 0 | AE135: 0 | AW135: 0.2477465582 | AY135: Depreciation for Pipeline / Above Ground Installations assets | CC135: Jan to Sept | CD135: 2006/ | CE135: 2006 | CF135: 2007 | CG135: 2007 | CH135: 2008 | CI135: 2008 | CJ135: 2009 | CK135: 2009 | CL135: 2010 | CM135: 2010 | CN135: 2011/ | CO135: 2012/ | CP135: 2013/ | CQ135: 2014/ | CR135: 2015/ | CS135: 2016/
B136: Pipelines/Above Ground Installations - S | C136: 50 | D136: =IF(AND(($D$1-0.25-D$7)<$C136,(D$7<$C$1)),($C136-($D$1-0.25-D$7))/$C136*D114,0) -> 0 | E136: 0 | F136: 0 | G136: 0 | H136: 0 | I136: 0 | J136: 0 | K136: 0 | L136: 0 | M136: 0 | N136: 0 | O136: 0 | P136: 0 | Q136: 0 | R136: 0 | S136: 0 | T136: 0 | U136: 0 | V136: 0 | W136: 0 | X136: 0 | Y136: 0 | Z136: 0 | AA136: 0 | AB136: 0 | AC136: 0 | AD136: 0 | AE136: 0 | AW136: 0 | AZ136: Asset Life | BB136: 1978 | BC136: 1979 | BD136: 1980 | BE136: 1981 | BF136: 1982 | BG136: 1983 | BH136: 1984 | BI136: 1985 | BJ136: 1986 | BK136: 1987 | BL136: 1988 | BM136: 1989 | BN136: 1990 | BO136: 1992 | BP136: 1993 | BQ136: 1994 | BR136: 1995 | BS136: 1996 | BT136: 1997 | BU136: 1998 | BV136: 1999 | BW136: 2000 | BX136: 2001 | BY136: 2002 | BZ136: 2003 | CA136: 2004 | CB136: 2005 | CC136: 2006 | CD136: 2007 | CE136: 2007 | CF136: 2008 | CG136: 2008 | CH136: 2009 | CI136: 2009 | CJ136: 2010 | CK136: 2010 | CL136: 2011 | CM136: 2011 | CN136: 2012 | CO136: 2013 | CP136: 2014 | CQ136: 2015 | CR136: 2016 | CS136: 2017 | CT136: Total
B137: Sum: | D137: =SUM(D131:D136) -> 0 | E137: 0 | F137: 0 | G137: 0 | H137: 0 | I137: 0 | J137: 0 | K137: 0 | L137: 0 | M137: 0.0949892113 | N137: 0 | O137: 0 | P137: 0 | Q137: 0 | R137: 0 | S137: 0.06314003228 | T137: 0.2080301114 | U137: 0 | V137: 0 | W137: 0.01162143825 | X137: 0 | Y137: 5.809612855 | Z137: 2.866708901 | AA137: 4.859275142 | AB137: 0.4729895712 | AC137: 0.1914333448 | AD137: 0.5947543026 | AE137: 0.1992930046 | AW137: 15.37184791 | AY137: Pipelines/Above Ground Installations - T | AZ137: 40 | BA137: i.e. Up to 30 Sept 2003 | BB137: =D104/$AZ137*(2004-0.25-BB136) -> 61.40530234 | BC137: 6.407453844 | BD137: 13.05507886 | BE137: 0.7487398703 | BF137: 74.17056961 | BG137: 18.98017626 | BH137: 11.14602504 | BI137: 2.899029498 | BJ137: 26.59629274 | BK137: 8.793831845 | BL137: 5.704629319 | BM137: 0.9684675045 | BN137: 0.0150949809 | BO137: 1.87420761 | BP137: 0.4128100249 | BQ137: 0.5734960467 | BR137: 2.368626284 | BS137: 0.003232402138 | BT137: 0.9014233056 | BU137: 2.295096082 | BV137: 2.868501313 | BW137: 10.09826931 | BX137: 4.184029465 | BY137: 0.1556227299 | BZ137: 0.1307496984 | CT137: =SUM(BY137:CS137) -> 0.2863724283
AY138: Pipelines/Above Ground Installations - T | AZ138: 50 | BA138: i.e. From Oct 03 to date (= cell c1) | BB138: =IF(AND(($D$1-0.25-BB$136)<$AZ138,(BB$136<$D$1)), (D104-BB137)/($AZ138-(2004-0.25-BB136))*((($D$1-0.25)-(2004-0.25))), 0) -> 4.203906195 | BC138: 0.4690725286 | BD138: 1.020848272 | BE138: 0.06250192687 | BF138: 6.609034582 | BG138: 1.805960546 | BH138: 1.133375493 | BI138: 0.3154144094 | BJ138: 3.101303707 | BK138: 1.10132604 | BL138: 0.7693417365 | BM138: 0.1410966 | BN138: 0.002384912344 | BO138: 0.3534175385 | BP138: 0.08585176641 | BQ138: 0.1326192483 | BR138: 0.6152276062 | BS138: 0.0009550980167 | BT138: 0.3080007698 | BU138: 0.9268332005 | BV138: 1.411312655 | BW138: 6.331887784 | BX138: 3.598386091 | BY138: 0.2114902533 | BZ138: 0.4168061451 | CA138: =IF(AND(($D$1-0.25-CA$136)<$AZ138,(CA$136<$D$1)), AC104/$AZ138*($D$1-0.25-CA136), 0) -> 1.087062818 | CB138: =IF(AND(($D$1-0.25-CB$136)<$AZ138,(CB$136<$D$1)), AD104/$AZ138*($D$1-0.25-CB136), 0) -> 0.3217805084 | CC138: =IF(AND(($D$1-0.25-CC$136)<$AZ138,(CC$136<$D$1)), AE104/$AZ138*($D$1-0.25-CC136), 0) -> 0.05910852474 | CT138: =SUM(BY138:CS138) -> 2.096248249
B139: Total indexed net book value | D139: =D128+D137 -> 29.77766888 | E139: 3.478954587 | F139: 7.911574107 | G139: 0.5052239088 | H139: 55.62604106 | I139: 15.80215478 | J139: 10.2948274 | K139: 2.970152355 | L139: 30.23771114 | M139: 11.20002678 | N139: 8.071964004 | O139: 1.51678845 | P139: 0.02643277847 | Q139: 4.152656077 | R139: 1.037375511 | S139: 1.709829032 | T139: 9.19308874 | U139: 0.01249586572 | V139: 4.776274986 | W139: 12.75557795 | X139: 19.87598656 | Y139: 97.09432841 | Z139: 55.94290375 | AA139: 13.62596584 | AB139: 407.2969796 | AC139: 25.5075317 | AD139: 16.40820007 | AE139: 9.475904007 | AW139: =SUM(D139:AU139) -> 856.2846183 | AY139: Total depreciation | BB139: =SUM(BB137:BB138) -> 65.60920853 | BC139: =SUM(BC137:BC138) -> 6.876526373 | BD139: 14.07592713 | BE139: 0.8112417972 | BF139: 80.77960419 | BG139: 20.78613681 | BH139: 12.27940054 | BI139: 3.214443908 | BJ139: 29.69759645 | BK139: 9.895157885 | BL139: 6.473971056 | BM139: 1.109564105 | BN139: 0.01747989325 | BO139: 2.227625149 | BP139: 0.4986617913 | BQ139: 0.706115295 | BR139: =SUM(BR137:BR138) -> 2.98385389 | BS139: =SUM(BS137:BS138) -> 0.004187500155 | BT139: =SUM(BT137:BT138) -> 1.209424075 | BU139: =SUM(BU137:BU138) -> 3.221929283 | BV139: 4.279813968 | BW139: 16.43015709 | BX139: 7.782415556 | BY139: 0.3671129832 | BZ139: 0.5475558435 | CA139: 1.087062818 | CB139: 0.3217805084 | CC139: 0.05910852474 | CD139: 0 | CE139: 0 | CF139: 0 | CG139: 0 | CH139: 0 | CI139: 0 | CJ139: 0 | CK139: 0 | CL139: 0 | CM139: 0 | CN139: 0 | CO139: 0 | CP139: 0 | CQ139: 0 | CR139: 0 | CS139: 0 | CT139: =SUM(BY139:CS139) -> 2.382620677
A141: @ Sept 07 | B141: Historic cost, nominal to 2010, 10/11 prices thereafter | AY141: Inch - Equipment
A142: Disposals not allowed for | B142: Transmission business unit - direct | AY142: Inch - GTTW
B143: TBU Onshore - Buildings | C143: 40 | D143: =D77 -> 0 | E143: 0 | F143: 0 | G143: 0 | H143: 0 | I143: 0 | J143: 0 | K143: 0 | L143: 0 | M143: 0 | N143: 0.0622159 | O143: 0 | P143: 0 | Q143: 0 | R143: 0 | S143: 0 | T143: 0 | U143: 0 | V143: 0.60948063 | W143: 0 | X143: 0 | Y143: 0 | Z143: 0 | AA143: 0 | AB143: 0 | AC143: 0 | AD143: 0 | AE143: =AE77 -> 0.68627706 | AF143: =SUMIF(PC1_inputs!$F$18:$F$56,$B143,PC1_inputs!$D$18:$D$56) -> 0.02564663 | AG143: =SUMIF(PC1_inputs!$F$18:$F$56,$B143,PC1_inputs!$E$18:$E$56) -> 0.18243192 | AW143: =SUM(D143:AU143) -> 1.56605214 | AY143: Inch - Land
B144: TBU Onshore - Compressor stations | C144: See Col AU | D144: 0 | E144: 0 | F144: 0 | G144: 0 | H144: 0 | I144: 0 | J144: 0 | K144: 0 | L144: 0 | M144: 0 | N144: 0 | O144: 0 | P144: 0 | Q144: 0 | R144: 0 | S144: 0 | T144: 0 | U144: 0 | V144: 0 | W144: 0 | X144: 0 | Y144: 0 | Z144: 0 | AA144: 0 | AB144: 0.88324 | AC144: 0 | AD144: 0 | AE144: =AE78 -> 0 | AF144: =SUMIF(PC1_inputs!$F$18:$F$56,$B144,PC1_inputs!$D$18:$D$56) -> 0 | AG144: =SUMIF(PC1_inputs!$F$18:$F$56,$B144,PC1_inputs!$E$18:$E$56) -> 0 | AW144: 0.88324 | AY144: IC1 - GTTW
B145: TBU Onshore - Equipment | C145: 5 | D145: 0 | E145: 0 | F145: 0 | G145: 0 | H145: 0 | I145: 0 | J145: 0 | K145: 0 | L145: 0 | M145: 0 | N145: 0.92025604 | O145: 0 | P145: 0.13520298 | Q145: 1.42382021 | R145: 0 | S145: 0 | T145: 2.75110913 | U145: 0.57627344 | V145: 0.95652668 | W145: 0.6422494 | X145: 0.32893183 | Y145: 7.58956152 | Z145: 2.06998329 | AA145: 0.49524114 | AB145: 3.47830617 | AC145: 1.19018624 | AD145: 7.79907559 | AE145: 1.41945849 | AF145: =SUMIF(PC1_inputs!$F$18:$F$56,$B145,PC1_inputs!$D$18:$D$56) -> 0.41217755 | AG145: =SUMIF(PC1_inputs!$F$18:$F$56,$B145,PC1_inputs!$E$18:$E$56) -> 1.22385956 | AW145: 33.41221926
B146: TBU Onshore - GTTW | C146: See Col AU | D146: 0 | E146: 0 | F146: 0 | G146: 0 | H146: 0 | I146: 0 | J146: 0 | K146: 0 | L146: 0 | M146: 0 | N146: 0 | O146: 0 | P146: 0 | Q146: 0 | R146: 0 | S146: 0 | T146: 0 | U146: 0 | V146: 0 | W146: 0 | X146: 0 | Y146: 0 | Z146: 0 | AA146: 5.16397711 | AB146: 375.8982153 | AC146: 5.71587361 | AD146: 1.46904611 | AE146: 3.34370512 | AF146: =SUMIF(PC1_inputs!$F$18:$F$56,$B146,PC1_inputs!$D$18:$D$56) -> 0.01293652 | AG146: =SUMIF(PC1_inputs!$F$18:$F$56,$B146,PC1_inputs!$E$18:$E$56) -> 0.06176168 | AW146: 391.6655154
B147: TBU Onshore - Land | C147: 40 | D147: 0 | E147: 0 | F147: 0 | G147: 0 | H147: 0 | I147: 0 | J147: 0 | K147: 0 | L147: 0 | M147: 0 | N147: 0 | O147: 0 | P147: 0 | Q147: 0 | R147: 0 | S147: 0 | T147: 1.12128921 | U147: 0 | V147: 0 | W147: 0 | X147: 0 | Y147: 0 | Z147: 0 | AA147: 0 | AB147: 0 | AC147: 0 | AD147: 0 | AE147: 0 | AF147: =SUMIF(PC1_inputs!$F$18:$F$56,$B147,PC1_inputs!$D$18:$D$56) -> 0 | AG147: =SUMIF(PC1_inputs!$F$18:$F$56,$B147,PC1_inputs!$E$18:$E$56) -> 0 | AW147: 1.12128921
B148: TBU Onshore - Pipelines/AGIs | C148: See Col AU | D148: 20.83272967 | E148: 2.56020209 | F148: 6.42535795 | G148: 0.4631882 | H148: 56.20011136 | I148: 16.64240309 | J148: 11.15107242 | K148: 3.21999869 | L148: 32.42221097 | M148: 11.72365212 | N148: 8.2579489 | O148: 1.55686764 | P148: 0.02691591 | Q148: 4.156961 | R148: 1.01579 | S148: 1.59326469 | T148: 7.5157872 | U148: 0.01176531 | V148: 3.82358495 | W148: 11.70250183 | X148: 17.98874403 | Y148: 84.70694089 | Z148: 50.20429185 | AA148: 3.06934333 | AB148: 6.2578228 | AC148: 18.14476814 | AD148: 8.62585307 | AE148: 3.79699191 | AF148: =SUMIF(PC1_inputs!$F$18:$F$56,$B148,PC1_inputs!$D$18:$D$56) -> 0.516141 | AG148: =SUMIF(PC1_inputs!$F$18:$F$56,$B148,PC1_inputs!$E$18:$E$56) -> 7.107696 | AW148: 401.720907
B149: ITO setup | C149: 15 | D149: 0 | E149: 0 | F149: 0 | G149: 0 | H149: 0 | I149: 0 | J149: 0 | K149: 0 | L149: 0 | M149: 0 | N149: 0 | O149: 0 | P149: 0 | Q149: 0 | R149: 0 | S149: 0 | T149: 0 | U149: 0 | V149: 0 | W149: 0 | X149: 0 | Y149: 0 | Z149: 0 | AA149: 0 | AB149: 0 | AC149: 0 | AD149: 0 | AE149: 0 | AF149: =SUMIF(PC1_inputs!$F$18:$F$56,$B149,PC1_inputs!$D$18:$D$56) -> 0 | AG149: =SUMIF(PC1_inputs!$F$18:$F$56,$B149,PC1_inputs!$E$18:$E$56) -> 0 | AW149: 0
B150: Sum: | D150: =SUM(D143:D149) -> 20.83272967 | E150: 2.56020209 | F150: 6.42535795 | G150: 0.4631882 | H150: 56.20011136 | I150: 16.64240309 | J150: 11.15107242 | K150: 3.21999869 | L150: 32.42221097 | M150: 11.72365212 | N150: 9.24042084 | O150: 1.55686764 | P150: 0.16211889 | Q150: 5.58078121 | R150: 1.01579 | S150: 1.59326469 | T150: 11.38818554 | U150: 0.58803875 | V150: 5.38959226 | W150: 12.34475123 | X150: 18.31767586 | Y150: 92.29650241 | Z150: 52.27427514 | AA150: 8.72856158 | AB150: 386.5175843 | AC150: 25.05082799 | AD150: 17.89397477 | AE150: 9.24643258 | AF150: 0.9669017 | AG150: =SUM(AG143:AG149) -> 8.57574916 | AW150: 830.3692231
B152: Transmission business unit - shared
B153: SS Onshore - Buildings | C153: 40 | D153: =D87 -> 0 | E153: 0 | F153: 0 | G153: 0 | H153: 0 | I153: 0 | J153: 0 | K153: 0 | L153: 0 | M153: 0.1047487458 | N153: 0 | O153: 0 | P153: 0 | Q153: 0 | R153: 0 | S153: 0 | T153: 0.0344424384 | U153: 0 | V153: 0 | W153: 0 | X153: 0 | Y153: 5.496153581 | Z153: 2.761861043 | AA153: 4.730079569 | AB153: 0.3629364711 | AC153: 0.1427909848 | AD153: 0.1589409215 | AE153: 0.1269112844 | AF153: =SUMIF(PC1_inputs!$F$18:$F$56,$B153,PC1_inputs!$D$18:$D$56) -> 0 | AG153: =SUMIF(PC1_inputs!$F$18:$F$56,$B153,PC1_inputs!$E$18:$E$56) -> 0 | AW153: =SUM(D153:AU153) -> 13.91886504
B154: SS Onshore - Compressor stations | C154: 25 | D154: 0 | E154: 0 | F154: 0 | G154: 0 | H154: 0 | I154: 0 | J154: 0 | K154: 0 | L154: 0 | M154: 0 | N154: 0 | O154: 0 | P154: 0 | Q154: 0 | R154: 0 | S154: 0 | T154: 0 | U154: 0 | V154: 0 | W154: 0 | X154: 0 | Y154: 0 | Z154: 0 | AA154: 0 | AB154: 0 | AC154: 0 | AD154: 0 | AE154: 0 | AF154: =SUMIF(PC1_inputs!$F$18:$F$56,$B154,PC1_inputs!$D$18:$D$56) -> 0 | AG154: =SUMIF(PC1_inputs!$F$18:$F$56,$B154,PC1_inputs!$E$18:$E$56) -> 0 | AW154: 0
B155: SS Onshore - Equipment | C155: 5 | D155: 0 | E155: 0 | F155: 0 | G155: 0 | H155: 0 | I155: 0 | J155: 0 | K155: 0 | L155: 0 | M155: 0 | N155: 0 | O155: 0 | P155: 0 | Q155: 0 | R155: 0 | S155: 0 | T155: 0.4248502515 | U155: 0.1293659355 | V155: 0.2756449485 | W155: 0.130458237 | X155: 0.218638554 | Y155: 0.716095221 | Z155: 0.4900541175 | AA155: 0.4917927045 | AB155: 0.3821899485 | AC155: 0.0950411115 | AD155: 0.6246621915 | AE155: 0.0794117355 | AF155: =SUMIF(PC1_inputs!$F$18:$F$56,$B155,PC1_inputs!$D$18:$D$56) -> 0 | AG155: =SUMIF(PC1_inputs!$F$18:$F$56,$B155,PC1_inputs!$E$18:$E$56) -> 0 | AW155: 4.058204957
B156: SS Onshore - GTTW | C156: 100 | D156: 0 | E156: 0 | F156: 0 | G156: 0 | H156: 0 | I156: 0 | J156: 0 | K156: 0 | L156: 0 | M156: 0 | N156: 0 | O156: 0 | P156: 0 | Q156: 0 | R156: 0 | S156: 0 | T156: 0 | U156: 0 | V156: 0 | W156: 0 | X156: 0 | Y156: 0 | Z156: 0 | AA156: 0 | AB156: 0 | AC156: 0 | AD156: 0 | AE156: 0 | AF156: =SUMIF(PC1_inputs!$F$18:$F$56,$B156,PC1_inputs!$D$18:$D$56) -> 0 | AG156: =SUMIF(PC1_inputs!$F$18:$F$56,$B156,PC1_inputs!$E$18:$E$56) -> 0 | AW156: 0
B157: SS Onshore - Land | C157: 40 | D157: 0 | E157: 0 | F157: 0 | G157: 0 | H157: 0 | I157: 0 | J157: 0 | K157: 0 | L157: 0 | M157: 0 | N157: 0 | O157: 0 | P157: 0 | Q157: 0 | R157: 0 | S157: 0.0627625256 | T157: 0.1700106774 | U157: 0 | V157: 0 | W157: 0.0109032394 | X157: 0 | Y157: 0 | Z157: 0 | AA157: 0 | AB157: 0 | AC157: 0 | AD157: 0 | AE157: 0 | AF157: =SUMIF(PC1_inputs!$F$18:$F$56,$B157,PC1_inputs!$D$18:$D$56) -> 0 | AG157: =SUMIF(PC1_inputs!$F$18:$F$56,$B157,PC1_inputs!$E$18:$E$56) -> 0 | AW157: 0.2436764424
B158: Pipelines/Above Ground Installations - S | C158: 50 | D158: 0 | E158: 0 | F158: 0 | G158: 0 | H158: 0 | I158: 0 | J158: 0 | K158: 0 | L158: 0 | M158: 0 | N158: 0 | O158: 0 | P158: 0 | Q158: 0 | R158: 0 | S158: 0 | T158: 0 | U158: 0 | V158: 0 | W158: 0 | X158: 0 | Y158: 0 | Z158: 0 | AA158: 0 | AB158: 0 | AC158: 0 | AD158: 0 | AE158: 0 | AF158: =SUMIF(PC1_inputs!$F$18:$F$56,$B158,PC1_inputs!$D$18:$D$56) -> 0 | AG158: =SUMIF(PC1_inputs!$F$18:$F$56,$B158,PC1_inputs!$E$18:$E$56) -> 0 | AW158: 0
B159: Sum: | D159: =SUM(D153:D158) -> 0 | E159: 0 | F159: =SUM(F153:F158) -> 0 | G159: 0 | H159: 0 | I159: 0 | J159: 0 | K159: 0 | L159: 0 | M159: 0.1047487458 | N159: 0 | O159: 0 | P159: 0 | Q159: 0 | R159: 0 | S159: 0.0627625256 | T159: 0.6293033673 | U159: 0.1293659355 | V159: 0.2756449485 | W159: 0.1413614764 | X159: 0.218638554 | Y159: 6.212248802 | Z159: 3.25191516 | AA159: 5.221872273 | AB159: 0.7451264196 | AC159: 0.2378320963 | AD159: 0.783603113 | AE159: 0.2063230199 | AF159: 0 | AG159: 0 | AW159: 18.22074644
B161: Total historic cost | D161: =D150+D159 -> 20.83272967 | E161: 2.56020209 | F161: 6.42535795 | G161: 0.4631882 | H161: 56.20011136 | I161: 16.64240309 | J161: 11.15107242 | K161: 3.21999869 | L161: 32.42221097 | M161: 11.82840087 | N161: 9.24042084 | O161: 1.55686764 | P161: 0.16211889 | Q161: 5.58078121 | R161: 1.01579 | S161: 1.656027216 | T161: 12.01748891 | U161: 0.7174046855 | V161: 5.665237209 | W161: 12.48611271 | X161: 18.53631441 | Y161: 98.50875121 | Z161: 55.5261903 | AA161: 13.95043385 | AB161: 387.2627107 | AC161: 25.28866009 | AD161: 18.67757788 | AE161: 9.4527556 | AF161: 0.9669017 | AG161: 8.57574916 | AW161: =SUM(D161:AU161) -> 848.5899695
A163: during 06/07 | B163: Disposals, nominal to 2010, 10/11 prices thereafter | AY163: Inch - Equipment
B164: Transmission business unit - direct | AY164: Inch - GTTW
B165: TBU Onshore - Buildings | C165: 40 | AW165: =SUM(D165:AU165) -> 0 | AY165: Inch - Land
B166: TBU Onshore - Compressor stations | C166: See Col AU | AW166: 0 | AY166: IC1 - GTTW
B167: TBU Onshore - Equipment | C167: 5 | AW167: 0
B168: TBU Onshore - GTTW | C168: See Col AU | AW168: 0
B169: TBU Onshore - Land | C169: 40 | AW169: 0
B170: TBU Onshore - Pipelines/AGIs | C170: See Col AU | D170: 0.0024501 | AW170: 0.0024501
B171: ITO setup | C171: 15 | AW171: 0
B172: Sum: | D172: =SUM(D165:D171) -> 0.0024501 | E172: 0 | F172: 0 | G172: 0 | H172: 0 | I172: 0 | J172: 0 | K172: 0 | L172: 0 | M172: 0 | N172: 0 | O172: 0 | P172: 0 | Q172: 0 | R172: 0 | S172: 0 | T172: 0 | U172: 0 | V172: 0 | W172: 0 | X172: 0 | Y172: 0 | Z172: 0 | AA172: 0 | AB172: 0 | AC172: 0 | AD172: 0 | AE172: 0 | AF172: 0 | AG172: =SUM(AG165:AG171) -> 0 | AW172: 0.0024501
B174: Transmission business unit - shared
B175: SS Onshore - Buildings | C175: 40 | Y175: -0.280733 | Z175: 0.00819 | AA175: -0.278094 | AD175: -0.095359 | AE175: -0.124866 | AW175: =SUM(D175:AU175) -> -0.770862
B176: SS Onshore - Compressor stations | C176: 25 | AW176: 0
B177: SS Onshore - Equipment | C177: 5 | Y177: 0.135839 | Z177: -0.003963 | AA177: 0.134562 | AB177: 0.0004797 | AD177: =0.046141-0.167843 -> -0.121702 | AE177: =0.060419-0.344399 -> -0.28398 | AW177: -0.1387643
B178: SS Onshore - GTTW | C178: 100 | AW178: 0
B179: SS Onshore - Land | C179: 40 | AW179: 0
B180: Pipelines/Above Ground Installations - S | C180: 50 | AW180: 0
B181: Sum: | D181: =SUM(D175:D180) -> 0 | E181: =SUM(E175:E180) -> 0 | F181: 0 | G181: 0 | H181: 0 | I181: 0 | J181: 0 | K181: 0 | L181: 0 | M181: 0 | N181: 0 | O181: 0 | P181: 0 | Q181: 0 | R181: 0 | S181: 0 | T181: 0 | U181: 0 | V181: 0 | W181: 0 | X181: 0 | Y181: -0.144894 | Z181: 0.004227 | AA181: -0.143532 | AB181: 0.0004797 | AC181: 0 | AD181: -0.217061 | AE181: -0.408846 | AF181: 0 | AG181: 0 | AW181: -0.9096263
B183: Total historic cost | D183: =D172+D181 -> 0.0024501 | E183: 0 | F183: 0 | G183: 0 | H183: 0 | I183: 0 | J183: 0 | K183: 0 | L183: 0 | M183: 0 | N183: 0 | O183: 0 | P183: 0 | Q183: 0 | R183: 0 | S183: 0 | T183: 0 | U183: 0 | V183: 0 | W183: 0 | X183: 0 | Y183: -0.144894 | Z183: 0.004227 | AA183: -0.143532 | AB183: 0.0004797 | AC183: 0 | AD183: -0.217061 | AE183: -0.408846 | AF183: 0 | AG183: 0 | AW183: =SUM(D183:AU183) -> -0.9071762
A185: @ Sept 07 | B185: Historic cost, nominal to 2010, 10/11 prices thereafter | AY185: Inch - Equipment
A186: Disposals allowed for | B186: Transmission business unit - direct | AY186: Inch - GTTW
B187: TBU Onshore - Buildings | C187: 40 | D187: =D143+D165 -> 0 | E187: =E143+E165 -> 0 | F187: 0 | G187: 0 | H187: 0 | I187: 0 | J187: 0 | K187: 0 | L187: 0 | M187: 0 | N187: 0.0622159 | O187: 0 | P187: 0 | Q187: 0 | R187: 0 | S187: 0 | T187: 0 | U187: 0 | V187: 0.60948063 | W187: 0 | X187: 0 | Y187: 0 | Z187: 0 | AA187: 0 | AB187: 0 | AC187: 0 | AD187: 0 | AE187: 0.68627706 | AF187: 0.02564663 | AG187: 0.18243192 | AW187: =SUM(D187:AU187) -> 1.56605214 | AY187: Inch - Land
B188: TBU Onshore - Compressor stations | C188: See Col AU | D188: 0 | E188: =E144+E166 -> 0 | F188: 0 | G188: 0 | H188: 0 | I188: 0 | J188: 0 | K188: 0 | L188: 0 | M188: 0 | N188: 0 | O188: 0 | P188: 0 | Q188: 0 | R188: 0 | S188: 0 | T188: 0 | U188: 0 | V188: 0 | W188: 0 | X188: 0 | Y188: 0 | Z188: 0 | AA188: 0 | AB188: 0.88324 | AC188: 0 | AD188: 0 | AE188: 0 | AF188: 0 | AG188: 0 | AW188: 0.88324 | AY188: IC1 - GTTW
B189: TBU Onshore - Equipment | C189: 5 | D189: 0 | E189: 0 | F189: 0 | G189: 0 | H189: 0 | I189: 0 | J189: 0 | K189: 0 | L189: 0 | M189: 0 | N189: 0.92025604 | O189: 0 | P189: 0.13520298 | Q189: 1.42382021 | R189: 0 | S189: 0 | T189: 2.75110913 | U189: 0.57627344 | V189: 0.95652668 | W189: 0.6422494 | X189: 0.32893183 | Y189: 7.58956152 | Z189: 2.06998329 | AA189: 0.49524114 | AB189: 3.47830617 | AC189: 1.19018624 | AD189: 7.79907559 | AE189: 1.41945849 | AF189: 0.41217755 | AG189: 1.22385956 | AW189: 33.41221926
B190: TBU Onshore - GTTW | C190: See Col AU | D190: 0 | E190: 0 | F190: 0 | G190: 0 | H190: 0 | I190: 0 | J190: 0 | K190: 0 | L190: 0 | M190: 0 | N190: 0 | O190: 0 | P190: 0 | Q190: 0 | R190: 0 | S190: 0 | T190: 0 | U190: 0 | V190: 0 | W190: 0 | X190: 0 | Y190: 0 | Z190: 0 | AA190: 5.16397711 | AB190: 375.8982153 | AC190: 5.71587361 | AD190: 1.46904611 | AE190: 3.34370512 | AF190: 0.01293652 | AG190: 0.06176168 | AW190: 391.6655154
B191: TBU Onshore - Land | C191: 40 | D191: 0 | E191: 0 | F191: 0 | G191: 0 | H191: 0 | I191: 0 | J191: 0 | K191: 0 | L191: 0 | M191: 0 | N191: 0 | O191: 0 | P191: 0 | Q191: 0 | R191: 0 | S191: 0 | T191: 1.12128921 | U191: 0 | V191: 0 | W191: 0 | X191: 0 | Y191: 0 | Z191: 0 | AA191: 0 | AB191: 0 | AC191: 0 | AD191: 0 | AE191: 0 | AF191: 0 | AG191: 0 | AW191: 1.12128921
B192: TBU Onshore - Pipelines/AGIs | C192: See Col AU | D192: 20.83517977 | E192: 2.56020209 | F192: 6.42535795 | G192: 0.4631882 | H192: 56.20011136 | I192: 16.64240309 | J192: 11.15107242 | K192: 3.21999869 | L192: 32.42221097 | M192: 11.72365212 | N192: 8.2579489 | O192: 1.55686764 | P192: 0.02691591 | Q192: 4.156961 | R192: 1.01579 | S192: 1.59326469 | T192: 7.5157872 | U192: 0.01176531 | V192: 3.82358495 | W192: 11.70250183 | X192: 17.98874403 | Y192: 84.70694089 | Z192: 50.20429185 | AA192: 3.06934333 | AB192: 6.2578228 | AC192: 18.14476814 | AD192: 8.62585307 | AE192: 3.79699191 | AF192: 0.516141 | AG192: 7.107696 | AW192: 401.7233571
B193: ITO setup | C193: 15 | D193: 0 | E193: 0 | F193: 0 | G193: 0 | H193: 0 | I193: 0 | J193: 0 | K193: 0 | L193: 0 | M193: 0 | N193: 0 | O193: 0 | P193: 0 | Q193: =Q149+Q171 -> 0 | R193: 0 | S193: 0 | T193: 0 | U193: 0 | V193: 0 | W193: 0 | X193: 0 | Y193: 0 | Z193: 0 | AA193: 0 | AB193: 0 | AC193: 0 | AD193: 0 | AE193: 0 | AF193: 0 | AG193: 0 | AW193: 0
B194: Sum: | D194: =SUM(D187:D193) -> 20.83517977 | E194: 2.56020209 | F194: 6.42535795 | G194: 0.4631882 | H194: 56.20011136 | I194: 16.64240309 | J194: 11.15107242 | K194: 3.21999869 | L194: 32.42221097 | M194: 11.72365212 | N194: 9.24042084 | O194: 1.55686764 | P194: 0.16211889 | Q194: 5.58078121 | R194: 1.01579 | S194: 1.59326469 | T194: 11.38818554 | U194: 0.58803875 | V194: 5.38959226 | W194: 12.34475123 | X194: 18.31767586 | Y194: 92.29650241 | Z194: 52.27427514 | AA194: 8.72856158 | AB194: 386.5175843 | AC194: 25.05082799 | AD194: 17.89397477 | AE194: 9.24643258 | AF194: 0.9669017 | AG194: =SUM(AG187:AG193) -> 8.57574916 | AW194: 830.3716732
B196: Transmission business unit - shared
B197: SS Onshore - Buildings | C197: 40 | D197: =D153+D175 -> 0 | E197: =E153+E175 -> 0 | F197: 0 | G197: 0 | H197: 0 | I197: 0 | J197: 0 | K197: 0 | L197: 0 | M197: 0.1047487458 | N197: 0 | O197: 0 | P197: 0 | Q197: 0 | R197: 0 | S197: 0 | T197: 0.0344424384 | U197: 0 | V197: 0 | W197: 0 | X197: 0 | Y197: 5.215420581 | Z197: 2.770051043 | AA197: 4.451985569 | AB197: 0.3629364711 | AC197: 0.1427909848 | AD197: 0.0635819215 | AE197: 0.0020452844 | AF197: 0 | AG197: 0 | AW197: =SUM(D197:AU197) -> 13.14800304
B198: SS Onshore - Compressor stations | C198: 25 | D198: 0 | E198: =E154+E176 -> 0 | F198: 0 | G198: 0 | H198: 0 | I198: 0 | J198: 0 | K198: 0 | L198: 0 | M198: 0 | N198: 0 | O198: 0 | P198: 0 | Q198: 0 | R198: 0 | S198: 0 | T198: 0 | U198: 0 | V198: 0 | W198: 0 | X198: 0 | Y198: 0 | Z198: 0 | AA198: 0 | AB198: 0 | AC198: 0 | AD198: 0 | AE198: 0 | AF198: 0 | AG198: 0 | AW198: 0
B199: SS Onshore - Equipment | C199: 5 | D199: 0 | E199: =E155+E177 -> 0 | F199: 0 | G199: 0 | H199: 0 | I199: 0 | J199: 0 | K199: 0 | L199: 0 | M199: 0 | N199: 0 | O199: 0 | P199: 0 | Q199: 0 | R199: 0 | S199: 0 | T199: 0.4248502515 | U199: 0.1293659355 | V199: 0.2756449485 | W199: 0.130458237 | X199: 0.218638554 | Y199: 0.851934221 | Z199: 0.4860911175 | AA199: 0.6263547045 | AB199: 0.3826696485 | AC199: 0.0950411115 | AD199: 0.5029601915 | AE199: -0.2045682645 | AF199: 0 | AG199: 0 | AW199: 3.919440657
B200: SS Onshore - GTTW | C200: 100 | D200: 0 | E200: =E156+E178 -> 0 | F200: 0 | G200: 0 | H200: 0 | I200: 0 | J200: 0 | K200: 0 | L200: 0 | M200: 0 | N200: 0 | O200: 0 | P200: 0 | Q200: 0 | R200: 0 | S200: 0 | T200: 0 | U200: 0 | V200: 0 | W200: 0 | X200: 0 | Y200: 0 | Z200: 0 | AA200: 0 | AB200: 0 | AC200: 0 | AD200: 0 | AE200: 0 | AF200: 0 | AG200: 0 | AW200: 0
B201: SS Onshore - Land | C201: 40 | D201: 0 | E201: =E157+E179 -> 0 | F201: 0 | G201: 0 | H201: 0 | I201: 0 | J201: 0 | K201: 0 | L201: 0 | M201: 0 | N201: 0 | O201: 0 | P201: 0 | Q201: 0 | R201: 0 | S201: 0.0627625256 | T201: 0.1700106774 | U201: 0 | V201: 0 | W201: 0.0109032394 | X201: 0 | Y201: 0 | Z201: 0 | AA201: 0 | AB201: 0 | AC201: 0 | AD201: 0 | AE201: 0 | AF201: 0 | AG201: 0 | AW201: 0.2436764424
B202: Pipelines/Above Ground Installations - S | C202: 50 | D202: 0 | E202: =E158+E180 -> 0 | F202: 0 | G202: 0 | H202: 0 | I202: 0 | J202: 0 | K202: 0 | L202: 0 | M202: 0 | N202: 0 | O202: 0 | P202: 0 | Q202: 0 | R202: 0 | S202: 0 | T202: 0 | U202: 0 | V202: 0 | W202: 0 | X202: 0 | Y202: 0 | Z202: 0 | AA202: 0 | AB202: 0 | AC202: 0 | AD202: 0 | AE202: 0 | AF202: 0 | AG202: 0 | AW202: 0
B203: Sum: | D203: =SUM(D197:D202) -> 0 | E203: 0 | F203: 0 | G203: 0 | H203: 0 | I203: 0 | J203: 0 | K203: 0 | L203: 0 | M203: 0.1047487458 | N203: 0 | O203: 0 | P203: 0 | Q203: 0 | R203: 0 | S203: 0.0627625256 | T203: 0.6293033673 | U203: 0.1293659355 | V203: 0.2756449485 | W203: 0.1413614764 | X203: 0.218638554 | Y203: 6.067354802 | Z203: 3.25614216 | AA203: 5.078340273 | AB203: 0.7456061196 | AC203: 0.2378320963 | AD203: 0.566542113 | AE203: -0.2025229801 | AF203: 0 | AG203: 0 | AW203: 17.31112014
B205: Total historic cost | D205: =D194+D203 -> 20.83517977 | E205: 2.56020209 | F205: 6.42535795 | G205: 0.4631882 | H205: 56.20011136 | I205: 16.64240309 | J205: 11.15107242 | K205: 3.21999869 | L205: 32.42221097 | M205: 11.82840087 | N205: 9.24042084 | O205: 1.55686764 | P205: 0.16211889 | Q205: 5.58078121 | R205: 1.01579 | S205: 1.656027216 | T205: 12.01748891 | U205: 0.7174046855 | V205: 5.665237209 | W205: 12.48611271 | X205: 18.53631441 | Y205: 98.36385721 | Z205: 55.5304173 | AA205: 13.80690185 | AB205: 387.2631904 | AC205: 25.28866009 | AD205: 18.46051688 | AE205: 9.0439096 | AF205: 0.9669017 | AG205: 8.57574916 | AW205: =SUM(D205:AU205) -> 847.6827933
B207: Indexed gross asset value in 2010/2011 prices
B208: =B186 -> Transmission business unit - direct
B209: TBU Onshore - Buildings | C209: =C187 -> 40 | D209: =D187*Indexation!B$4 -> 0 | E209: =E187*Indexation!C$4 -> 0 | F209: =F187*Indexation!D$4 -> 0 | G209: =G187*Indexation!E$4 -> 0 | H209: =H187*Indexation!F$4 -> 0 | I209: =I187*Indexation!G$4 -> 0 | J209: =J187*Indexation!H$4 -> 0 | K209: =K187*Indexation!I$4 -> 0 | L209: =L187*Indexation!J$4 -> 0 | M209: =M187*Indexation!K$4 -> 0 | N209: =N187*Indexation!L$4 -> 0.1091530963 | O209: =O187*Indexation!M$4 -> 0 | P209: =P187*Indexation!N$4 -> 0 | Q209: =Q187*Indexation!P$4 -> 0 | R209: =R187*Indexation!Q$4 -> 0 | S209: =S187*Indexation!R$4 -> 0 | T209: =T187*Indexation!S$4 -> 0 | U209: =U187*Indexation!T$4 -> 0 | V209: =V187*Indexation!U$4 -> 0.8514794383 | W209: =W187*Indexation!V$4 -> 0 | X209: =X187*Indexation!W$4 -> 0 | Y209: =Y187*Indexation!X$4 -> 0 | Z209: =Z187*Indexation!Y$4 -> 0 | AA209: =AA187*Indexation!Z$4 -> 0 | AB209: =AB187*Indexation!AA$4 -> 0 | AC209: =AC187*Indexation!AB$4 -> 0 | AD209: =AD187*Indexation!AC$4 -> 0 | AE209: =AE187*Indexation!AD$4 -> 0.7122273902 | AF209: =AF187*Indexation!AD$4 -> 0.02661641109 | AG209: =AG187*Indexation!AE$4 -> 0.1841733991 | AW209: =SUM(D209:AU209) -> 1.883649735
B210: TBU Onshore - Compressor stations | C210: See Col AU | D210: =D188*Indexation!B$4 -> 0 | E210: =E188*Indexation!C$4 -> 0 | F210: =F188*Indexation!D$4 -> 0 | G210: =G188*Indexation!E$4 -> 0 | H210: =H188*Indexation!F$4 -> 0 | I210: =I188*Indexation!G$4 -> 0 | J210: =J188*Indexation!H$4 -> 0 | K210: =K188*Indexation!I$4 -> 0 | L210: =L188*Indexation!J$4 -> 0 | M210: =M188*Indexation!K$4 -> 0 | N210: =N188*Indexation!L$4 -> 0 | O210: =O188*Indexation!M$4 -> 0 | P210: =P188*Indexation!N$4 -> 0 | Q210: =Q188*Indexation!P$4 -> 0 | R210: =R188*Indexation!Q$4 -> 0 | S210: =S188*Indexation!R$4 -> 0 | T210: =T188*Indexation!S$4 -> 0 | U210: =U188*Indexation!T$4 -> 0 | V210: =V188*Indexation!U$4 -> 0 | W210: =W188*Indexation!V$4 -> 0 | X210: =X188*Indexation!W$4 -> 0 | Y210: =Y188*Indexation!X$4 -> 0 | Z210: =Z188*Indexation!Y$4 -> 0 | AA210: =AA188*Indexation!Z$4 -> 0 | AB210: =AB188*Indexation!AA$4 -> 0.9842261314 | AC210: =AC188*Indexation!AB$4 -> 0 | AD210: =AD188*Indexation!AC$4 -> 0 | AE210: =AE188*Indexation!AD$4 -> 0 | AF210: =AF188*Indexation!AD$4 -> 0 | AG210: =AG188*Indexation!AE$4 -> 0 | AW210: 0.9842261314
B211: TBU Onshore - Equipment | C211: 5 | D211: =D189*Indexation!B$4 -> 0 | E211: =E189*Indexation!C$4 -> 0 | F211: =F189*Indexation!D$4 -> 0 | G211: =G189*Indexation!E$4 -> 0 | H211: =H189*Indexation!F$4 -> 0 | I211: =I189*Indexation!G$4 -> 0 | J211: =J189*Indexation!H$4 -> 0 | K211: =K189*Indexation!I$4 -> 0 | L211: =L189*Indexation!J$4 -> 0 | M211: =M189*Indexation!K$4 -> 0 | N211: =N189*Indexation!L$4 -> 1.614519699 | O211: =O189*Indexation!M$4 -> 0 | P211: =P189*Indexation!N$4 -> 0.2205804699 | Q211: =Q189*Indexation!P$4 -> 2.185340049 | R211: =R189*Indexation!Q$4 -> 0 | S211: =S189*Indexation!R$4 -> 0 | T211: =T189*Indexation!S$4 -> 3.963527042 | U211: =U189*Indexation!T$4 -> 0.8171633933 | V211: =V189*Indexation!U$4 -> 1.336322699 | W211: =W189*Indexation!V$4 -> 0.876229777 | X211: =X189*Indexation!W$4 -> 0.4416990791 | Y211: =Y189*Indexation!X$4 -> 9.65102321 | Z211: =Z189*Indexation!Y$4 -> 2.509273649 | AA211: =AA189*Indexation!Z$4 -> 0.5739396338 | AB211: =AB189*Indexation!AA$4 -> 3.876001795 | AC211: =AC189*Indexation!AB$4 -> 1.29644905 | AD211: =AD189*Indexation!AC$4 -> 8.312521134 | AE211: =AE189*Indexation!AD$4 -> 1.473132755 | AF211: =AF189*Indexation!AD$4 -> 0.4277633012 | AG211: =AG189*Indexation!AE$4 -> 1.235542416 | AW211: 40.81102915
B212: TBU Onshore - GTTW | C212: See Col AU | D212: =D190*Indexation!B$4 -> 0 | E212: =E190*Indexation!C$4 -> 0 | F212: =F190*Indexation!D$4 -> 0 | G212: =G190*Indexation!E$4 -> 0 | H212: =H190*Indexation!F$4 -> 0 | I212: =I190*Indexation!G$4 -> 0 | J212: =J190*Indexation!H$4 -> 0 | K212: =K190*Indexation!I$4 -> 0 | L212: =L190*Indexation!J$4 -> 0 | M212: =M190*Indexation!K$4 -> 0 | N212: =N190*Indexation!L$4 -> 0 | O212: =O190*Indexation!M$4 -> 0 | P212: =P190*Indexation!N$4 -> 0 | Q212: =Q190*Indexation!P$4 -> 0 | R212: =R190*Indexation!Q$4 -> 0 | S212: =S190*Indexation!R$4 -> 0 | T212: =T190*Indexation!S$4 -> 0 | U212: =U190*Indexation!T$4 -> 0 | V212: =V190*Indexation!U$4 -> 0 | W212: =W190*Indexation!V$4 -> 0 | X212: =X190*Indexation!W$4 -> 0 | Y212: =Y190*Indexation!X$4 -> 0 | Z212: =Z190*Indexation!Y$4 -> 0 | AA212: =AA190*Indexation!Z$4 -> 5.984581837 | AB212: =AB190*Indexation!AA$4 -> 418.8769148 | AC212: =AC190*Indexation!AB$4 -> 6.226201127 | AD212: =AD190*Indexation!AC$4 -> 1.565759518 | AE212: =AE190*Indexation!AD$4 -> 3.470141303 | AF212: =AF190*Indexation!AD$4 -> 0.01342569119 | AG212: =AG190*Indexation!AE$4 -> 0.06235125158 | AW212: 436.1993755
B213: TBU Onshore - Land | C213: 40 | D213: =D191*Indexation!B$4 -> 0 | E213: =E191*Indexation!C$4 -> 0 | F213: =F191*Indexation!D$4 -> 0 | G213: =G191*Indexation!E$4 -> 0 | H213: =H191*Indexation!F$4 -> 0 | I213: =I191*Indexation!G$4 -> 0 | J213: =J191*Indexation!H$4 -> 0 | K213: =K191*Indexation!I$4 -> 0 | L213: =L191*Indexation!J$4 -> 0 | M213: =M191*Indexation!K$4 -> 0 | N213: =N191*Indexation!L$4 -> 0 | O213: =O191*Indexation!M$4 -> 0 | P213: =P191*Indexation!N$4 -> 0 | Q213: =Q191*Indexation!P$4 -> 0 | R213: =R191*Indexation!Q$4 -> 0 | S213: =S191*Indexation!R$4 -> 0 | T213: =T191*Indexation!S$4 -> 1.615443043 | U213: =U191*Indexation!T$4 -> 0 | V213: =V191*Indexation!U$4 -> 0 | W213: =W191*Indexation!V$4 -> 0 | X213: =X191*Indexation!W$4 -> 0 | Y213: =Y191*Indexation!X$4 -> 0 | Z213: =Z191*Indexation!Y$4 -> 0 | AA213: =AA191*Indexation!Z$4 -> 0 | AB213: =AB191*Indexation!AA$4 -> 0 | AC213: =AC191*Indexation!AB$4 -> 0 | AD213: =AD191*Indexation!AC$4 -> 0 | AE213: =AE191*Indexation!AD$4 -> 0 | AF213: =AF191*Indexation!AD$4 -> 0 | AG213: =AG191*Indexation!AE$4 -> 0 | AW213: 1.615443043
B214: TBU Onshore - Pipelines/AGIs | C214: See Col AU | D214: =D192*Indexation!B$4 -> 95.3980957 | E214: =E192*Indexation!C$4 -> 10.35548096 | F214: =F192*Indexation!D$4 -> 21.98750124 | G214: =G192*Indexation!E$4 -> 1.316465706 | H214: =H192*Indexation!F$4 -> 136.4056453 | I214: =I192*Indexation!G$4 -> 36.58829159 | J214: =J192*Indexation!H$4 -> 22.57422793 | K214: =K192*Indexation!I$4 -> 6.184596263 | L214: =L192*Indexation!J$4 -> 59.93530759 | M214: =M192*Indexation!K$4 -> 21.00019545 | N214: =N192*Indexation!L$4 -> 14.48794748 | O214: =O192*Indexation!M$4 -> 2.626352555 | P214: =P192*Indexation!N$4 -> 0.04391267172 | Q214: =Q192*Indexation!P$4 -> 6.380281226 | R214: =R192*Indexation!Q$4 -> 1.536037302 | S214: =S192*Indexation!R$4 -> 2.352804294 | T214: =T192*Indexation!S$4 -> 10.82800587 | U214: =U192*Indexation!T$4 -> 0.01668336587 | V214: =V192*Indexation!U$4 -> 5.341767737 | W214: =W192*Indexation!V$4 -> 15.96588579 | X214: =X192*Indexation!W$4 -> 24.15580053 | Y214: =Y192*Indexation!X$4 -> 107.7148726 | Z214: =Z192*Indexation!Y$4 -> 60.8586104 | AA214: =AA192*Indexation!Z$4 -> 3.55709097 | AB214: =AB192*Indexation!AA$4 -> 6.973317247 | AC214: =AC192*Indexation!AB$4 -> 19.7647785 | AD214: =AD192*Indexation!AC$4 -> 9.19372881 | AE214: =AE192*Indexation!AD$4 -> 3.940568316 | AF214: =AF192*Indexation!AD$4 -> 0.5356579417 | AG214: =AG192*Indexation!AE$4 -> 7.175545442 | AW214: 715.1954568
B215: ITO setup | C215: 15
B216: Sum: | D216: =SUM(D209:D215) -> 95.3980957 | E216: 10.35548096 | F216: 21.98750124 | G216: 1.316465706 | H216: 136.4056453 | I216: 36.58829159 | J216: 22.57422793 | K216: 6.184596263 | L216: 59.93530759 | M216: 21.00019545 | N216: 16.21162027 | O216: 2.626352555 | P216: 0.2644931417 | Q216: 8.565621275 | R216: 1.536037302 | S216: 2.352804294 | T216: 16.40697595 | U216: 0.8338467592 | V216: 7.529569873 | W216: 16.84211557 | X216: 24.59749961 | Y216: 117.3658959 | Z216: 63.36788405 | AA216: 10.11561244 | AB216: 430.71046 | AC216: 27.28742868 | AD216: 19.07200946 | AE216: 9.596069764 | AF216: 1.003463345 | AG216: =SUM(AG209:AG215) -> 8.657612509 | AW216: =SUM(D216:AU216) -> 1196.68918
B218: =B196 -> Transmission business unit - shared
B219: SS Onshore - Buildings | C219: =C197 -> 40 | D219: =D197*Indexation!B$4 -> 0 | E219: =E197*Indexation!C$4 -> 0 | F219: =F197*Indexation!D$4 -> 0 | G219: =G197*Indexation!E$4 -> 0 | H219: =H197*Indexation!F$4 -> 0 | I219: =I197*Indexation!G$4 -> 0 | J219: =J197*Indexation!H$4 -> 0 | K219: =K197*Indexation!I$4 -> 0 | L219: =L197*Indexation!J$4 -> 0 | M219: =M197*Indexation!K$4 -> 0.18763301 | N219: =N197*Indexation!L$4 -> 0 | O219: =O197*Indexation!M$4 -> 0 | P219: =P197*Indexation!N$4 -> 0 | Q219: =Q197*Indexation!P$4 -> 0 | R219: =R197*Indexation!Q$4 -> 0 | S219: =S197*Indexation!R$4 -> 0 | T219: =T197*Indexation!S$4 -> 0.04962127256 | U219: =U197*Indexation!T$4 -> 0 | V219: =V197*Indexation!U$4 -> 0 | W219: =W197*Indexation!V$4 -> 0 | X219: =X197*Indexation!W$4 -> 0 | Y219: =Y197*Indexation!X$4 -> 6.632022804 | Z219: =Z197*Indexation!Y$4 -> 3.357909274 | AA219: =AA197*Indexation!Z$4 -> 5.159448117 | AB219: =AB197*Indexation!AA$4 -> 0.4044331766 | AC219: =AC197*Indexation!AB$4 -> 0.1555397217 | AD219: =AD197*Indexation!AC$4 -> 0.06776778352 | AE219: =AE197*Indexation!AD$4 -> 0.002122623144 | AF219: =AF197*Indexation!AD$4 -> 0 | AG219: =AG197*Indexation!AE$4 -> 0 | AW219: =SUM(D219:AU219) -> 16.01649778
B220: SS Onshore - Compressor stations | C220: 25 | D220: =D198*Indexation!B$4 -> 0 | E220: =E198*Indexation!C$4 -> 0 | F220: =F198*Indexation!D$4 -> 0 | G220: =G198*Indexation!E$4 -> 0 | H220: =H198*Indexation!F$4 -> 0 | I220: =I198*Indexation!G$4 -> 0 | J220: =J198*Indexation!H$4 -> 0 | K220: =K198*Indexation!I$4 -> 0 | L220: =L198*Indexation!J$4 -> 0 | M220: =M198*Indexation!K$4 -> 0 | N220: =N198*Indexation!L$4 -> 0 | O220: =O198*Indexation!M$4 -> 0 | P220: =P198*Indexation!N$4 -> 0 | Q220: =Q198*Indexation!P$4 -> 0 | R220: =R198*Indexation!Q$4 -> 0 | S220: =S198*Indexation!R$4 -> 0 | T220: =T198*Indexation!S$4 -> 0 | U220: =U198*Indexation!T$4 -> 0 | V220: =V198*Indexation!U$4 -> 0 | W220: =W198*Indexation!V$4 -> 0 | X220: =X198*Indexation!W$4 -> 0 | Y220: =Y198*Indexation!X$4 -> 0 | Z220: =Z198*Indexation!Y$4 -> 0 | AA220: =AA198*Indexation!Z$4 -> 0 | AB220: =AB198*Indexation!AA$4 -> 0 | AC220: =AC198*Indexation!AB$4 -> 0 | AD220: =AD198*Indexation!AC$4 -> 0 | AE220: =AE198*Indexation!AD$4 -> 0 | AF220: =AF198*Indexation!AD$4 -> 0 | AG220: =AG198*Indexation!AE$4 -> 0 | AW220: 0
B221: SS Onshore - Equipment | C221: 5 | D221: =D199*Indexation!B$4 -> 0 | E221: =E199*Indexation!C$4 -> 0 | F221: =F199*Indexation!D$4 -> 0 | G221: =G199*Indexation!E$4 -> 0 | H221: =H199*Indexation!F$4 -> 0 | I221: =I199*Indexation!G$4 -> 0 | J221: =J199*Indexation!H$4 -> 0 | K221: =K199*Indexation!I$4 -> 0 | L221: =L199*Indexation!J$4 -> 0 | M221: =M199*Indexation!K$4 -> 0 | N221: =N199*Indexation!L$4 -> 0 | O221: =O199*Indexation!M$4 -> 0 | P221: =P199*Indexation!N$4 -> 0 | Q221: =Q199*Indexation!P$4 -> 0 | R221: =R199*Indexation!Q$4 -> 0 | S221: =S199*Indexation!R$4 -> 0 | T221: =T199*Indexation!S$4 -> 0.6120823933 | U221: =U199*Indexation!T$4 -> 0.1834426151 | V221: =V199*Indexation!U$4 -> 0.3850918214 | W221: =W199*Indexation!V$4 -> 0.1779859848 | X221: =X199*Indexation!W$4 -> 0.2935941103 | Y221: =Y199*Indexation!X$4 -> 1.083334909 | Z221: =Z199*Indexation!Y$4 -> 0.5892490233 | AA221: =AA199*Indexation!Z$4 -> 0.7258883819 | AB221: =AB199*Indexation!AA$4 -> 0.4264225666 | AC221: =AC199*Indexation!AB$4 -> 0.1035266201 | AD221: =AD199*Indexation!AC$4 -> 0.5360721503 | AE221: =AE199*Indexation!AD$4 -> -0.2123036447 | AF221: =AF199*Indexation!AD$4 -> 0 | AG221: =AG199*Indexation!AE$4 -> 0 | AW221: 4.904386931
B222: SS Onshore - GTTW | C222: 100 | D222: =D200*Indexation!B$4 -> 0 | E222: =E200*Indexation!C$4 -> 0 | F222: =F200*Indexation!D$4 -> 0 | G222: =G200*Indexation!E$4 -> 0 | H222: =H200*Indexation!F$4 -> 0 | I222: =I200*Indexation!G$4 -> 0 | J222: =J200*Indexation!H$4 -> 0 | K222: =K200*Indexation!I$4 -> 0 | L222: =L200*Indexation!J$4 -> 0 | M222: =M200*Indexation!K$4 -> 0 | N222: =N200*Indexation!L$4 -> 0 | O222: =O200*Indexation!M$4 -> 0 | P222: =P200*Indexation!N$4 -> 0 | Q222: =Q200*Indexation!P$4 -> 0 | R222: =R200*Indexation!Q$4 -> 0 | S222: =S200*Indexation!R$4 -> 0 | T222: =T200*Indexation!S$4 -> 0 | U222: =U200*Indexation!T$4 -> 0 | V222: =V200*Indexation!U$4 -> 0 | W222: =W200*Indexation!V$4 -> 0 | X222: =X200*Indexation!W$4 -> 0 | Y222: =Y200*Indexation!X$4 -> 0 | Z222: =Z200*Indexation!Y$4 -> 0 | AA222: =AA200*Indexation!Z$4 -> 0 | AB222: =AB200*Indexation!AA$4 -> 0 | AC222: =AC200*Indexation!AB$4 -> 0 | AD222: =AD200*Indexation!AC$4 -> 0 | AE222: =AE200*Indexation!AD$4 -> 0 | AF222: =AF200*Indexation!AD$4 -> 0 | AG222: =AG200*Indexation!AE$4 -> 0 | AW222: 0
B223: SS Onshore - Land | C223: 40 | D223: =D201*Indexation!B$4 -> 0 | E223: =E201*Indexation!C$4 -> 0 | F223: =F201*Indexation!D$4 -> 0 | G223: =G201*Indexation!E$4 -> 0 | H223: =H201*Indexation!F$4 -> 0 | I223: =I201*Indexation!G$4 -> 0 | J223: =J201*Indexation!H$4 -> 0 | K223: =K201*Indexation!I$4 -> 0 | L223: =L201*Indexation!J$4 -> 0 | M223: =M201*Indexation!K$4 -> 0 | N223: =N201*Indexation!L$4 -> 0 | O223: =O201*Indexation!M$4 -> 0 | P223: =P201*Indexation!N$4 -> 0 | Q223: =Q201*Indexation!P$4 -> 0 | R223: =R201*Indexation!Q$4 -> 0 | S223: =S201*Indexation!R$4 -> 0.09268261619 | T223: =T201*Indexation!S$4 -> 0.2449346374 | U223: =U201*Indexation!T$4 -> 0 | V223: =V201*Indexation!U$4 -> 0 | W223: =W201*Indexation!V$4 -> 0.01487544095 | X223: =X201*Indexation!W$4 -> 0 | Y223: =Y201*Indexation!X$4 -> 0 | Z223: =Z201*Indexation!Y$4 -> 0 | AA223: =AA201*Indexation!Z$4 -> 0 | AB223: =AB201*Indexation!AA$4 -> 0 | AC223: =AC201*Indexation!AB$4 -> 0 | AD223: =AD201*Indexation!AC$4 -> 0 | AE223: =AE201*Indexation!AD$4 -> 0 | AF223: =AF201*Indexation!AD$4 -> 0 | AG223: =AG201*Indexation!AE$4 -> 0 | AW223: 0.3524926946
B224: Pipelines/Above Ground Installations - S | C224: 50 | D224: =D202*Indexation!B$4 -> 0 | E224: =E202*Indexation!C$4 -> 0 | F224: =F202*Indexation!D$4 -> 0 | G224: =G202*Indexation!E$4 -> 0 | H224: =H202*Indexation!F$4 -> 0 | I224: =I202*Indexation!G$4 -> 0 | J224: =J202*Indexation!H$4 -> 0 | K224: =K202*Indexation!I$4 -> 0 | L224: =L202*Indexation!J$4 -> 0 | M224: =M202*Indexation!K$4 -> 0 | N224: =N202*Indexation!L$4 -> 0 | O224: =O202*Indexation!M$4 -> 0 | P224: =P202*Indexation!N$4 -> 0 | Q224: =Q202*Indexation!P$4 -> 0 | R224: =R202*Indexation!Q$4 -> 0 | S224: =S202*Indexation!R$4 -> 0 | T224: =T202*Indexation!S$4 -> 0 | U224: =U202*Indexation!T$4 -> 0 | V224: =V202*Indexation!U$4 -> 0 | W224: =W202*Indexation!V$4 -> 0 | X224: =X202*Indexation!W$4 -> 0 | Y224: =Y202*Indexation!X$4 -> 0 | Z224: =Z202*Indexation!Y$4 -> 0 | AA224: =AA202*Indexation!Z$4 -> 0 | AB224: =AB202*Indexation!AA$4 -> 0 | AC224: =AC202*Indexation!AB$4 -> 0 | AD224: =AD202*Indexation!AC$4 -> 0 | AE224: =AE202*Indexation!AD$4 -> 0 | AF224: =AF202*Indexation!AD$4 -> 0 | AG224: =AG202*Indexation!AE$4 -> 0 | AW224: 0
B225: Sum: | D225: =SUM(D219:D224) -> 0 | E225: 0 | F225: 0 | G225: 0 | H225: 0 | I225: 0 | J225: 0 | K225: 0 | L225: 0 | M225: 0.18763301 | N225: 0 | O225: 0 | P225: 0 | Q225: 0 | R225: 0 | S225: 0.09268261619 | T225: 0.9066383032 | U225: 0.1834426151 | V225: 0.3850918214 | W225: 0.1928614257 | X225: 0.2935941103 | Y225: 7.715357713 | Z225: 3.947158297 | AA225: 5.885336499 | AB225: 0.8308557432 | AC225: 0.2590663417 | AD225: 0.6038399338 | AE225: -0.2101810216 | AF225: 0 | AG225: 0 | AW225: 21.27337741
B227: Total indexed gross asset value | D227: =D216+D225 -> 95.3980957 | E227: 10.35548096 | F227: 21.98750124 | G227: 1.316465706 | H227: 136.4056453 | I227: 36.58829159 | J227: 22.57422793 | K227: 6.184596263 | L227: 59.93530759 | M227: 21.18782846 | N227: 16.21162027 | O227: 2.626352555 | P227: 0.2644931417 | Q227: 8.565621275 | R227: 1.536037302 | S227: 2.445486911 | T227: 17.31361426 | U227: 1.017289374 | V227: 7.914661695 | W227: 17.03497699 | X227: 24.89109372 | Y227: 125.0812536 | Z227: 67.31504235 | AA227: 16.00094894 | AB227: 431.5413157 | AC227: 27.54649502 | AD227: 19.6758494 | AE227: 9.385888742 | AF227: 1.003463345 | AG227: 8.657612509 | AW227: =SUM(D227:AU227) -> 1217.962558
... 785 more rows

Sheet Indexation
B2: 1978 | C2: 1979 | D2: 1980 | E2: 1981 | F2: 1982 | G2: 1983 | H2: 1984 | I2: 1985 | J2: 1986 | K2: 1987 | L2: 1988 | M2: 1989 | N2: 1990 | O2: 1991 | P2: 1992 | Q2: 1993 | R2: 1994 | S2: 1995 | T2: 1996 | U2: 1997 | V2: 1998 | W2: 1999 | X2: 2000 | Y2: 2001 | Z2: 2002 | AA2: 2003 | AB2: 2004 | AC2: 2005 | AD2: 2006 | AE2: 2007 | AF2: 2008 | AG2: 2009 | AH2: 2010 | AI2: 2011 | AJ2: 2012
A3: Indexation (CPI to 2001, HICP for 2002 & later years) | B3: 0.076 | C3: 0.132 | D3: 0.182 | E3: 0.204 | F3: 0.171 | G3: 0.104 | H3: 0.086 | I3: 0.054 | J3: 0.039 | K3: 0.032 | L3: 0.021 | M3: 0.04 | N3: 0.034 | O3: 0.032 | P3: 0.03 | Q3: 0.015 | R3: 0.024 | S3: 0.025 | T3: 0.016 | U3: 0.015 | V3: 0.024 | W3: 0.016 | X3: 0.056 | Y3: 0.049 | Z3: 0.046 | AA3: 0.04 | AB3: 0.023 | AC3: 0.022 | AD3: 0.027 | AE3: 0.028 | AF3: 0.031 | AG3: -0.017 | AH3: -0.016 | AI3: 0.0123222749
A4: Multiplier to bring to 2011 prices | B4: =1*(1+C3)*C4 -> 4.578702788 | C4: 4.044790449 | D4: 3.421988535 | E4: 2.842183169 | F4: 2.427141903 | G4: 2.198498101 | H4: 2.024399724 | I4: =1*(1+J3)*J4 -> 1.920682851 | J4: 1.848587922 | K4: 1.791267366 | L4: 1.754424452 | M4: 1.686946589 | N4: =1*(1+O3)*O4 -> 1.631476392 | O4: 1.580887976 | P4: 1.534842695 | Q4: 1.512160291 | R4: 1.476719034 | S4: 1.440701497 | T4: 1.418013284 | U4: 1.397057423 | V4: 1.36431389 | W4: 1.342828631 | X4: 1.271618022 | Y4: 1.212219278 | Z4: 1.158909443 | AA4: 1.114336003 | AB4: =1*(1+AC3)*AC4 -> 1.089282505 | AC4: =1*(1+AD3)*AD4 -> 1.065834154 | AD4: 1.037813198 | AE4: 1.009545912 | AF4: 0.9791909915 | AG4: 0.9961251185 | AH4: =1*(1+AI3) -> 1.012322275 | AI4: 1 | AJ4: =1-AJ3 -> 1
B6: 05/06 | C6: 06/07 | D6: 07/08 | E6: 08/09 | F6: 09/10 | G6: 10/11
A7: Indexation | C7: 0.029 | D7: 0.037 | E7: -0.007 | F7: -0.024 | G7: 0.012 | I7: Ref: These are Irish HICP figures on an April to March basis
A8: Multiplier to bring to 10/11 prices | B8: =1*(1+C7)*(1+D7)*(1+E7)*(1+F7)*(1+G7) -> 1.046583081 | C8: =1*(1+D7)*(1+E7)*(1+F7)*(1+G7) -> 1.017087543 | D8: =1*(1+E7)*(1+F7)*(1+G7) -> 0.980798016 | E8: =1*(1+F7)*(1+G7) -> 0.987712 | F8: =1*(1+G7) -> 1.012 | G8: =1 -> 1

Sheet Calc of PC1 & PC2 adj.
B1: Calculation of adjustments relating to PC2 & PC1 and allocation for recovery
B2: Onshore
D4: 2012/13 | E4: 2013/14 | F4: 2014/15 | G4: 2015/16 | H4: 2016/17 | I4: Total
B5: PC2 k factor | C5: €m | D5: =PC2_inputs!I106 -> 0.3
B6: PC2 adjustment due to capex underspend | C6: €m | D6: =PC2_inputs!I103*(1+PC2_inputs!$K$2)^5 -> -21.54508885
B7: PC2 adjustment due to capex negative scope/efficiency | C7: €m | D7: =PC2_inputs!I198 -> -1.12992329
B8: PC1 adjustment due to capex underspend | C8: €m | D8: =PC1_inputs!C118*(1+PC2_inputs!$K$2)^6+PC1_inputs!C103*(1+PC2_inputs!$K$2)^7 -> 7.138973541
B9: Revenue due to efficiency savings & efficient deferrals | C9: €m | D9: =PC2_inputs!M133+PC2_inputs!M159+PC1_inputs!I146+PC1_inputs!I172 -> 13.81922491
B10: Deferral | C10: €m | D10: 0 | E10: =-D10*(1+PC3_inputs!J3) -> 0
B12: Total | C12: €m | D12: =SUM(D5:D10) -> -1.416813685 | E12: =SUM(E5:E10) -> 0 | F12: =SUM(F5:F10) -> 0 | G12: =SUM(G5:G10) -> 0 | H12: =SUM(H5:H10) -> 0 | I12: =SUM(D12:H12) -> -1.416813685
B14: Inch
D16: 2012/13 | E16: 2013/14 | F16: 2014/15 | G16: 2015/16 | H16: 2016/17 | I16: Total
B17: PC2 k factor | C17: €m | D17: =PC2_inputs!Y106 -> 0
B18: PC2 adjustment due to capex underspend | C18: €m | D18: =PC2_inputs!Y103*(1+PC2_inputs!$K$2)^5 -> -0.7344076455
B19: PC2 adjustment due to capex negative scope/efficiency | C19: €m | D19: =PC2_inputs!Y198 -> 0
B20: PC1 adjustment due to capex underspend | C20: €m | D20: =PC1_inputs!D118*(1+PC2_inputs!$K$2)^6 -> 0.308731491
B21: Revenue due to efficiency savings & efficient deferrals | C21: €m | D21: =PC2_inputs!AC133+PC2_inputs!AC159+PC1_inputs!U146+PC1_inputs!U172 -> 1.071941271
B22: Deferral | C22: €m | D22: 0 | E22: =-D22*(1+PC3_inputs!J3) -> 0
B24: Total | C24: €m | D24: =SUM(D17:D22) -> 0.6462651166 | E24: =SUM(E17:E22) -> 0 | F24: =SUM(F17:F22) -> 0 | G24: =SUM(G17:G22) -> 0 | H24: =SUM(H17:H22) -> 0 | I24: =SUM(D24:H24) -> 0.6462651166
B26: Interconnectors
D28: 2012/13 | E28: 2013/14 | F28: 2014/15 | G28: 2015/16 | H28: 2016/17 | I28: Total
B29: PC2 k factor | C29: €m | D29: =PC2_inputs!AO106 -> 0
B30: PC2 adjustment due to capex underspend | C30: €m | D30: =PC2_inputs!AO103*(1+PC2_inputs!$K$2)^5 -> -5.933240286
B31: PC2 adjustment due to capex negative scope/efficiency | C31: €m | D31: =PC2_inputs!AO198 -> 0
B32: PC1 adjustment due to capex underspend | C32: €m | D32: =PC1_inputs!E118*(1+PC2_inputs!$K$2)^6 -> 3.364985912
B33: Revenue due to efficiency savings & efficient deferrals | C33: €m | D33: =PC2_inputs!AS133+PC2_inputs!AS159+PC1_inputs!AG146+PC1_inputs!AG172 -> 1.303441856
B34: Deferral | C34: €m | D34: 0 | E34: =-D34*(1+PC3_inputs!J3) -> 0
B36: Total | C36: €m | D36: =SUM(D29:D34) -> -1.264812518 | E36: =SUM(E29:E34) -> 0 | F36: =SUM(F29:F34) -> 0 | G36: =SUM(G29:G34) -> 0 | H36: =SUM(H29:H34) -> 0 | I36: =SUM(D36:H36) -> -1.264812518

Sheet Calc of total rev
C1: Year of control | D1: -1 | E1: 0 | F1: 1 | G1: 2 | H1: 3 | I1: 4 | J1: 5
C2: Gas year | D2: 2010/11 | E2: 2011/12 | F2: 2012/13 | G2: 2013/14 | H2: 2014/15 | I2: 2015/16 | J2: 2016/17
B4: Onshore
B5: Regulated Asset Base (RAB)
B6: Opening RAB | F6: =PC3_inputs!D133 -> 853.7601143 | G6: =PC3_inputs!E133 -> 860.2850573 | H6: =PC3_inputs!F133 -> 858.3000418 | I6: =PC3_inputs!G133 -> 851.6752873 | J6: =PC3_inputs!H133 -> 845.2150139
B7: Closing RAB | F7: =PC3_inputs!D134 -> 860.2850573 | G7: =PC3_inputs!E134 -> 858.3000418 | H7: =PC3_inputs!F134 -> 851.6752873 | I7: =PC3_inputs!G134 -> 845.2150139 | J7: =PC3_inputs!H134 -> 832.8665428
B10: Required revenue for the period
B11: Revenue to reimburse opex & clawbacks / deferrals
B12: Opex | F12: =PC3_inputs!D51 -> 45.29039582 | G12: =PC3_inputs!E51 -> 44.79037857 | H12: =PC3_inputs!F51 -> 45.98384264 | I12: =PC3_inputs!G51 -> 46.97226094 | J12: =PC3_inputs!H51 -> 45.98027796
B13: Net Present Value (NPV) of opex | F13: =F12/PC3_inputs!D12 -> 43.90921893 | G13: =G12/PC3_inputs!E12 -> 41.04649275 | H13: =H12/PC3_inputs!F12 -> 40.05722332 | I13: =I12/PC3_inputs!G12 -> 38.89567443 | J13: =J12/PC3_inputs!H12 -> 36.19225925
B14: Deferral or clawback adjustment | F14: ='Calc of PC1 & PC2 adj.'!D12 -> -1.416813685 | G14: ='Calc of PC1 & PC2 adj.'!E12 -> 0 | H14: ='Calc of PC1 & PC2 adj.'!F12 -> 0 | I14: ='Calc of PC1 & PC2 adj.'!G12 -> 0 | J14: ='Calc of PC1 & PC2 adj.'!H12 -> 0
B15: Net Present Value (NPV) of opex and clawbacks/deferrals | C15: =SUM(F15:J15) -> 198.684055 | F15: =F13+F14 -> 42.49240525 | G15: =G13+G14 -> 41.04649275 | H15: =H13+H14 -> 40.05722332 | I15: =I13+I14 -> 38.89567443 | J15: =J13+J14 -> 36.19225925
B17: Revenue to reimburse capex incurred in PR3
B18: Capex incurred in PR3 | F18: =PC3_inputs!D89+PC3_inputs!D99 -> 43.00645356 | G18: =PC3_inputs!E89+PC3_inputs!E99 -> 32.35904146 | H18: =PC3_inputs!F89+PC3_inputs!F99 -> 27.59197732 | I18: =PC3_inputs!G89+PC3_inputs!G99 -> 27.74850321 | J18: =PC3_inputs!H89+PC3_inputs!H99 -> 23.05704815
B19: Net Present Value (NPV) | C19: =SUM(F19:J19) -> 136.511087 | F19: =F18/PC3_inputs!D12 -> 41.69492782 | G19: =G18/PC3_inputs!E12 -> 29.65425171 | H19: =H18/PC3_inputs!F12 -> 24.03579026 | I19: =I18/PC3_inputs!G12 -> 22.97732162 | J19: =J18/PC3_inputs!H12 -> 18.14879555
B22: Revenue to reimburse change in RAB
B23: Opening RAB balance | C23: =F6 -> 853.7601143
B24: NPV of closing RAB balance | C24: =J7/PC3_inputs!H11 -> 639.1630319
B25: Difference | C25: =C23-C24 -> 214.5970824
B27: Total required revenue for the period (NPV
B28: Revenue to reimburse opex & clawbacks / deferrals | C28: =C15 -> 198.684055
B29: Revenue to reimburse capex | C29: =C19 -> 136.511087
B30: Revenue to reimburse change in RAB | C30: =C25 -> 214.5970824
B31: Total revenue required for the period (NPV) | C31: =SUM(C28:C30) -> 549.7922244
B34: Inch
B35: Regulated Asset Base (RAB)
B36: Opening RAB | F36: =PC3_inputs!D138 -> 8.980090399 | G36: =PC3_inputs!E138 -> 9.240100767 | H36: =PC3_inputs!F138 -> 9.457769461 | I36: =PC3_inputs!G138 -> 9.371936112 | J36: =PC3_inputs!H138 -> 9.213716142
B37: Closing RAB | F37: =PC3_inputs!D139 -> 9.240100767 | G37: =PC3_inputs!E139 -> 9.457769461 | H37: =PC3_inputs!F139 -> 9.371936112 | I37: =PC3_inputs!G139 -> 9.213716142 | J37: =PC3_inputs!H139 -> 8.694410031
B40: Required revenue for the period
B41: Revenue to reimburse opex & clawbacks / deferrals
B42: Opex | F42: =PC3_inputs!D62 -> 1.061579653 | G42: =PC3_inputs!E62 -> 1.065760788 | H42: =PC3_inputs!F62 -> 1.089725746 | I42: =PC3_inputs!G62 -> 1.140928511 | J42: =PC3_inputs!H62 -> 1.098790836
B43: Net Present Value (NPV) of opex | F43: =F42/PC3_inputs!D12 -> 1.029205697 | G43: =G42/PC3_inputs!E12 -> 0.9766772209 | H43: =H42/PC3_inputs!F12 -> 0.9492766382 | I43: =I42/PC3_inputs!G12 -> 0.9447529887 | J43: =J42/PC3_inputs!H12 -> 0.8648865242
B44: Deferral or clawback adjustment | F44: ='Calc of PC1 & PC2 adj.'!D24 -> 0.6462651166 | G44: ='Calc of PC1 & PC2 adj.'!E24 -> 0 | H44: ='Calc of PC1 & PC2 adj.'!F24 -> 0 | I44: ='Calc of PC1 & PC2 adj.'!G24 -> 0 | J44: ='Calc of PC1 & PC2 adj.'!H24 -> 0
B45: Net Present Value (NPV) of opex and clawbacks/deferrals | C45: =SUM(F45:J45) -> 5.411064185 | F45: =F43+F44 -> 1.675470813 | G45: =G43+G44 -> 0.9766772209 | H45: =H43+H44 -> 0.9492766382 | I45: =I43+I44 -> 0.9447529887 | J45: =J43+J44 -> 0.8648865242
B47: Revenue to reimburse capex incurred in PR3
B48: Capex incurred in PR3 | F48: =PC3_inputs!D109 -> 0.885 | G48: =PC3_inputs!E109 -> 0.88 | H48: =PC3_inputs!F109 -> 0.60988662 | I48: =PC3_inputs!G109 -> 0.5649874 | J48: =PC3_inputs!H109 -> 0.21
B49: Net Present Value (NPV) | C49: =SUM(F49:J49) -> 2.828873852 | F49: =F48/PC3_inputs!D12 -> 0.8580110209 | G49: =G48/PC3_inputs!E12 -> 0.8064435883 | H49: =H48/PC3_inputs!F12 -> 0.5312814923 | I49: =I48/PC3_inputs!G12 -> 0.46784135 | J49: =J48/PC3_inputs!H12 -> 0.1652964005
B52: Revenue to reimburse change in RAB
B53: Opening RAB balance | C53: =F36 -> 8.980090399
B54: NPV of closing RAB balance | C54: =J37/PC3_inputs!H11 -> 6.672312058
B55: Difference | C55: =C53-C54 -> 2.307778341
B57: Total required revenue for the period (NPV
B58: Revenue to reimburse opex & clawbacks / deferrals | C58: =C45 -> 5.411064185
B59: Revenue to reimburse capex | C59: =C49 -> 2.828873852
B60: Revenue to reimburse change in RAB | C60: =C55 -> 2.307778341
B61: Total revenue required for the period (NPV) | C61: =SUM(C58:C60) -> 10.54771638
B64: Interconnectors
B65: Regulated Asset Base (RAB)
B66: Opening RAB | F66: =PC3_inputs!D143 -> 560.6997932 | G66: =PC3_inputs!E143 -> 548.3713441 | H66: =PC3_inputs!F143 -> 533.6751454 | I66: =PC3_inputs!G143 -> 519.9873632 | J66: =PC3_inputs!H143 -> 504.6592788
B67: Closing RAB | F67: =PC3_inputs!D144 -> 548.3713441 | G67: =PC3_inputs!E144 -> 533.6751454 | H67: =PC3_inputs!F144 -> 519.9873632 | I67: =PC3_inputs!G144 -> 504.6592788 | J67: =PC3_inputs!H144 -> 488.8246731
B70: Required revenue for the period
B71: Revenue to reimburse opex & clawbacks / deferrals
B72: Opex | F72: =PC3_inputs!D75 -> 10.92485181 | G72: =PC3_inputs!E75 -> 14.02890719 | H72: =PC3_inputs!F75 -> 14.48338881 | I72: =PC3_inputs!G75 -> 14.49155826 | J72: =PC3_inputs!H75 -> 15.92935772
B73: Net Present Value (NPV) of opex | F73: =F72/PC3_inputs!D12 -> 10.5916873 | G73: =G72/PC3_inputs!E12 -> 12.85627529 | H73: =H72/PC3_inputs!F12 -> 12.61669984 | I73: =I72/PC3_inputs!G12 -> 11.99982545 | J73: =J72/PC3_inputs!H12 -> 12.53840711
B74: Deferral or clawback adjustment | F74: ='Calc of PC1 & PC2 adj.'!D36 -> -1.264812518 | G74: ='Calc of PC1 & PC2 adj.'!E36 -> 0 | H74: ='Calc of PC1 & PC2 adj.'!F36 -> 0 | I74: ='Calc of PC1 & PC2 adj.'!G36 -> 0 | J74: ='Calc of PC1 & PC2 adj.'!H36 -> 0
B75: Net Present Value (NPV) of opex and clawbacks/deferrals | C75: =SUM(F75:J75) -> 59.33808247 | F75: =F73+F74 -> 9.326874779 | G75: =G73+G74 -> 12.85627529 | H75: =H73+H74 -> 12.61669984 | I75: =I73+I74 -> 11.99982545 | J75: =J73+J74 -> 12.53840711
B77: Revenue to reimburse capex incurred in PR3
B78: Capex incurred in PR3 | F78: =PC3_inputs!D118+PC3_inputs!D126 -> 5.92 | G78: =PC3_inputs!E118+PC3_inputs!E126 -> 3.822 | H78: =PC3_inputs!F118+PC3_inputs!F126 -> 5.078318244 | I78: =PC3_inputs!G118+PC3_inputs!G126 -> 3.663479805 | J78: =PC3_inputs!H118+PC3_inputs!H126 -> 3.271
B79: Net Present Value (NPV) | C79: =SUM(F79:J79) -> 19.27405037 | F79: =F78/PC3_inputs!D12 -> 5.739463552 | G79: =G78/PC3_inputs!E12 -> 3.50253113 | H79: =H78/PC3_inputs!F12 -> 4.423800107 | I79: =I78/PC3_inputs!G12 -> 3.033567364 | J79: =J78/PC3_inputs!H12 -> 2.574688219
B82: Revenue to reimburse change in RAB
B83: Opening RAB balance | C83: =F66 -> 560.6997932
B84: NPV of closing RAB balance | C84: =J67/PC3_inputs!H11 -> 375.1365244
B85: Difference | C85: =C83-C84 -> 185.5632688
B87: Total required revenue for the period (NPV
B88: Revenue to reimburse opex & clawbacks / deferrals | C88: =C75 -> 59.33808247
B89: Revenue to reimburse capex | C89: =C79 -> 19.27405037
B90: Revenue to reimburse change in RAB | C90: =C85 -> 185.5632688
B91: Total revenue required for the period (NPV) | C91: =SUM(C88:C90) -> 264.1754017

Sheet Outputs1
D1: P0 | E1: Year 1 to 2 | F1: Year 2 to 3 | G1: Year 3 to 4 | H1: Year 4 to 5
B2: Inch gas | C2: Commodity | D2: =((E30+E87)-(PC2_inputs!E23+PC2_inputs!F23))/(PC2_inputs!E23+PC2_inputs!F23) -> 0.1684589668 | E2: =((E30+E87)-(F30+F87))/(E30+E87) -> 0.0842312399 | F2: =((F30+F87)-(G30+G87))/(F30+F87) -> 0.0295006605 | G2: =((G30+G87)-(H30+H87))/(G30+G87) -> -0.0002006003557 | H2: =((H30+H87)-(I30+I87))/(H30+H87) -> 0
C3: Capacity | D3: =((E41+E99)-(PC2_inputs!E24+PC2_inputs!F24))/(PC2_inputs!E24+PC2_inputs!F24) -> 0.136533668 | E3: =((F41+F99)-(E41+E99))/(E41+E99) -> 0.04812951583 | F3: =((G41+G99)-(F41+F99))/(F41+F99) -> -0.02366794638 | G3: =((H41+H99)-(G41+G99))/(G41+G99) -> 0.0002036782386 | H3: =((I41+I99)-(H41+H99))/(H41+H99) -> 0
B4: UK gas | C4: Commodity | D4: =((E30+E144)-(PC2_inputs!E23+PC2_inputs!G23))/(PC2_inputs!E23+PC2_inputs!G23) -> 0.1725418189 | E4: =((F30+F144)-(E30+E144))/(E30+E144) -> 0.2343522405 | F4: =((G30+G144)-(F30+F144))/(F30+F144) -> -0.1545071599 | G4: =((H30+H144)-(G30+G144))/(G30+G144) -> 0.0003497405875 | H4: =((I30+I144)-(H30+H144))/(H30+H144) -> 0
C5: Capacity | D5: =((E41+E155)-(PC2_inputs!E24+PC2_inputs!G24))/(PC2_inputs!E24+PC2_inputs!G24) -> 0.1689924019 | E5: =((F41+F155)-(E41+E155))/(E41+E155) -> 0.3138031432 | F5: =((G41+G155)-(F41+F155))/(F41+F155) -> -0.1346140101 | G5: =((H41+H155)-(G41+G155))/(G41+G155) -> 0.0004156618527 | H5: =((I41+I155)-(H41+H155))/(H41+H155) -> 0
E7: 1 | F7: 2 | G7: 3 | H7: 4 | I7: 5
E8: 2012/13 | F8: 2013/14 | G8: 2014/15 | H8: 2015/16 | I8: 2016/17
A10: Onshore
B11: SPLIT OF REVENUE REQUIRED FROM COMMODITY & CAPACITY CHARGES
C12: Onshore
B13: Proportion of revenue from commodity | C13: =PC3_inputs!B15 -> 0.1
B14: Proportion of revenue from capacity | C14: =PC3_inputs!B16 -> 0.9
B16: NPV of revenue required from commodity (€m) | C16: ='Calc of total rev'!C31*C13 -> 54.97922244
B17: NPV of revenue required from capacity (€m) | C17: =C14*'Calc of total rev'!C31 -> 494.8130019
B19: Conversion from €m to € for | C19: =PC3_inputs!B19 -> 1000000
B21: NPV of revenue required from commodity (€) | C21: =C16*C19 -> 54979222.44
B22: NPV of revenue required from capacity (€) | C22: =C17*C19 -> 494813001.9
B24: ALLOWED REVENUE AND PRICES - COMMODITY
C25: 0
B26: Change from year to year | C26: ='Transmission 12 13'!T34 -> 0.04397253675 | D26: 0.137088547 | E26: -0.03499963821 | F26: 0.0001079226073 | G26: 0
B28: NPV revenue received less NPV revenue required, € | C28: =C33-C21 -> 0
E29: Onshore | J29: =IF(J5=1,(PC2_inputs!J23*(1+$C$26)),(I30*(1+#REF!))) ->  | K29: =IF(K5=1,(PC2_inputs!K23*(1+$C$26)),(J29*(1+#REF!))) ->  | L29: =IF(L5=1,(PC2_inputs!L23*(1+$C$26)),(K29*(1+#REF!))) ->  | M29: =IF(M5=1,(PC2_inputs!M23*(1+$C$26)),(L29*(1+#REF!))) ->  | N29: =IF(N5=1,(PC2_inputs!N23*(1+$C$26)),(M29*(1+#REF!))) ->  | O29: =IF(O5=1,(PC2_inputs!O23*(1+$C$26)),(N29*(1+#REF!))) ->  | P29: =IF(P5=1,(PC2_inputs!P23*(1+$C$26)),(O29*(1+#REF!))) ->  | Q29: =IF(Q5=1,(PC2_inputs!Q23*(1+$C$26)),(P29*(1+#REF!))) ->  | R29: =IF(R5=1,(PC2_inputs!R23*(1+$C$26)),(Q29*(1+#REF!))) ->  | S29: =IF(S5=1,(PC2_inputs!S23*(1+$C$26)),(R29*(1+#REF!))) ->  | T29: =IF(T5=1,(PC2_inputs!T23*(1+$C$26)),(S29*(1+#REF!))) ->  | U29: =IF(U5=1,(PC2_inputs!U23*(1+$C$26)),(T29*(1+#REF!))) ->  | V29: =IF(V5=1,(PC2_inputs!V23*(1+$C$26)),(U29*(1+#REF!))) ->  | W29: =IF(W5=1,(PC2_inputs!W23*(1+$C$26)),(V29*(1+#REF!))) ->  | X29: =IF(X5=1,(PC2_inputs!X23*(1+$C$26)),(W29*(1+#REF!))) ->  | Y29: =IF(Y5=1,(PC2_inputs!Y23*(1+$C$26)),(X29*(1+#REF!))) ->  | Z29: =IF(Z5=1,(PC2_inputs!Z23*(1+$C$26)),(Y29*(1+#REF!))) ->  | AA29: =IF(AA5=1,(PC2_inputs!AA23*(1+$C$26)),(Z29*(1+#REF!))) ->  | AB29: =IF(AB5=1,(PC2_inputs!AB23*(1+$C$26)),(AA29*(1+#REF!))) ->  | AC29: =IF(AC5=1,(PC2_inputs!AC23*(1+$C$26)),(AB29*(1+#REF!))) ->  | AD29: =IF(AD5=1,(PC2_inputs!AD23*(1+$C$26)),(AC29*(1+#REF!))) ->  | AE29: =IF(AE5=1,(PC2_inputs!AE23*(1+$C$26)),(AD29*(1+#REF!))) ->  | AF29: =IF(AF5=1,(PC2_inputs!AF23*(1+$C$26)),(AE29*(1+#REF!))) ->  | AG29: =IF(AG5=1,(PC2_inputs!AG23*(1+$C$26)),(AF29*(1+#REF!))) ->  | AH29: =IF(AH5=1,(PC2_inputs!AH23*(1+$C$26)),(AG29*(1+#REF!))) ->  | AI29: =IF(AI5=1,(PC2_inputs!AI23*(1+$C$26)),(AH29*(1+#REF!))) ->  | AJ29: =IF(AJ5=1,(PC2_inputs!AJ23*(1+$C$26)),(AI29*(1+#REF!))) ->  | AK29: =IF(AK5=1,(PC2_inputs!AK23*(1+$C$26)),(AJ29*(1+#REF!))) ->  | AL29: =IF(AL5=1,(PC2_inputs!AL23*(1+$C$26)),(AK29*(1+#REF!))) ->  | AM29: =IF(AM5=1,(PC2_inputs!AM23*(1+$C$26)),(AL29*(1+#REF!))) ->  | AN29: =IF(AN5=1,(PC2_inputs!AN23*(1+$C$26)),(AM29*(1+#REF!))) ->  | AO29: =IF(AO5=1,(PC2_inputs!AO23*(1+$C$26)),(AN29*(1+#REF!))) ->  | AP29: =IF(AP5=1,(PC2_inputs!AP23*(1+$C$26)),(AO29*(1+#REF!))) ->  | AQ29: =IF(AQ5=1,(PC2_inputs!AQ23*(1+$C$26)),(AP29*(1+#REF!))) ->  | AR29: =IF(AR5=1,(PC2_inputs!AR23*(1+$C$26)),(AQ29*(1+#REF!))) ->  | AS29: =IF(AS5=1,(PC2_inputs!AS23*(1+$C$26)),(AR29*(1+#REF!))) ->  | AT29: =IF(AT5=1,(PC2_inputs!AT23*(1+$C$26)),(AS29*(1+#REF!))) ->  | AU29: =IF(AU5=1,(PC2_inputs!AU23*(1+$C$26)),(AT29*(1+#REF!))) ->  | AV29: =IF(AV5=1,(PC2_inputs!AV23*(1+$C$26)),(AU29*(1+#REF!))) ->  | AW29: =IF(AW5=1,(PC2_inputs!AW23*(1+$C$26)),(AV29*(1+#REF!))) ->  | AX29: =IF(AX5=1,(PC2_inputs!AX23*(1+$C$26)),(AW29*(1+#REF!))) ->  | AY29: =IF(AY5=1,(PC2_inputs!AY23*(1+$C$26)),(AX29*(1+#REF!))) ->  | AZ29: =IF(AZ5=1,(PC2_inputs!AZ23*(1+$C$26)),(AY29*(1+#REF!))) ->  | BA29: =IF(BA5=1,(PC2_inputs!BA23*(1+$C$26)),(AZ29*(1+#REF!))) ->  | BB29: =IF(BB5=1,(PC2_inputs!BB23*(1+$C$26)),(BA29*(1+#REF!))) ->  | BC29: =IF(BC5=1,(PC2_inputs!BC23*(1+$C$26)),(BB29*(1+#REF!))) ->  | BD29: =IF(BD5=1,(PC2_inputs!BD23*(1+$C$26)),(BC29*(1+#REF!))) ->  | BE29: =IF(BE5=1,(PC2_inputs!BE23*(1+$C$26)),(BD29*(1+#REF!))) ->  | BF29: =IF(BF5=1,(PC2_inputs!BF23*(1+$C$26)),(BE29*(1+#REF!))) ->  | BG29: =IF(BG5=1,(PC2_inputs!BG23*(1+$C$26)),(BF29*(1+#REF!))) ->  | BH29: =IF(BH5=1,(PC2_inputs!BH23*(1+$C$26)),(BG29*(1+#REF!))) ->  | BI29: =IF(BI5=1,(PC2_inputs!BI23*(1+$C$26)),(BH29*(1+#REF!))) ->  | BJ29: =IF(BJ5=1,(PC2_inputs!BJ23*(1+$C$26)),(BI29*(1+#REF!))) ->  | BK29: =IF(BK5=1,(PC2_inputs!BK23*(1+$C$26)),(BJ29*(1+#REF!))) ->  | BL29: =IF(BL5=1,(PC2_inputs!BL23*(1+$C$26)),(BK29*(1+#REF!))) ->  | BM29: =IF(BM5=1,(PC2_inputs!BM23*(1+$C$26)),(BL29*(1+#REF!))) ->  | BN29: =IF(BN5=1,(PC2_inputs!BN23*(1+$C$26)),(BM29*(1+#REF!))) ->  | BO29: =IF(BO5=1,(PC2_inputs!BO23*(1+$C$26)),(BN29*(1+#REF!))) ->  | BP29: =IF(BP5=1,(PC2_inputs!BP23*(1+$C$26)),(BO29*(1+#REF!))) ->  | BQ29: =IF(BQ5=1,(PC2_inputs!BQ23*(1+$C$26)),(BP29*(1+#REF!))) ->  | BR29: =IF(BR5=1,(PC2_inputs!BR23*(1+$C$26)),(BQ29*(1+#REF!))) ->  | BS29: =IF(BS5=1,(PC2_inputs!BS23*(1+$C$26)),(BR29*(1+#REF!))) ->  | BT29: =IF(BT5=1,(PC2_inputs!BT23*(1+$C$26)),(BS29*(1+#REF!))) ->  | BU29: =IF(BU5=1,(PC2_inputs!BU23*(1+$C$26)),(BT29*(1+#REF!))) ->  | BV29: =IF(BV5=1,(PC2_inputs!BV23*(1+$C$26)),(BU29*(1+#REF!))) ->  | BW29: =IF(BW5=1,(PC2_inputs!BW23*(1+$C$26)),(BV29*(1+#REF!))) ->  | BX29: =IF(BX5=1,(PC2_inputs!BX23*(1+$C$26)),(BW29*(1+#REF!))) ->  | BY29: =IF(BY5=1,(PC2_inputs!BY23*(1+$C$26)),(BX29*(1+#REF!))) ->  | BZ29: =IF(BZ5=1,(PC2_inputs!BZ23*(1+$C$26)),(BY29*(1+#REF!))) ->  | CA29: =IF(CA5=1,(PC2_inputs!CA23*(1+$C$26)),(BZ29*(1+#REF!))) ->  | CB29: =IF(CB5=1,(PC2_inputs!CB23*(1+$C$26)),(CA29*(1+#REF!))) ->  | CC29: =IF(CC5=1,(PC2_inputs!CC23*(1+$C$26)),(CB29*(1+#REF!))) ->  | CD29: =IF(CD5=1,(PC2_inputs!CD23*(1+$C$26)),(CC29*(1+#REF!))) ->  | CE29: =IF(CE5=1,(PC2_inputs!CE23*(1+$C$26)),(CD29*(1+#REF!))) ->  | CF29: =IF(CF5=1,(PC2_inputs!CF23*(1+$C$26)),(CE29*(1+#REF!))) ->  | CG29: =IF(CG5=1,(PC2_inputs!CG23*(1+$C$26)),(CF29*(1+#REF!))) ->  | CH29: =IF(CH5=1,(PC2_inputs!CH23*(1+$C$26)),(CG29*(1+#REF!))) ->  | CI29: =IF(CI5=1,(PC2_inputs!CI23*(1+$C$26)),(CH29*(1+#REF!))) ->  | CJ29: =IF(CJ5=1,(PC2_inputs!CJ23*(1+$C$26)),(CI29*(1+#REF!))) ->  | CK29: =IF(CK5=1,(PC2_inputs!CK23*(1+$C$26)),(CJ29*(1+#REF!))) ->  | CL29: =IF(CL5=1,(PC2_inputs!CL23*(1+$C$26)),(CK29*(1+#REF!))) ->  | CM29: =IF(CM5=1,(PC2_inputs!CM23*(1+$C$26)),(CL29*(1+#REF!))) ->  | CN29: =IF(CN5=1,(PC2_inputs!CN23*(1+$C$26)),(CM29*(1+#REF!))) ->  | CO29: =IF(CO5=1,(PC2_inputs!CO23*(1+$C$26)),(CN29*(1+#REF!))) ->  | CP29: =IF(CP5=1,(PC2_inputs!CP23*(1+$C$26)),(CO29*(1+#REF!))) ->  | CQ29: =IF(CQ5=1,(PC2_inputs!CQ23*(1+$C$26)),(CP29*(1+#REF!))) ->  | CR29: =IF(CR5=1,(PC2_inputs!CR23*(1+$C$26)),(CQ29*(1+#REF!))) ->  | CS29: =IF(CS5=1,(PC2_inputs!CS23*(1+$C$26)),(CR29*(1+#REF!))) ->  | CT29: =IF(CT5=1,(PC2_inputs!CT23*(1+$C$26)),(CS29*(1+#REF!))) ->  | CU29: =IF(CU5=1,(PC2_inputs!CU23*(1+$C$26)),(CT29*(1+#REF!))) ->  | CV29: =IF(CV5=1,(PC2_inputs!CV23*(1+$C$26)),(CU29*(1+#REF!))) ->  | CW29: =IF(CW5=1,(PC2_inputs!CW23*(1+$C$26)),(CV29*(1+#REF!))) ->  | CX29: =IF(CX5=1,(PC2_inputs!CX23*(1+$C$26)),(CW29*(1+#REF!))) ->  | CY29: =IF(CY5=1,(PC2_inputs!CY23*(1+$C$26)),(CX29*(1+#REF!))) ->  | CZ29: =IF(CZ5=1,(PC2_inputs!CZ23*(1+$C$26)),(CY29*(1+#REF!))) ->  | DA29: =IF(DA5=1,(PC2_inputs!DA23*(1+$C$26)),(CZ29*(1+#REF!))) ->  | DB29: =IF(DB5=1,(PC2_inputs!DB23*(1+$C$26)),(DA29*(1+#REF!))) ->  | DC29: =IF(DC5=1,(PC2_inputs!DC23*(1+$C$26)),(DB29*(1+#REF!))) ->  | DD29: =IF(DD5=1,(PC2_inputs!DD23*(1+$C$26)),(DC29*(1+#REF!))) ->  | DE29: =IF(DE5=1,(PC2_inputs!DE23*(1+$C$26)),(DD29*(1+#REF!))) ->  | DF29: =IF(DF5=1,(PC2_inputs!DF23*(1+$C$26)),(DE29*(1+#REF!))) ->  | DG29: =IF(DG5=1,(PC2_inputs!DG23*(1+$C$26)),(DF29*(1+#REF!))) ->  | DH29: =IF(DH5=1,(PC2_inputs!DH23*(1+$C$26)),(DG29*(1+#REF!))) ->  | DI29: =IF(DI5=1,(PC2_inputs!DI23*(1+$C$26)),(DH29*(1+#REF!))) ->  | DJ29: =IF(DJ5=1,(PC2_inputs!DJ23*(1+$C$26)),(DI29*(1+#REF!))) ->  | DK29: =IF(DK5=1,(PC2_inputs!DK23*(1+$C$26)),(DJ29*(1+#REF!))) ->  | DL29: =IF(DL5=1,(PC2_inputs!DL23*(1+$C$26)),(DK29*(1+#REF!))) ->  | DM29: =IF(DM5=1,(PC2_inputs!DM23*(1+$C$26)),(DL29*(1+#REF!))) ->  | DN29: =IF(DN5=1,(PC2_inputs!DN23*(1+$C$26)),(DM29*(1+#REF!))) ->  | DO29: =IF(DO5=1,(PC2_inputs!DO23*(1+$C$26)),(DN29*(1+#REF!))) ->  | DP29: =IF(DP5=1,(PC2_inputs!DP23*(1+$C$26)),(DO29*(1+#REF!))) ->  | DQ29: =IF(DQ5=1,(PC2_inputs!DQ23*(1+$C$26)),(DP29*(1+#REF!))) ->  | DR29: =IF(DR5=1,(PC2_inputs!DR23*(1+$C$26)),(DQ29*(1+#REF!))) ->  | DS29: =IF(DS5=1,(PC2_inputs!DS23*(1+$C$26)),(DR29*(1+#REF!))) ->  | DT29: =IF(DT5=1,(PC2_inputs!DT23*(1+$C$26)),(DS29*(1+#REF!))) ->  | DU29: =IF(DU5=1,(PC2_inputs!DU23*(1+$C$26)),(DT29*(1+#REF!))) ->  | DV29: =IF(DV5=1,(PC2_inputs!DV23*(1+$C$26)),(DU29*(1+#REF!))) ->  | DW29: =IF(DW5=1,(PC2_inputs!DW23*(1+$C$26)),(DV29*(1+#REF!))) ->  | DX29: =IF(DX5=1,(PC2_inputs!DX23*(1+$C$26)),(DW29*(1+#REF!))) ->  | DY29: =IF(DY5=1,(PC2_inputs!DY23*(1+$C$26)),(DX29*(1+#REF!))) ->  | DZ29: =IF(DZ5=1,(PC2_inputs!DZ23*(1+$C$26)),(DY29*(1+#REF!))) ->  | EA29: =IF(EA5=1,(PC2_inputs!EA23*(1+$C$26)),(DZ29*(1+#REF!))) ->  | EB29: =IF(EB5=1,(PC2_inputs!EB23*(1+$C$26)),(EA29*(1+#REF!))) ->  | EC29: =IF(EC5=1,(PC2_inputs!EC23*(1+$C$26)),(EB29*(1+#REF!))) ->  | ED29: =IF(ED5=1,(PC2_inputs!ED23*(1+$C$26)),(EC29*(1+#REF!))) ->  | EE29: =IF(EE5=1,(PC2_inputs!EE23*(1+$C$26)),(ED29*(1+#REF!))) ->  | EF29: =IF(EF5=1,(PC2_inputs!EF23*(1+$C$26)),(EE29*(1+#REF!))) ->  | EG29: =IF(EG5=1,(PC2_inputs!EG23*(1+$C$26)),(EF29*(1+#REF!))) ->  | EH29: =IF(EH5=1,(PC2_inputs!EH23*(1+$C$26)),(EG29*(1+#REF!))) ->  | EI29: =IF(EI5=1,(PC2_inputs!EI23*(1+$C$26)),(EH29*(1+#REF!))) ->  | EJ29: =IF(EJ5=1,(PC2_inputs!EJ23*(1+$C$26)),(EI29*(1+#REF!))) ->  | EK29: =IF(EK5=1,(PC2_inputs!EK23*(1+$C$26)),(EJ29*(1+#REF!))) ->  | EL29: =IF(EL5=1,(PC2_inputs!EL23*(1+$C$26)),(EK29*(1+#REF!))) ->  | EM29: =IF(EM5=1,(PC2_inputs!EM23*(1+$C$26)),(EL29*(1+#REF!))) ->  | EN29: =IF(EN5=1,(PC2_inputs!EN23*(1+$C$26)),(EM29*(1+#REF!))) ->  | EO29: =IF(EO5=1,(PC2_inputs!EO23*(1+$C$26)),(EN29*(1+#REF!))) ->  | EP29: =IF(EP5=1,(PC2_inputs!EP23*(1+$C$26)),(EO29*(1+#REF!))) ->  | EQ29: =IF(EQ5=1,(PC2_inputs!EQ23*(1+$C$26)),(EP29*(1+#REF!))) ->  | ER29: =IF(ER5=1,(PC2_inputs!ER23*(1+$C$26)),(EQ29*(1+#REF!))) ->  | ES29: =IF(ES5=1,(PC2_inputs!ES23*(1+$C$26)),(ER29*(1+#REF!))) ->  | ET29: =IF(ET5=1,(PC2_inputs!ET23*(1+$C$26)),(ES29*(1+#REF!))) ->  | EU29: =IF(EU5=1,(PC2_inputs!EU23*(1+$C$26)),(ET29*(1+#REF!))) ->  | EV29: =IF(EV5=1,(PC2_inputs!EV23*(1+$C$26)),(EU29*(1+#REF!))) ->  | EW29: =IF(EW5=1,(PC2_inputs!EW23*(1+$C$26)),(EV29*(1+#REF!))) ->  | EX29: =IF(EX5=1,(PC2_inputs!EX23*(1+$C$26)),(EW29*(1+#REF!))) ->  | EY29: =IF(EY5=1,(PC2_inputs!EY23*(1+$C$26)),(EX29*(1+#REF!))) ->  | EZ29: =IF(EZ5=1,(PC2_inputs!EZ23*(1+$C$26)),(EY29*(1+#REF!))) ->  | FA29: =IF(FA5=1,(PC2_inputs!FA23*(1+$C$26)),(EZ29*(1+#REF!))) ->  | FB29: =IF(FB5=1,(PC2_inputs!FB23*(1+$C$26)),(FA29*(1+#REF!))) ->  | FC29: =IF(FC5=1,(PC2_inputs!FC23*(1+$C$26)),(FB29*(1+#REF!))) ->  | FD29: =IF(FD5=1,(PC2_inputs!FD23*(1+$C$26)),(FC29*(1+#REF!))) ->  | FE29: =IF(FE5=1,(PC2_inputs!FE23*(1+$C$26)),(FD29*(1+#REF!))) ->  | FF29: =IF(FF5=1,(PC2_inputs!FF23*(1+$C$26)),(FE29*(1+#REF!))) ->  | FG29: =IF(FG5=1,(PC2_inputs!FG23*(1+$C$26)),(FF29*(1+#REF!))) ->  | FH29: =IF(FH5=1,(PC2_inputs!FH23*(1+$C$26)),(FG29*(1+#REF!))) ->  | FI29: =IF(FI5=1,(PC2_inputs!FI23*(1+$C$26)),(FH29*(1+#REF!))) ->  | FJ29: =IF(FJ5=1,(PC2_inputs!FJ23*(1+$C$26)),(FI29*(1+#REF!))) ->  | FK29: =IF(FK5=1,(PC2_inputs!FK23*(1+$C$26)),(FJ29*(1+#REF!))) ->  | FL29: =IF(FL5=1,(PC2_inputs!FL23*(1+$C$26)),(FK29*(1+#REF!))) ->  | FM29: =IF(FM5=1,(PC2_inputs!FM23*(1+$C$26)),(FL29*(1+#REF!))) ->  | FN29: =IF(FN5=1,(PC2_inputs!FN23*(1+$C$26)),(FM29*(1+#REF!))) ->  | FO29: =IF(FO5=1,(PC2_inputs!FO23*(1+$C$26)),(FN29*(1+#REF!))) ->  | FP29: =IF(FP5=1,(PC2_inputs!FP23*(1+$C$26)),(FO29*(1+#REF!))) ->  | FQ29: =IF(FQ5=1,(PC2_inputs!FQ23*(1+$C$26)),(FP29*(1+#REF!))) ->  | FR29: =IF(FR5=1,(PC2_inputs!FR23*(1+$C$26)),(FQ29*(1+#REF!))) ->  | FS29: =IF(FS5=1,(PC2_inputs!FS23*(1+$C$26)),(FR29*(1+#REF!))) ->  | FT29: =IF(FT5=1,(PC2_inputs!FT23*(1+$C$26)),(FS29*(1+#REF!))) ->  | FU29: =IF(FU5=1,(PC2_inputs!FU23*(1+$C$26)),(FT29*(1+#REF!))) ->  | FV29: =IF(FV5=1,(PC2_inputs!FV23*(1+$C$26)),(FU29*(1+#REF!))) ->  | FW29: =IF(FW5=1,(PC2_inputs!FW23*(1+$C$26)),(FV29*(1+#REF!))) ->  | FX29: =IF(FX5=1,(PC2_inputs!FX23*(1+$C$26)),(FW29*(1+#REF!))) ->  | FY29: =IF(FY5=1,(PC2_inputs!FY23*(1+$C$26)),(FX29*(1+#REF!))) ->  | FZ29: =IF(FZ5=1,(PC2_inputs!FZ23*(1+$C$26)),(FY29*(1+#REF!))) ->  | GA29: =IF(GA5=1,(PC2_inputs!GA23*(1+$C$26)),(FZ29*(1+#REF!))) ->  | GB29: =IF(GB5=1,(PC2_inputs!GB23*(1+$C$26)),(GA29*(1+#REF!))) ->  | GC29: =IF(GC5=1,(PC2_inputs!GC23*(1+$C$26)),(GB29*(1+#REF!))) ->  | GD29: =IF(GD5=1,(PC2_inputs!GD23*(1+$C$26)),(GC29*(1+#REF!))) ->  | GE29: =IF(GE5=1,(PC2_inputs!GE23*(1+$C$26)),(GD29*(1+#REF!))) ->  | GF29: =IF(GF5=1,(PC2_inputs!GF23*(1+$C$26)),(GE29*(1+#REF!))) ->  | GG29: =IF(GG5=1,(PC2_inputs!GG23*(1+$C$26)),(GF29*(1+#REF!))) ->  | GH29: =IF(GH5=1,(PC2_inputs!GH23*(1+$C$26)),(GG29*(1+#REF!))) ->  | GI29: =IF(GI5=1,(PC2_inputs!GI23*(1+$C$26)),(GH29*(1+#REF!))) ->  | GJ29: =IF(GJ5=1,(PC2_inputs!GJ23*(1+$C$26)),(GI29*(1+#REF!))) ->  | GK29: =IF(GK5=1,(PC2_inputs!GK23*(1+$C$26)),(GJ29*(1+#REF!))) ->  | GL29: =IF(GL5=1,(PC2_inputs!GL23*(1+$C$26)),(GK29*(1+#REF!))) ->  | GM29: =IF(GM5=1,(PC2_inputs!GM23*(1+$C$26)),(GL29*(1+#REF!))) ->  | GN29: =IF(GN5=1,(PC2_inputs!GN23*(1+$C$26)),(GM29*(1+#REF!))) ->  | GO29: =IF(GO5=1,(PC2_inputs!GO23*(1+$C$26)),(GN29*(1+#REF!))) ->  | GP29: =IF(GP5=1,(PC2_inputs!GP23*(1+$C$26)),(GO29*(1+#REF!))) ->  | GQ29: =IF(GQ5=1,(PC2_inputs!GQ23*(1+$C$26)),(GP29*(1+#REF!))) ->  | GR29: =IF(GR5=1,(PC2_inputs!GR23*(1+$C$26)),(GQ29*(1+#REF!))) ->  | GS29: =IF(GS5=1,(PC2_inputs!GS23*(1+$C$26)),(GR29*(1+#REF!))) ->  | GT29: =IF(GT5=1,(PC2_inputs!GT23*(1+$C$26)),(GS29*(1+#REF!))) ->  | GU29: =IF(GU5=1,(PC2_inputs!GU23*(1+$C$26)),(GT29*(1+#REF!))) ->  | GV29: =IF(GV5=1,(PC2_inputs!GV23*(1+$C$26)),(GU29*(1+#REF!))) ->  | GW29: =IF(GW5=1,(PC2_inputs!GW23*(1+$C$26)),(GV29*(1+#REF!))) ->  | GX29: =IF(GX5=1,(PC2_inputs!GX23*(1+$C$26)),(GW29*(1+#REF!))) ->  | GY29: =IF(GY5=1,(PC2_inputs!GY23*(1+$C$26)),(GX29*(1+#REF!))) ->  | GZ29: =IF(GZ5=1,(PC2_inputs!GZ23*(1+$C$26)),(GY29*(1+#REF!))) ->  | HA29: =IF(HA5=1,(PC2_inputs!HA23*(1+$C$26)),(GZ29*(1+#REF!))) ->  | HB29: =IF(HB5=1,(PC2_inputs!HB23*(1+$C$26)),(HA29*(1+#REF!))) ->  | HC29: =IF(HC5=1,(PC2_inputs!HC23*(1+$C$26)),(HB29*(1+#REF!))) ->  | HD29: =IF(HD5=1,(PC2_inputs!HD23*(1+$C$26)),(HC29*(1+#REF!))) ->  | HE29: =IF(HE5=1,(PC2_inputs!HE23*(1+$C$26)),(HD29*(1+#REF!))) ->  | HF29: =IF(HF5=1,(PC2_inputs!HF23*(1+$C$26)),(HE29*(1+#REF!))) ->  | HG29: =IF(HG5=1,(PC2_inputs!HG23*(1+$C$26)),(HF29*(1+#REF!))) ->  | HH29: =IF(HH5=1,(PC2_inputs!HH23*(1+$C$26)),(HG29*(1+#REF!))) ->  | HI29: =IF(HI5=1,(PC2_inputs!HI23*(1+$C$26)),(HH29*(1+#REF!))) ->  | HJ29: =IF(HJ5=1,(PC2_inputs!HJ23*(1+$C$26)),(HI29*(1+#REF!))) ->  | HK29: =IF(HK5=1,(PC2_inputs!HK23*(1+$C$26)),(HJ29*(1+#REF!))) ->  | HL29: =IF(HL5=1,(PC2_inputs!HL23*(1+$C$26)),(HK29*(1+#REF!))) ->  | HM29: =IF(HM5=1,(PC2_inputs!HM23*(1+$C$26)),(HL29*(1+#REF!))) ->  | HN29: =IF(HN5=1,(PC2_inputs!HN23*(1+$C$26)),(HM29*(1+#REF!))) ->  | HO29: =IF(HO5=1,(PC2_inputs!HO23*(1+$C$26)),(HN29*(1+#REF!))) ->  | HP29: =IF(HP5=1,(PC2_inputs!HP23*(1+$C$26)),(HO29*(1+#REF!))) ->  | HQ29: =IF(HQ5=1,(PC2_inputs!HQ23*(1+$C$26)),(HP29*(1+#REF!))) ->  | HR29: =IF(HR5=1,(PC2_inputs!HR23*(1+$C$26)),(HQ29*(1+#REF!))) ->  | HS29: =IF(HS5=1,(PC2_inputs!HS23*(1+$C$26)),(HR29*(1+#REF!))) ->  | HT29: =IF(HT5=1,(PC2_inputs!HT23*(1+$C$26)),(HS29*(1+#REF!))) ->  | HU29: =IF(HU5=1,(PC2_inputs!HU23*(1+$C$26)),(HT29*(1+#REF!))) ->  | HV29: =IF(HV5=1,(PC2_inputs!HV23*(1+$C$26)),(HU29*(1+#REF!))) ->  | HW29: =IF(HW5=1,(PC2_inputs!HW23*(1+$C$26)),(HV29*(1+#REF!))) ->  | HX29: =IF(HX5=1,(PC2_inputs!HX23*(1+$C$26)),(HW29*(1+#REF!))) ->  | HY29: =IF(HY5=1,(PC2_inputs!HY23*(1+$C$26)),(HX29*(1+#REF!))) ->  | HZ29: =IF(HZ5=1,(PC2_inputs!HZ23*(1+$C$26)),(HY29*(1+#REF!))) ->  | IA29: =IF(IA5=1,(PC2_inputs!IA23*(1+$C$26)),(HZ29*(1+#REF!))) ->  | IB29: =IF(IB5=1,(PC2_inputs!IB23*(1+$C$26)),(IA29*(1+#REF!))) ->  | IC29: =IF(IC5=1,(PC2_inputs!IC23*(1+$C$26)),(IB29*(1+#REF!))) ->  | ID29: =IF(ID5=1,(PC2_inputs!ID23*(1+$C$26)),(IC29*(1+#REF!))) ->  | IE29: =IF(IE5=1,(PC2_inputs!IE23*(1+$C$26)),(ID29*(1+#REF!))) ->  | IF29: =IF(IF5=1,(PC2_inputs!IF23*(1+$C$26)),(IE29*(1+#REF!))) ->  | IG29: =IF(IG5=1,(PC2_inputs!IG23*(1+$C$26)),(IF29*(1+#REF!))) ->  | IH29: =IF(IH5=1,(PC2_inputs!IH23*(1+$C$26)),(IG29*(1+#REF!))) ->  | II29: =IF(II5=1,(PC2_inputs!II23*(1+$C$26)),(IH29*(1+#REF!))) ->  | IJ29: =IF(IJ5=1,(PC2_inputs!IJ23*(1+$C$26)),(II29*(1+#REF!))) ->  | IK29: =IF(IK5=1,(PC2_inputs!IK23*(1+$C$26)),(IJ29*(1+#REF!))) ->  | IL29: =IF(IL5=1,(PC2_inputs!IL23*(1+$C$26)),(IK29*(1+#REF!))) ->  | IM29: =IF(IM5=1,(PC2_inputs!IM23*(1+$C$26)),(IL29*(1+#REF!))) ->  | IN29: =IF(IN5=1,(PC2_inputs!IN23*(1+$C$26)),(IM29*(1+#REF!))) ->  | IO29: =IF(IO5=1,(PC2_inputs!IO23*(1+$C$26)),(IN29*(1+#REF!))) ->  | IP29: =IF(IP5=1,(PC2_inputs!IP23*(1+$C$26)),(IO29*(1+#REF!))) ->  | IQ29: =IF(IQ5=1,(PC2_inputs!IQ23*(1+$C$26)),(IP29*(1+#REF!))) ->  | IR29: =IF(IR5=1,(PC2_inputs!IR23*(1+$C$26)),(IQ29*(1+#REF!))) ->  | IS29: =IF(IS5=1,(PC2_inputs!IS23*(1+$C$26)),(IR29*(1+#REF!))) ->  | IT29: =IF(IT5=1,(PC2_inputs!IT23*(1+$C$26)),(IS29*(1+#REF!))) ->  | IU29: =IF(IU5=1,(PC2_inputs!IU23*(1+$C$26)),(IT29*(1+#REF!))) ->  | IV29: =IF(IV5=1,(PC2_inputs!IV23*(1+$C$26)),(IU29*(1+#REF!))) -> 
B30: Average annual tariff, € / MWh | E30: =PC2_inputs!$E$23*(1+$C$26) -> 0.2220119638 | F30: =(E30*(1+D$26)) -> 0.2524472613 | G30: =(F30*(1+E$26)) -> 0.2436116985 | H30: =(G30*(1+F$26)) -> 0.2436379897 | I30: =(H30*(1+G$26)) -> 0.2436379897
B31: Demand, MWh | E31: =PC3_inputs!D24 -> 49572114.42 | F31: =PC3_inputs!E24 -> 49435982.83 | G31: =PC3_inputs!F24 -> 50681337.85 | H31: =PC3_inputs!G24 -> 51743116.98 | I31: =PC3_inputs!H24 -> 53581150.41
B32: Total annual revenue allowed, € | E32: 10957666.35 | F32: 14042992.98 | G32: 12346566.8 | H32: =H30*H31 -> 12606589 | I32: 13075790.55 | J32: =J31/PC3_inputs!I12 ->  | K32: =K31/PC3_inputs!J12 ->  | L32: =L31/PC3_inputs!K12 ->  | M32: =M31/PC3_inputs!L12 ->  | N32: =N31/PC3_inputs!M12 ->  | O32: =O31/PC3_inputs!N12 ->  | P32: =P31/PC3_inputs!O12 ->  | Q32: =Q31/PC3_inputs!P12 ->  | R32: =R31/PC3_inputs!Q12 ->  | S32: =S31/PC3_inputs!R12 ->  | T32: =T31/PC3_inputs!S12 ->  | U32: =U31/PC3_inputs!T12 ->  | V32: =V31/PC3_inputs!U12 ->  | W32: =W31/PC3_inputs!V12 ->  | X32: =X31/PC3_inputs!W12 ->  | Y32: =Y31/PC3_inputs!X12 ->  | Z32: =Z31/PC3_inputs!Y12 ->  | AA32: =AA31/PC3_inputs!Z12 ->  | AB32: =AB31/PC3_inputs!AA12 ->  | AC32: =AC31/PC3_inputs!AB12 ->  | AD32: =AD31/PC3_inputs!AC12 ->  | AE32: =AE31/PC3_inputs!AD12 ->  | AF32: =AF31/PC3_inputs!AE12 ->  | AG32: =AG31/PC3_inputs!AF12 ->  | AH32: =AH31/PC3_inputs!AG12 ->  | AI32: =AI31/PC3_inputs!AH12 ->  | AJ32: =AJ31/PC3_inputs!AI12 ->  | AK32: =AK31/PC3_inputs!AJ12 ->  | AL32: =AL31/PC3_inputs!AK12 ->  | AM32: =AM31/PC3_inputs!AL12 ->  | AN32: =AN31/PC3_inputs!AM12 ->  | AO32: =AO31/PC3_inputs!AN12 ->  | AP32: =AP31/PC3_inputs!AO12 ->  | AQ32: =AQ31/PC3_inputs!AP12 ->  | AR32: =AR31/PC3_inputs!AQ12 ->  | AS32: =AS31/PC3_inputs!AR12 ->  | AT32: =AT31/PC3_inputs!AS12 ->  | AU32: =AU31/PC3_inputs!AT12 ->  | AV32: =AV31/PC3_inputs!AU12 ->  | AW32: =AW31/PC3_inputs!AV12 ->  | AX32: =AX31/PC3_inputs!AW12 ->  | AY32: =AY31/PC3_inputs!AX12 ->  | AZ32: =AZ31/PC3_inputs!AY12 ->  | BA32: =BA31/PC3_inputs!AZ12 ->  | BB32: =BB31/PC3_inputs!BA12 ->  | BC32: =BC31/PC3_inputs!BB12 ->  | BD32: =BD31/PC3_inputs!BC12 ->  | BE32: =BE31/PC3_inputs!BD12 ->  | BF32: =BF31/PC3_inputs!BE12 ->  | BG32: =BG31/PC3_inputs!BF12 ->  | BH32: =BH31/PC3_inputs!BG12 ->  | BI32: =BI31/PC3_inputs!BH12 ->  | BJ32: =BJ31/PC3_inputs!BI12 ->  | BK32: =BK31/PC3_inputs!BJ12 ->  | BL32: =BL31/PC3_inputs!BK12 ->  | BM32: =BM31/PC3_inputs!BL12 ->  | BN32: =BN31/PC3_inputs!BM12 ->  | BO32: =BO31/PC3_inputs!BN12 ->  | BP32: =BP31/PC3_inputs!BO12 ->  | BQ32: =BQ31/PC3_inputs!BP12 ->  | BR32: =BR31/PC3_inputs!BQ12 ->  | BS32: =BS31/PC3_inputs!BR12 ->  | BT32: =BT31/PC3_inputs!BS12 ->  | BU32: =BU31/PC3_inputs!BT12 ->  | BV32: =BV31/PC3_inputs!BU12 ->  | BW32: =BW31/PC3_inputs!BV12 ->  | BX32: =BX31/PC3_inputs!BW12 ->  | BY32: =BY31/PC3_inputs!BX12 ->  | BZ32: =BZ31/PC3_inputs!BY12 ->  | CA32: =CA31/PC3_inputs!BZ12 ->  | CB32: =CB31/PC3_inputs!CA12 ->  | CC32: =CC31/PC3_inputs!CB12 ->  | CD32: =CD31/PC3_inputs!CC12 ->  | CE32: =CE31/PC3_inputs!CD12 ->  | CF32: =CF31/PC3_inputs!CE12 ->  | CG32: =CG31/PC3_inputs!CF12 ->  | CH32: =CH31/PC3_inputs!CG12 ->  | CI32: =CI31/PC3_inputs!CH12 ->  | CJ32: =CJ31/PC3_inputs!CI12 ->  | CK32: =CK31/PC3_inputs!CJ12 ->  | CL32: =CL31/PC3_inputs!CK12 ->  | CM32: =CM31/PC3_inputs!CL12 ->  | CN32: =CN31/PC3_inputs!CM12 ->  | CO32: =CO31/PC3_inputs!CN12 ->  | CP32: =CP31/PC3_inputs!CO12 ->  | CQ32: =CQ31/PC3_inputs!CP12 ->  | CR32: =CR31/PC3_inputs!CQ12 ->  | CS32: =CS31/PC3_inputs!CR12 ->  | CT32: =CT31/PC3_inputs!CS12 ->  | CU32: =CU31/PC3_inputs!CT12 ->  | CV32: =CV31/PC3_inputs!CU12 ->  | CW32: =CW31/PC3_inputs!CV12 ->  | CX32: =CX31/PC3_inputs!CW12 ->  | CY32: =CY31/PC3_inputs!CX12 ->  | CZ32: =CZ31/PC3_inputs!CY12 ->  | DA32: =DA31/PC3_inputs!CZ12 ->  | DB32: =DB31/PC3_inputs!DA12 ->  | DC32: =DC31/PC3_inputs!DB12 ->  | DD32: =DD31/PC3_inputs!DC12 ->  | DE32: =DE31/PC3_inputs!DD12 ->  | DF32: =DF31/PC3_inputs!DE12 ->  | DG32: =DG31/PC3_inputs!DF12 ->  | DH32: =DH31/PC3_inputs!DG12 ->  | DI32: =DI31/PC3_inputs!DH12 ->  | DJ32: =DJ31/PC3_inputs!DI12 ->  | DK32: =DK31/PC3_inputs!DJ12 ->  | DL32: =DL31/PC3_inputs!DK12 ->  | DM32: =DM31/PC3_inputs!DL12 ->  | DN32: =DN31/PC3_inputs!DM12 ->  | DO32: =DO31/PC3_inputs!DN12 ->  | DP32: =DP31/PC3_inputs!DO12 ->  | DQ32: =DQ31/PC3_inputs!DP12 ->  | DR32: =DR31/PC3_inputs!DQ12 ->  | DS32: =DS31/PC3_inputs!DR12 ->  | DT32: =DT31/PC3_inputs!DS12 ->  | DU32: =DU31/PC3_inputs!DT12 ->  | DV32: =DV31/PC3_inputs!DU12 ->  | DW32: =DW31/PC3_inputs!DV12 ->  | DX32: =DX31/PC3_inputs!DW12 ->  | DY32: =DY31/PC3_inputs!DX12 ->  | DZ32: =DZ31/PC3_inputs!DY12 ->  | EA32: =EA31/PC3_inputs!DZ12 ->  | EB32: =EB31/PC3_inputs!EA12 ->  | EC32: =EC31/PC3_inputs!EB12 ->  | ED32: =ED31/PC3_inputs!EC12 ->  | EE32: =EE31/PC3_inputs!ED12 ->  | EF32: =EF31/PC3_inputs!EE12 ->  | EG32: =EG31/PC3_inputs!EF12 ->  | EH32: =EH31/PC3_inputs!EG12 ->  | EI32: =EI31/PC3_inputs!EH12 ->  | EJ32: =EJ31/PC3_inputs!EI12 ->  | EK32: =EK31/PC3_inputs!EJ12 ->  | EL32: =EL31/PC3_inputs!EK12 ->  | EM32: =EM31/PC3_inputs!EL12 ->  | EN32: =EN31/PC3_inputs!EM12 ->  | EO32: =EO31/PC3_inputs!EN12 ->  | EP32: =EP31/PC3_inputs!EO12 ->  | EQ32: =EQ31/PC3_inputs!EP12 ->  | ER32: =ER31/PC3_inputs!EQ12 ->  | ES32: =ES31/PC3_inputs!ER12 ->  | ET32: =ET31/PC3_inputs!ES12 ->  | EU32: =EU31/PC3_inputs!ET12 ->  | EV32: =EV31/PC3_inputs!EU12 ->  | EW32: =EW31/PC3_inputs!EV12 ->  | EX32: =EX31/PC3_inputs!EW12 ->  | EY32: =EY31/PC3_inputs!EX12 ->  | EZ32: =EZ31/PC3_inputs!EY12 ->  | FA32: =FA31/PC3_inputs!EZ12 ->  | FB32: =FB31/PC3_inputs!FA12 ->  | FC32: =FC31/PC3_inputs!FB12 ->  | FD32: =FD31/PC3_inputs!FC12 ->  | FE32: =FE31/PC3_inputs!FD12 ->  | FF32: =FF31/PC3_inputs!FE12 ->  | FG32: =FG31/PC3_inputs!FF12 ->  | FH32: =FH31/PC3_inputs!FG12 ->  | FI32: =FI31/PC3_inputs!FH12 ->  | FJ32: =FJ31/PC3_inputs!FI12 ->  | FK32: =FK31/PC3_inputs!FJ12 ->  | FL32: =FL31/PC3_inputs!FK12 ->  | FM32: =FM31/PC3_inputs!FL12 ->  | FN32: =FN31/PC3_inputs!FM12 ->  | FO32: =FO31/PC3_inputs!FN12 ->  | FP32: =FP31/PC3_inputs!FO12 ->  | FQ32: =FQ31/PC3_inputs!FP12 ->  | FR32: =FR31/PC3_inputs!FQ12 ->  | FS32: =FS31/PC3_inputs!FR12 ->  | FT32: =FT31/PC3_inputs!FS12 ->  | FU32: =FU31/PC3_inputs!FT12 ->  | FV32: =FV31/PC3_inputs!FU12 ->  | FW32: =FW31/PC3_inputs!FV12 ->  | FX32: =FX31/PC3_inputs!FW12 ->  | FY32: =FY31/PC3_inputs!FX12 ->  | FZ32: =FZ31/PC3_inputs!FY12 ->  | GA32: =GA31/PC3_inputs!FZ12 ->  | GB32: =GB31/PC3_inputs!GA12 ->  | GC32: =GC31/PC3_inputs!GB12 ->  | GD32: =GD31/PC3_inputs!GC12 ->  | GE32: =GE31/PC3_inputs!GD12 ->  | GF32: =GF31/PC3_inputs!GE12 ->  | GG32: =GG31/PC3_inputs!GF12 ->  | GH32: =GH31/PC3_inputs!GG12 ->  | GI32: =GI31/PC3_inputs!GH12 ->  | GJ32: =GJ31/PC3_inputs!GI12 ->  | GK32: =GK31/PC3_inputs!GJ12 ->  | GL32: =GL31/PC3_inputs!GK12 ->  | GM32: =GM31/PC3_inputs!GL12 ->  | GN32: =GN31/PC3_inputs!GM12 ->  | GO32: =GO31/PC3_inputs!GN12 ->  | GP32: =GP31/PC3_inputs!GO12 ->  | GQ32: =GQ31/PC3_inputs!GP12 ->  | GR32: =GR31/PC3_inputs!GQ12 ->  | GS32: =GS31/PC3_inputs!GR12 ->  | GT32: =GT31/PC3_inputs!GS12 ->  | GU32: =GU31/PC3_inputs!GT12 ->  | GV32: =GV31/PC3_inputs!GU12 ->  | GW32: =GW31/PC3_inputs!GV12 ->  | GX32: =GX31/PC3_inputs!GW12 ->  | GY32: =GY31/PC3_inputs!GX12 ->  | GZ32: =GZ31/PC3_inputs!GY12 ->  | HA32: =HA31/PC3_inputs!GZ12 ->  | HB32: =HB31/PC3_inputs!HA12 ->  | HC32: =HC31/PC3_inputs!HB12 ->  | HD32: =HD31/PC3_inputs!HC12 ->  | HE32: =HE31/PC3_inputs!HD12 ->  | HF32: =HF31/PC3_inputs!HE12 ->  | HG32: =HG31/PC3_inputs!HF12 ->  | HH32: =HH31/PC3_inputs!HG12 ->  | HI32: =HI31/PC3_inputs!HH12 ->  | HJ32: =HJ31/PC3_inputs!HI12 ->  | HK32: =HK31/PC3_inputs!HJ12 ->  | HL32: =HL31/PC3_inputs!HK12 ->  | HM32: =HM31/PC3_inputs!HL12 ->  | HN32: =HN31/PC3_inputs!HM12 ->  | HO32: =HO31/PC3_inputs!HN12 ->  | HP32: =HP31/PC3_inputs!HO12 ->  | HQ32: =HQ31/PC3_inputs!HP12 ->  | HR32: =HR31/PC3_inputs!HQ12 ->  | HS32: =HS31/PC3_inputs!HR12 ->  | HT32: =HT31/PC3_inputs!HS12 ->  | HU32: =HU31/PC3_inputs!HT12 ->  | HV32: =HV31/PC3_inputs!HU12 ->  | HW32: =HW31/PC3_inputs!HV12 ->  | HX32: =HX31/PC3_inputs!HW12 ->  | HY32: =HY31/PC3_inputs!HX12 ->  | HZ32: =HZ31/PC3_inputs!HY12 ->  | IA32: =IA31/PC3_inputs!HZ12 ->  | IB32: =IB31/PC3_inputs!IA12 ->  | IC32: =IC31/PC3_inputs!IB12 ->  | ID32: =ID31/PC3_inputs!IC12 ->  | IE32: =IE31/PC3_inputs!ID12 ->  | IF32: =IF31/PC3_inputs!IE12 ->  | IG32: =IG31/PC3_inputs!IF12 ->  | IH32: =IH31/PC3_inputs!IG12 ->  | II32: =II31/PC3_inputs!IH12 ->  | IJ32: =IJ31/PC3_inputs!II12 ->  | IK32: =IK31/PC3_inputs!IJ12 ->  | IL32: =IL31/PC3_inputs!IK12 -> 
B33: NPV for onshore, € | C33: =SUM(E33:I33) -> 54979222.44 | E33: =E32/PC3_inputs!D12 -> 10623501.12 | F33: =F32/PC3_inputs!E12 -> 12869183.69 | G33: =G32/PC3_inputs!F12 -> 10755281.75 | H33: =H32/PC3_inputs!G12 -> 10438964.87 | I33: =I32/PC3_inputs!H12 -> 10292291.01
B35: ALLOWED REVENUE AND PRICES - CAPACITY
B37: Change from P0 to P1 | C37: ='Transmission 12 13'!T33 -> 0.02717028748 | D37: 0.1626904753 | E37: -0.02485158959 | F37: 0.0001355770918 | G37: 0
B39: NPV revenue received less NPV revenue required | C39: =C44-C22 -> 0
E40: Onshore
B41: Average annual tariff, € per MWh / day | E41: =(PC2_inputs!$E$24*(1+$C$37)) -> 447.7050221 | F41: =(E41*(1+D$37)) -> 520.542365 | G41: =(F41*(1+E$37)) -> 507.6060597 | H41: =(G41*(1+F$37)) -> 507.6748795 | I41: =(H41*(1+G$37)) -> 507.6748795
B42: Demand, MWh/day | E42: =PC3_inputs!D25 -> 196758.4579 | F42: =PC3_inputs!E25 -> 222176.9497 | G42: =PC3_inputs!F25 -> 225002.3674 | H42: =PC3_inputs!G25 -> 223772.6697 | I42: =PC3_inputs!H25 -> 224395.968
B43: Total annual revenue allowed, € | E43: 98618997.17 | F43: 126386936.8 | G43: 114212565.1 | H43: =H41*H42 -> 113603763.1 | I43: 114106591.9 | J43: =J42/PC3_inputs!I12 ->  | K43: =K42/PC3_inputs!J12 ->  | L43: =L42/PC3_inputs!K12 ->  | M43: =M42/PC3_inputs!L12 ->  | N43: =N42/PC3_inputs!M12 ->  | O43: =O42/PC3_inputs!N12 ->  | P43: =P42/PC3_inputs!O12 ->  | Q43: =Q42/PC3_inputs!P12 ->  | R43: =R42/PC3_inputs!Q12 ->  | S43: =S42/PC3_inputs!R12 ->  | T43: =T42/PC3_inputs!S12 ->  | U43: =U42/PC3_inputs!T12 ->  | V43: =V42/PC3_inputs!U12 ->  | W43: =W42/PC3_inputs!V12 ->  | X43: =X42/PC3_inputs!W12 ->  | Y43: =Y42/PC3_inputs!X12 ->  | Z43: =Z42/PC3_inputs!Y12 ->  | AA43: =AA42/PC3_inputs!Z12 ->  | AB43: =AB42/PC3_inputs!AA12 ->  | AC43: =AC42/PC3_inputs!AB12 ->  | AD43: =AD42/PC3_inputs!AC12 ->  | AE43: =AE42/PC3_inputs!AD12 ->  | AF43: =AF42/PC3_inputs!AE12 ->  | AG43: =AG42/PC3_inputs!AF12 ->  | AH43: =AH42/PC3_inputs!AG12 ->  | AI43: =AI42/PC3_inputs!AH12 ->  | AJ43: =AJ42/PC3_inputs!AI12 ->  | AK43: =AK42/PC3_inputs!AJ12 ->  | AL43: =AL42/PC3_inputs!AK12 ->  | AM43: =AM42/PC3_inputs!AL12 ->  | AN43: =AN42/PC3_inputs!AM12 ->  | AO43: =AO42/PC3_inputs!AN12 ->  | AP43: =AP42/PC3_inputs!AO12 ->  | AQ43: =AQ42/PC3_inputs!AP12 ->  | AR43: =AR42/PC3_inputs!AQ12 ->  | AS43: =AS42/PC3_inputs!AR12 ->  | AT43: =AT42/PC3_inputs!AS12 ->  | AU43: =AU42/PC3_inputs!AT12 ->  | AV43: =AV42/PC3_inputs!AU12 ->  | AW43: =AW42/PC3_inputs!AV12 ->  | AX43: =AX42/PC3_inputs!AW12 ->  | AY43: =AY42/PC3_inputs!AX12 ->  | AZ43: =AZ42/PC3_inputs!AY12 ->  | BA43: =BA42/PC3_inputs!AZ12 ->  | BB43: =BB42/PC3_inputs!BA12 ->  | BC43: =BC42/PC3_inputs!BB12 ->  | BD43: =BD42/PC3_inputs!BC12 ->  | BE43: =BE42/PC3_inputs!BD12 ->  | BF43: =BF42/PC3_inputs!BE12 ->  | BG43: =BG42/PC3_inputs!BF12 ->  | BH43: =BH42/PC3_inputs!BG12 ->  | BI43: =BI42/PC3_inputs!BH12 ->  | BJ43: =BJ42/PC3_inputs!BI12 ->  | BK43: =BK42/PC3_inputs!BJ12 ->  | BL43: =BL42/PC3_inputs!BK12 ->  | BM43: =BM42/PC3_inputs!BL12 ->  | BN43: =BN42/PC3_inputs!BM12 ->  | BO43: =BO42/PC3_inputs!BN12 ->  | BP43: =BP42/PC3_inputs!BO12 ->  | BQ43: =BQ42/PC3_inputs!BP12 ->  | BR43: =BR42/PC3_inputs!BQ12 ->  | BS43: =BS42/PC3_inputs!BR12 ->  | BT43: =BT42/PC3_inputs!BS12 ->  | BU43: =BU42/PC3_inputs!BT12 ->  | BV43: =BV42/PC3_inputs!BU12 ->  | BW43: =BW42/PC3_inputs!BV12 ->  | BX43: =BX42/PC3_inputs!BW12 ->  | BY43: =BY42/PC3_inputs!BX12 ->  | BZ43: =BZ42/PC3_inputs!BY12 ->  | CA43: =CA42/PC3_inputs!BZ12 ->  | CB43: =CB42/PC3_inputs!CA12 ->  | CC43: =CC42/PC3_inputs!CB12 ->  | CD43: =CD42/PC3_inputs!CC12 ->  | CE43: =CE42/PC3_inputs!CD12 ->  | CF43: =CF42/PC3_inputs!CE12 ->  | CG43: =CG42/PC3_inputs!CF12 ->  | CH43: =CH42/PC3_inputs!CG12 ->  | CI43: =CI42/PC3_inputs!CH12 ->  | CJ43: =CJ42/PC3_inputs!CI12 ->  | CK43: =CK42/PC3_inputs!CJ12 ->  | CL43: =CL42/PC3_inputs!CK12 ->  | CM43: =CM42/PC3_inputs!CL12 ->  | CN43: =CN42/PC3_inputs!CM12 ->  | CO43: =CO42/PC3_inputs!CN12 ->  | CP43: =CP42/PC3_inputs!CO12 ->  | CQ43: =CQ42/PC3_inputs!CP12 ->  | CR43: =CR42/PC3_inputs!CQ12 ->  | CS43: =CS42/PC3_inputs!CR12 ->  | CT43: =CT42/PC3_inputs!CS12 ->  | CU43: =CU42/PC3_inputs!CT12 ->  | CV43: =CV42/PC3_inputs!CU12 ->  | CW43: =CW42/PC3_inputs!CV12 ->  | CX43: =CX42/PC3_inputs!CW12 ->  | CY43: =CY42/PC3_inputs!CX12 ->  | CZ43: =CZ42/PC3_inputs!CY12 ->  | DA43: =DA42/PC3_inputs!CZ12 ->  | DB43: =DB42/PC3_inputs!DA12 ->  | DC43: =DC42/PC3_inputs!DB12 ->  | DD43: =DD42/PC3_inputs!DC12 ->  | DE43: =DE42/PC3_inputs!DD12 ->  | DF43: =DF42/PC3_inputs!DE12 ->  | DG43: =DG42/PC3_inputs!DF12 ->  | DH43: =DH42/PC3_inputs!DG12 ->  | DI43: =DI42/PC3_inputs!DH12 ->  | DJ43: =DJ42/PC3_inputs!DI12 ->  | DK43: =DK42/PC3_inputs!DJ12 ->  | DL43: =DL42/PC3_inputs!DK12 ->  | DM43: =DM42/PC3_inputs!DL12 ->  | DN43: =DN42/PC3_inputs!DM12 ->  | DO43: =DO42/PC3_inputs!DN12 ->  | DP43: =DP42/PC3_inputs!DO12 ->  | DQ43: =DQ42/PC3_inputs!DP12 ->  | DR43: =DR42/PC3_inputs!DQ12 ->  | DS43: =DS42/PC3_inputs!DR12 ->  | DT43: =DT42/PC3_inputs!DS12 ->  | DU43: =DU42/PC3_inputs!DT12 ->  | DV43: =DV42/PC3_inputs!DU12 ->  | DW43: =DW42/PC3_inputs!DV12 ->  | DX43: =DX42/PC3_inputs!DW12 ->  | DY43: =DY42/PC3_inputs!DX12 ->  | DZ43: =DZ42/PC3_inputs!DY12 ->  | EA43: =EA42/PC3_inputs!DZ12 ->  | EB43: =EB42/PC3_inputs!EA12 ->  | EC43: =EC42/PC3_inputs!EB12 ->  | ED43: =ED42/PC3_inputs!EC12 ->  | EE43: =EE42/PC3_inputs!ED12 ->  | EF43: =EF42/PC3_inputs!EE12 ->  | EG43: =EG42/PC3_inputs!EF12 ->  | EH43: =EH42/PC3_inputs!EG12 ->  | EI43: =EI42/PC3_inputs!EH12 ->  | EJ43: =EJ42/PC3_inputs!EI12 ->  | EK43: =EK42/PC3_inputs!EJ12 ->  | EL43: =EL42/PC3_inputs!EK12 ->  | EM43: =EM42/PC3_inputs!EL12 ->  | EN43: =EN42/PC3_inputs!EM12 ->  | EO43: =EO42/PC3_inputs!EN12 ->  | EP43: =EP42/PC3_inputs!EO12 ->  | EQ43: =EQ42/PC3_inputs!EP12 ->  | ER43: =ER42/PC3_inputs!EQ12 ->  | ES43: =ES42/PC3_inputs!ER12 ->  | ET43: =ET42/PC3_inputs!ES12 ->  | EU43: =EU42/PC3_inputs!ET12 ->  | EV43: =EV42/PC3_inputs!EU12 ->  | EW43: =EW42/PC3_inputs!EV12 ->  | EX43: =EX42/PC3_inputs!EW12 ->  | EY43: =EY42/PC3_inputs!EX12 ->  | EZ43: =EZ42/PC3_inputs!EY12 ->  | FA43: =FA42/PC3_inputs!EZ12 ->  | FB43: =FB42/PC3_inputs!FA12 ->  | FC43: =FC42/PC3_inputs!FB12 ->  | FD43: =FD42/PC3_inputs!FC12 ->  | FE43: =FE42/PC3_inputs!FD12 ->  | FF43: =FF42/PC3_inputs!FE12 ->  | FG43: =FG42/PC3_inputs!FF12 ->  | FH43: =FH42/PC3_inputs!FG12 ->  | FI43: =FI42/PC3_inputs!FH12 ->  | FJ43: =FJ42/PC3_inputs!FI12 ->  | FK43: =FK42/PC3_inputs!FJ12 ->  | FL43: =FL42/PC3_inputs!FK12 ->  | FM43: =FM42/PC3_inputs!FL12 ->  | FN43: =FN42/PC3_inputs!FM12 ->  | FO43: =FO42/PC3_inputs!FN12 ->  | FP43: =FP42/PC3_inputs!FO12 ->  | FQ43: =FQ42/PC3_inputs!FP12 ->  | FR43: =FR42/PC3_inputs!FQ12 ->  | FS43: =FS42/PC3_inputs!FR12 ->  | FT43: =FT42/PC3_inputs!FS12 ->  | FU43: =FU42/PC3_inputs!FT12 ->  | FV43: =FV42/PC3_inputs!FU12 ->  | FW43: =FW42/PC3_inputs!FV12 ->  | FX43: =FX42/PC3_inputs!FW12 ->  | FY43: =FY42/PC3_inputs!FX12 ->  | FZ43: =FZ42/PC3_inputs!FY12 ->  | GA43: =GA42/PC3_inputs!FZ12 ->  | GB43: =GB42/PC3_inputs!GA12 ->  | GC43: =GC42/PC3_inputs!GB12 ->  | GD43: =GD42/PC3_inputs!GC12 ->  | GE43: =GE42/PC3_inputs!GD12 ->  | GF43: =GF42/PC3_inputs!GE12 ->  | GG43: =GG42/PC3_inputs!GF12 ->  | GH43: =GH42/PC3_inputs!GG12 ->  | GI43: =GI42/PC3_inputs!GH12 ->  | GJ43: =GJ42/PC3_inputs!GI12 ->  | GK43: =GK42/PC3_inputs!GJ12 ->  | GL43: =GL42/PC3_inputs!GK12 ->  | GM43: =GM42/PC3_inputs!GL12 ->  | GN43: =GN42/PC3_inputs!GM12 ->  | GO43: =GO42/PC3_inputs!GN12 ->  | GP43: =GP42/PC3_inputs!GO12 ->  | GQ43: =GQ42/PC3_inputs!GP12 ->  | GR43: =GR42/PC3_inputs!GQ12 ->  | GS43: =GS42/PC3_inputs!GR12 ->  | GT43: =GT42/PC3_inputs!GS12 ->  | GU43: =GU42/PC3_inputs!GT12 ->  | GV43: =GV42/PC3_inputs!GU12 ->  | GW43: =GW42/PC3_inputs!GV12 ->  | GX43: =GX42/PC3_inputs!GW12 ->  | GY43: =GY42/PC3_inputs!GX12 ->  | GZ43: =GZ42/PC3_inputs!GY12 ->  | HA43: =HA42/PC3_inputs!GZ12 ->  | HB43: =HB42/PC3_inputs!HA12 ->  | HC43: =HC42/PC3_inputs!HB12 ->  | HD43: =HD42/PC3_inputs!HC12 ->  | HE43: =HE42/PC3_inputs!HD12 ->  | HF43: =HF42/PC3_inputs!HE12 ->  | HG43: =HG42/PC3_inputs!HF12 ->  | HH43: =HH42/PC3_inputs!HG12 ->  | HI43: =HI42/PC3_inputs!HH12 ->  | HJ43: =HJ42/PC3_inputs!HI12 ->  | HK43: =HK42/PC3_inputs!HJ12 ->  | HL43: =HL42/PC3_inputs!HK12 ->  | HM43: =HM42/PC3_inputs!HL12 ->  | HN43: =HN42/PC3_inputs!HM12 ->  | HO43: =HO42/PC3_inputs!HN12 ->  | HP43: =HP42/PC3_inputs!HO12 ->  | HQ43: =HQ42/PC3_inputs!HP12 ->  | HR43: =HR42/PC3_inputs!HQ12 ->  | HS43: =HS42/PC3_inputs!HR12 ->  | HT43: =HT42/PC3_inputs!HS12 ->  | HU43: =HU42/PC3_inputs!HT12 ->  | HV43: =HV42/PC3_inputs!HU12 ->  | HW43: =HW42/PC3_inputs!HV12 ->  | HX43: =HX42/PC3_inputs!HW12 ->  | HY43: =HY42/PC3_inputs!HX12 ->  | HZ43: =HZ42/PC3_inputs!HY12 ->  | IA43: =IA42/PC3_inputs!HZ12 ->  | IB43: =IB42/PC3_inputs!IA12 ->  | IC43: =IC42/PC3_inputs!IB12 ->  | ID43: =ID42/PC3_inputs!IC12 ->  | IE43: =IE42/PC3_inputs!ID12 ->  | IF43: =IF42/PC3_inputs!IE12 ->  | IG43: =IG42/PC3_inputs!IF12 ->  | IH43: =IH42/PC3_inputs!IG12 ->  | II43: =II42/PC3_inputs!IH12 ->  | IJ43: =IJ42/PC3_inputs!II12 ->  | IK43: =IK42/PC3_inputs!IJ12 ->  | IL43: =IL42/PC3_inputs!IK12 -> 
B44: NPV onshore, € | C44: =SUM(E44:I44) -> 494813001.9 | E44: =E43/PC3_inputs!D12 -> 95611510.1 | F44: =F43/PC3_inputs!E12 -> 115822653.2 | G44: =G43/PC3_inputs!F12 -> 99492299.13 | H44: =H43/PC3_inputs!G12 -> 94070306.51 | I44: =I43/PC3_inputs!H12 -> 89816232.95
A67: Inch
B68: SPLIT OF REVENUE REQUIRED FROM COMMODITY & CAPACITY CHARGES
C69: Inch
B70: Proportion of revenue from commodity | C70: =PC3_inputs!B15 -> 0.1
B71: Proportion of revenue from capacity | C71: =PC3_inputs!B16 -> 0.9
B73: NPV of revenue required from commodity (€m) | C73: ='Calc of total rev'!C61*C70 -> 1.054771638
B74: NPV of revenue required from capacity (€m) | C74: =C71*'Calc of total rev'!C61 -> 9.49294474
B76: Conversion from €m to € for | C76: =PC3_inputs!B19 -> 1000000
B78: NPV of revenue required from commodity (€) | C78: =C73*C76 -> 1054771.638
B79: NPV of revenue required from capacity (€) | C79: =C74*C76 -> 9492944.74
B81: ALLOWED REVENUE AND PRICES - COMMODITY
B83: Change from P0 to P1 | C83: ='Transmission 12 13'!N34 -> 0.6734510888 | D83: -0.644322614 | E83: 0.01498895295 | F83: 0.0009134834363 | G83: 0
B85: NPV revenue received less NPV revenue required | C85: =C90-C78 -> 0
E86: Inch
B87: Average annual tariff, € / MWh | E87: =(PC2_inputs!$F$23*(1+$C$83)) -> 0.0877279008 | F87: =(E87*(1+D$83)) -> 0.03120283043 | G87: =(F87*(1+E$83)) -> 0.03167052819 | H87: =(G87*(1+F$83)) -> 0.03169945869 | I87: =(H87*(1+G$83)) -> 0.03169945869 | J87: =IF(J63=1,(PC2_inputs!L102*(1+$C$37)),(I87*(1+#REF!))) ->  | K87: =IF(K63=1,(PC2_inputs!M102*(1+$C$37)),(J87*(1+#REF!))) ->  | L87: =IF(L63=1,(PC2_inputs!N102*(1+$C$37)),(K87*(1+#REF!))) ->  | M87: =IF(M63=1,(PC2_inputs!O102*(1+$C$37)),(L87*(1+#REF!))) ->  | N87: =IF(N63=1,(PC2_inputs!P102*(1+$C$37)),(M87*(1+#REF!))) ->  | O87: =IF(O63=1,(PC2_inputs!Q102*(1+$C$37)),(N87*(1+#REF!))) ->  | P87: =IF(P63=1,(PC2_inputs!R102*(1+$C$37)),(O87*(1+#REF!))) ->  | Q87: =IF(Q63=1,(PC2_inputs!S102*(1+$C$37)),(P87*(1+#REF!))) ->  | R87: =IF(R63=1,(PC2_inputs!T102*(1+$C$37)),(Q87*(1+#REF!))) ->  | S87: =IF(S63=1,(PC2_inputs!U102*(1+$C$37)),(R87*(1+#REF!))) ->  | T87: =IF(T63=1,(PC2_inputs!V102*(1+$C$37)),(S87*(1+#REF!))) ->  | U87: =IF(U63=1,(PC2_inputs!W102*(1+$C$37)),(T87*(1+#REF!))) ->  | V87: =IF(V63=1,(PC2_inputs!X102*(1+$C$37)),(U87*(1+#REF!))) ->  | W87: =IF(W63=1,(PC2_inputs!Y102*(1+$C$37)),(V87*(1+#REF!))) ->  | X87: =IF(X63=1,(PC2_inputs!Z102*(1+$C$37)),(W87*(1+#REF!))) ->  | Y87: =IF(Y63=1,(PC2_inputs!AA102*(1+$C$37)),(X87*(1+#REF!))) ->  | Z87: =IF(Z63=1,(PC2_inputs!AB102*(1+$C$37)),(Y87*(1+#REF!))) ->  | AA87: =IF(AA63=1,(PC2_inputs!AC102*(1+$C$37)),(Z87*(1+#REF!))) ->  | AB87: =IF(AB63=1,(PC2_inputs!AD102*(1+$C$37)),(AA87*(1+#REF!))) ->  | AC87: =IF(AC63=1,(PC2_inputs!AE102*(1+$C$37)),(AB87*(1+#REF!))) ->  | AD87: =IF(AD63=1,(PC2_inputs!AF102*(1+$C$37)),(AC87*(1+#REF!))) ->  | AE87: =IF(AE63=1,(PC2_inputs!AG102*(1+$C$37)),(AD87*(1+#REF!))) ->  | AF87: =IF(AF63=1,(PC2_inputs!AH102*(1+$C$37)),(AE87*(1+#REF!))) ->  | AG87: =IF(AG63=1,(PC2_inputs!AI102*(1+$C$37)),(AF87*(1+#REF!))) ->  | AH87: =IF(AH63=1,(PC2_inputs!AJ102*(1+$C$37)),(AG87*(1+#REF!))) ->  | AI87: =IF(AI63=1,(PC2_inputs!AK102*(1+$C$37)),(AH87*(1+#REF!))) ->  | AJ87: =IF(AJ63=1,(PC2_inputs!AL102*(1+$C$37)),(AI87*(1+#REF!))) ->  | AK87: =IF(AK63=1,(PC2_inputs!AM102*(1+$C$37)),(AJ87*(1+#REF!))) ->  | AL87: =IF(AL63=1,(PC2_inputs!AN102*(1+$C$37)),(AK87*(1+#REF!))) ->  | AM87: =IF(AM63=1,(PC2_inputs!AO102*(1+$C$37)),(AL87*(1+#REF!))) ->  | AN87: =IF(AN63=1,(PC2_inputs!AP102*(1+$C$37)),(AM87*(1+#REF!))) ->  | AO87: =IF(AO63=1,(PC2_inputs!AQ102*(1+$C$37)),(AN87*(1+#REF!))) ->  | AP87: =IF(AP63=1,(PC2_inputs!AR102*(1+$C$37)),(AO87*(1+#REF!))) ->  | AQ87: =IF(AQ63=1,(PC2_inputs!AS102*(1+$C$37)),(AP87*(1+#REF!))) ->  | AR87: =IF(AR63=1,(PC2_inputs!AT102*(1+$C$37)),(AQ87*(1+#REF!))) ->  | AS87: =IF(AS63=1,(PC2_inputs!AU102*(1+$C$37)),(AR87*(1+#REF!))) ->  | AT87: =IF(AT63=1,(PC2_inputs!AV102*(1+$C$37)),(AS87*(1+#REF!))) ->  | AU87: =IF(AU63=1,(PC2_inputs!AW102*(1+$C$37)),(AT87*(1+#REF!))) ->  | AV87: =IF(AV63=1,(PC2_inputs!AX102*(1+$C$37)),(AU87*(1+#REF!))) ->  | AW87: =IF(AW63=1,(PC2_inputs!AY102*(1+$C$37)),(AV87*(1+#REF!))) ->  | AX87: =IF(AX63=1,(PC2_inputs!AZ102*(1+$C$37)),(AW87*(1+#REF!))) ->  | AY87: =IF(AY63=1,(PC2_inputs!BA102*(1+$C$37)),(AX87*(1+#REF!))) ->  | AZ87: =IF(AZ63=1,(PC2_inputs!BB102*(1+$C$37)),(AY87*(1+#REF!))) ->  | BA87: =IF(BA63=1,(PC2_inputs!BC102*(1+$C$37)),(AZ87*(1+#REF!))) ->  | BB87: =IF(BB63=1,(PC2_inputs!BD102*(1+$C$37)),(BA87*(1+#REF!))) ->  | BC87: =IF(BC63=1,(PC2_inputs!BE102*(1+$C$37)),(BB87*(1+#REF!))) ->  | BD87: =IF(BD63=1,(PC2_inputs!BF102*(1+$C$37)),(BC87*(1+#REF!))) ->  | BE87: =IF(BE63=1,(PC2_inputs!BG102*(1+$C$37)),(BD87*(1+#REF!))) ->  | BF87: =IF(BF63=1,(PC2_inputs!BH102*(1+$C$37)),(BE87*(1+#REF!))) ->  | BG87: =IF(BG63=1,(PC2_inputs!BI102*(1+$C$37)),(BF87*(1+#REF!))) ->  | BH87: =IF(BH63=1,(PC2_inputs!BJ102*(1+$C$37)),(BG87*(1+#REF!))) ->  | BI87: =IF(BI63=1,(PC2_inputs!BK102*(1+$C$37)),(BH87*(1+#REF!))) ->  | BJ87: =IF(BJ63=1,(PC2_inputs!BL102*(1+$C$37)),(BI87*(1+#REF!))) ->  | BK87: =IF(BK63=1,(PC2_inputs!BM102*(1+$C$37)),(BJ87*(1+#REF!))) ->  | BL87: =IF(BL63=1,(PC2_inputs!BN102*(1+$C$37)),(BK87*(1+#REF!))) ->  | BM87: =IF(BM63=1,(PC2_inputs!BO102*(1+$C$37)),(BL87*(1+#REF!))) ->  | BN87: =IF(BN63=1,(PC2_inputs!BP102*(1+$C$37)),(BM87*(1+#REF!))) ->  | BO87: =IF(BO63=1,(PC2_inputs!BQ102*(1+$C$37)),(BN87*(1+#REF!))) ->  | BP87: =IF(BP63=1,(PC2_inputs!BR102*(1+$C$37)),(BO87*(1+#REF!))) ->  | BQ87: =IF(BQ63=1,(PC2_inputs!BS102*(1+$C$37)),(BP87*(1+#REF!))) ->  | BR87: =IF(BR63=1,(PC2_inputs!BT102*(1+$C$37)),(BQ87*(1+#REF!))) ->  | BS87: =IF(BS63=1,(PC2_inputs!BU102*(1+$C$37)),(BR87*(1+#REF!))) ->  | BT87: =IF(BT63=1,(PC2_inputs!BV102*(1+$C$37)),(BS87*(1+#REF!))) ->  | BU87: =IF(BU63=1,(PC2_inputs!BW102*(1+$C$37)),(BT87*(1+#REF!))) ->  | BV87: =IF(BV63=1,(PC2_inputs!BX102*(1+$C$37)),(BU87*(1+#REF!))) ->  | BW87: =IF(BW63=1,(PC2_inputs!BY102*(1+$C$37)),(BV87*(1+#REF!))) ->  | BX87: =IF(BX63=1,(PC2_inputs!BZ102*(1+$C$37)),(BW87*(1+#REF!))) ->  | BY87: =IF(BY63=1,(PC2_inputs!CA102*(1+$C$37)),(BX87*(1+#REF!))) ->  | BZ87: =IF(BZ63=1,(PC2_inputs!CB102*(1+$C$37)),(BY87*(1+#REF!))) ->  | CA87: =IF(CA63=1,(PC2_inputs!CC102*(1+$C$37)),(BZ87*(1+#REF!))) ->  | CB87: =IF(CB63=1,(PC2_inputs!CD102*(1+$C$37)),(CA87*(1+#REF!))) ->  | CC87: =IF(CC63=1,(PC2_inputs!CE102*(1+$C$37)),(CB87*(1+#REF!))) ->  | CD87: =IF(CD63=1,(PC2_inputs!CF102*(1+$C$37)),(CC87*(1+#REF!))) ->  | CE87: =IF(CE63=1,(PC2_inputs!CG102*(1+$C$37)),(CD87*(1+#REF!))) ->  | CF87: =IF(CF63=1,(PC2_inputs!CH102*(1+$C$37)),(CE87*(1+#REF!))) ->  | CG87: =IF(CG63=1,(PC2_inputs!CI102*(1+$C$37)),(CF87*(1+#REF!))) ->  | CH87: =IF(CH63=1,(PC2_inputs!CJ102*(1+$C$37)),(CG87*(1+#REF!))) ->  | CI87: =IF(CI63=1,(PC2_inputs!CK102*(1+$C$37)),(CH87*(1+#REF!))) ->  | CJ87: =IF(CJ63=1,(PC2_inputs!CL102*(1+$C$37)),(CI87*(1+#REF!))) ->  | CK87: =IF(CK63=1,(PC2_inputs!CM102*(1+$C$37)),(CJ87*(1+#REF!))) ->  | CL87: =IF(CL63=1,(PC2_inputs!CN102*(1+$C$37)),(CK87*(1+#REF!))) ->  | CM87: =IF(CM63=1,(PC2_inputs!CO102*(1+$C$37)),(CL87*(1+#REF!))) ->  | CN87: =IF(CN63=1,(PC2_inputs!CP102*(1+$C$37)),(CM87*(1+#REF!))) ->  | CO87: =IF(CO63=1,(PC2_inputs!CQ102*(1+$C$37)),(CN87*(1+#REF!))) ->  | CP87: =IF(CP63=1,(PC2_inputs!CR102*(1+$C$37)),(CO87*(1+#REF!))) ->  | CQ87: =IF(CQ63=1,(PC2_inputs!CS102*(1+$C$37)),(CP87*(1+#REF!))) ->  | CR87: =IF(CR63=1,(PC2_inputs!CT102*(1+$C$37)),(CQ87*(1+#REF!))) ->  | CS87: =IF(CS63=1,(PC2_inputs!CU102*(1+$C$37)),(CR87*(1+#REF!))) ->  | CT87: =IF(CT63=1,(PC2_inputs!CV102*(1+$C$37)),(CS87*(1+#REF!))) ->  | CU87: =IF(CU63=1,(PC2_inputs!CW102*(1+$C$37)),(CT87*(1+#REF!))) ->  | CV87: =IF(CV63=1,(PC2_inputs!CX102*(1+$C$37)),(CU87*(1+#REF!))) ->  | CW87: =IF(CW63=1,(PC2_inputs!CY102*(1+$C$37)),(CV87*(1+#REF!))) ->  | CX87: =IF(CX63=1,(PC2_inputs!CZ102*(1+$C$37)),(CW87*(1+#REF!))) ->  | CY87: =IF(CY63=1,(PC2_inputs!DA102*(1+$C$37)),(CX87*(1+#REF!))) ->  | CZ87: =IF(CZ63=1,(PC2_inputs!DB102*(1+$C$37)),(CY87*(1+#REF!))) ->  | DA87: =IF(DA63=1,(PC2_inputs!DC102*(1+$C$37)),(CZ87*(1+#REF!))) ->  | DB87: =IF(DB63=1,(PC2_inputs!DD102*(1+$C$37)),(DA87*(1+#REF!))) ->  | DC87: =IF(DC63=1,(PC2_inputs!DE102*(1+$C$37)),(DB87*(1+#REF!))) ->  | DD87: =IF(DD63=1,(PC2_inputs!DF102*(1+$C$37)),(DC87*(1+#REF!))) ->  | DE87: =IF(DE63=1,(PC2_inputs!DG102*(1+$C$37)),(DD87*(1+#REF!))) ->  | DF87: =IF(DF63=1,(PC2_inputs!DH102*(1+$C$37)),(DE87*(1+#REF!))) ->  | DG87: =IF(DG63=1,(PC2_inputs!DI102*(1+$C$37)),(DF87*(1+#REF!))) ->  | DH87: =IF(DH63=1,(PC2_inputs!DJ102*(1+$C$37)),(DG87*(1+#REF!))) ->  | DI87: =IF(DI63=1,(PC2_inputs!DK102*(1+$C$37)),(DH87*(1+#REF!))) ->  | DJ87: =IF(DJ63=1,(PC2_inputs!DL102*(1+$C$37)),(DI87*(1+#REF!))) ->  | DK87: =IF(DK63=1,(PC2_inputs!DM102*(1+$C$37)),(DJ87*(1+#REF!))) ->  | DL87: =IF(DL63=1,(PC2_inputs!DN102*(1+$C$37)),(DK87*(1+#REF!))) ->  | DM87: =IF(DM63=1,(PC2_inputs!DO102*(1+$C$37)),(DL87*(1+#REF!))) ->  | DN87: =IF(DN63=1,(PC2_inputs!DP102*(1+$C$37)),(DM87*(1+#REF!))) ->  | DO87: =IF(DO63=1,(PC2_inputs!DQ102*(1+$C$37)),(DN87*(1+#REF!))) ->  | DP87: =IF(DP63=1,(PC2_inputs!DR102*(1+$C$37)),(DO87*(1+#REF!))) ->  | DQ87: =IF(DQ63=1,(PC2_inputs!DS102*(1+$C$37)),(DP87*(1+#REF!))) ->  | DR87: =IF(DR63=1,(PC2_inputs!DT102*(1+$C$37)),(DQ87*(1+#REF!))) ->  | DS87: =IF(DS63=1,(PC2_inputs!DU102*(1+$C$37)),(DR87*(1+#REF!))) ->  | DT87: =IF(DT63=1,(PC2_inputs!DV102*(1+$C$37)),(DS87*(1+#REF!))) ->  | DU87: =IF(DU63=1,(PC2_inputs!DW102*(1+$C$37)),(DT87*(1+#REF!))) ->  | DV87: =IF(DV63=1,(PC2_inputs!DX102*(1+$C$37)),(DU87*(1+#REF!))) ->  | DW87: =IF(DW63=1,(PC2_inputs!DY102*(1+$C$37)),(DV87*(1+#REF!))) ->  | DX87: =IF(DX63=1,(PC2_inputs!DZ102*(1+$C$37)),(DW87*(1+#REF!))) ->  | DY87: =IF(DY63=1,(PC2_inputs!EA102*(1+$C$37)),(DX87*(1+#REF!))) ->  | DZ87: =IF(DZ63=1,(PC2_inputs!EB102*(1+$C$37)),(DY87*(1+#REF!))) ->  | EA87: =IF(EA63=1,(PC2_inputs!EC102*(1+$C$37)),(DZ87*(1+#REF!))) ->  | EB87: =IF(EB63=1,(PC2_inputs!ED102*(1+$C$37)),(EA87*(1+#REF!))) ->  | EC87: =IF(EC63=1,(PC2_inputs!EE102*(1+$C$37)),(EB87*(1+#REF!))) ->  | ED87: =IF(ED63=1,(PC2_inputs!EF102*(1+$C$37)),(EC87*(1+#REF!))) ->  | EE87: =IF(EE63=1,(PC2_inputs!EG102*(1+$C$37)),(ED87*(1+#REF!))) ->  | EF87: =IF(EF63=1,(PC2_inputs!EH102*(1+$C$37)),(EE87*(1+#REF!))) ->  | EG87: =IF(EG63=1,(PC2_inputs!EI102*(1+$C$37)),(EF87*(1+#REF!))) ->  | EH87: =IF(EH63=1,(PC2_inputs!EJ102*(1+$C$37)),(EG87*(1+#REF!))) ->  | EI87: =IF(EI63=1,(PC2_inputs!EK102*(1+$C$37)),(EH87*(1+#REF!))) ->  | EJ87: =IF(EJ63=1,(PC2_inputs!EL102*(1+$C$37)),(EI87*(1+#REF!))) ->  | EK87: =IF(EK63=1,(PC2_inputs!EM102*(1+$C$37)),(EJ87*(1+#REF!))) ->  | EL87: =IF(EL63=1,(PC2_inputs!EN102*(1+$C$37)),(EK87*(1+#REF!))) ->  | EM87: =IF(EM63=1,(PC2_inputs!EO102*(1+$C$37)),(EL87*(1+#REF!))) ->  | EN87: =IF(EN63=1,(PC2_inputs!EP102*(1+$C$37)),(EM87*(1+#REF!))) ->  | EO87: =IF(EO63=1,(PC2_inputs!EQ102*(1+$C$37)),(EN87*(1+#REF!))) ->  | EP87: =IF(EP63=1,(PC2_inputs!ER102*(1+$C$37)),(EO87*(1+#REF!))) ->  | EQ87: =IF(EQ63=1,(PC2_inputs!ES102*(1+$C$37)),(EP87*(1+#REF!))) ->  | ER87: =IF(ER63=1,(PC2_inputs!ET102*(1+$C$37)),(EQ87*(1+#REF!))) ->  | ES87: =IF(ES63=1,(PC2_inputs!EU102*(1+$C$37)),(ER87*(1+#REF!))) ->  | ET87: =IF(ET63=1,(PC2_inputs!EV102*(1+$C$37)),(ES87*(1+#REF!))) ->  | EU87: =IF(EU63=1,(PC2_inputs!EW102*(1+$C$37)),(ET87*(1+#REF!))) ->  | EV87: =IF(EV63=1,(PC2_inputs!EX102*(1+$C$37)),(EU87*(1+#REF!))) ->  | EW87: =IF(EW63=1,(PC2_inputs!EY102*(1+$C$37)),(EV87*(1+#REF!))) ->  | EX87: =IF(EX63=1,(PC2_inputs!EZ102*(1+$C$37)),(EW87*(1+#REF!))) ->  | EY87: =IF(EY63=1,(PC2_inputs!FA102*(1+$C$37)),(EX87*(1+#REF!))) ->  | EZ87: =IF(EZ63=1,(PC2_inputs!FB102*(1+$C$37)),(EY87*(1+#REF!))) ->  | FA87: =IF(FA63=1,(PC2_inputs!FC102*(1+$C$37)),(EZ87*(1+#REF!))) ->  | FB87: =IF(FB63=1,(PC2_inputs!FD102*(1+$C$37)),(FA87*(1+#REF!))) ->  | FC87: =IF(FC63=1,(PC2_inputs!FE102*(1+$C$37)),(FB87*(1+#REF!))) ->  | FD87: =IF(FD63=1,(PC2_inputs!FF102*(1+$C$37)),(FC87*(1+#REF!))) ->  | FE87: =IF(FE63=1,(PC2_inputs!FG102*(1+$C$37)),(FD87*(1+#REF!))) ->  | FF87: =IF(FF63=1,(PC2_inputs!FH102*(1+$C$37)),(FE87*(1+#REF!))) ->  | FG87: =IF(FG63=1,(PC2_inputs!FI102*(1+$C$37)),(FF87*(1+#REF!))) ->  | FH87: =IF(FH63=1,(PC2_inputs!FJ102*(1+$C$37)),(FG87*(1+#REF!))) ->  | FI87: =IF(FI63=1,(PC2_inputs!FK102*(1+$C$37)),(FH87*(1+#REF!))) ->  | FJ87: =IF(FJ63=1,(PC2_inputs!FL102*(1+$C$37)),(FI87*(1+#REF!))) ->  | FK87: =IF(FK63=1,(PC2_inputs!FM102*(1+$C$37)),(FJ87*(1+#REF!))) ->  | FL87: =IF(FL63=1,(PC2_inputs!FN102*(1+$C$37)),(FK87*(1+#REF!))) ->  | FM87: =IF(FM63=1,(PC2_inputs!FO102*(1+$C$37)),(FL87*(1+#REF!))) ->  | FN87: =IF(FN63=1,(PC2_inputs!FP102*(1+$C$37)),(FM87*(1+#REF!))) ->  | FO87: =IF(FO63=1,(PC2_inputs!FQ102*(1+$C$37)),(FN87*(1+#REF!))) ->  | FP87: =IF(FP63=1,(PC2_inputs!FR102*(1+$C$37)),(FO87*(1+#REF!))) ->  | FQ87: =IF(FQ63=1,(PC2_inputs!FS102*(1+$C$37)),(FP87*(1+#REF!))) ->  | FR87: =IF(FR63=1,(PC2_inputs!FT102*(1+$C$37)),(FQ87*(1+#REF!))) ->  | FS87: =IF(FS63=1,(PC2_inputs!FU102*(1+$C$37)),(FR87*(1+#REF!))) ->  | FT87: =IF(FT63=1,(PC2_inputs!FV102*(1+$C$37)),(FS87*(1+#REF!))) ->  | FU87: =IF(FU63=1,(PC2_inputs!FW102*(1+$C$37)),(FT87*(1+#REF!))) ->  | FV87: =IF(FV63=1,(PC2_inputs!FX102*(1+$C$37)),(FU87*(1+#REF!))) ->  | FW87: =IF(FW63=1,(PC2_inputs!FY102*(1+$C$37)),(FV87*(1+#REF!))) ->  | FX87: =IF(FX63=1,(PC2_inputs!FZ102*(1+$C$37)),(FW87*(1+#REF!))) ->  | FY87: =IF(FY63=1,(PC2_inputs!GA102*(1+$C$37)),(FX87*(1+#REF!))) ->  | FZ87: =IF(FZ63=1,(PC2_inputs!GB102*(1+$C$37)),(FY87*(1+#REF!))) ->  | GA87: =IF(GA63=1,(PC2_inputs!GC102*(1+$C$37)),(FZ87*(1+#REF!))) ->  | GB87: =IF(GB63=1,(PC2_inputs!GD102*(1+$C$37)),(GA87*(1+#REF!))) ->  | GC87: =IF(GC63=1,(PC2_inputs!GE102*(1+$C$37)),(GB87*(1+#REF!))) ->  | GD87: =IF(GD63=1,(PC2_inputs!GF102*(1+$C$37)),(GC87*(1+#REF!))) ->  | GE87: =IF(GE63=1,(PC2_inputs!GG102*(1+$C$37)),(GD87*(1+#REF!))) ->  | GF87: =IF(GF63=1,(PC2_inputs!GH102*(1+$C$37)),(GE87*(1+#REF!))) ->  | GG87: =IF(GG63=1,(PC2_inputs!GI102*(1+$C$37)),(GF87*(1+#REF!))) ->  | GH87: =IF(GH63=1,(PC2_inputs!GJ102*(1+$C$37)),(GG87*(1+#REF!))) ->  | GI87: =IF(GI63=1,(PC2_inputs!GK102*(1+$C$37)),(GH87*(1+#REF!))) ->  | GJ87: =IF(GJ63=1,(PC2_inputs!GL102*(1+$C$37)),(GI87*(1+#REF!))) ->  | GK87: =IF(GK63=1,(PC2_inputs!GM102*(1+$C$37)),(GJ87*(1+#REF!))) ->  | GL87: =IF(GL63=1,(PC2_inputs!GN102*(1+$C$37)),(GK87*(1+#REF!))) ->  | GM87: =IF(GM63=1,(PC2_inputs!GO102*(1+$C$37)),(GL87*(1+#REF!))) ->  | GN87: =IF(GN63=1,(PC2_inputs!GP102*(1+$C$37)),(GM87*(1+#REF!))) ->  | GO87: =IF(GO63=1,(PC2_inputs!GQ102*(1+$C$37)),(GN87*(1+#REF!))) ->  | GP87: =IF(GP63=1,(PC2_inputs!GR102*(1+$C$37)),(GO87*(1+#REF!))) ->  | GQ87: =IF(GQ63=1,(PC2_inputs!GS102*(1+$C$37)),(GP87*(1+#REF!))) ->  | GR87: =IF(GR63=1,(PC2_inputs!GT102*(1+$C$37)),(GQ87*(1+#REF!))) ->  | GS87: =IF(GS63=1,(PC2_inputs!GU102*(1+$C$37)),(GR87*(1+#REF!))) ->  | GT87: =IF(GT63=1,(PC2_inputs!GV102*(1+$C$37)),(GS87*(1+#REF!))) ->  | GU87: =IF(GU63=1,(PC2_inputs!GW102*(1+$C$37)),(GT87*(1+#REF!))) ->  | GV87: =IF(GV63=1,(PC2_inputs!GX102*(1+$C$37)),(GU87*(1+#REF!))) ->  | GW87: =IF(GW63=1,(PC2_inputs!GY102*(1+$C$37)),(GV87*(1+#REF!))) ->  | GX87: =IF(GX63=1,(PC2_inputs!GZ102*(1+$C$37)),(GW87*(1+#REF!))) ->  | GY87: =IF(GY63=1,(PC2_inputs!HA102*(1+$C$37)),(GX87*(1+#REF!))) ->  | GZ87: =IF(GZ63=1,(PC2_inputs!HB102*(1+$C$37)),(GY87*(1+#REF!))) ->  | HA87: =IF(HA63=1,(PC2_inputs!HC102*(1+$C$37)),(GZ87*(1+#REF!))) ->  | HB87: =IF(HB63=1,(PC2_inputs!HD102*(1+$C$37)),(HA87*(1+#REF!))) ->  | HC87: =IF(HC63=1,(PC2_inputs!HE102*(1+$C$37)),(HB87*(1+#REF!))) ->  | HD87: =IF(HD63=1,(PC2_inputs!HF102*(1+$C$37)),(HC87*(1+#REF!))) ->  | HE87: =IF(HE63=1,(PC2_inputs!HG102*(1+$C$37)),(HD87*(1+#REF!))) ->  | HF87: =IF(HF63=1,(PC2_inputs!HH102*(1+$C$37)),(HE87*(1+#REF!))) ->  | HG87: =IF(HG63=1,(PC2_inputs!HI102*(1+$C$37)),(HF87*(1+#REF!))) ->  | HH87: =IF(HH63=1,(PC2_inputs!HJ102*(1+$C$37)),(HG87*(1+#REF!))) ->  | HI87: =IF(HI63=1,(PC2_inputs!HK102*(1+$C$37)),(HH87*(1+#REF!))) ->  | HJ87: =IF(HJ63=1,(PC2_inputs!HL102*(1+$C$37)),(HI87*(1+#REF!))) ->  | HK87: =IF(HK63=1,(PC2_inputs!HM102*(1+$C$37)),(HJ87*(1+#REF!))) ->  | HL87: =IF(HL63=1,(PC2_inputs!HN102*(1+$C$37)),(HK87*(1+#REF!))) ->  | HM87: =IF(HM63=1,(PC2_inputs!HO102*(1+$C$37)),(HL87*(1+#REF!))) ->  | HN87: =IF(HN63=1,(PC2_inputs!HP102*(1+$C$37)),(HM87*(1+#REF!))) ->  | HO87: =IF(HO63=1,(PC2_inputs!HQ102*(1+$C$37)),(HN87*(1+#REF!))) ->  | HP87: =IF(HP63=1,(PC2_inputs!HR102*(1+$C$37)),(HO87*(1+#REF!))) ->  | HQ87: =IF(HQ63=1,(PC2_inputs!HS102*(1+$C$37)),(HP87*(1+#REF!))) ->  | HR87: =IF(HR63=1,(PC2_inputs!HT102*(1+$C$37)),(HQ87*(1+#REF!))) ->  | HS87: =IF(HS63=1,(PC2_inputs!HU102*(1+$C$37)),(HR87*(1+#REF!))) ->  | HT87: =IF(HT63=1,(PC2_inputs!HV102*(1+$C$37)),(HS87*(1+#REF!))) ->  | HU87: =IF(HU63=1,(PC2_inputs!HW102*(1+$C$37)),(HT87*(1+#REF!))) ->  | HV87: =IF(HV63=1,(PC2_inputs!HX102*(1+$C$37)),(HU87*(1+#REF!))) ->  | HW87: =IF(HW63=1,(PC2_inputs!HY102*(1+$C$37)),(HV87*(1+#REF!))) ->  | HX87: =IF(HX63=1,(PC2_inputs!HZ102*(1+$C$37)),(HW87*(1+#REF!))) ->  | HY87: =IF(HY63=1,(PC2_inputs!IA102*(1+$C$37)),(HX87*(1+#REF!))) ->  | HZ87: =IF(HZ63=1,(PC2_inputs!IB102*(1+$C$37)),(HY87*(1+#REF!))) ->  | IA87: =IF(IA63=1,(PC2_inputs!IC102*(1+$C$37)),(HZ87*(1+#REF!))) ->  | IB87: =IF(IB63=1,(PC2_inputs!ID102*(1+$C$37)),(IA87*(1+#REF!))) ->  | IC87: =IF(IC63=1,(PC2_inputs!IE102*(1+$C$37)),(IB87*(1+#REF!))) ->  | ID87: =IF(ID63=1,(PC2_inputs!IF102*(1+$C$37)),(IC87*(1+#REF!))) ->  | IE87: =IF(IE63=1,(PC2_inputs!IG102*(1+$C$37)),(ID87*(1+#REF!))) ->  | IF87: =IF(IF63=1,(PC2_inputs!IH102*(1+$C$37)),(IE87*(1+#REF!))) ->  | IG87: =IF(IG63=1,(PC2_inputs!II102*(1+$C$37)),(IF87*(1+#REF!))) ->  | IH87: =IF(IH63=1,(PC2_inputs!IJ102*(1+$C$37)),(IG87*(1+#REF!))) ->  | II87: =IF(II63=1,(PC2_inputs!IK102*(1+$C$37)),(IH87*(1+#REF!))) ->  | IJ87: =IF(IJ63=1,(PC2_inputs!IL102*(1+$C$37)),(II87*(1+#REF!))) ->  | IK87: =IF(IK63=1,(PC2_inputs!IM102*(1+$C$37)),(IJ87*(1+#REF!))) ->  | IL87: =IF(IL63=1,(PC2_inputs!IN102*(1+$C$37)),(IK87*(1+#REF!))) ->  | IM87: =IF(IM63=1,(PC2_inputs!IO102*(1+$C$37)),(IL87*(1+#REF!))) ->  | IN87: =IF(IN63=1,(PC2_inputs!IP102*(1+$C$37)),(IM87*(1+#REF!))) ->  | IO87: =IF(IO63=1,(PC2_inputs!IQ102*(1+$C$37)),(IN87*(1+#REF!))) ->  | IP87: =IF(IP63=1,(PC2_inputs!IR102*(1+$C$37)),(IO87*(1+#REF!))) ->  | IQ87: =IF(IQ63=1,(PC2_inputs!IS102*(1+$C$37)),(IP87*(1+#REF!))) ->  | IR87: =IF(IR63=1,(PC2_inputs!IT102*(1+$C$37)),(IQ87*(1+#REF!))) ->  | IS87: =IF(IS63=1,(PC2_inputs!IU102*(1+$C$37)),(IR87*(1+#REF!))) ->  | IT87: =IF(IT63=1,(PC2_inputs!IV102*(1+$C$37)),(IS87*(1+#REF!))) ->  | IU87: =IF(IU63=1,(PC2_inputs!#REF!*(1+$C$37)),(IT87*(1+#REF!))) ->  | IV87: =IF(IV63=1,(PC2_inputs!#REF!*(1+$C$37)),(IU87*(1+#REF!))) -> 
B88: Demand, MWh | E88: =PC3_inputs!D28 -> 6778728.374 | F88: =PC3_inputs!E28 -> 6760952.178 | G88: =PC3_inputs!F28 -> 6704361.413 | H88: =PC3_inputs!G28 -> 6653544.283 | I88: =PC3_inputs!H28 -> 4244446.999
B89: Total annual revenue allowed, € | E89: 410844.8741 | F89: 208353.437 | G89: 212330.6671 | H89: =H87*H88 -> 210913.7521 | I89: =I87*I88 -> 134546.6723
B90: NPV for interconnectors, € | C90: =SUM(E90:I90) -> 1054771.638 | E90: =E89/PC3_inputs!D12 -> 398315.74 | F90: =F89/PC3_inputs!E12 -> 190937.8333 | G90: =G89/PC3_inputs!F12 -> 184964.4671 | H90: =H89/PC3_inputs!G12 -> 174648.4515 | I90: =I89/PC3_inputs!H12 -> 105905.1459
B92: ALLOWED REVENUE AND PRICES - CAPACITY
B95: Change from P0 to P1 | C95: ='Transmission 12 13'!N33 -> 1.168542987 | D95: -0.4639327194 | E95: -0.01219297186 | F95: 0.0008554326063 | G95: 0
B97: NPV revenue received less NPV revenue required | C97: =C102-C79 -> 0
E98: Inch
B99: Average annual tariff, € per MWh / day | E99: =(PC2_inputs!$F$24*(1+$C$95)) -> 100.1626626 | F99: =(E99*(1+D$95)) -> 53.69392615 | G99: =(F99*(1+E$95)) -> 53.03923762 | H99: =(G99*(1+F$95)) -> 53.08460911 | I99: =(H99*(1+G$95)) -> 53.08460911 | J99: 53.08460911 | K99: 53.08460911 | L99: 53.08460911 | M99: 53.08460911 | N99: 53.08460911 | O99: 53.08460911 | P99: 53.08460911 | Q99: 53.08460911 | R99: 53.08460911 | S99: 53.08460911 | T99: 53.08460911 | U99: 53.08460911 | V99: 53.08460911 | W99: 53.08460911 | X99: 53.08460911 | Y99: 53.08460911 | Z99: 53.08460911 | AA99: 53.08460911 | AB99: 53.08460911 | AC99: 53.08460911 | AD99: 53.08460911 | AE99: 53.08460911 | AF99: 53.08460911 | AG99: 53.08460911 | AH99: 53.08460911 | AI99: 53.08460911 | AJ99: 53.08460911 | AK99: 53.08460911 | AL99: 53.08460911 | AM99: 53.08460911 | AN99: 53.08460911 | AO99: 53.08460911 | AP99: 53.08460911 | AQ99: 53.08460911 | AR99: 53.08460911 | AS99: 53.08460911 | AT99: 53.08460911 | AU99: 53.08460911 | AV99: 53.08460911 | AW99: 53.08460911 | AX99: 53.08460911 | AY99: 53.08460911 | AZ99: 53.08460911 | BA99: 53.08460911 | BB99: 53.08460911 | BC99: 53.08460911 | BD99: 53.08460911 | BE99: 53.08460911 | BF99: 53.08460911 | BG99: 53.08460911 | BH99: 53.08460911 | BI99: 53.08460911 | BJ99: 53.08460911 | BK99: 53.08460911 | BL99: 53.08460911 | BM99: 53.08460911 | BN99: 53.08460911 | BO99: 53.08460911 | BP99: 53.08460911 | BQ99: 53.08460911 | BR99: 53.08460911 | BS99: =(BR99*(1+BQ$95)) -> 53.08460911 | BT99: 53.08460911 | BU99: 53.08460911 | BV99: 53.08460911 | BW99: 53.08460911 | BX99: 53.08460911 | BY99: 53.08460911 | BZ99: 53.08460911 | CA99: 53.08460911 | CB99: 53.08460911 | CC99: 53.08460911 | CD99: 53.08460911 | CE99: 53.08460911 | CF99: 53.08460911 | CG99: 53.08460911 | CH99: 53.08460911 | CI99: 53.08460911 | CJ99: 53.08460911 | CK99: 53.08460911 | CL99: 53.08460911 | CM99: 53.08460911 | CN99: 53.08460911 | CO99: 53.08460911 | CP99: 53.08460911 | CQ99: 53.08460911 | CR99: 53.08460911 | CS99: 53.08460911 | CT99: 53.08460911 | CU99: 53.08460911 | CV99: 53.08460911 | CW99: 53.08460911 | CX99: 53.08460911 | CY99: 53.08460911 | CZ99: 53.08460911 | DA99: 53.08460911 | DB99: 53.08460911 | DC99: 53.08460911 | DD99: 53.08460911 | DE99: 53.08460911 | DF99: 53.08460911 | DG99: 53.08460911 | DH99: 53.08460911 | DI99: 53.08460911 | DJ99: 53.08460911 | DK99: 53.08460911 | DL99: 53.08460911 | DM99: 53.08460911 | DN99: 53.08460911 | DO99: 53.08460911 | DP99: 53.08460911 | DQ99: 53.08460911 | DR99: 53.08460911 | DS99: 53.08460911 | DT99: 53.08460911 | DU99: 53.08460911 | DV99: 53.08460911 | DW99: 53.08460911 | DX99: 53.08460911 | DY99: 53.08460911 | DZ99: 53.08460911 | EA99: 53.08460911 | EB99: 53.08460911 | EC99: 53.08460911 | ED99: 53.08460911 | EE99: =(ED99*(1+EC$95)) -> 53.08460911 | EF99: 53.08460911 | EG99: 53.08460911 | EH99: 53.08460911 | EI99: 53.08460911 | EJ99: 53.08460911 | EK99: 53.08460911 | EL99: 53.08460911 | EM99: 53.08460911 | EN99: 53.08460911 | EO99: 53.08460911 | EP99: 53.08460911 | EQ99: 53.08460911 | ER99: 53.08460911 | ES99: 53.08460911 | ET99: 53.08460911 | EU99: 53.08460911 | EV99: 53.08460911 | EW99: 53.08460911 | EX99: 53.08460911 | EY99: 53.08460911 | EZ99: 53.08460911 | FA99: 53.08460911 | FB99: 53.08460911 | FC99: 53.08460911 | FD99: 53.08460911 | FE99: 53.08460911 | FF99: 53.08460911 | FG99: 53.08460911 | FH99: 53.08460911 | FI99: 53.08460911 | FJ99: 53.08460911 | FK99: 53.08460911 | FL99: 53.08460911 | FM99: 53.08460911 | FN99: 53.08460911 | FO99: 53.08460911 | FP99: 53.08460911 | FQ99: 53.08460911 | FR99: 53.08460911 | FS99: 53.08460911 | FT99: 53.08460911 | FU99: 53.08460911 | FV99: 53.08460911 | FW99: 53.08460911 | FX99: 53.08460911 | FY99: 53.08460911 | FZ99: 53.08460911 | GA99: 53.08460911 | GB99: 53.08460911 | GC99: 53.08460911 | GD99: 53.08460911 | GE99: 53.08460911 | GF99: 53.08460911 | GG99: 53.08460911 | GH99: 53.08460911 | GI99: 53.08460911 | GJ99: 53.08460911 | GK99: 53.08460911 | GL99: 53.08460911 | GM99: 53.08460911 | GN99: 53.08460911 | GO99: 53.08460911 | GP99: 53.08460911 | GQ99: =(GP99*(1+GO$95)) -> 53.08460911 | GR99: 53.08460911 | GS99: 53.08460911 | GT99: 53.08460911 | GU99: 53.08460911 | GV99: 53.08460911 | GW99: 53.08460911 | GX99: 53.08460911 | GY99: 53.08460911 | GZ99: 53.08460911 | HA99: 53.08460911 | HB99: 53.08460911 | HC99: 53.08460911 | HD99: 53.08460911 | HE99: 53.08460911 | HF99: 53.08460911 | HG99: 53.08460911 | HH99: 53.08460911 | HI99: 53.08460911 | HJ99: 53.08460911 | HK99: 53.08460911 | HL99: 53.08460911 | HM99: 53.08460911 | HN99: 53.08460911 | HO99: 53.08460911 | HP99: 53.08460911 | HQ99: 53.08460911 | HR99: 53.08460911 | HS99: 53.08460911 | HT99: 53.08460911 | HU99: 53.08460911 | HV99: 53.08460911 | HW99: 53.08460911 | HX99: 53.08460911 | HY99: 53.08460911 | HZ99: 53.08460911 | IA99: 53.08460911 | IB99: 53.08460911 | IC99: 53.08460911 | ID99: 53.08460911 | IE99: 53.08460911 | IF99: 53.08460911 | IG99: 53.08460911 | IH99: 53.08460911 | II99: 53.08460911 | IJ99: 53.08460911 | IK99: 53.08460911 | IL99: 53.08460911 | IM99: 53.08460911 | IN99: 53.08460911 | IO99: 53.08460911 | IP99: 53.08460911 | IQ99: 53.08460911 | IR99: 53.08460911 | IS99: 53.08460911 | IT99: 53.08460911 | IU99: 53.08460911 | IV99: 53.08460911
B100: Demand, MWh/day | E100: =PC3_inputs!D29 -> 33678.44444 | F100: =PC3_inputs!E29 -> 33053.44444 | G100: =PC3_inputs!F29 -> 32324.27778 | H100: =PC3_inputs!G29 -> 31699.27778 | I100: =PC3_inputs!H29 -> 31178.44444
B101: Total annual revenue allowed, € | E101: 3697603.867 | F101: 1875180.933 | G101: 1714455.05 | H101: =H99*H100 -> 1682743.77 | I101: =I99*I100 -> 1655095.536
B102: NPV Inch, € | C102: =SUM(E102:I102) -> 9492944.74 | E102: =E101/PC3_inputs!D12 -> 3584841.66 | F102: =F101/PC3_inputs!E12 -> 1718440.5 | G102: =G101/PC3_inputs!F12 -> 1493487.818 | H102: =H101/PC3_inputs!G12 -> 1393406.503 | I102: =I101/PC3_inputs!H12 -> 1302768.26
A124: Interconnectors
B125: SPLIT OF REVENUE REQUIRED FROM COMMODITY & CAPACITY CHARGES
C126: Interconnectors
B127: Proportion of revenue from commodity | C127: =PC3_inputs!B15 -> 0.1
B128: Proportion of revenue from capacity | C128: =PC3_inputs!B16 -> 0.9
B130: NPV of revenue required from commodity (€m) | C130: ='Calc of total rev'!C91*C127 -> 26.41754017
B131: NPV of revenue required from capacity (€m) | C131: =C128*'Calc of total rev'!C91 -> 237.7578615
B133: Conversion from €m to € for | C133: =PC3_inputs!B19 -> 1000000
B135: NPV of revenue required from commodity (€) | C135: =C130*C133 -> 26417540.17
B136: NPV of revenue required from capacity (€) | C136: =C131*C133 -> 237757861.5
B138: ALLOWED REVENUE AND PRICES - COMMODITY
B140: Change from P0 to P1 | C140: ='Transmission 12 13'!H34 -> 0.509644205 | D140: 0.4107080762 | E140: -0.3291663532 | F140: 0.0008581311013 | G140: 0
B142: NPV revenue received less NPV revenue required | C142: =C147-C135 -> 0
E143: Interconnectors
B144: Average annual tariff, € / MWh | E144: =(PC2_inputs!$G$23*(1+$C$140)) -> 0.1224439415 | F144: =(E144*(1+D$140)) -> 0.1727326571 | G144: =(F144*(1+E$140)) -> 0.1158748783 | H144: =(G144*(1+F$140)) -> 0.1159743141 | I144: =(H144*(1+G$140)) -> 0.1159743141 | J144: =IF(J122=1,(PC2_inputs!L169*(1+$C$37)),(I144*(1+#REF!))) ->  | K144: =IF(K122=1,(PC2_inputs!M169*(1+$C$37)),(J144*(1+#REF!))) ->  | L144: =IF(L122=1,(PC2_inputs!N169*(1+$C$37)),(K144*(1+#REF!))) ->  | M144: =IF(M122=1,(PC2_inputs!O169*(1+$C$37)),(L144*(1+#REF!))) ->  | N144: =IF(N122=1,(PC2_inputs!P169*(1+$C$37)),(M144*(1+#REF!))) ->  | O144: =IF(O122=1,(PC2_inputs!Q169*(1+$C$37)),(N144*(1+#REF!))) ->  | P144: =IF(P122=1,(PC2_inputs!R169*(1+$C$37)),(O144*(1+#REF!))) ->  | Q144: =IF(Q122=1,(PC2_inputs!S169*(1+$C$37)),(P144*(1+#REF!))) ->  | R144: =IF(R122=1,(PC2_inputs!T169*(1+$C$37)),(Q144*(1+#REF!))) ->  | S144: =IF(S122=1,(PC2_inputs!U169*(1+$C$37)),(R144*(1+#REF!))) ->  | T144: =IF(T122=1,(PC2_inputs!V169*(1+$C$37)),(S144*(1+#REF!))) ->  | U144: =IF(U122=1,(PC2_inputs!W169*(1+$C$37)),(T144*(1+#REF!))) ->  | V144: =IF(V122=1,(PC2_inputs!X169*(1+$C$37)),(U144*(1+#REF!))) ->  | W144: =IF(W122=1,(PC2_inputs!Y169*(1+$C$37)),(V144*(1+#REF!))) ->  | X144: =IF(X122=1,(PC2_inputs!Z169*(1+$C$37)),(W144*(1+#REF!))) ->  | Y144: =IF(Y122=1,(PC2_inputs!AA169*(1+$C$37)),(X144*(1+#REF!))) ->  | Z144: =IF(Z122=1,(PC2_inputs!AB169*(1+$C$37)),(Y144*(1+#REF!))) ->  | AA144: =IF(AA122=1,(PC2_inputs!AC169*(1+$C$37)),(Z144*(1+#REF!))) ->  | AB144: =IF(AB122=1,(PC2_inputs!AD169*(1+$C$37)),(AA144*(1+#REF!))) ->  | AC144: =IF(AC122=1,(PC2_inputs!AE169*(1+$C$37)),(AB144*(1+#REF!))) ->  | AD144: =IF(AD122=1,(PC2_inputs!AF169*(1+$C$37)),(AC144*(1+#REF!))) ->  | AE144: =IF(AE122=1,(PC2_inputs!AG169*(1+$C$37)),(AD144*(1+#REF!))) ->  | AF144: =IF(AF122=1,(PC2_inputs!AH169*(1+$C$37)),(AE144*(1+#REF!))) ->  | AG144: =IF(AG122=1,(PC2_inputs!AI169*(1+$C$37)),(AF144*(1+#REF!))) ->  | AH144: =IF(AH122=1,(PC2_inputs!AJ169*(1+$C$37)),(AG144*(1+#REF!))) ->  | AI144: =IF(AI122=1,(PC2_inputs!AK169*(1+$C$37)),(AH144*(1+#REF!))) ->  | AJ144: =IF(AJ122=1,(PC2_inputs!AL169*(1+$C$37)),(AI144*(1+#REF!))) ->  | AK144: =IF(AK122=1,(PC2_inputs!AM169*(1+$C$37)),(AJ144*(1+#REF!))) ->  | AL144: =IF(AL122=1,(PC2_inputs!AN169*(1+$C$37)),(AK144*(1+#REF!))) ->  | AM144: =IF(AM122=1,(PC2_inputs!AO169*(1+$C$37)),(AL144*(1+#REF!))) ->  | AN144: =IF(AN122=1,(PC2_inputs!AP169*(1+$C$37)),(AM144*(1+#REF!))) ->  | AO144: =IF(AO122=1,(PC2_inputs!AQ169*(1+$C$37)),(AN144*(1+#REF!))) ->  | AP144: =IF(AP122=1,(PC2_inputs!AR169*(1+$C$37)),(AO144*(1+#REF!))) ->  | AQ144: =IF(AQ122=1,(PC2_inputs!AS169*(1+$C$37)),(AP144*(1+#REF!))) ->  | AR144: =IF(AR122=1,(PC2_inputs!AT169*(1+$C$37)),(AQ144*(1+#REF!))) ->  | AS144: =IF(AS122=1,(PC2_inputs!AU169*(1+$C$37)),(AR144*(1+#REF!))) ->  | AT144: =IF(AT122=1,(PC2_inputs!AV169*(1+$C$37)),(AS144*(1+#REF!))) ->  | AU144: =IF(AU122=1,(PC2_inputs!AW169*(1+$C$37)),(AT144*(1+#REF!))) ->  | AV144: =IF(AV122=1,(PC2_inputs!AX169*(1+$C$37)),(AU144*(1+#REF!))) ->  | AW144: =IF(AW122=1,(PC2_inputs!AY169*(1+$C$37)),(AV144*(1+#REF!))) ->  | AX144: =IF(AX122=1,(PC2_inputs!AZ169*(1+$C$37)),(AW144*(1+#REF!))) ->  | AY144: =IF(AY122=1,(PC2_inputs!BA169*(1+$C$37)),(AX144*(1+#REF!))) ->  | AZ144: =IF(AZ122=1,(PC2_inputs!BB169*(1+$C$37)),(AY144*(1+#REF!))) ->  | BA144: =IF(BA122=1,(PC2_inputs!BC169*(1+$C$37)),(AZ144*(1+#REF!))) ->  | BB144: =IF(BB122=1,(PC2_inputs!BD169*(1+$C$37)),(BA144*(1+#REF!))) ->  | BC144: =IF(BC122=1,(PC2_inputs!BE169*(1+$C$37)),(BB144*(1+#REF!))) ->  | BD144: =IF(BD122=1,(PC2_inputs!BF169*(1+$C$37)),(BC144*(1+#REF!))) ->  | BE144: =IF(BE122=1,(PC2_inputs!BG169*(1+$C$37)),(BD144*(1+#REF!))) ->  | BF144: =IF(BF122=1,(PC2_inputs!BH169*(1+$C$37)),(BE144*(1+#REF!))) ->  | BG144: =IF(BG122=1,(PC2_inputs!BI169*(1+$C$37)),(BF144*(1+#REF!))) ->  | BH144: =IF(BH122=1,(PC2_inputs!BJ169*(1+$C$37)),(BG144*(1+#REF!))) ->  | BI144: =IF(BI122=1,(PC2_inputs!BK169*(1+$C$37)),(BH144*(1+#REF!))) ->  | BJ144: =IF(BJ122=1,(PC2_inputs!BL169*(1+$C$37)),(BI144*(1+#REF!))) ->  | BK144: =IF(BK122=1,(PC2_inputs!BM169*(1+$C$37)),(BJ144*(1+#REF!))) ->  | BL144: =IF(BL122=1,(PC2_inputs!BN169*(1+$C$37)),(BK144*(1+#REF!))) ->  | BM144: =IF(BM122=1,(PC2_inputs!BO169*(1+$C$37)),(BL144*(1+#REF!))) ->  | BN144: =IF(BN122=1,(PC2_inputs!BP169*(1+$C$37)),(BM144*(1+#REF!))) ->  | BO144: =IF(BO122=1,(PC2_inputs!BQ169*(1+$C$37)),(BN144*(1+#REF!))) ->  | BP144: =IF(BP122=1,(PC2_inputs!BR169*(1+$C$37)),(BO144*(1+#REF!))) ->  | BQ144: =IF(BQ122=1,(PC2_inputs!BS169*(1+$C$37)),(BP144*(1+#REF!))) ->  | BR144: =IF(BR122=1,(PC2_inputs!BT169*(1+$C$37)),(BQ144*(1+#REF!))) ->  | BS144: =IF(BS122=1,(PC2_inputs!BU169*(1+$C$37)),(BR144*(1+#REF!))) ->  | BT144: =IF(BT122=1,(PC2_inputs!BV169*(1+$C$37)),(BS144*(1+#REF!))) ->  | BU144: =IF(BU122=1,(PC2_inputs!BW169*(1+$C$37)),(BT144*(1+#REF!))) ->  | BV144: =IF(BV122=1,(PC2_inputs!BX169*(1+$C$37)),(BU144*(1+#REF!))) ->  | BW144: =IF(BW122=1,(PC2_inputs!BY169*(1+$C$37)),(BV144*(1+#REF!))) ->  | BX144: =IF(BX122=1,(PC2_inputs!BZ169*(1+$C$37)),(BW144*(1+#REF!))) ->  | BY144: =IF(BY122=1,(PC2_inputs!CA169*(1+$C$37)),(BX144*(1+#REF!))) ->  | BZ144: =IF(BZ122=1,(PC2_inputs!CB169*(1+$C$37)),(BY144*(1+#REF!))) ->  | CA144: =IF(CA122=1,(PC2_inputs!CC169*(1+$C$37)),(BZ144*(1+#REF!))) ->  | CB144: =IF(CB122=1,(PC2_inputs!CD169*(1+$C$37)),(CA144*(1+#REF!))) ->  | CC144: =IF(CC122=1,(PC2_inputs!CE169*(1+$C$37)),(CB144*(1+#REF!))) ->  | CD144: =IF(CD122=1,(PC2_inputs!CF169*(1+$C$37)),(CC144*(1+#REF!))) ->  | CE144: =IF(CE122=1,(PC2_inputs!CG169*(1+$C$37)),(CD144*(1+#REF!))) ->  | CF144: =IF(CF122=1,(PC2_inputs!CH169*(1+$C$37)),(CE144*(1+#REF!))) ->  | CG144: =IF(CG122=1,(PC2_inputs!CI169*(1+$C$37)),(CF144*(1+#REF!))) ->  | CH144: =IF(CH122=1,(PC2_inputs!CJ169*(1+$C$37)),(CG144*(1+#REF!))) ->  | CI144: =IF(CI122=1,(PC2_inputs!CK169*(1+$C$37)),(CH144*(1+#REF!))) ->  | CJ144: =IF(CJ122=1,(PC2_inputs!CL169*(1+$C$37)),(CI144*(1+#REF!))) ->  | CK144: =IF(CK122=1,(PC2_inputs!CM169*(1+$C$37)),(CJ144*(1+#REF!))) ->  | CL144: =IF(CL122=1,(PC2_inputs!CN169*(1+$C$37)),(CK144*(1+#REF!))) ->  | CM144: =IF(CM122=1,(PC2_inputs!CO169*(1+$C$37)),(CL144*(1+#REF!))) ->  | CN144: =IF(CN122=1,(PC2_inputs!CP169*(1+$C$37)),(CM144*(1+#REF!))) ->  | CO144: =IF(CO122=1,(PC2_inputs!CQ169*(1+$C$37)),(CN144*(1+#REF!))) ->  | CP144: =IF(CP122=1,(PC2_inputs!CR169*(1+$C$37)),(CO144*(1+#REF!))) ->  | CQ144: =IF(CQ122=1,(PC2_inputs!CS169*(1+$C$37)),(CP144*(1+#REF!))) ->  | CR144: =IF(CR122=1,(PC2_inputs!CT169*(1+$C$37)),(CQ144*(1+#REF!))) ->  | CS144: =IF(CS122=1,(PC2_inputs!CU169*(1+$C$37)),(CR144*(1+#REF!))) ->  | CT144: =IF(CT122=1,(PC2_inputs!CV169*(1+$C$37)),(CS144*(1+#REF!))) ->  | CU144: =IF(CU122=1,(PC2_inputs!CW169*(1+$C$37)),(CT144*(1+#REF!))) ->  | CV144: =IF(CV122=1,(PC2_inputs!CX169*(1+$C$37)),(CU144*(1+#REF!))) ->  | CW144: =IF(CW122=1,(PC2_inputs!CY169*(1+$C$37)),(CV144*(1+#REF!))) ->  | CX144: =IF(CX122=1,(PC2_inputs!CZ169*(1+$C$37)),(CW144*(1+#REF!))) ->  | CY144: =IF(CY122=1,(PC2_inputs!DA169*(1+$C$37)),(CX144*(1+#REF!))) ->  | CZ144: =IF(CZ122=1,(PC2_inputs!DB169*(1+$C$37)),(CY144*(1+#REF!))) ->  | DA144: =IF(DA122=1,(PC2_inputs!DC169*(1+$C$37)),(CZ144*(1+#REF!))) ->  | DB144: =IF(DB122=1,(PC2_inputs!DD169*(1+$C$37)),(DA144*(1+#REF!))) ->  | DC144: =IF(DC122=1,(PC2_inputs!DE169*(1+$C$37)),(DB144*(1+#REF!))) ->  | DD144: =IF(DD122=1,(PC2_inputs!DF169*(1+$C$37)),(DC144*(1+#REF!))) ->  | DE144: =IF(DE122=1,(PC2_inputs!DG169*(1+$C$37)),(DD144*(1+#REF!))) ->  | DF144: =IF(DF122=1,(PC2_inputs!DH169*(1+$C$37)),(DE144*(1+#REF!))) ->  | DG144: =IF(DG122=1,(PC2_inputs!DI169*(1+$C$37)),(DF144*(1+#REF!))) ->  | DH144: =IF(DH122=1,(PC2_inputs!DJ169*(1+$C$37)),(DG144*(1+#REF!))) ->  | DI144: =IF(DI122=1,(PC2_inputs!DK169*(1+$C$37)),(DH144*(1+#REF!))) ->  | DJ144: =IF(DJ122=1,(PC2_inputs!DL169*(1+$C$37)),(DI144*(1+#REF!))) ->  | DK144: =IF(DK122=1,(PC2_inputs!DM169*(1+$C$37)),(DJ144*(1+#REF!))) ->  | DL144: =IF(DL122=1,(PC2_inputs!DN169*(1+$C$37)),(DK144*(1+#REF!))) ->  | DM144: =IF(DM122=1,(PC2_inputs!DO169*(1+$C$37)),(DL144*(1+#REF!))) ->  | DN144: =IF(DN122=1,(PC2_inputs!DP169*(1+$C$37)),(DM144*(1+#REF!))) ->  | DO144: =IF(DO122=1,(PC2_inputs!DQ169*(1+$C$37)),(DN144*(1+#REF!))) ->  | DP144: =IF(DP122=1,(PC2_inputs!DR169*(1+$C$37)),(DO144*(1+#REF!))) ->  | DQ144: =IF(DQ122=1,(PC2_inputs!DS169*(1+$C$37)),(DP144*(1+#REF!))) ->  | DR144: =IF(DR122=1,(PC2_inputs!DT169*(1+$C$37)),(DQ144*(1+#REF!))) ->  | DS144: =IF(DS122=1,(PC2_inputs!DU169*(1+$C$37)),(DR144*(1+#REF!))) ->  | DT144: =IF(DT122=1,(PC2_inputs!DV169*(1+$C$37)),(DS144*(1+#REF!))) ->  | DU144: =IF(DU122=1,(PC2_inputs!DW169*(1+$C$37)),(DT144*(1+#REF!))) ->  | DV144: =IF(DV122=1,(PC2_inputs!DX169*(1+$C$37)),(DU144*(1+#REF!))) ->  | DW144: =IF(DW122=1,(PC2_inputs!DY169*(1+$C$37)),(DV144*(1+#REF!))) ->  | DX144: =IF(DX122=1,(PC2_inputs!DZ169*(1+$C$37)),(DW144*(1+#REF!))) ->  | DY144: =IF(DY122=1,(PC2_inputs!EA169*(1+$C$37)),(DX144*(1+#REF!))) ->  | DZ144: =IF(DZ122=1,(PC2_inputs!EB169*(1+$C$37)),(DY144*(1+#REF!))) ->  | EA144: =IF(EA122=1,(PC2_inputs!EC169*(1+$C$37)),(DZ144*(1+#REF!))) ->  | EB144: =IF(EB122=1,(PC2_inputs!ED169*(1+$C$37)),(EA144*(1+#REF!))) ->  | EC144: =IF(EC122=1,(PC2_inputs!EE169*(1+$C$37)),(EB144*(1+#REF!))) ->  | ED144: =IF(ED122=1,(PC2_inputs!EF169*(1+$C$37)),(EC144*(1+#REF!))) ->  | EE144: =IF(EE122=1,(PC2_inputs!EG169*(1+$C$37)),(ED144*(1+#REF!))) ->  | EF144: =IF(EF122=1,(PC2_inputs!EH169*(1+$C$37)),(EE144*(1+#REF!))) ->  | EG144: =IF(EG122=1,(PC2_inputs!EI169*(1+$C$37)),(EF144*(1+#REF!))) ->  | EH144: =IF(EH122=1,(PC2_inputs!EJ169*(1+$C$37)),(EG144*(1+#REF!))) ->  | EI144: =IF(EI122=1,(PC2_inputs!EK169*(1+$C$37)),(EH144*(1+#REF!))) ->  | EJ144: =IF(EJ122=1,(PC2_inputs!EL169*(1+$C$37)),(EI144*(1+#REF!))) ->  | EK144: =IF(EK122=1,(PC2_inputs!EM169*(1+$C$37)),(EJ144*(1+#REF!))) ->  | EL144: =IF(EL122=1,(PC2_inputs!EN169*(1+$C$37)),(EK144*(1+#REF!))) ->  | EM144: =IF(EM122=1,(PC2_inputs!EO169*(1+$C$37)),(EL144*(1+#REF!))) ->  | EN144: =IF(EN122=1,(PC2_inputs!EP169*(1+$C$37)),(EM144*(1+#REF!))) ->  | EO144: =IF(EO122=1,(PC2_inputs!EQ169*(1+$C$37)),(EN144*(1+#REF!))) ->  | EP144: =IF(EP122=1,(PC2_inputs!ER169*(1+$C$37)),(EO144*(1+#REF!))) ->  | EQ144: =IF(EQ122=1,(PC2_inputs!ES169*(1+$C$37)),(EP144*(1+#REF!))) ->  | ER144: =IF(ER122=1,(PC2_inputs!ET169*(1+$C$37)),(EQ144*(1+#REF!))) ->  | ES144: =IF(ES122=1,(PC2_inputs!EU169*(1+$C$37)),(ER144*(1+#REF!))) ->  | ET144: =IF(ET122=1,(PC2_inputs!EV169*(1+$C$37)),(ES144*(1+#REF!))) ->  | EU144: =IF(EU122=1,(PC2_inputs!EW169*(1+$C$37)),(ET144*(1+#REF!))) ->  | EV144: =IF(EV122=1,(PC2_inputs!EX169*(1+$C$37)),(EU144*(1+#REF!))) ->  | EW144: =IF(EW122=1,(PC2_inputs!EY169*(1+$C$37)),(EV144*(1+#REF!))) ->  | EX144: =IF(EX122=1,(PC2_inputs!EZ169*(1+$C$37)),(EW144*(1+#REF!))) ->  | EY144: =IF(EY122=1,(PC2_inputs!FA169*(1+$C$37)),(EX144*(1+#REF!))) ->  | EZ144: =IF(EZ122=1,(PC2_inputs!FB169*(1+$C$37)),(EY144*(1+#REF!))) ->  | FA144: =IF(FA122=1,(PC2_inputs!FC169*(1+$C$37)),(EZ144*(1+#REF!))) ->  | FB144: =IF(FB122=1,(PC2_inputs!FD169*(1+$C$37)),(FA144*(1+#REF!))) ->  | FC144: =IF(FC122=1,(PC2_inputs!FE169*(1+$C$37)),(FB144*(1+#REF!))) ->  | FD144: =IF(FD122=1,(PC2_inputs!FF169*(1+$C$37)),(FC144*(1+#REF!))) ->  | FE144: =IF(FE122=1,(PC2_inputs!FG169*(1+$C$37)),(FD144*(1+#REF!))) ->  | FF144: =IF(FF122=1,(PC2_inputs!FH169*(1+$C$37)),(FE144*(1+#REF!))) ->  | FG144: =IF(FG122=1,(PC2_inputs!FI169*(1+$C$37)),(FF144*(1+#REF!))) ->  | FH144: =IF(FH122=1,(PC2_inputs!FJ169*(1+$C$37)),(FG144*(1+#REF!))) ->  | FI144: =IF(FI122=1,(PC2_inputs!FK169*(1+$C$37)),(FH144*(1+#REF!))) ->  | FJ144: =IF(FJ122=1,(PC2_inputs!FL169*(1+$C$37)),(FI144*(1+#REF!))) ->  | FK144: =IF(FK122=1,(PC2_inputs!FM169*(1+$C$37)),(FJ144*(1+#REF!))) ->  | FL144: =IF(FL122=1,(PC2_inputs!FN169*(1+$C$37)),(FK144*(1+#REF!))) ->  | FM144: =IF(FM122=1,(PC2_inputs!FO169*(1+$C$37)),(FL144*(1+#REF!))) ->  | FN144: =IF(FN122=1,(PC2_inputs!FP169*(1+$C$37)),(FM144*(1+#REF!))) ->  | FO144: =IF(FO122=1,(PC2_inputs!FQ169*(1+$C$37)),(FN144*(1+#REF!))) ->  | FP144: =IF(FP122=1,(PC2_inputs!FR169*(1+$C$37)),(FO144*(1+#REF!))) ->  | FQ144: =IF(FQ122=1,(PC2_inputs!FS169*(1+$C$37)),(FP144*(1+#REF!))) ->  | FR144: =IF(FR122=1,(PC2_inputs!FT169*(1+$C$37)),(FQ144*(1+#REF!))) ->  | FS144: =IF(FS122=1,(PC2_inputs!FU169*(1+$C$37)),(FR144*(1+#REF!))) ->  | FT144: =IF(FT122=1,(PC2_inputs!FV169*(1+$C$37)),(FS144*(1+#REF!))) ->  | FU144: =IF(FU122=1,(PC2_inputs!FW169*(1+$C$37)),(FT144*(1+#REF!))) ->  | FV144: =IF(FV122=1,(PC2_inputs!FX169*(1+$C$37)),(FU144*(1+#REF!))) ->  | FW144: =IF(FW122=1,(PC2_inputs!FY169*(1+$C$37)),(FV144*(1+#REF!))) ->  | FX144: =IF(FX122=1,(PC2_inputs!FZ169*(1+$C$37)),(FW144*(1+#REF!))) ->  | FY144: =IF(FY122=1,(PC2_inputs!GA169*(1+$C$37)),(FX144*(1+#REF!))) ->  | FZ144: =IF(FZ122=1,(PC2_inputs!GB169*(1+$C$37)),(FY144*(1+#REF!))) ->  | GA144: =IF(GA122=1,(PC2_inputs!GC169*(1+$C$37)),(FZ144*(1+#REF!))) ->  | GB144: =IF(GB122=1,(PC2_inputs!GD169*(1+$C$37)),(GA144*(1+#REF!))) ->  | GC144: =IF(GC122=1,(PC2_inputs!GE169*(1+$C$37)),(GB144*(1+#REF!))) ->  | GD144: =IF(GD122=1,(PC2_inputs!GF169*(1+$C$37)),(GC144*(1+#REF!))) ->  | GE144: =IF(GE122=1,(PC2_inputs!GG169*(1+$C$37)),(GD144*(1+#REF!))) ->  | GF144: =IF(GF122=1,(PC2_inputs!GH169*(1+$C$37)),(GE144*(1+#REF!))) ->  | GG144: =IF(GG122=1,(PC2_inputs!GI169*(1+$C$37)),(GF144*(1+#REF!))) ->  | GH144: =IF(GH122=1,(PC2_inputs!GJ169*(1+$C$37)),(GG144*(1+#REF!))) ->  | GI144: =IF(GI122=1,(PC2_inputs!GK169*(1+$C$37)),(GH144*(1+#REF!))) ->  | GJ144: =IF(GJ122=1,(PC2_inputs!GL169*(1+$C$37)),(GI144*(1+#REF!))) ->  | GK144: =IF(GK122=1,(PC2_inputs!GM169*(1+$C$37)),(GJ144*(1+#REF!))) ->  | GL144: =IF(GL122=1,(PC2_inputs!GN169*(1+$C$37)),(GK144*(1+#REF!))) ->  | GM144: =IF(GM122=1,(PC2_inputs!GO169*(1+$C$37)),(GL144*(1+#REF!))) ->  | GN144: =IF(GN122=1,(PC2_inputs!GP169*(1+$C$37)),(GM144*(1+#REF!))) ->  | GO144: =IF(GO122=1,(PC2_inputs!GQ169*(1+$C$37)),(GN144*(1+#REF!))) ->  | GP144: =IF(GP122=1,(PC2_inputs!GR169*(1+$C$37)),(GO144*(1+#REF!))) ->  | GQ144: =IF(GQ122=1,(PC2_inputs!GS169*(1+$C$37)),(GP144*(1+#REF!))) ->  | GR144: =IF(GR122=1,(PC2_inputs!GT169*(1+$C$37)),(GQ144*(1+#REF!))) ->  | GS144: =IF(GS122=1,(PC2_inputs!GU169*(1+$C$37)),(GR144*(1+#REF!))) ->  | GT144: =IF(GT122=1,(PC2_inputs!GV169*(1+$C$37)),(GS144*(1+#REF!))) ->  | GU144: =IF(GU122=1,(PC2_inputs!GW169*(1+$C$37)),(GT144*(1+#REF!))) ->  | GV144: =IF(GV122=1,(PC2_inputs!GX169*(1+$C$37)),(GU144*(1+#REF!))) ->  | GW144: =IF(GW122=1,(PC2_inputs!GY169*(1+$C$37)),(GV144*(1+#REF!))) ->  | GX144: =IF(GX122=1,(PC2_inputs!GZ169*(1+$C$37)),(GW144*(1+#REF!))) ->  | GY144: =IF(GY122=1,(PC2_inputs!HA169*(1+$C$37)),(GX144*(1+#REF!))) ->  | GZ144: =IF(GZ122=1,(PC2_inputs!HB169*(1+$C$37)),(GY144*(1+#REF!))) ->  | HA144: =IF(HA122=1,(PC2_inputs!HC169*(1+$C$37)),(GZ144*(1+#REF!))) ->  | HB144: =IF(HB122=1,(PC2_inputs!HD169*(1+$C$37)),(HA144*(1+#REF!))) ->  | HC144: =IF(HC122=1,(PC2_inputs!HE169*(1+$C$37)),(HB144*(1+#REF!))) ->  | HD144: =IF(HD122=1,(PC2_inputs!HF169*(1+$C$37)),(HC144*(1+#REF!))) ->  | HE144: =IF(HE122=1,(PC2_inputs!HG169*(1+$C$37)),(HD144*(1+#REF!))) ->  | HF144: =IF(HF122=1,(PC2_inputs!HH169*(1+$C$37)),(HE144*(1+#REF!))) ->  | HG144: =IF(HG122=1,(PC2_inputs!HI169*(1+$C$37)),(HF144*(1+#REF!))) ->  | HH144: =IF(HH122=1,(PC2_inputs!HJ169*(1+$C$37)),(HG144*(1+#REF!))) ->  | HI144: =IF(HI122=1,(PC2_inputs!HK169*(1+$C$37)),(HH144*(1+#REF!))) ->  | HJ144: =IF(HJ122=1,(PC2_inputs!HL169*(1+$C$37)),(HI144*(1+#REF!))) ->  | HK144: =IF(HK122=1,(PC2_inputs!HM169*(1+$C$37)),(HJ144*(1+#REF!))) ->  | HL144: =IF(HL122=1,(PC2_inputs!HN169*(1+$C$37)),(HK144*(1+#REF!))) ->  | HM144: =IF(HM122=1,(PC2_inputs!HO169*(1+$C$37)),(HL144*(1+#REF!))) ->  | HN144: =IF(HN122=1,(PC2_inputs!HP169*(1+$C$37)),(HM144*(1+#REF!))) ->  | HO144: =IF(HO122=1,(PC2_inputs!HQ169*(1+$C$37)),(HN144*(1+#REF!))) ->  | HP144: =IF(HP122=1,(PC2_inputs!HR169*(1+$C$37)),(HO144*(1+#REF!))) ->  | HQ144: =IF(HQ122=1,(PC2_inputs!HS169*(1+$C$37)),(HP144*(1+#REF!))) ->  | HR144: =IF(HR122=1,(PC2_inputs!HT169*(1+$C$37)),(HQ144*(1+#REF!))) ->  | HS144: =IF(HS122=1,(PC2_inputs!HU169*(1+$C$37)),(HR144*(1+#REF!))) ->  | HT144: =IF(HT122=1,(PC2_inputs!HV169*(1+$C$37)),(HS144*(1+#REF!))) ->  | HU144: =IF(HU122=1,(PC2_inputs!HW169*(1+$C$37)),(HT144*(1+#REF!))) ->  | HV144: =IF(HV122=1,(PC2_inputs!HX169*(1+$C$37)),(HU144*(1+#REF!))) ->  | HW144: =IF(HW122=1,(PC2_inputs!HY169*(1+$C$37)),(HV144*(1+#REF!))) ->  | HX144: =IF(HX122=1,(PC2_inputs!HZ169*(1+$C$37)),(HW144*(1+#REF!))) ->  | HY144: =IF(HY122=1,(PC2_inputs!IA169*(1+$C$37)),(HX144*(1+#REF!))) ->  | HZ144: =IF(HZ122=1,(PC2_inputs!IB169*(1+$C$37)),(HY144*(1+#REF!))) ->  | IA144: =IF(IA122=1,(PC2_inputs!IC169*(1+$C$37)),(HZ144*(1+#REF!))) ->  | IB144: =IF(IB122=1,(PC2_inputs!ID169*(1+$C$37)),(IA144*(1+#REF!))) ->  | IC144: =IF(IC122=1,(PC2_inputs!IE169*(1+$C$37)),(IB144*(1+#REF!))) ->  | ID144: =IF(ID122=1,(PC2_inputs!IF169*(1+$C$37)),(IC144*(1+#REF!))) ->  | IE144: =IF(IE122=1,(PC2_inputs!IG169*(1+$C$37)),(ID144*(1+#REF!))) ->  | IF144: =IF(IF122=1,(PC2_inputs!IH169*(1+$C$37)),(IE144*(1+#REF!))) ->  | IG144: =IF(IG122=1,(PC2_inputs!II169*(1+$C$37)),(IF144*(1+#REF!))) ->  | IH144: =IF(IH122=1,(PC2_inputs!IJ169*(1+$C$37)),(IG144*(1+#REF!))) ->  | II144: =IF(II122=1,(PC2_inputs!IK169*(1+$C$37)),(IH144*(1+#REF!))) ->  | IJ144: =IF(IJ122=1,(PC2_inputs!IL169*(1+$C$37)),(II144*(1+#REF!))) ->  | IK144: =IF(IK122=1,(PC2_inputs!IM169*(1+$C$37)),(IJ144*(1+#REF!))) ->  | IL144: =IF(IL122=1,(PC2_inputs!IN169*(1+$C$37)),(IK144*(1+#REF!))) ->  | IM144: =IF(IM122=1,(PC2_inputs!IO169*(1+$C$37)),(IL144*(1+#REF!))) ->  | IN144: =IF(IN122=1,(PC2_inputs!IP169*(1+$C$37)),(IM144*(1+#REF!))) ->  | IO144: =IF(IO122=1,(PC2_inputs!IQ169*(1+$C$37)),(IN144*(1+#REF!))) ->  | IP144: =IF(IP122=1,(PC2_inputs!IR169*(1+$C$37)),(IO144*(1+#REF!))) ->  | IQ144: =IF(IQ122=1,(PC2_inputs!IS169*(1+$C$37)),(IP144*(1+#REF!))) ->  | IR144: =IF(IR122=1,(PC2_inputs!IT169*(1+$C$37)),(IQ144*(1+#REF!))) ->  | IS144: =IF(IS122=1,(PC2_inputs!IU169*(1+$C$37)),(IR144*(1+#REF!))) ->  | IT144: =IF(IT122=1,(PC2_inputs!IV169*(1+$C$37)),(IS144*(1+#REF!))) ->  | IU144: =IF(IU122=1,(PC2_inputs!#REF!*(1+$C$37)),(IT144*(1+#REF!))) ->  | IV144: =IF(IV122=1,(PC2_inputs!#REF!*(1+$C$37)),(IU144*(1+#REF!))) -> 
B145: Demand, MWh | E145: =PC3_inputs!D32 -> 49116140.32 | F145: =PC3_inputs!E32 -> 49260095.79 | G145: =PC3_inputs!F32 -> 50769510.99 | H145: =PC3_inputs!G32 -> 50769510.99 | I145: =PC3_inputs!H32 -> 50769510.99
B146: Total annual revenue allowed, € | E146: 6416351.29 | F146: 6069362.27 | G146: 5882910.906 | H146: =H144*H145 -> 5887959.215 | I146: =I144*I145 -> 5887959.215
B147: NPV for interconnectors, € | C147: =SUM(E147:I147) -> 26417540.17 | E147: =E146/PC3_inputs!D12 -> 6220678.102 | F147: =F146/PC3_inputs!E12 -> 5562043.508 | G147: =G146/PC3_inputs!F12 -> 5124692.988 | H147: =H146/PC3_inputs!G12 -> 4875561.451 | I147: =I146/PC3_inputs!H12 -> 4634564.117
B149: ALLOWED REVENUE AND PRICES - CAPACITY
B151: Change from P0 to P1 | C151: ='Transmission 12 13'!H33 -> 0.4981139048 | D151: 0.5542453958 | E151: -0.2652636195 | F151: 0.0008581311013 | G151: 0
B153: NPV revenue received less NPV revenue required | C153: =C158-C136 -> 0
E154: Interconnectors
B155: Average annual tariff, € per MWh / day | E155: =(PC2_inputs!$G$24*(1+$C$151)) -> 281.3727603 | F155: =(E155*(1+D$151)) -> 437.3223173 | G155: =(F155*(1+E$151)) -> 321.3166165 | H155: 321.5923483 | I155: =(H155*(1+G$151)) -> 321.5923483 | J155: 321.5923483 | K155: 321.5923483 | L155: 321.5923483 | M155: 321.5923483 | N155: 321.5923483 | O155: 321.5923483 | P155: 321.5923483 | Q155: 321.5923483 | R155: 321.5923483 | S155: 321.5923483 | T155: 321.5923483 | U155: 321.5923483 | V155: 321.5923483 | W155: 321.5923483 | X155: 321.5923483 | Y155: 321.5923483 | Z155: 321.5923483 | AA155: 321.5923483 | AB155: 321.5923483 | AC155: 321.5923483 | AD155: 321.5923483 | AE155: 321.5923483 | AF155: 321.5923483 | AG155: 321.5923483 | AH155: 321.5923483 | AI155: 321.5923483 | AJ155: 321.5923483 | AK155: 321.5923483 | AL155: 321.5923483 | AM155: 321.5923483 | AN155: 321.5923483 | AO155: 321.5923483 | AP155: 321.5923483 | AQ155: 321.5923483 | AR155: 321.5923483 | AS155: 321.5923483 | AT155: 321.5923483 | AU155: 321.5923483 | AV155: 321.5923483 | AW155: 321.5923483 | AX155: 321.5923483 | AY155: 321.5923483 | AZ155: 321.5923483 | BA155: 321.5923483 | BB155: 321.5923483 | BC155: 321.5923483 | BD155: 321.5923483 | BE155: 321.5923483 | BF155: 321.5923483 | BG155: 321.5923483 | BH155: 321.5923483 | BI155: 321.5923483 | BJ155: 321.5923483 | BK155: 321.5923483 | BL155: 321.5923483 | BM155: 321.5923483 | BN155: 321.5923483 | BO155: 321.5923483 | BP155: 321.5923483 | BQ155: 321.5923483 | BR155: 321.5923483 | BS155: =(BR155*(1+BQ$151)) -> 321.5923483 | BT155: 321.5923483 | BU155: 321.5923483 | BV155: 321.5923483 | BW155: 321.5923483 | BX155: 321.5923483 | BY155: 321.5923483 | BZ155: 321.5923483 | CA155: 321.5923483 | CB155: 321.5923483 | CC155: 321.5923483 | CD155: 321.5923483 | CE155: 321.5923483 | CF155: 321.5923483 | CG155: 321.5923483 | CH155: 321.5923483 | CI155: 321.5923483 | CJ155: 321.5923483 | CK155: 321.5923483 | CL155: 321.5923483 | CM155: 321.5923483 | CN155: 321.5923483 | CO155: 321.5923483 | CP155: 321.5923483 | CQ155: 321.5923483 | CR155: 321.5923483 | CS155: 321.5923483 | CT155: 321.5923483 | CU155: 321.5923483 | CV155: 321.5923483 | CW155: 321.5923483 | CX155: 321.5923483 | CY155: 321.5923483 | CZ155: 321.5923483 | DA155: 321.5923483 | DB155: 321.5923483 | DC155: 321.5923483 | DD155: 321.5923483 | DE155: 321.5923483 | DF155: 321.5923483 | DG155: 321.5923483 | DH155: 321.5923483 | DI155: 321.5923483 | DJ155: 321.5923483 | DK155: 321.5923483 | DL155: 321.5923483 | DM155: 321.5923483 | DN155: 321.5923483 | DO155: 321.5923483 | DP155: 321.5923483 | DQ155: 321.5923483 | DR155: 321.5923483 | DS155: 321.5923483 | DT155: 321.5923483 | DU155: 321.5923483 | DV155: 321.5923483 | DW155: 321.5923483 | DX155: 321.5923483 | DY155: 321.5923483 | DZ155: 321.5923483 | EA155: 321.5923483 | EB155: 321.5923483 | EC155: 321.5923483 | ED155: 321.5923483 | EE155: =(ED155*(1+EC$151)) -> 321.5923483 | EF155: 321.5923483 | EG155: 321.5923483 | EH155: 321.5923483 | EI155: 321.5923483 | EJ155: 321.5923483 | EK155: 321.5923483 | EL155: 321.5923483 | EM155: 321.5923483 | EN155: 321.5923483 | EO155: 321.5923483 | EP155: 321.5923483 | EQ155: 321.5923483 | ER155: 321.5923483 | ES155: 321.5923483 | ET155: 321.5923483 | EU155: 321.5923483 | EV155: 321.5923483 | EW155: 321.5923483 | EX155: 321.5923483 | EY155: 321.5923483 | EZ155: 321.5923483 | FA155: 321.5923483 | FB155: 321.5923483 | FC155: 321.5923483 | FD155: 321.5923483 | FE155: 321.5923483 | FF155: 321.5923483 | FG155: 321.5923483 | FH155: 321.5923483 | FI155: 321.5923483 | FJ155: 321.5923483 | FK155: 321.5923483 | FL155: 321.5923483 | FM155: 321.5923483 | FN155: 321.5923483 | FO155: 321.5923483 | FP155: 321.5923483 | FQ155: 321.5923483 | FR155: 321.5923483 | FS155: 321.5923483 | FT155: 321.5923483 | FU155: 321.5923483 | FV155: 321.5923483 | FW155: 321.5923483 | FX155: 321.5923483 | FY155: 321.5923483 | FZ155: 321.5923483 | GA155: 321.5923483 | GB155: 321.5923483 | GC155: 321.5923483 | GD155: 321.5923483 | GE155: 321.5923483 | GF155: 321.5923483 | GG155: 321.5923483 | GH155: 321.5923483 | GI155: 321.5923483 | GJ155: 321.5923483 | GK155: 321.5923483 | GL155: 321.5923483 | GM155: 321.5923483 | GN155: 321.5923483 | GO155: 321.5923483 | GP155: 321.5923483 | GQ155: =(GP155*(1+GO$151)) -> 321.5923483 | GR155: 321.5923483 | GS155: 321.5923483 | GT155: 321.5923483 | GU155: 321.5923483 | GV155: 321.5923483 | GW155: 321.5923483 | GX155: 321.5923483 | GY155: 321.5923483 | GZ155: 321.5923483 | HA155: 321.5923483 | HB155: 321.5923483 | HC155: 321.5923483 | HD155: 321.5923483 | HE155: 321.5923483 | HF155: 321.5923483 | HG155: 321.5923483 | HH155: 321.5923483 | HI155: 321.5923483 | HJ155: 321.5923483 | HK155: 321.5923483 | HL155: 321.5923483 | HM155: 321.5923483 | HN155: 321.5923483 | HO155: 321.5923483 | HP155: 321.5923483 | HQ155: 321.5923483 | HR155: 321.5923483 | HS155: 321.5923483 | HT155: 321.5923483 | HU155: 321.5923483 | HV155: 321.5923483 | HW155: 321.5923483 | HX155: 321.5923483 | HY155: 321.5923483 | HZ155: 321.5923483 | IA155: 321.5923483 | IB155: 321.5923483 | IC155: 321.5923483 | ID155: 321.5923483 | IE155: 321.5923483 | IF155: 321.5923483 | IG155: 321.5923483 | IH155: 321.5923483 | II155: 321.5923483 | IJ155: 321.5923483 | IK155: 321.5923483 | IL155: 321.5923483 | IM155: 321.5923483 | IN155: 321.5923483 | IO155: 321.5923483 | IP155: 321.5923483 | IQ155: 321.5923483 | IR155: 321.5923483 | IS155: 321.5923483 | IT155: 321.5923483 | IU155: 321.5923483 | IV155: 321.5923483
B156: Demand, MWh/day | E156: =PC3_inputs!D33 -> 162695.8715 | F156: =PC3_inputs!E33 -> 162455.9607 | G156: =PC3_inputs!F33 -> 164778.8986 | H156: =PC3_inputs!G33 -> 164778.8986 | I156: =PC3_inputs!H33 -> 164778.8986
B157: Total annual revenue allowed, € | E157: 57747161.61 | F157: 54624260.43 | G157: 52946198.16 | H157: =H155*H156 -> 52991632.94 | I157: =I155*I156 -> 52991632.94
B158: NPV Inch, € | C158: =SUM(E158:I158) -> 237757861.5 | E158: =E157/PC3_inputs!D12 -> 55986102.92 | F158: =F157/PC3_inputs!E12 -> 50058391.58 | G158: =G157/PC3_inputs!F12 -> 46122236.89 | H158: =H157/PC3_inputs!G12 -> 43880053.06 | I158: =I157/PC3_inputs!H12 -> 41711077.05

Sheet Outputs2
B6: Onshore
C7: 2012/13 | D7: 2013/14 | E7: 2014/15 | F7: 2015/16 | G7: 2016/17 | H7: Total
B8: Opex | C8: =PC3_inputs!D51 -> 45.29039582 | D8: =PC3_inputs!E51 -> 44.79037857 | E8: =PC3_inputs!F51 -> 45.98384264 | F8: =PC3_inputs!G51 -> 46.97226094 | G8: =PC3_inputs!H51 -> 45.98027796 | H8: =SUM(C8:G8) -> 229.0171559
B10: Annual Revenue | C10: =(Outputs1!E32+Outputs1!E43)/Outputs1!$C$19 -> 109.5766635 | D10: =(Outputs1!F32+Outputs1!F43)/Outputs1!$C$19 -> 140.4299298 | E10: =(Outputs1!G32+Outputs1!G43)/Outputs1!$C$19 -> 126.5591319 | F10: =(Outputs1!H32+Outputs1!H43)/Outputs1!$C$19 -> 126.2103521 | G10: =(Outputs1!I32+Outputs1!I43)/Outputs1!$C$19 -> 127.1823825 | H10: =SUM(C10:G10) -> 629.9584598
B12: Inch
C13: 2012/13 | D13: 2013/14 | E13: 2014/15 | F13: 2015/16 | G13: 2016/17 | H13: Total
B14: Opex | C14: =PC3_inputs!D62 -> 1.061579653 | D14: =PC3_inputs!E62 -> 1.065760788 | E14: =PC3_inputs!F62 -> 1.089725746 | F14: =PC3_inputs!G62 -> 1.140928511 | G14: =PC3_inputs!H62 -> 1.098790836 | H14: =SUM(C14:G14) -> 5.456785533
B16: Annual Revenue | C16: =(Outputs1!E89+Outputs1!E101)/Outputs1!$C$19 -> 4.108448741 | D16: =(Outputs1!F89+Outputs1!F101)/Outputs1!$C$19 -> 2.08353437 | E16: =(Outputs1!G89+Outputs1!G101)/Outputs1!$C$19 -> 1.926785717 | F16: =(Outputs1!H89+Outputs1!H101)/Outputs1!$C$19 -> 1.893657522 | G16: =(Outputs1!I89+Outputs1!I101)/Outputs1!$C$19 -> 1.789642208 | H16: =SUM(C16:G16) -> 11.80206856
B18: Interconnectors
C19: 2012/13 | D19: 2013/14 | E19: 2014/15 | F19: 2015/16 | G19: 2016/17 | H19: Total
B20: Opex | C20: =PC3_inputs!D75 -> 10.92485181 | D20: =PC3_inputs!E75 -> 14.02890719 | E20: =PC3_inputs!F75 -> 14.48338881 | F20: =PC3_inputs!G75 -> 14.49155826 | G20: =PC3_inputs!H75 -> 15.92935772 | H20: =SUM(C20:G20) -> 69.85806379
B22: Annual Revenue | C22: =(Outputs1!E146+Outputs1!E157)/Outputs1!$C$19 -> 64.1635129 | D22: =(Outputs1!F146+Outputs1!F157)/Outputs1!$C$19 -> 60.6936227 | E22: =(Outputs1!G146+Outputs1!G157)/Outputs1!$C$19 -> 58.82910906 | F22: =(Outputs1!H146+Outputs1!H157)/Outputs1!$C$19 -> 58.87959215 | G22: =(Outputs1!I146+Outputs1!I157)/Outputs1!$C$19 -> 58.87959215 | H22: =SUM(C22:G22) -> 301.445429

Sheet Transmission 15 16
E1: IC
F3: Current Forecast | G3: Moffat | H3: Inch | I3: Exit
A6: Revenue | C6: Allowed revenue for period as per decision | D6: 10/11 monies | E6: BICt+1 | F6: =Outputs2!F10+Outputs2!F16+Outputs2!F22 -> 186.9836018 | G6: =Outputs2!F22 -> 58.87959215 | H6: =Outputs2!F16 -> 1.893657522 | I6: =Outputs2!F10 -> 126.2103521
C7: Inflation | E7: HICPDj | F7: =Inflation!E30 -> 0.03788991291
C8: Inflated allowed Revenue | F8: =F6*(1+F7) -> 194.0683942 | G8: =G6*(1+$F7) -> 61.11053477 | H8: =H6*(1+$F7) -> 1.965408041 | I8: 130.9924514
C10: forecast less allowable pass through (50%) | F10: 0.5465 | G10: 0.33 | H10: 0 | I10: 0.22
C11: forecast less allowable pass through (100%) | F11: 0.432 | G11: -0.09 | H11: -0.02 | I11: 0.55
C12: Correction factor Kt-1 | E12: KICt-1 | F12: -4.1938 | G12: -1.4603 | H12: 0.0402 | I12: -2.7737
C21: forecast other revenues | F21: 0 | G21: 0 | H21: 0 | I21: 0
C23: Allowable Revenue | F23: =SUM(F8:F21) -> 190.8530942 | G23: =SUM(G8:G21) -> 59.89023477 | H23: 1.985608041 | I23: 128.9887514
C26: Demand
C27: Exit Capacity | D27: GWh | F27: 267.09
C28: Entry Capacity | D28: GWh | F28: 204.88
B31: GNI Transmission Tariffs for 2015/16
H32: Published Tariffs | J32: % Change
D33: € | E33: (15/16 Monies) | H33: 2013/14 Tariff | I33: 2014/15 Tariff | J33: Nominal
B34: Exit | D34: 2015/16 Tariff | H34: € | I34: € | J34: from 14/15
B35: capacity | D35: 430.8823109 | E35: per peak day MWh | H35: 509.0929309 | I35: 443.0356185 | J35: -0.02743189746
B36: commodity | D36: 0.2673733221 | E36: per MWh | H36: 0.2675171467 | I36: 0.2753582519 | J36: -0.02899833147
B38: Moffat Entry
B39: capacity | D39: 367.7859963 | E39: per peak day MWh | H39: 355.3252323 | I39: 358.5765988 | J39: 0.02568320854
B40: commodity | D40: 0.1177583805 | E40: per MWh | H40: 0.1324582275 | I40: 0.1574060027 | J40: -0.2518812594
B42: Bellnaboy Entry
B43: capacity | D43: 617.9961149 | E43: per peak day MWh | H43: NA | I43: NA
B44: commodity | D44: 0.1177583805 | E44: per MWh | H44: NA | I44: NA
B45: Inch Storage Entry
B46: capacity | D46: 53.05757413 | E46: per peak day MWh | H46: 45.71747169 | I46: 53.60377999 | J46: -0.0101896892
B47: commodity | D47: 0.1177583805 | E47: per MWh | H47: 0.04729197722 | I47: 0.0338702543 | J47: 2.476749228
B48: Inch Production Entry
B49: capacity | D49: 164.1861205 | E49: per peak day MWh | H49: 45.71747169 | I49: 53.60377999 | J49: 2.062957883
B50: commodity | D50: 0.1177583805 | E50: per MWh | H50: 0.04729197722 | I50: 0.0338702543 | J50: 2.476749228
B52: Illustrative Transmission Transportation Costs
D53: € | H53: € | I53: €
B54: Transmission Transportation Cost of UK Gas
B55: capacity | D55: 798.6683072 | E55: per peak day MWh | H55: 864.4181632 | I55: 801.6122173 | J55: -0.003672486561
B56: commodity | D56: 0.3851317026 | E56: per MWh | H56: 0.3999753742 | I56: 0.4327642546 | J56: -0.1100658189
B58: Transmission Transportation Cost of Bellnaboy Gas | D58: 1048.878426 | E58: per peak day MWh | H58: NA | I58: NA
D59: 0.3851317026 | E59: per MWh | H59: NA | I59: NA
B61: Transmission Transportation Cost of Inch Storage Gas
B62: capacity | D62: 483.939885 | E62: per peak day MWh | H62: 554.8104026 | I62: 496.6393985 | J62: -0.0255708942
B63: commodity | D63: 0.3851317026 | E63: per MWh | H63: 0.3148091239 | I63: 0.3092285062 | J63: 0.2454598939
B65: Transmission Transportation Cost of Inch Production Gas
B66: capacity | D66: 595.0684313 | E66: per peak day MWh | H66: 554.8104026 | I66: 496.6393985 | J66: 0.1981901418
B67: commodity | D67: 0.3851317026 | E67: per MWh | H67: 0.3148091239 | I67: 0.3092285062 | J67: 0.2454598939

Sheet Transmission 12 13
E1: IC | K1: INCH | Q1: EXIT | X1: SNP
X2: See methodology set out in CER/12/116
F3: Current Forecast | I3: Original forecast | L3: Current Forecast | O3: Original forecast | R3: Current Forecast | U3: Original forecast | X3: Current Forecast
A6: Revenue | C6: Allowed revenue for period as per decision | D6: 10/11 monies | E6: BICt+1 | F6: =67502520/1000000 -> 67.50252 | I6: =F6 -> 67.50252 | K6: BINCHt+1 | L6: =3862065/1000000 -> 3.862065 | O6: =L6 -> 3.862065 | Q6: BEXITt+1 | R6: =119657782/1000000 -> 119.657782 | U6: =R6 -> 119.657782
C7: Inflation | E7: HICPDj | F7: =Inflation!E6 -> 0.035286 | I7: 0 | K7: HICPDj | L7: =F7 -> 0.035286 | O7: 0 | Q7: HICPDj | R7: =F7 -> 0.035286 | U7: 0
C8: Inflated allowed Revenue | F8: =F6*(1+F7) -> 69.88441392 | I8: =I6*(1+I7) -> 67.50252 | L8: =L6*(1+L7) -> 3.998341826 | O8: =O6*(1+O7) -> 3.862065 | R8: =R6*(1+R7) -> 123.8800265 | U8: =U6*(1+U7) -> 119.657782
C10: forecast less allowable pass through (50%) | F10: 0 | I10: 0 | L10: 0 | O10: 0 | R10: 0 | U10: 0
C11: forecast less allowable pass through (100%) | F11: -0.364 | I11: 0 | L11: -0.018 | O11: 0 | R11: -0.93 | U11: 0
C12: Correction factor Kt-1 | E12: KICt-1 | F12: -3.1 | I12: 0 | K12: KINCHt-1 | L12: -0.1 | O12: 0 | Q12: KINCHt-1 | R12: -1.83 | U12: 0
C13: CAG Tariff Analysis costs | R13: 0.1
C14: Spare K factor
C15: Spare K factor
C17: Spare correction
C18: Spare correction
C19: Spare correction
C21: forecast other revenues | F21: 0 | I21: 0 | L21: 0 | O21: 0 | R21: 0 | U21: 0
C23: Allowable Revenue | F23: =SUM(F8:F22) -> 66.42041392 | I23: =SUM(I8:I22) -> 67.50252 | L23: =SUM(L8:L22) -> 3.880341826 | O23: =SUM(O8:O22) -> 3.862065 | R23: =SUM(R8:R22) -> 121.2200265 | U23: =SUM(U8:U22) -> 119.657782 | Y23: =F23*(Y37/(Y36+Y37)*Y35/(Y37+Y35)) -> 6.514309827
A26: Tariff | C26: Demand
C27: Capacity | D27: GWh | F27: =I27 -> 205.2115 | I27: 205.2115 | L27: =O27 -> 33.678 | O27: 33.678 | R27: =U27 -> 235.3773 | U27: 235.3773 | Y27: 0
C28: Commodity | D28: GWh | F28: =I28 -> 52396.7 | I28: 52396.7 | L28: =O28 -> 4272.4 | O28: 4272.4 | R28: =U28 -> 52739.7 | U28: 52739.7 | Y28: 0
C30: Tariff | E30: =E1 -> IC | K30: =K1 -> INCH | Q30: =Q1 -> EXIT | X30: =X1 -> SNP
C31: Capacity | D31: €/MWh | F31: =F$23*1000000*90%/(F27*1000) -> 291.3012796 | G31: =F31/(1+F$7) -> 281.3727603 | H31: =PC2_inputs!G24 -> 187.818002 | I31: =I$23*1000000*90%/(I27*1000) -> 296.0470929 | L31: =L$23*1000000*90%/(L27*1000) -> 103.6970023 | M31: =L31/(1+L$7) -> 100.1626626 | N31: =PC2_inputs!F24 -> 46.18892186 | O31: =O$23*1000000*90%/(O27*1000) -> 103.2085783 | R31: =R$23*1000000*90%/(R27*1000) -> 463.5027415 | S31: =R31/(1+R$7) -> 447.7050221 | T31: =PC2_inputs!E24 -> 435.8625124 | U31: =U$23*1000000*90%/(U27*1000) -> 457.5292681 | X31: €/MWh/day | Y31: =(Y23*1000000*90%)/(Y35*10) -> 10.40740026 | Z31: Default daily tariff
C32: Commodity | D32: €/MWh | F32: =F$23*1000000*10%/(F28*1000) -> 0.1267644984 | G32: =F32/(1+F$7) -> 0.1224439415 | H32: =PC2_inputs!G23 -> 0.08110781405 | I32: =I$23*1000000*10%/(I28*1000) -> 0.1288297164 | L32: =L$23*1000000*10%/(L28*1000) -> 0.0908234675 | M32: =L32/(1+L$7) -> 0.0877279008 | N32: =PC2_inputs!F23 -> 0.05242334322 | O32: =O$23*1000000*10%/(O28*1000) -> 0.09039567924 | R32: =R$23*1000000*10%/(R28*1000) -> 0.229845878 | S32: =R32/(1+R$7) -> 0.2220119638 | T32: =PC2_inputs!E23 -> 0.2126607319 | U32: =U$23*1000000*10%/(U28*1000) -> 0.2268836986 | X32: €/MWh | Y32: =(Y23*1000000*10%)/(Y35*10) -> 1.156377807 | Z32: Default daily tariff
C33: Capacity | D33: % change | H33: =G31/H31-1 -> 0.4981139048 | N33: =M31/N31-1 -> 1.168542987 | T33: =S31/T31-1 -> 0.02717028748
C34: Commodity | D34: % change | H34: =G32/H32-1 -> 0.509644205 | N34: =M32/N32-1 -> 0.6734510888 | T34: =S32/T32-1 -> 0.04397253675
C35: Previous tariffs | G35: Change Nominal | M35: Change Nominal | S35: Change Nominal | X35: Tech Cap SNP | Y35: =5100000*39.765/3600 -> 56333.75 | Z35: MWh
C36: 2011/12 | X36: Tech Cap IC2 | Y36: =23000000*39.765/3600 -> 254054.1667 | Z36: MWh
C37: Capacity | D37: €/MWh | F37: 189.884 | G37: =F$31/F37-1 -> 0.5341012384 | L37: 46.697 | M37: =L$31/L37-1 -> 1.220635208 | R37: 440.657 | S37: =R$31/R37-1 -> 0.05184472626 | X37: Tech Cap IC1 | Y37: =17000000*39.765/3600 -> 187779.1667 | Z37: MWh
C38: Commodity | D38: €/MWh | F38: 0.082 | G38: =F$32/F38-1 -> 0.5459085168 | L38: 0.053 | M38: =L$32/L38-1 -> 0.7136503302 | R38: 0.215 | S38: =R$32/R38-1 -> 0.06905059514
C40: 2010/11
C41: Capacity | D41: €/MWh | F41: 215.833 | G41: =F$31/F41-1 -> 0.3496605225 | L41: 68.297 | M41: =L$31/L41-1 -> 0.5183244108 | R41: 446.809 | S41: =R$31/R41-1 -> 0.03736214252
C42: Commodity | D42: €/MWh | F42: 0.09 | G42: =F$32/F42-1 -> 0.4084944264 | L42: 0.065 | M42: =L$32/L42-1 -> 0.3972841154 | R42: 0.214 | S42: =R$32/R42-1 -> 0.07404615867
C46: Illustrative transmission transportation costs
C48: UK gas | F48: 2012/13 | H48: 2011/12 | I48: Nominal Change | J48: 2010/11 | K48: Nominal Change
C49: Capacity | D49: €/MWh | F49: =F31+R31 -> 754.8040211 | H49: =F37+R37 -> 630.541 | I49: =($F49/H49)-1 -> 0.1970736575 | J49: =F41+R41 -> 662.642 | K49: =($F49/J49)-1 -> 0.1390826737
C50: Commodity | D50: €/MWh | F50: =F32+R32 -> 0.3566103763 | H50: =F38+R38 -> 0.297 | I50: =($F50/H50)-1 -> 0.2007083378 | J50: =F42+R42 -> 0.304 | K50: =($F50/J50)-1 -> 0.1730604485
C52: Cost per therm
C53: Annual consumption | D53: MWh | E53: 365
C54: Load Factor | E54: 1.3
F55: 2012/13 | H55: 2011/12 | I55: Nominal Change | J55: 2010/11 | K55: Nominal Change
C56: Capacity cost | D56: € | F56: =F49*($E53/365)*$E54 -> 981.2452274 | H56: =H49*($E53/365)*$E54 -> 819.7033 | J56: =J49*($E53/365)*$E54 -> 861.4346
C57: Commodity cost | D57: € | F57: =$E53*F50 -> 130.1627874 | H57: =$E53*H50 -> 108.405 | J57: =$E53*J50 -> 110.96
C58: Total Cost | D58: € | F58: =SUM(F56:F57) -> 1111.408015 | H58: =SUM(H56:H57) -> 928.1083 | J58: =SUM(J56:J57) -> 972.3946
C60: Cost/MWh | D60: €/MWh | F60: =F58/$E53 -> 3.044953465 | H60: =H58/$E53 -> 2.542762466 | J60: =J58/$E53 -> 2.664094795
C61: Cost/Therm | D61: c/Therm | F61: =(F60*100/1000)*29.3071 -> 8.92387557 | H61: =(H60*100/1000)*29.3071 -> 7.452099386 | I61: =$F61/H61-1 -> 0.1974981958 | J61: =(J60*100/1000)*29.3071 -> 7.807689255 | K61: =$F61/J61-1 -> 0.1429598794
C63: Inch gas | F63: 2012/13 | H63: 2011/12 | I63: Nominal Change | J63: 2010/11 | K63: Nominal Change
C64: Capacity | D64: €/MWh | F64: =L31+R31 -> 567.1997438 | H64: =L37+R37 -> 487.354 | I64: =($F64/H64)-1 -> 0.1638352077 | J64: =L41+R41 -> 515.106 | K64: =($F64/J64)-1 -> 0.1011320851
C65: Commodity | D65: €/MWh | F65: =L32+R32 -> 0.3206693455 | H65: =L38+R38 -> 0.268 | I65: =($F65/H65)-1 -> 0.1965274084 | J65: =L42+R42 -> 0.279 | K65: =($F65/J65)-1 -> 0.1493524927
C67: Cost per therm
C68: Annual consumption | D68: MWh | E68: 365
C69: Load Factor | E69: 1.3
F70: 2012/13 | H70: 2011/12 | I70: Nominal Change | J70: 2010/11 | K70: Nominal Change
C71: Capacity cost | D71: € | F71: =F64*($E68/365)*$E69 -> 737.359667 | H71: =H64*($E68/365)*$E69 -> 633.5602 | J71: =J64*($E68/365)*$E69 -> 669.6378
C72: Commodity cost | D72: € | F72: =$E68*F65 -> 117.0443111 | H72: =$E68*H65 -> 97.82 | J72: =$E68*J65 -> 101.835
C73: Total Cost | D73: € | F73: =SUM(F71:F72) -> 854.4039781 | H73: =SUM(H71:H72) -> 731.3802 | J73: =SUM(J71:J72) -> 771.4728
C75: Cost/MWh | D75: €/MWh | F75: =F73/$E68 -> 2.340832817 | H75: =H73/$E68 -> 2.00378137 | J75: =J73/$E68 -> 2.11362411
C76: Cost/Therm | D76: c/Therm | F76: =(F75*100/1000)*29.3071 -> 6.860302144 | H76: =(H75*100/1000)*29.3071 -> 5.872502098 | I76: =$F76/H76-1 -> 0.1682076956 | J76: =(J75*100/1000)*29.3071 -> 6.194419314 | K76: =$F76/J76-1 -> 0.1074972158

Sheet Transmission 13 14
E1: IC | K1: INCH | Q1: EXIT | X1: SNP
X2: See methodology set out in CER/12/116
F3: Current Forecast | L3: Current Forecast | R3: Current Forecast | X3: Current Forecast
A6: Revenue | C6: Allowed revenue for period as per decision | D6: 10/11 monies | E6: BICt+1 | F6: 58.25525116 | K6: BINCHt+1 | L6: 1.985730049 | Q6: BEXITt+1 | R6: 128.1324933
C7: Inflation | E7: HICPDj | F7: 0.040469584 | K7: HICPDj | L7: 0.040469584 | Q7: HICPDj | R7: 0.040469584
C8: Inflated allowed Revenue | F8: 60.61281694 | L8: 2.066091718 | R8: 133.317962
C10: forecast less allowable pass through (50%) | F10: 0.1108913238 | L10: -0.02831739208 | R10: 0.2781655288
C11: forecast less allowable pass through (100%) | F11: -0.5183030713 | L11: -0.04305073912 | R11: 0.1373419851
C12: Correction factor Kt-1 | E12: KICt-1 | F12: 2.339694355 | K12: KINCHt-1 | L12: -0.14871283 | Q12: KEXITt-1 | R12: 4.23
C13: CAG Tariff Analysis costs | R13: 0
C14: Spare K factor
C15: Spare K factor
C17: Spare correction
C18: Spare correction
C19: Spare correction
R20: -4.732762754
C21: forecast other revenues | F21: 0 | L21: 0
C23: Allowable Revenue | F23: =SUM(F8:F22) -> 62.54509955 | L23: =SUM(L8:L22) -> 1.846010757 | R23: 133.2307068 | Y23: =F23*(Y37/(Y36+Y37)*Y35/(Y37+Y35)) -> 6.134230917
A26: Tariff | C26: Demand
C27: Capacity | D27: GWh | F27: 158.4209051 | L27: 36.340804 | R27: 235.5200457 | Y27: 0
C28: Commodity | D28: GWh | F28: 47218.73508 | L28: 3903.433229 | R28: 49800.2 | Y28: 0
C30: Tariff | E30: =E1 -> IC | K30: =K1 -> INCH | Q30: =Q1 -> EXIT | X30: =X1 -> SNP
C31: Capacity | D31: €/MWh | F31: 355.322989 | L31: 45.717 | R31: 509.119 | X31: €/MWh/day | Y31: =(Y23*1000000*90%)/(Y35*10) -> 9.800178091 | Z31: Default daily tariff
C32: Commodity | D32: €/MWh | F32: 0.132 | L32: 0.04729197731 | R32: 0.2675304653 | X32: €/MWh | Y32: =(Y23*1000000*10%)/(Y35*10) -> 1.088908677 | Z32: Default daily tariff
C33: Capacity | D33: % change
C34: Commodity | D34: % change
C35: Previous tariffs | G35: Change Nominal | M35: Change Nominal | S35: Change Nominal | X35: Tech Cap SNP | Y35: =5100000*39.765/3600 -> 56333.75 | Z35: MWh
C36: 2012/13 Post April | X36: Tech Cap IC2 | Y36: =23000000*39.765/3600 -> 254054.1667 | Z36: MWh
C37: Capacity | D37: €/MWh | F37: 340.822 | G37: =F$31/F37-1 -> 0.04254710377 | L37: 103.697 | M37: =L$31/L37-1 -> -0.5591290008 | R37: 491.313 | S37: =R$31/R37-1 -> 0.03624166265 | X37: Tech Cap IC1 | Y37: =17000000*39.765/3600 -> 187779.1667 | Z37: MWh
C38: Commodity | D38: €/MWh | F38: 0.148 | G38: =F$32/F38-1 -> -0.1081081081 | L38: 0.091 | M38: =L$32/L38-1 -> -0.4803079416 | R38: 0.244 | S38: =R$32/R38-1 -> 0.09643633316
C40: 2012/13 Pre April
C41: Capacity | D41: €/MWh | F41: 291.301 | G41: =F$31/F41-1 -> 0.219779503 | L41: 103.697 | M41: =L$31/L41-1 -> -0.5591290008 | R41: 463.503 | S41: =R$31/R41-1 -> 0.09841575998
C42: Commodity | D42: €/MWh | F42: 0.127 | G42: =F$32/F42-1 -> 0.03937007874 | L42: 0.091 | M42: =L$32/L42-1 -> -0.4803079416 | R42: 0.23 | S42: =R$32/R42-1 -> 0.163175936
C46: Illustrative transmission transportation costs
C48: UK gas | F48: 2013/14 | H48: 2012/13 post April | I48: Nominal Change | J48: 2012/13 pre April | K48: Nominal Change
C49: Capacity | D49: €/MWh | F49: =F31+R31 -> 864.441989 | H49: =F37+R37 -> 832.135 | I49: =($F49/H49)-1 -> 0.03882421602 | J49: =F41+R41 -> 754.804 | K49: =($F49/J49)-1 -> 0.1452535877
C50: Commodity | D50: €/MWh | F50: =F32+R32 -> 0.3995304653 | H50: =F38+R38 -> 0.392 | I50: =($F50/H50)-1 -> 0.01921037064 | J50: =F42+R42 -> 0.357 | K50: =($F50/J50)-1 -> 0.119132956
C52: Cost per therm
C53: Annual consumption | D53: MWh | E53: 365
C54: Load Factor | E54: 1.3
F55: 2013/14 | H55: 2012/13 post April | I55: Nominal Change | J55: 2012/13 pre April | K55: Nominal Change
C56: Capacity cost | D56: € | F56: =F49*($E53/365)*$E54 -> 1123.774586 | H56: =H49*($E53/365)*$E54 -> 1081.7755 | J56: =J49*($E53/365)*$E54 -> 981.2452
C57: Commodity cost | D57: € | F57: =$E53*F50 -> 145.8286198 | H57: =$E53*H50 -> 143.08 | J57: =$E53*J50 -> 130.305
C58: Total Cost | D58: € | F58: =SUM(F56:F57) -> 1269.603206 | H58: =SUM(H56:H57) -> 1224.8555 | J58: =SUM(J56:J57) -> 1111.5502
C60: Cost/MWh | D60: €/MWh | F60: =F58/$E53 -> 3.478364947 | H60: =H58/$E53 -> 3.355768493 | J60: =J58/$E53 -> 3.045343014
C61: Cost/Therm | D61: c/Therm | F61: =(F60*100/1000)*29.3071 -> 10.19407893 | H61: =(H60*100/1000)*29.3071 -> 9.834784281 | I61: =$F61/H61-1 -> 0.03653304862 | J61: =(J60*100/1000)*29.3071 -> 8.925017224 | K61: =$F61/J61-1 -> 0.1421915137
C63: Inch gas | F63: 2013/14 | H63: 2012/13 post April | I63: Nominal Change | J63: 2012/13 pre April | K63: Nominal Change
C64: Capacity | D64: €/MWh | F64: =L31+R31 -> 554.836 | H64: =L37+R37 -> 595.01 | I64: =($F64/H64)-1 -> -0.06751819297 | J64: =L41+R41 -> 567.2 | K64: =($F64/J64)-1 -> -0.02179830748
C65: Commodity | D65: €/MWh | F65: =L32+R32 -> 0.3148224426 | H65: =L38+R38 -> 0.335 | I65: =($F65/H65)-1 -> -0.06023151461 | J65: =L42+R42 -> 0.321 | K65: =($F65/J65)-1 -> -0.01924472709
C67: Cost per therm
C68: Annual consumption | D68: MWh | E68: 365
C69: Load Factor | E69: 1.3
